{"text_format":"1","workbook":"xlsx","n_sheets":13,"sheets":["Раздел0","Раздел1","Раздел2","Раздел3","Раздел4","Раздел5","Раздел6","Раздел7","Раздел8","Раздел9","Раздел10","Раздел11","Раздел12"],"not_rendered":{"charts":0,"images":0,"macros":1,"external_links":2,"defined_names":415,"comments":1,"pivot_tables":0},"unopened":[],"bounds":{"document_bytes":16777216,"sheet_cells":100000,"rows_first":2000,"rows_last":500,"rows_between":2000,"halvings":0,"cell_chars":16384,"cell_head_chars":4096},"cells_cut":0,"cells_raw":0,"read":"whole","date_system":"1900"}

{"sheet":"Раздел0","index":0,"n_rows":36,"n_cols":14,"rows_kept":36,"cut":false,"hidden":false,"merged":[[0,0,0,18],[1,0,36,0],[1,4,1,14],[1,18,36,18],[3,4,3,14],[5,3,5,15],[7,4,7,14],[9,5,9,13],[10,5,10,13],[12,1,12,9],[12,10,12,11],[12,13,12,16],[13,1,13,9],[13,10,13,11],[14,2,14,9],[14,10,14,11],[14,13,14,16],[15,2,15,9],[15,13,15,16],[16,2,16,9],[16,13,16,16],[17,2,17,9],[17,13,17,16],[23,1,23,9],[23,10,23,11],[18,2,18,9],[18,13,18,16],[19,2,19,9],[19,10,19,11],[19,13,19,16],[20,2,20,9],[20,10,20,11],[21,1,21,9],[21,10,21,11],[21,13,21,16],[22,1,22,9],[22,10,22,11],[24,2,24,9],[25,2,25,9],[26,1,26,9],[26,10,26,11],[27,1,27,9],[27,10,27,11],[32,1,33,3],[32,4,32,17],[33,4,33,7],[33,8,33,11],[33,12,33,17],[28,2,28,9],[30,1,30,6],[30,7,30,17],[31,1,31,3],[31,4,31,17],[37,0,37,18],[34,1,34,3],[34,4,34,7],[34,8,34,11],[34,12,34,17],[35,1,35,3],[35,4,35,7],[35,8,35,11],[35,12,35,17]]}
[]
[null,null,null,null,"СТАТИСТИЧЕСКОЕ НАБЛЮДЕНИЕ МИНИСТЕРСТВА СПОРТА РОССИЙСКОЙ ФЕДЕРАЦИИ"]
[]
[null,null,null,null,"КОНФИДЕНЦИАЛЬНОСТЬ ГАРАНТИРУЕТСЯ ПОЛУЧАТЕЛЕМ ИНФОРМАЦИИ"]
[]
[null,null,null,"Нарушение порядка представления статистической информации, а равно представление недостоверной статистической информации влечет ответственность, установленную статьей 13.19 Кодекса Российской Федерации об административных правонарушениях от 30.12.2001 № 195-ФЗ, а также статьей 3 Закона Российской Федерации от 13.05.1992 № 2761-1 “Об ответственности за нарушение порядка представления государственной статистической отчетности”\nпорядка представления государственной статистической отчетности”"]
[]
[null,null,null,null,"ВОЗМОЖНО ПРЕДОСТАВЛЕНИЕ В ЭЛЕКТРОННОМ ВИДЕ"]
[]
[null,null,null,null,null,"СВЕДЕНИЯ ПО ОРГАНИЗАЦИЯМ, ОСУЩЕСТВЛЯЮЩИМ СПОРТИВНУЮ ПОДГОТОВКУ"]
[null,null,null,null,null,"по состоянию на 31 декабря 2015 г."]
[]
[null,"Предоставляют:",null,null,null,null,null,null,null,null,"Сроки предоставления",null,null,"Форма № 5-ФК"]
[null,"Юридические лица – организации, осуществляющие спортивную подготовку:",null,null,null,null,null,null,null,null,"25 января"]
[null,"-","органу местного самоуправления поселения, внутригородской территории города ",null,null,null,null,null,null,null,"после отчетного периода"]
[null,null,"федерального значения;",null,null,null,null,null,null,null,null,null,null,"Письмо Минспорта России"]
[null,"-","органу местного самоуправления городского округа, муниципального района в",null,null,null,null,null,null,null,null,null,null,"от ________________"]
[null,null,"сфере физической культуры и спорта;",null,null,null,null,null,null,null,null,null,null,"№ ________________"]
[null,"-","территориальному органу исполнительной власти города федерального значения в "]
[null,null,"сфере физической культуры и спорта;"]
[null,"-","вышестоящей организации (ведомству) по подчиненности"]
[null,"органы местного самоуправления городских округов, муниципальных районов в сфере ",null,null,null,null,null,null,null,null,"5 февраля",null,null,"Годовая"]
[null,"физической культуры и спорта, территориальные органы исполнительной власти ",null,null,null,null,null,null,null,null,"после отчетного периода"]
[null,"городов федерального значения в сфере физической культуры и спорта:"]
[null,"-","органу исполнительной власти субъекта Российской Федерации в области "]
[null,null,"физической культуры и спорта"]
[null,"органы исполнительной власти субъектов Российской Федерации в области ",null,null,null,null,null,null,null,null,"20 февраля "]
[null,"физической культуры и спорта:",null,null,null,null,null,null,null,null," после отчетного периода"]
[null,"-","Минспорту России"]
[null,null," "]
[null,"Наименование отчитывающейся организации",null,null,null,null,null,"Москва"]
[null,"Почтовый адрес",null,null,"Москва"]
[null,"Код\nформы\nпо ОКУД",null,null,"Код"]
[null,null,null,null,"отчитывающейся организации\nпо ОКПО"]
[null,1,null,null,2,null,null,null,3,null,null,null,4]
[null,"0609403"]

{"sheet":"Раздел1","index":1,"n_rows":20,"n_cols":9,"rows_kept":20,"cut":false,"hidden":false,"merged":[[19,1,20,1],[19,2,20,2],[14,6,14,7],[14,4,14,5],[13,3,13,7],[16,3,16,4],[16,5,16,6],[16,7,16,8],[19,3,19,5],[19,6,19,8],[20,3,20,5],[20,6,20,8],[18,3,18,8],[17,3,17,4],[17,5,17,6],[17,7,17,8],[16,1,17,1],[0,9,8,9],[2,1,3,1],[2,3,3,3],[13,1,15,1],[13,2,15,2],[15,4,15,5],[15,6,15,7],[14,8,15,8],[12,7,12,9],[16,2,17,2],[0,0,8,0],[0,1,0,8],[1,6,1,8],[2,2,3,2],[2,4,2,8]]}
[null,"Раздел I. Число организаций"]
[null,null,null,null,null,null,"Код по ОКЕИ: единица – 642"]
[null,"Ведомственная \nпринадлежность","№ стро-ки","Число организаций – всего","в том числе по виду организации:"]
[null,null,null,null,"ДЮСШ ","СДЮШОР","УОР","ЦСП","другие\nорганизации"]
[null,1,2,3,4,5,6,7,8]
[null,"Органы управления в сфере образования","01",{"$f":"SUM(E6:I6)","v":0}]
[null,"Органы управления в сфере физической культуры и спорта","02",{"$f":"SUM(E7:I7)","v":0}]
[null,"Другая ведомственная принадлежность","03",{"$f":"SUM(E8:I8)","v":0}]
[null,"ИТОГО","04",{"$f":"SUM(D6:D8)","v":0},0,0,0,0,0]
[]
[]
[]
[null,null,null,null,null,null,null,"Код по ОКЕИ: единица – 642"]
[null,"Виды правовых образований","05","Публичные правовые образования",null,null,null,null,"Иные правовые образования"]
[null,null,null,"Российская Федерация","Субъект Российской Федерации",null,"Муниципальное образование"]
[]
[null,"Переход на программу спортивной подготовки","06","Не перешли",null,"Частично перешли",null,"Полностью перешли"]
[]
[null,"ОГРН","07"]
[null,"Признак того, является ли отчитывающаяся организация юридическим лицом","08","Да",null,null,"Нет"]

{"sheet":"Раздел2","index":2,"n_rows":210,"n_cols":32,"rows_kept":210,"cut":false,"hidden":false,"merged":[[2,3,4,4],[4,19,5,19],[4,11,4,15],[0,20,196,20],[0,0,196,0],[2,1,5,1],[2,2,5,2],[1,16,1,19],[2,5,2,19],[3,5,3,19],[4,5,5,5],[4,6,4,10],[0,1,0,19],[4,16,5,16],[4,17,5,17],[4,18,5,18]]}
[null,"Раздел II. Численность занимающихся"]
[null,null,null,null,null,null,null,null,null,null,null,null,null,null,null,null,"Коды по ОКЕИ: человек - 792, единица - 642 "]
[null,"Виды спорта","№ строки","Число отделений по видам спорта",null,"Число занимающихся на 31 декабря отчетного года"]
[null,null,null,null,null,"из них:"]
[null,null,null,null,null,"всего","по этапам подготовки",null,null,null,null,"по возрастам",null,null,null,null,"женщин","спортсменов, спортсменов – инструкторов","в платных группах","обучающихся по предпрофессио-нальным программам в области физической куль-туры и спорта"]
[null,null,null,"всего","в том числе отделения ФСО и ОУ, имеющие право использовать в наименовании слово \"Олимпийский\"",null,"спортивно-оздорови-тельный","начальной подготовки","трениро-вочный","совершен-ствования спортивного мастерства","высшего спортивного мастерства","до 5 лет","от 6 до 15 лет","от 16 до 21 года","от 22 до 30 лет","старше 30 лет"]
[null,1,2,3,4,5,6,7,8,9,10,11,12,13,14,15,16,17,18,19]
[null,"Авиамодельный спорт","01",null,null,{"$f":"SUM(G8:K8)","v":0},null,null,null,null,null,null,null,null,null,null,null,null,null,null,null,{"$f":"Раздел3!D8","v":0},{"$f":"Раздел3!E8","v":0},{"$f":"Раздел3!F8","v":0},{"$f":"Раздел3!G8","v":0},{"$f":"Раздел3!H8","v":0},{"$f":"SUM(Раздел5!D8:I8)","v":0}]
[null,"Автомобильный спорт","02",null,null,{"$f":"SUM(G9:K9)","v":0},null,null,null,null,null,null,null,null,null,null,null,null,null,null,null,{"$f":"Раздел3!D9","v":0},{"$f":"Раздел3!E9","v":0},{"$f":"Раздел3!F9","v":0},{"$f":"Раздел3!G9","v":0},{"$f":"Раздел3!H9","v":0},{"$f":"SUM(Раздел5!D9:I9)","v":0}]
[null,"Айкидо","03",null,null,0,null,null,null,null,null,null,null,null,null,null,null,null,null,null,null,{"$f":"Раздел3!D10","v":0},{"$f":"Раздел3!E10","v":0},{"$f":"Раздел3!F10","v":0},{"$f":"Раздел3!G10","v":0},{"$f":"Раздел3!H10","v":0},{"$f":"SUM(Раздел5!D10:I10)","v":0}]
[null,"Акробатический рок-н-ролл","04",null,null,0,null,null,null,null,null,null,null,null,null,null,null,null,null,null,null,{"$f":"Раздел3!D11","v":0},{"$f":"Раздел3!E11","v":0},{"$f":"Раздел3!F11","v":0},{"$f":"Раздел3!G11","v":0},{"$f":"Раздел3!H11","v":0},{"$f":"SUM(Раздел5!D11:I11)","v":0}]
[null,"Альпинизм","05",null,null,0,null,null,null,null,null,null,null,null,null,null,null,null,null,null,null,{"$f":"Раздел3!D12","v":0},{"$f":"Раздел3!E12","v":0},{"$f":"Раздел3!F12","v":0},{"$f":"Раздел3!G12","v":0},{"$f":"Раздел3!H12","v":0},{"$f":"SUM(Раздел5!D12:I12)","v":0}]
[null,"Американский футбол","06",null,null,0,null,null,null,null,null,null,null,null,null,null,null,null,null,null,null,{"$f":"Раздел3!D13","v":0},{"$f":"Раздел3!E13","v":0},{"$f":"Раздел3!F13","v":0},{"$f":"Раздел3!G13","v":0},{"$f":"Раздел3!H13","v":0},{"$f":"SUM(Раздел5!D13:I13)","v":0}]
[null,"Армрестлинг","07",null,null,0,null,null,null,null,null,null,null,null,null,null,null,null,null,null,null,{"$f":"Раздел3!D14","v":0},{"$f":"Раздел3!E14","v":0},{"$f":"Раздел3!F14","v":0},{"$f":"Раздел3!G14","v":0},{"$f":"Раздел3!H14","v":0},{"$f":"SUM(Раздел5!D14:I14)","v":0}]
[null,"Бадминтон","08",null,null,0,null,null,null,null,null,null,null,null,null,null,null,null,null,null,null,{"$f":"Раздел3!D15","v":0},{"$f":"Раздел3!E15","v":0},{"$f":"Раздел3!F15","v":0},{"$f":"Раздел3!G15","v":0},{"$f":"Раздел3!H15","v":0},{"$f":"SUM(Раздел5!D15:I15)","v":0}]
[null,"Баскетбол - всего","09",{"$f":"IF(SUM(D17:D18)>=1,1,0)","v":0},{"$f":"IF(SUM(E17:E18)>=1,1,0)","v":0},0,{"$f":"SUM(G17:G18)","v":0},{"$f":"SUM(H17:H18)","v":0},0,0,0,0,0,0,0,0,0,0,0,0,null,{"$f":"Раздел3!D16","v":0},{"$f":"Раздел3!E16","v":0},{"$f":"Раздел3!F16","v":0},{"$f":"Раздел3!G16","v":0},{"$f":"Раздел3!H16","v":0},{"$f":"SUM(Раздел5!D16:I16)","v":0}]
[null,"в том числе:\nБаскетбол (муж.)",10,null,null,0,null,null,null,null,null,null,null,null,null,null,null,null,null,null,null,{"$f":"Раздел3!D17","v":0},{"$f":"Раздел3!E17","v":0},{"$f":"Раздел3!F17","v":0},{"$f":"Раздел3!G17","v":0},{"$f":"Раздел3!H17","v":0},{"$f":"SUM(Раздел5!D17:I17)","v":0}]
[null,"Баскетбол (жен.)",11,null,null,0,null,null,null,null,null,null,null,null,null,null,{"$f":"F18","v":0},null,null,null,null,{"$f":"Раздел3!D18","v":0},{"$f":"Раздел3!E18","v":0},{"$f":"Раздел3!F18","v":0},{"$f":"Раздел3!G18","v":0},{"$f":"Раздел3!H18","v":0},{"$f":"SUM(Раздел5!D18:I18)","v":0}]
[null,"Бейсбол",12,null,null,0,null,null,null,null,null,null,null,null,null,null,null,null,null,null,null,{"$f":"Раздел3!D19","v":0},{"$f":"Раздел3!E19","v":0},{"$f":"Раздел3!F19","v":0},{"$f":"Раздел3!G19","v":0},{"$f":"Раздел3!H19","v":0},{"$f":"SUM(Раздел5!D19:I19)","v":0}]
[null,"Биатлон",13,null,null,0,null,null,null,null,null,null,null,null,null,null,null,null,null,null,null,{"$f":"Раздел3!D20","v":0},{"$f":"Раздел3!E20","v":0},{"$f":"Раздел3!F20","v":0},{"$f":"Раздел3!G20","v":0},{"$f":"Раздел3!H20","v":0},{"$f":"SUM(Раздел5!D20:I20)","v":0}]
[null,"Бильярдный спорт",14,null,null,0,null,null,null,null,null,null,null,null,null,null,null,null,null,null,null,{"$f":"Раздел3!D21","v":0},{"$f":"Раздел3!E21","v":0},{"$f":"Раздел3!F21","v":0},{"$f":"Раздел3!G21","v":0},{"$f":"Раздел3!H21","v":0},{"$f":"SUM(Раздел5!D21:I21)","v":0}]
[null,"Бобслей - всего",15,{"$f":"IF(SUM(D23:D24)>=1,1,0)","v":0},{"$f":"IF(SUM(E23:E24)>=1,1,0)","v":0},0,{"$f":"SUM(G23:G24)","v":0},0,0,0,0,0,0,0,0,0,0,0,0,0,null,{"$f":"Раздел3!D22","v":0},{"$f":"Раздел3!E22","v":0},{"$f":"Раздел3!F22","v":0},{"$f":"Раздел3!G22","v":0},{"$f":"Раздел3!H22","v":0},{"$f":"SUM(Раздел5!D22:I22)","v":0}]
[null,"в том числе:\nБобслей",16,null,null,0,null,null,null,null,null,null,null,null,null,null,null,null,null,null,null,{"$f":"Раздел3!D23","v":0},{"$f":"Раздел3!E23","v":0},{"$f":"Раздел3!F23","v":0},{"$f":"Раздел3!G23","v":0},{"$f":"Раздел3!H23","v":0},{"$f":"SUM(Раздел5!D23:I23)","v":0}]
[null,"Скелетон",17,null,null,0,null,null,null,null,null,null,null,null,null,null,null,null,null,null,null,{"$f":"Раздел3!D24","v":0},{"$f":"Раздел3!E24","v":0},{"$f":"Раздел3!F24","v":0},{"$f":"Раздел3!G24","v":0},{"$f":"Раздел3!H24","v":0},{"$f":"SUM(Раздел5!D24:I24)","v":0}]
[null,"Бодибилдинг",18,null,null,0,null,null,null,null,null,null,null,null,null,null,null,null,null,null,null,{"$f":"Раздел3!D25","v":0},{"$f":"Раздел3!E25","v":0},{"$f":"Раздел3!F25","v":0},{"$f":"Раздел3!G25","v":0},{"$f":"Раздел3!H25","v":0},{"$f":"SUM(Раздел5!D25:I25)","v":0}]
[null,"Бокс",19,null,null,0,null,null,null,null,null,null,null,null,null,null,null,null,null,null,null,{"$f":"Раздел3!D26","v":0},{"$f":"Раздел3!E26","v":0},{"$f":"Раздел3!F26","v":0},{"$f":"Раздел3!G26","v":0},{"$f":"Раздел3!H26","v":0},{"$f":"SUM(Раздел5!D26:I26)","v":0}]
[null,"Борьба на поясах",20,null,null,0,null,null,null,null,null,null,null,null,null,null,null,null,null,null,null,{"$f":"Раздел3!D27","v":0},{"$f":"Раздел3!E27","v":0},{"$f":"Раздел3!F27","v":0},{"$f":"Раздел3!G27","v":0},{"$f":"Раздел3!H27","v":0},{"$f":"SUM(Раздел5!D27:I27)","v":0}]
[null,"Боулинг",21,null,null,0,null,null,null,null,null,null,null,null,null,null,null,null,null,null,null,{"$f":"Раздел3!D28","v":0},{"$f":"Раздел3!E28","v":0},{"$f":"Раздел3!F28","v":0},{"$f":"Раздел3!G28","v":0},{"$f":"Раздел3!H28","v":0},{"$f":"SUM(Раздел5!D28:I28)","v":0}]
[null,"Велоспорт ВМХ",22,null,null,0,null,null,null,null,null,null,null,null,null,null,null,null,null,null,null,{"$f":"Раздел3!D29","v":0},{"$f":"Раздел3!E29","v":0},{"$f":"Раздел3!F29","v":0},{"$f":"Раздел3!G29","v":0},{"$f":"Раздел3!H29","v":0},{"$f":"SUM(Раздел5!D29:I29)","v":0}]
[null,"Велоспорт – маунтинбайк",23,null,null,0,null,null,null,null,null,null,null,null,null,null,null,null,null,null,null,{"$f":"Раздел3!D30","v":0},{"$f":"Раздел3!E30","v":0},{"$f":"Раздел3!F30","v":0},{"$f":"Раздел3!G30","v":0},{"$f":"Раздел3!H30","v":0},{"$f":"SUM(Раздел5!D30:I30)","v":0}]
[null,"Велоспорт – трек",24,null,null,0,null,null,null,null,null,null,null,null,null,null,null,null,null,null,null,{"$f":"Раздел3!D31","v":0},{"$f":"Раздел3!E31","v":0},{"$f":"Раздел3!F31","v":0},{"$f":"Раздел3!G31","v":0},{"$f":"Раздел3!H31","v":0},{"$f":"SUM(Раздел5!D31:I31)","v":0}]
[null,"Велоспорт – шоссе",25,null,null,0,null,null,null,null,null,null,null,null,null,null,null,null,null,null,null,{"$f":"Раздел3!D32","v":0},{"$f":"Раздел3!E32","v":0},{"$f":"Раздел3!F32","v":0},{"$f":"Раздел3!G32","v":0},{"$f":"Раздел3!H32","v":0},{"$f":"SUM(Раздел5!D32:I32)","v":0}]
[null,"Вертолетный спорт",26,null,null,0,null,null,null,null,null,null,null,null,null,null,null,null,null,null,null,{"$f":"Раздел3!D33","v":0},{"$f":"Раздел3!E33","v":0},{"$f":"Раздел3!F33","v":0},{"$f":"Раздел3!G33","v":0},{"$f":"Раздел3!H33","v":0},{"$f":"SUM(Раздел5!D33:I33)","v":0}]
[null,"Водно-моторный спорт",27,null,null,0,null,null,null,null,null,null,null,null,null,null,null,null,null,null,null,{"$f":"Раздел3!D34","v":0},{"$f":"Раздел3!E34","v":0},{"$f":"Раздел3!F34","v":0},{"$f":"Раздел3!G34","v":0},{"$f":"Раздел3!H34","v":0},{"$f":"SUM(Раздел5!D34:I34)","v":0}]
[null,"Водное поло - всего ",28,{"$f":"IF(SUM(D36:D37)>=1,1,0)","v":0},{"$f":"IF(SUM(E36:E37)>=1,1,0)","v":0},0,{"$f":"SUM(G36:G37)","v":0},0,0,0,0,0,0,0,0,0,0,0,0,0,null,{"$f":"Раздел3!D35","v":0},{"$f":"Раздел3!E35","v":0},{"$f":"Раздел3!F35","v":0},{"$f":"Раздел3!G35","v":0},{"$f":"Раздел3!H35","v":0},{"$f":"SUM(Раздел5!D35:I35)","v":0}]
[null,"в том числе:\nВодное поло (муж.)",29,null,null,0,null,null,null,null,null,null,null,null,null,null,null,null,null,null,null,{"$f":"Раздел3!D36","v":0},{"$f":"Раздел3!E36","v":0},{"$f":"Раздел3!F36","v":0},{"$f":"Раздел3!G36","v":0},{"$f":"Раздел3!H36","v":0},{"$f":"SUM(Раздел5!D36:I36)","v":0}]
[null,"Водное поло (жен.)",30,null,null,0,null,null,null,null,null,null,null,null,null,null,{"$f":"F37","v":0},null,null,null,null,{"$f":"Раздел3!D37","v":0},{"$f":"Раздел3!E37","v":0},{"$f":"Раздел3!F37","v":0},{"$f":"Раздел3!G37","v":0},{"$f":"Раздел3!H37","v":0},{"$f":"SUM(Раздел5!D37:I37)","v":0}]
[null,"Воднолыжный спорт",31,null,null,0,null,null,null,null,null,null,null,null,null,null,null,null,null,null,null,{"$f":"Раздел3!D38","v":0},{"$f":"Раздел3!E38","v":0},{"$f":"Раздел3!F38","v":0},{"$f":"Раздел3!G38","v":0},{"$f":"Раздел3!H38","v":0},{"$f":"SUM(Раздел5!D38:I38)","v":0}]
[null,"Воздухоплавательный спорт",32,null,null,0,null,null,null,null,null,null,null,null,null,null,null,null,null,null,null,{"$f":"Раздел3!D39","v":0},{"$f":"Раздел3!E39","v":0},{"$f":"Раздел3!F39","v":0},{"$f":"Раздел3!G39","v":0},{"$f":"Раздел3!H39","v":0},{"$f":"SUM(Раздел5!D39:I39)","v":0}]
[null,"Волейбол - всего",33,{"$f":"IF(SUM(D41:D44)>=1,1,0)","v":0},{"$f":"IF(SUM(E41:E44)>=1,1,0)","v":0},0,{"$f":"SUM(G41:G44)","v":0},0,0,0,0,0,0,0,0,0,0,0,0,0,null,{"$f":"Раздел3!D40","v":0},{"$f":"Раздел3!E40","v":0},{"$f":"Раздел3!F40","v":0},{"$f":"Раздел3!G40","v":0},{"$f":"Раздел3!H40","v":0},{"$f":"SUM(Раздел5!D40:I40)","v":0}]
[null,"в том числе:\nВолейбол (муж.)",34,null,null,0,null,null,null,null,null,null,null,null,null,null,null,null,null,null,null,{"$f":"Раздел3!D41","v":0},{"$f":"Раздел3!E41","v":0},{"$f":"Раздел3!F41","v":0},{"$f":"Раздел3!G41","v":0},{"$f":"Раздел3!H41","v":0},{"$f":"SUM(Раздел5!D41:I41)","v":0}]
[null,"Волейбол (жен.)",35,null,null,0,null,null,null,null,null,null,null,null,null,null,{"$f":"F42","v":0},null,null,null,null,{"$f":"Раздел3!D42","v":0},{"$f":"Раздел3!E42","v":0},{"$f":"Раздел3!F42","v":0},{"$f":"Раздел3!G42","v":0},{"$f":"Раздел3!H42","v":0},{"$f":"SUM(Раздел5!D42:I42)","v":0}]
[null,"Пляжный волейбол (муж.)",36,null,null,0,null,null,null,null,null,null,null,null,null,null,null,null,null,null,null,{"$f":"Раздел3!D43","v":0},{"$f":"Раздел3!E43","v":0},{"$f":"Раздел3!F43","v":0},{"$f":"Раздел3!G43","v":0},{"$f":"Раздел3!H43","v":0},{"$f":"SUM(Раздел5!D43:I43)","v":0}]
[null,"Пляжный волейбол (жен.)",37,null,null,0,null,null,null,null,null,null,null,null,null,null,{"$f":"F44","v":0},null,null,null,null,{"$f":"Раздел3!D44","v":0},{"$f":"Раздел3!E44","v":0},{"$f":"Раздел3!F44","v":0},{"$f":"Раздел3!G44","v":0},{"$f":"Раздел3!H44","v":0},{"$f":"SUM(Раздел5!D44:I44)","v":0}]
[null,"Восточное боевое единоборство",38,null,null,0,null,null,null,null,null,null,null,null,null,null,null,null,null,null,null,{"$f":"Раздел3!D45","v":0},{"$f":"Раздел3!E45","v":0},{"$f":"Раздел3!F45","v":0},{"$f":"Раздел3!G45","v":0},{"$f":"Раздел3!H45","v":0},{"$f":"SUM(Раздел5!D45:I45)","v":0}]
[null,"Всестилевое карате",39,null,null,0,null,null,null,null,null,null,null,null,null,null,null,null,null,null,null,{"$f":"Раздел3!D46","v":0},{"$f":"Раздел3!E46","v":0},{"$f":"Раздел3!F46","v":0},{"$f":"Раздел3!G46","v":0},{"$f":"Раздел3!H46","v":0},{"$f":"SUM(Раздел5!D46:I46)","v":0}]
[null,"Гандбол - всего",40,{"$f":"IF(SUM(D48:D49)>=1,1,0)","v":0},{"$f":"IF(SUM(E48:E49)>=1,1,0)","v":0},0,{"$f":"SUM(G48:G49)","v":0},0,0,0,0,0,0,0,0,0,0,0,0,0,null,{"$f":"Раздел3!D47","v":0},{"$f":"Раздел3!E47","v":0},{"$f":"Раздел3!F47","v":0},{"$f":"Раздел3!G47","v":0},{"$f":"Раздел3!H47","v":0},{"$f":"SUM(Раздел5!D47:I47)","v":0}]
[null,"в том числе:\nГандбол (муж.)",41,null,null,0,null,null,null,null,null,null,null,null,null,null,null,null,null,null,null,{"$f":"Раздел3!D48","v":0},{"$f":"Раздел3!E48","v":0},{"$f":"Раздел3!F48","v":0},{"$f":"Раздел3!G48","v":0},{"$f":"Раздел3!H48","v":0},{"$f":"SUM(Раздел5!D48:I48)","v":0}]
[null,"Гандбол (жен.)",42,null,null,0,null,null,null,null,null,null,null,null,null,null,{"$f":"F49","v":0},null,null,null,null,{"$f":"Раздел3!D49","v":0},{"$f":"Раздел3!E49","v":0},{"$f":"Раздел3!F49","v":0},{"$f":"Раздел3!G49","v":0},{"$f":"Раздел3!H49","v":0},{"$f":"SUM(Раздел5!D49:I49)","v":0}]
[null,"Гиревой спорт",43,null,null,0,null,null,null,null,null,null,null,null,null,null,null,null,null,null,null,{"$f":"Раздел3!D50","v":0},{"$f":"Раздел3!E50","v":0},{"$f":"Раздел3!F50","v":0},{"$f":"Раздел3!G50","v":0},{"$f":"Раздел3!H50","v":0},{"$f":"SUM(Раздел5!D50:I50)","v":0}]
[null,"Го",44,null,null,0,null,null,null,null,null,null,null,null,null,null,null,null,null,null,null,{"$f":"Раздел3!D51","v":0},{"$f":"Раздел3!E51","v":0},{"$f":"Раздел3!F51","v":0},{"$f":"Раздел3!G51","v":0},{"$f":"Раздел3!H51","v":0},{"$f":"SUM(Раздел5!D51:I51)","v":0}]
[null,"Гольф",45,null,null,0,null,null,null,null,null,null,null,null,null,null,null,null,null,null,null,{"$f":"Раздел3!D52","v":0},{"$f":"Раздел3!E52","v":0},{"$f":"Раздел3!F52","v":0},{"$f":"Раздел3!G52","v":0},{"$f":"Раздел3!H52","v":0},{"$f":"SUM(Раздел5!D52:I52)","v":0}]
[null,"Горнолыжный спорт",46,null,null,0,null,null,null,null,null,null,null,null,null,null,null,null,null,null,null,{"$f":"Раздел3!D53","v":0},{"$f":"Раздел3!E53","v":0},{"$f":"Раздел3!F53","v":0},{"$f":"Раздел3!G53","v":0},{"$f":"Раздел3!H53","v":0},{"$f":"SUM(Раздел5!D53:I53)","v":0}]
[null,"Городошный спорт",47,null,null,0,null,null,null,null,null,null,null,null,null,null,null,null,null,null,null,{"$f":"Раздел3!D54","v":0},{"$f":"Раздел3!E54","v":0},{"$f":"Раздел3!F54","v":0},{"$f":"Раздел3!G54","v":0},{"$f":"Раздел3!H54","v":0},{"$f":"SUM(Раздел5!D54:I54)","v":0}]
[null,"Гребля на байдарках и каноэ",48,null,null,0,null,null,null,null,null,null,null,null,null,null,null,null,null,null,null,{"$f":"Раздел3!D55","v":0},{"$f":"Раздел3!E55","v":0},{"$f":"Раздел3!F55","v":0},{"$f":"Раздел3!G55","v":0},{"$f":"Раздел3!H55","v":0},{"$f":"SUM(Раздел5!D55:I55)","v":0}]
[null,"Гребной слалом",49,null,null,0,null,null,null,null,null,null,null,null,null,null,null,null,null,null,null,{"$f":"Раздел3!D56","v":0},{"$f":"Раздел3!E56","v":0},{"$f":"Раздел3!F56","v":0},{"$f":"Раздел3!G56","v":0},{"$f":"Раздел3!H56","v":0},{"$f":"SUM(Раздел5!D56:I56)","v":0}]
[null,"Гребной спорт - всего",50,{"$f":"IF(SUM(D58:D61)>=1,1,0)","v":0},{"$f":"IF(SUM(E58:E61)>=1,1,0)","v":0},0,{"$f":"SUM(G58:G61)","v":0},0,0,0,0,0,0,0,0,0,0,0,0,0,null,{"$f":"Раздел3!D57","v":0},{"$f":"Раздел3!E57","v":0},{"$f":"Раздел3!F57","v":0},{"$f":"Раздел3!G57","v":0},{"$f":"Раздел3!H57","v":0},{"$f":"SUM(Раздел5!D57:I57)","v":0}]
[null,"в том числе:\nАкадемическая гребля",51,null,null,0,null,null,null,null,null,null,null,null,null,null,null,null,null,null,null,{"$f":"Раздел3!D58","v":0},{"$f":"Раздел3!E58","v":0},{"$f":"Раздел3!F58","v":0},{"$f":"Раздел3!G58","v":0},{"$f":"Раздел3!H58","v":0},{"$f":"SUM(Раздел5!D58:I58)","v":0}]
[null,"Гребля-индор",52,null,null,0,null,null,null,null,null,null,null,null,null,null,null,null,null,null,null,{"$f":"Раздел3!D59","v":0},{"$f":"Раздел3!E59","v":0},{"$f":"Раздел3!F59","v":0},{"$f":"Раздел3!G59","v":0},{"$f":"Раздел3!H59","v":0},{"$f":"SUM(Раздел5!D59:I59)","v":0}]
[null,"Народная гребля",53,null,null,0,null,null,null,null,null,null,null,null,null,null,null,null,null,null,null,{"$f":"Раздел3!D60","v":0},{"$f":"Раздел3!E60","v":0},{"$f":"Раздел3!F60","v":0},{"$f":"Раздел3!G60","v":0},{"$f":"Раздел3!H60","v":0},{"$f":"SUM(Раздел5!D60:I60)","v":0}]
[null,"Прибрежная гребля",54,null,null,0,null,null,null,null,null,null,null,null,null,null,null,null,null,null,null,{"$f":"Раздел3!D61","v":0},{"$f":"Раздел3!E61","v":0},{"$f":"Раздел3!F61","v":0},{"$f":"Раздел3!G61","v":0},{"$f":"Раздел3!H61","v":0},{"$f":"SUM(Раздел5!D61:I61)","v":0}]
[null,"Дартс",55,null,null,0,null,null,null,null,null,null,null,null,null,null,null,null,null,null,null,{"$f":"Раздел3!D62","v":0},{"$f":"Раздел3!E62","v":0},{"$f":"Раздел3!F62","v":0},{"$f":"Раздел3!G62","v":0},{"$f":"Раздел3!H62","v":0},{"$f":"SUM(Раздел5!D62:I62)","v":0}]
[null,"Джиу-джитсу",56,null,null,0,null,null,null,null,null,null,null,null,null,null,null,null,null,null,null,{"$f":"Раздел3!D63","v":0},{"$f":"Раздел3!E63","v":0},{"$f":"Раздел3!F63","v":0},{"$f":"Раздел3!G63","v":0},{"$f":"Раздел3!H63","v":0},{"$f":"SUM(Раздел5!D63:I63)","v":0}]
[null,"Дзюдо",57,null,null,0,null,null,null,null,null,null,null,null,null,null,null,null,null,null,null,{"$f":"Раздел3!D64","v":0},{"$f":"Раздел3!E64","v":0},{"$f":"Раздел3!F64","v":0},{"$f":"Раздел3!G64","v":0},{"$f":"Раздел3!H64","v":0},{"$f":"SUM(Раздел5!D64:I64)","v":0}]
[null,"Капоэйра",58,null,null,0,null,null,null,null,null,null,null,null,null,null,null,null,null,null,null,{"$f":"Раздел3!D65","v":0},{"$f":"Раздел3!E65","v":0},{"$f":"Раздел3!F65","v":0},{"$f":"Раздел3!G65","v":0},{"$f":"Раздел3!H65","v":0},{"$f":"SUM(Раздел5!D65:I65)","v":0}]
[null,"Каратэ",59,null,null,0,null,null,null,null,null,null,null,null,null,null,null,null,null,null,null,{"$f":"Раздел3!D66","v":0},{"$f":"Раздел3!E66","v":0},{"$f":"Раздел3!F66","v":0},{"$f":"Раздел3!G66","v":0},{"$f":"Раздел3!H66","v":0},{"$f":"SUM(Раздел5!D66:I66)","v":0}]
[null,"Кендо",60,null,null,0,null,null,null,null,null,null,null,null,null,null,null,null,null,null,null,{"$f":"Раздел3!D67","v":0},{"$f":"Раздел3!E67","v":0},{"$f":"Раздел3!F67","v":0},{"$f":"Раздел3!G67","v":0},{"$f":"Раздел3!H67","v":0},{"$f":"SUM(Раздел5!D67:I67)","v":0}]
[null,"Керешу",61,null,null,0,null,null,null,null,null,null,null,null,null,null,null,null,null,null,null,{"$f":"Раздел3!D68","v":0},{"$f":"Раздел3!E68","v":0},{"$f":"Раздел3!F68","v":0},{"$f":"Раздел3!G68","v":0},{"$f":"Раздел3!H68","v":0},{"$f":"SUM(Раздел5!D68:I68)","v":0}]
[null,"Керлинг - всего",62,{"$f":"IF(SUM(D70:D71)>=1,1,0)","v":0},{"$f":"IF(SUM(E70:E71)>=1,1,0)","v":0},0,{"$f":"SUM(G70:G71)","v":0},0,0,0,0,0,0,0,0,0,0,0,0,0,null,{"$f":"Раздел3!D69","v":0},{"$f":"Раздел3!E69","v":0},{"$f":"Раздел3!F69","v":0},{"$f":"Раздел3!G69","v":0},{"$f":"Раздел3!H69","v":0},{"$f":"SUM(Раздел5!D69:I69)","v":0}]
[null,"в том числе:\nКерлинг (муж.)",63,null,null,0,null,null,null,null,null,null,null,null,null,null,null,null,null,null,null,{"$f":"Раздел3!D70","v":0},{"$f":"Раздел3!E70","v":0},{"$f":"Раздел3!F70","v":0},{"$f":"Раздел3!G70","v":0},{"$f":"Раздел3!H70","v":0},{"$f":"SUM(Раздел5!D70:I70)","v":0}]
[null,"Керлинг (жен.)",64,null,null,0,null,null,null,null,null,null,null,null,null,null,{"$f":"F71","v":0},null,null,null,null,{"$f":"Раздел3!D71","v":0},{"$f":"Раздел3!E71","v":0},{"$f":"Раздел3!F71","v":0},{"$f":"Раздел3!G71","v":0},{"$f":"Раздел3!H71","v":0},{"$f":"SUM(Раздел5!D71:I71)","v":0}]
[null,"Кикбоксинг",65,null,null,0,null,null,null,null,null,null,null,null,null,null,null,null,null,null,null,{"$f":"Раздел3!D72","v":0},{"$f":"Раздел3!E72","v":0},{"$f":"Раздел3!F72","v":0},{"$f":"Раздел3!G72","v":0},{"$f":"Раздел3!H72","v":0},{"$f":"SUM(Раздел5!D72:I72)","v":0}]
[null,"Кинологический спорт",66,null,null,{"$f":"SUM(G73:K73)","v":0},null,null,null,null,null,null,null,null,null,null,null,null,null,null,null,{"$f":"Раздел3!D73","v":0},{"$f":"Раздел3!E73","v":0},{"$f":"Раздел3!F73","v":0},{"$f":"Раздел3!G73","v":0},{"$f":"Раздел3!H73","v":0},{"$f":"SUM(Раздел5!D73:I73)","v":0}]
[null,"Киокусинкай",67,null,null,0,null,null,null,null,null,null,null,null,null,null,null,null,null,null,null,{"$f":"Раздел3!D74","v":0},{"$f":"Раздел3!E74","v":0},{"$f":"Раздел3!F74","v":0},{"$f":"Раздел3!G74","v":0},{"$f":"Раздел3!H74","v":0},{"$f":"SUM(Раздел5!D74:I74)","v":0}]
[null,"Конный спорт",68,null,null,0,null,null,null,null,null,null,null,null,null,null,null,null,null,null,null,{"$f":"Раздел3!D75","v":0},{"$f":"Раздел3!E75","v":0},{"$f":"Раздел3!F75","v":0},{"$f":"Раздел3!G75","v":0},{"$f":"Раздел3!H75","v":0},{"$f":"SUM(Раздел5!D75:I75)","v":0}]
[null,"Конькобежный спорт - всего",69,{"$f":"IF(SUM(D77:D78)>=1,1,0)","v":0},{"$f":"IF(SUM(E77:E78)>=1,1,0)","v":0},0,{"$f":"SUM(G77:G78)","v":0},0,0,0,0,0,0,0,0,0,0,0,0,0,null,{"$f":"Раздел3!D76","v":0},{"$f":"Раздел3!E76","v":0},{"$f":"Раздел3!F76","v":0},{"$f":"Раздел3!G76","v":0},{"$f":"Раздел3!H76","v":0},{"$f":"SUM(Раздел5!D76:I76)","v":0}]
[null,"в том числе:\nКонькобежный спорт",70,null,null,0,null,null,null,null,null,null,null,null,null,null,null,null,null,null,null,{"$f":"Раздел3!D77","v":0},{"$f":"Раздел3!E77","v":0},{"$f":"Раздел3!F77","v":0},{"$f":"Раздел3!G77","v":0},{"$f":"Раздел3!H77","v":0},{"$f":"SUM(Раздел5!D77:I77)","v":0}]
[null,"Шорт-трек",71,null,null,0,null,null,null,null,null,null,null,null,null,null,null,null,null,null,null,{"$f":"Раздел3!D78","v":0},{"$f":"Раздел3!E78","v":0},{"$f":"Раздел3!F78","v":0},{"$f":"Раздел3!G78","v":0},{"$f":"Раздел3!H78","v":0},{"$f":"SUM(Раздел5!D78:I78)","v":0}]
[null,"Корэш",72,null,null,0,null,null,null,null,null,null,null,null,null,null,null,null,null,null,null,{"$f":"Раздел3!D79","v":0},{"$f":"Раздел3!E79","v":0},{"$f":"Раздел3!F79","v":0},{"$f":"Раздел3!G79","v":0},{"$f":"Раздел3!H79","v":0},{"$f":"SUM(Раздел5!D79:I79)","v":0}]
[null,"Лапта",73,null,null,0,null,null,null,null,null,null,null,null,null,null,null,null,null,null,null,{"$f":"Раздел3!D80","v":0},{"$f":"Раздел3!E80","v":0},{"$f":"Раздел3!F80","v":0},{"$f":"Раздел3!G80","v":0},{"$f":"Раздел3!H80","v":0},{"$f":"SUM(Раздел5!D80:I80)","v":0}]
[null,"Легкая атлетика - всего",74,{"$f":"IF(SUM(D82:D88)>=1,1,0)","v":0},{"$f":"IF(SUM(E82:E88)>=1,1,0)","v":0},0,{"$f":"SUM(G82:G88)","v":0},0,0,0,0,0,0,0,0,0,0,0,0,0,null,{"$f":"Раздел3!D81","v":0},{"$f":"Раздел3!E81","v":0},{"$f":"Раздел3!F81","v":0},{"$f":"Раздел3!G81","v":0},{"$f":"Раздел3!H81","v":0},{"$f":"SUM(Раздел5!D81:I81)","v":0}]
[null,"в том числе:\nСпринтерский и барьерный бег",75,null,null,0,null,null,null,null,null,null,null,null,null,null,null,null,null,null,null,{"$f":"Раздел3!D82","v":0},{"$f":"Раздел3!E82","v":0},{"$f":"Раздел3!F82","v":0},{"$f":"Раздел3!G82","v":0},{"$f":"Раздел3!H82","v":0},{"$f":"SUM(Раздел5!D82:I82)","v":0}]
[null,"Бег на средние дистанции и бег с препятствиями",76,null,null,0,null,null,null,null,null,null,null,null,null,null,null,null,null,null,null,{"$f":"Раздел3!D83","v":0},{"$f":"Раздел3!E83","v":0},{"$f":"Раздел3!F83","v":0},{"$f":"Раздел3!G83","v":0},{"$f":"Раздел3!H83","v":0},{"$f":"SUM(Раздел5!D83:I83)","v":0}]
[null,"Бег на длинные и сверхдлинные дистанции",77,null,null,0,null,null,null,null,null,null,null,null,null,null,null,null,null,null,null,{"$f":"Раздел3!D84","v":0},{"$f":"Раздел3!E84","v":0},{"$f":"Раздел3!F84","v":0},{"$f":"Раздел3!G84","v":0},{"$f":"Раздел3!H84","v":0},{"$f":"SUM(Раздел5!D84:I84)","v":0}]
[null,"Многоборья",78,null,null,0,null,null,null,null,null,null,null,null,null,null,null,null,null,null,null,{"$f":"Раздел3!D85","v":0},{"$f":"Раздел3!E85","v":0},{"$f":"Раздел3!F85","v":0},{"$f":"Раздел3!G85","v":0},{"$f":"Раздел3!H85","v":0},{"$f":"SUM(Раздел5!D85:I85)","v":0}]
[null,"Прыжки",79,null,null,0,null,null,null,null,null,null,null,null,null,null,null,null,null,null,null,{"$f":"Раздел3!D86","v":0},{"$f":"Раздел3!E86","v":0},{"$f":"Раздел3!F86","v":0},{"$f":"Раздел3!G86","v":0},{"$f":"Раздел3!H86","v":0},{"$f":"SUM(Раздел5!D86:I86)","v":0}]
[null,"Метания",80,null,null,0,null,null,null,null,null,null,null,null,null,null,null,null,null,null,null,{"$f":"Раздел3!D87","v":0},{"$f":"Раздел3!E87","v":0},{"$f":"Раздел3!F87","v":0},{"$f":"Раздел3!G87","v":0},{"$f":"Раздел3!H87","v":0},{"$f":"SUM(Раздел5!D87:I87)","v":0}]
[null,"Спортивная ходьба",81,null,null,0,null,null,null,null,null,null,null,null,null,null,null,null,null,null,null,{"$f":"Раздел3!D88","v":0},{"$f":"Раздел3!E88","v":0},{"$f":"Раздел3!F88","v":0},{"$f":"Раздел3!G88","v":0},{"$f":"Раздел3!H88","v":0},{"$f":"SUM(Раздел5!D88:I88)","v":0}]
[null,"Лыжное двоеборье",82,null,null,0,null,null,null,null,null,null,null,null,null,null,null,null,null,null,null,{"$f":"Раздел3!D89","v":0},{"$f":"Раздел3!E89","v":0},{"$f":"Раздел3!F89","v":0},{"$f":"Раздел3!G89","v":0},{"$f":"Раздел3!H89","v":0},{"$f":"SUM(Раздел5!D89:I89)","v":0}]
[null,"Лыжные гонки",83,null,null,0,null,null,null,null,null,null,null,null,null,null,null,null,null,null,null,{"$f":"Раздел3!D90","v":0},{"$f":"Раздел3!E90","v":0},{"$f":"Раздел3!F90","v":0},{"$f":"Раздел3!G90","v":0},{"$f":"Раздел3!H90","v":0},{"$f":"SUM(Раздел5!D90:I90)","v":0}]
[null,"Мас-рестлинг",84,null,null,0,null,null,null,null,null,null,null,null,null,null,null,null,null,null,null,{"$f":"Раздел3!D91","v":0},{"$f":"Раздел3!E91","v":0},{"$f":"Раздел3!F91","v":0},{"$f":"Раздел3!G91","v":0},{"$f":"Раздел3!H91","v":0},{"$f":"SUM(Раздел5!D91:I91)","v":0}]
[null,"Морское многоборье",85,null,null,0,null,null,null,null,null,null,null,null,null,null,null,null,null,null,null,{"$f":"Раздел3!D92","v":0},{"$f":"Раздел3!E92","v":0},{"$f":"Раздел3!F92","v":0},{"$f":"Раздел3!G92","v":0},{"$f":"Раздел3!H92","v":0},{"$f":"SUM(Раздел5!D92:I92)","v":0}]
[null,"Мотоциклетный спорт",86,null,null,0,null,null,null,null,null,null,null,null,null,null,null,null,null,null,null,{"$f":"Раздел3!D93","v":0},{"$f":"Раздел3!E93","v":0},{"$f":"Раздел3!F93","v":0},{"$f":"Раздел3!G93","v":0},{"$f":"Раздел3!H93","v":0},{"$f":"SUM(Раздел5!D93:I93)","v":0}]
[null,"Настольный теннис",87,null,null,0,null,null,null,null,null,null,null,null,null,null,null,null,null,null,null,{"$f":"Раздел3!D94","v":0},{"$f":"Раздел3!E94","v":0},{"$f":"Раздел3!F94","v":0},{"$f":"Раздел3!G94","v":0},{"$f":"Раздел3!H94","v":0},{"$f":"SUM(Раздел5!D94:I94)","v":0}]
[null,"Парашютный спорт",88,null,null,0,null,null,null,null,null,null,null,null,null,null,null,null,null,null,null,{"$f":"Раздел3!D95","v":0},{"$f":"Раздел3!E95","v":0},{"$f":"Раздел3!F95","v":0},{"$f":"Раздел3!G95","v":0},{"$f":"Раздел3!H95","v":0},{"$f":"SUM(Раздел5!D95:I95)","v":0}]
[null,"Парусный спорт",89,null,null,0,null,null,null,null,null,null,null,null,null,null,null,null,null,null,null,{"$f":"Раздел3!D96","v":0},{"$f":"Раздел3!E96","v":0},{"$f":"Раздел3!F96","v":0},{"$f":"Раздел3!G96","v":0},{"$f":"Раздел3!H96","v":0},{"$f":"SUM(Раздел5!D96:I96)","v":0}]
[null,"Пауэрлифтинг",90,null,null,0,null,null,null,null,null,null,null,null,null,null,null,null,null,null,null,{"$f":"Раздел3!D97","v":0},{"$f":"Раздел3!E97","v":0},{"$f":"Раздел3!F97","v":0},{"$f":"Раздел3!G97","v":0},{"$f":"Раздел3!H97","v":0},{"$f":"SUM(Раздел5!D97:I97)","v":0}]
[null,"Перетягивание каната",91,null,null,0,null,null,null,null,null,null,null,null,null,null,null,null,null,null,null,{"$f":"Раздел3!D98","v":0},{"$f":"Раздел3!E98","v":0},{"$f":"Раздел3!F98","v":0},{"$f":"Раздел3!G98","v":0},{"$f":"Раздел3!H98","v":0},{"$f":"SUM(Раздел5!D98:I98)","v":0}]
[null,"Плавание - всего",92,{"$f":"IF(SUM(D100:D101)>=1,1,0)","v":0},{"$f":"IF(SUM(E100:E101)>=1,1,0)","v":0},{"$f":"SUM(F100:F101)","v":0},0,0,0,0,0,0,0,0,0,0,0,0,0,0,null,{"$f":"Раздел3!D99","v":0},{"$f":"Раздел3!E99","v":0},{"$f":"Раздел3!F99","v":0},{"$f":"Раздел3!G99","v":0},{"$f":"Раздел3!H99","v":0},{"$f":"SUM(Раздел5!D99:I99)","v":0}]
[null,"в том числе:\nПлавание ",93,null,null,0,null,null,null,null,null,null,null,null,null,null,null,null,null,null,null,{"$f":"Раздел3!D100","v":0},{"$f":"Раздел3!E100","v":0},{"$f":"Раздел3!F100","v":0},{"$f":"Раздел3!G100","v":0},{"$f":"Раздел3!H100","v":0},{"$f":"SUM(Раздел5!D100:I100)","v":0}]
[null,"Открытая вода",94,null,null,0,null,null,null,null,null,null,null,null,null,null,null,null,null,null,null,{"$f":"Раздел3!D101","v":0},{"$f":"Раздел3!E101","v":0},{"$f":"Раздел3!F101","v":0},{"$f":"Раздел3!G101","v":0},{"$f":"Раздел3!H101","v":0},{"$f":"SUM(Раздел5!D101:I101)","v":0}]
[null,"Планерный спорт",95,null,null,0,null,null,null,null,null,null,null,null,null,null,null,null,null,null,null,{"$f":"Раздел3!D102","v":0},{"$f":"Раздел3!E102","v":0},{"$f":"Раздел3!F102","v":0},{"$f":"Раздел3!G102","v":0},{"$f":"Раздел3!H102","v":0},{"$f":"SUM(Раздел5!D102:I102)","v":0}]
[null,"Подводный спорт",96,null,null,0,null,null,null,null,null,null,null,null,null,null,null,null,null,null,null,{"$f":"Раздел3!D103","v":0},{"$f":"Раздел3!E103","v":0},{"$f":"Раздел3!F103","v":0},{"$f":"Раздел3!G103","v":0},{"$f":"Раздел3!H103","v":0},{"$f":"SUM(Раздел5!D103:I103)","v":0}]
[null,"Полиатлон",97,null,null,0,null,null,null,null,null,null,null,null,null,null,null,null,null,null,null,{"$f":"Раздел3!D104","v":0},{"$f":"Раздел3!E104","v":0},{"$f":"Раздел3!F104","v":0},{"$f":"Раздел3!G104","v":0},{"$f":"Раздел3!H104","v":0},{"$f":"SUM(Раздел5!D104:I104)","v":0}]
[null,"Практическая стрельба",98,null,null,0,null,null,null,null,null,null,null,null,null,null,null,null,null,null,null,{"$f":"Раздел3!D105","v":0},{"$f":"Раздел3!E105","v":0},{"$f":"Раздел3!F105","v":0},{"$f":"Раздел3!G105","v":0},{"$f":"Раздел3!H105","v":0},{"$f":"SUM(Раздел5!D105:I105)","v":0}]
[null,"Прыжки в воду - всего",99,{"$f":"IF(SUM(D107:D108)>=1,1,0)","v":0},{"$f":"IF(SUM(E107:E108)>=1,1,0)","v":0},0,{"$f":"SUM(G107:G108)","v":0},0,0,0,0,0,0,0,0,0,0,0,0,0,null,{"$f":"Раздел3!D106","v":0},{"$f":"Раздел3!E106","v":0},{"$f":"Раздел3!F106","v":0},{"$f":"Раздел3!G106","v":0},{"$f":"Раздел3!H106","v":0},{"$f":"SUM(Раздел5!D106:I106)","v":0}]
[null,"в том числе:\nПрыжки в воду",100,null,null,0,null,null,null,null,null,null,null,null,null,null,null,null,null,null,null,{"$f":"Раздел3!D107","v":0},{"$f":"Раздел3!E107","v":0},{"$f":"Раздел3!F107","v":0},{"$f":"Раздел3!G107","v":0},{"$f":"Раздел3!H107","v":0},{"$f":"SUM(Раздел5!D107:I107)","v":0}]
[null,"Прыжки в открытый водоем",101,null,null,0,null,null,null,null,null,null,null,null,null,null,null,null,null,null,null,{"$f":"Раздел3!D108","v":0},{"$f":"Раздел3!E108","v":0},{"$f":"Раздел3!F108","v":0},{"$f":"Раздел3!G108","v":0},{"$f":"Раздел3!H108","v":0},{"$f":"SUM(Раздел5!D108:I108)","v":0}]
[null,"Прыжки на батуте",102,null,null,0,null,null,null,null,null,null,null,null,null,null,null,null,null,null,null,{"$f":"Раздел3!D109","v":0},{"$f":"Раздел3!E109","v":0},{"$f":"Раздел3!F109","v":0},{"$f":"Раздел3!G109","v":0},{"$f":"Раздел3!H109","v":0},{"$f":"SUM(Раздел5!D109:I109)","v":0}]
[null,"Прыжки на лыжах с трамплина",103,null,null,0,null,null,null,null,null,null,null,null,null,null,null,null,null,null,null,{"$f":"Раздел3!D110","v":0},{"$f":"Раздел3!E110","v":0},{"$f":"Раздел3!F110","v":0},{"$f":"Раздел3!G110","v":0},{"$f":"Раздел3!H110","v":0},{"$f":"SUM(Раздел5!D110:I110)","v":0}]
[null,"Пулевая стрельба - всего",104,{"$f":"IF(SUM(D112:D116)>=1,1,0)","v":0},{"$f":"IF(SUM(E112:E116)>=1,1,0)","v":0},0,{"$f":"SUM(G112:G116)","v":0},0,0,0,0,0,0,0,0,0,0,0,0,0,null,{"$f":"Раздел3!D111","v":0},{"$f":"Раздел3!E111","v":0},{"$f":"Раздел3!F111","v":0},{"$f":"Раздел3!G111","v":0},{"$f":"Раздел3!H111","v":0},{"$f":"SUM(Раздел5!D111:I111)","v":0}]
[null,"в том числе:\nПневматическая винтовка",105,null,null,0,null,null,null,null,null,null,null,null,null,null,null,null,null,null,null,{"$f":"Раздел3!D112","v":0},{"$f":"Раздел3!E112","v":0},{"$f":"Раздел3!F112","v":0},{"$f":"Раздел3!G112","v":0},{"$f":"Раздел3!H112","v":0},{"$f":"SUM(Раздел5!D112:I112)","v":0}]
[null,"Пневматический пистолет",106,null,null,0,null,null,null,null,null,null,null,null,null,null,null,null,null,null,null,{"$f":"Раздел3!D113","v":0},{"$f":"Раздел3!E113","v":0},{"$f":"Раздел3!F113","v":0},{"$f":"Раздел3!G113","v":0},{"$f":"Раздел3!H113","v":0},{"$f":"SUM(Раздел5!D113:I113)","v":0}]
[null,"Малокалиберная винтоква",107,null,null,0,null,null,null,null,null,null,null,null,null,null,null,null,null,null,null,{"$f":"Раздел3!D114","v":0},{"$f":"Раздел3!E114","v":0},{"$f":"Раздел3!F114","v":0},{"$f":"Раздел3!G114","v":0},{"$f":"Раздел3!H114","v":0},{"$f":"SUM(Раздел5!D114:I114)","v":0}]
[null,"Малокалиберный пистолет",108,null,null,0,null,null,null,null,null,null,null,null,null,null,null,null,null,null,null,{"$f":"Раздел3!D115","v":0},{"$f":"Раздел3!E115","v":0},{"$f":"Раздел3!F115","v":0},{"$f":"Раздел3!G115","v":0},{"$f":"Раздел3!H115","v":0},{"$f":"SUM(Раздел5!D115:I115)","v":0}]
[null,"Движущаяся мишень",109,null,null,0,null,null,null,null,null,null,null,null,null,null,null,null,null,null,null,{"$f":"Раздел3!D116","v":0},{"$f":"Раздел3!E116","v":0},{"$f":"Раздел3!F116","v":0},{"$f":"Раздел3!G116","v":0},{"$f":"Раздел3!H116","v":0},{"$f":"SUM(Раздел5!D116:I116)","v":0}]
[null,"Пэйнтбол",110,null,null,0,null,null,null,null,null,null,null,null,null,null,null,null,null,null,null,{"$f":"Раздел3!D117","v":0},{"$f":"Раздел3!E117","v":0},{"$f":"Раздел3!F117","v":0},{"$f":"Раздел3!G117","v":0},{"$f":"Раздел3!H117","v":0},{"$f":"SUM(Раздел5!D117:I117)","v":0}]
[null,"Радиоспорт",111,null,null,0,null,null,null,null,null,null,null,null,null,null,null,null,null,null,null,{"$f":"Раздел3!D118","v":0},{"$f":"Раздел3!E118","v":0},{"$f":"Раздел3!F118","v":0},{"$f":"Раздел3!G118","v":0},{"$f":"Раздел3!H118","v":0},{"$f":"SUM(Раздел5!D118:I118)","v":0}]
[null,"Рафтинг",112,null,null,0,null,null,null,null,null,null,null,null,null,null,null,null,null,null,null,{"$f":"Раздел3!D119","v":0},{"$f":"Раздел3!E119","v":0},{"$f":"Раздел3!F119","v":0},{"$f":"Раздел3!G119","v":0},{"$f":"Раздел3!H119","v":0},{"$f":"SUM(Раздел5!D119:I119)","v":0}]
[null,"Регби - всего",113,{"$f":"IF(SUM(D121:D124)>=1,1,0)","v":0},{"$f":"IF(SUM(E121:E124)>=1,1,0)","v":0},0,{"$f":"SUM(G121:G124)","v":0},0,0,0,0,0,0,0,0,0,0,0,0,0,null,{"$f":"Раздел3!D120","v":0},{"$f":"Раздел3!E120","v":0},{"$f":"Раздел3!F120","v":0},{"$f":"Раздел3!G120","v":0},{"$f":"Раздел3!H120","v":0},{"$f":"SUM(Раздел5!D120:I120)","v":0}]
[null,"в том числе:\nРегби",114,null,null,0,null,null,null,null,null,null,null,null,null,null,null,null,null,null,null,{"$f":"Раздел3!D121","v":0},{"$f":"Раздел3!E121","v":0},{"$f":"Раздел3!F121","v":0},{"$f":"Раздел3!G121","v":0},{"$f":"Раздел3!H121","v":0},{"$f":"SUM(Раздел5!D121:I121)","v":0}]
[null,"Регби 7 (муж.)",115,null,null,0,null,null,null,null,null,null,null,null,null,null,null,null,null,null,null,{"$f":"Раздел3!D122","v":0},{"$f":"Раздел3!E122","v":0},{"$f":"Раздел3!F122","v":0},{"$f":"Раздел3!G122","v":0},{"$f":"Раздел3!H122","v":0},{"$f":"SUM(Раздел5!D122:I122)","v":0}]
[null,"Регби 7 (жен.)",116,null,null,0,null,null,null,null,null,null,null,null,null,null,{"$f":"F123","v":0},null,null,null,null,{"$f":"Раздел3!D123","v":0},{"$f":"Раздел3!E123","v":0},{"$f":"Раздел3!F123","v":0},{"$f":"Раздел3!G123","v":0},{"$f":"Раздел3!H123","v":0},{"$f":"SUM(Раздел5!D123:I123)","v":0}]
[null,"Пляжный регби",117,null,null,0,null,null,null,null,null,null,null,null,null,null,null,null,null,null,null,{"$f":"Раздел3!D124","v":0},{"$f":"Раздел3!E124","v":0},{"$f":"Раздел3!F124","v":0},{"$f":"Раздел3!G124","v":0},{"$f":"Раздел3!H124","v":0},{"$f":"SUM(Раздел5!D124:I124)","v":0}]
[null,"Рукопашный бой",118,null,null,0,null,null,null,null,null,null,null,null,null,null,null,null,null,null,null,{"$f":"Раздел3!D125","v":0},{"$f":"Раздел3!E125","v":0},{"$f":"Раздел3!F125","v":0},{"$f":"Раздел3!G125","v":0},{"$f":"Раздел3!H125","v":0},{"$f":"SUM(Раздел5!D125:I125)","v":0}]
[null,"Рыболовный спорт",119,null,null,0,null,null,null,null,null,null,null,null,null,null,null,null,null,null,null,{"$f":"Раздел3!D126","v":0},{"$f":"Раздел3!E126","v":0},{"$f":"Раздел3!F126","v":0},{"$f":"Раздел3!G126","v":0},{"$f":"Раздел3!H126","v":0},{"$f":"SUM(Раздел5!D126:I126)","v":0}]
[null,"Сават",120,null,null,0,null,null,null,null,null,null,null,null,null,null,null,null,null,null,null,{"$f":"Раздел3!D127","v":0},{"$f":"Раздел3!E127","v":0},{"$f":"Раздел3!F127","v":0},{"$f":"Раздел3!G127","v":0},{"$f":"Раздел3!H127","v":0},{"$f":"SUM(Раздел5!D127:I127)","v":0}]
[null,"Самбо",121,null,null,0,null,null,null,null,null,null,null,null,null,null,null,null,null,null,null,{"$f":"Раздел3!D128","v":0},{"$f":"Раздел3!E128","v":0},{"$f":"Раздел3!F128","v":0},{"$f":"Раздел3!G128","v":0},{"$f":"Раздел3!H128","v":0},{"$f":"SUM(Раздел5!D128:I128)","v":0}]
[null,"Самолетный спорт",122,null,null,0,null,null,null,null,null,null,null,null,null,null,null,null,null,null,null,{"$f":"Раздел3!D129","v":0},{"$f":"Раздел3!E129","v":0},{"$f":"Раздел3!F129","v":0},{"$f":"Раздел3!G129","v":0},{"$f":"Раздел3!H129","v":0},{"$f":"SUM(Раздел5!D129:I129)","v":0}]
[null,"Санный спорт",123,null,null,0,null,null,null,null,null,null,null,null,null,null,null,null,null,null,null,{"$f":"Раздел3!D130","v":0},{"$f":"Раздел3!E130","v":0},{"$f":"Раздел3!F130","v":0},{"$f":"Раздел3!G130","v":0},{"$f":"Раздел3!H130","v":0},{"$f":"SUM(Раздел5!D130:I130)","v":0}]
[null,"Северное многоборье",124,null,null,0,null,null,null,null,null,null,null,null,null,null,null,null,null,null,null,{"$f":"Раздел3!D131","v":0},{"$f":"Раздел3!E131","v":0},{"$f":"Раздел3!F131","v":0},{"$f":"Раздел3!G131","v":0},{"$f":"Раздел3!H131","v":0},{"$f":"SUM(Раздел5!D131:I131)","v":0}]
[null,"Синхронное плавание",125,null,null,0,null,null,null,null,null,null,null,null,null,null,null,null,null,null,null,{"$f":"Раздел3!D132","v":0},{"$f":"Раздел3!E132","v":0},{"$f":"Раздел3!F132","v":0},{"$f":"Раздел3!G132","v":0},{"$f":"Раздел3!H132","v":0},{"$f":"SUM(Раздел5!D132:I132)","v":0}]
[null,"Скалолазание",126,null,null,0,null,null,null,null,null,null,null,null,null,null,null,null,null,null,null,{"$f":"Раздел3!D133","v":0},{"$f":"Раздел3!E133","v":0},{"$f":"Раздел3!F133","v":0},{"$f":"Раздел3!G133","v":0},{"$f":"Раздел3!H133","v":0},{"$f":"SUM(Раздел5!D133:I133)","v":0}]
[null,"Сквош",127,null,null,0,null,null,null,null,null,null,null,null,null,null,null,null,null,null,null,{"$f":"Раздел3!D134","v":0},{"$f":"Раздел3!E134","v":0},{"$f":"Раздел3!F134","v":0},{"$f":"Раздел3!G134","v":0},{"$f":"Раздел3!H134","v":0},{"$f":"SUM(Раздел5!D134:I134)","v":0}]
[null,"Смешанное боевое единоборство (ММА)",128,null,null,0,null,null,null,null,null,null,null,null,null,null,null,null,null,null,null,{"$f":"Раздел3!D135","v":0},{"$f":"Раздел3!E135","v":0},{"$f":"Раздел3!F135","v":0},{"$f":"Раздел3!G135","v":0},{"$f":"Раздел3!H135","v":0},{"$f":"SUM(Раздел5!D135:I135)","v":0}]
[null,"Сноуборд",129,null,null,0,null,null,null,null,null,null,null,null,null,null,null,null,null,null,null,{"$f":"Раздел3!D136","v":0},{"$f":"Раздел3!E136","v":0},{"$f":"Раздел3!F136","v":0},{"$f":"Раздел3!G136","v":0},{"$f":"Раздел3!H136","v":0},{"$f":"SUM(Раздел5!D136:I136)","v":0}]
[null,"Современное пятиборье",130,null,null,{"$f":"SUM(G137:K137)","v":0},null,null,null,null,null,null,null,null,null,null,null,null,null,null,null,{"$f":"Раздел3!D137","v":0},{"$f":"Раздел3!E137","v":0},{"$f":"Раздел3!F137","v":0},{"$f":"Раздел3!G137","v":0},{"$f":"Раздел3!H137","v":0},{"$f":"SUM(Раздел5!D137:I137)","v":0}]
[null,"Софтбол",131,null,null,0,null,null,null,null,null,null,null,null,null,null,null,null,null,null,null,{"$f":"Раздел3!D138","v":0},{"$f":"Раздел3!E138","v":0},{"$f":"Раздел3!F138","v":0},{"$f":"Раздел3!G138","v":0},{"$f":"Раздел3!H138","v":0},{"$f":"SUM(Раздел5!D138:I138)","v":0}]
[null,"Спорт сверхлегкой авиации",132,null,null,0,null,null,null,null,null,null,null,null,null,null,null,null,null,null,null,{"$f":"Раздел3!D139","v":0},{"$f":"Раздел3!E139","v":0},{"$f":"Раздел3!F139","v":0},{"$f":"Раздел3!G139","v":0},{"$f":"Раздел3!H139","v":0},{"$f":"SUM(Раздел5!D139:I139)","v":0}]
[null,"Спортивная акробатика",133,null,null,0,null,null,null,null,null,null,null,null,null,null,null,null,null,null,null,{"$f":"Раздел3!D140","v":0},{"$f":"Раздел3!E140","v":0},{"$f":"Раздел3!F140","v":0},{"$f":"Раздел3!G140","v":0},{"$f":"Раздел3!H140","v":0},{"$f":"SUM(Раздел5!D140:I140)","v":0}]
[null,"Спортивная аэробика",134,null,null,0,null,null,null,null,null,null,null,null,null,null,null,null,null,null,null,{"$f":"Раздел3!D141","v":0},{"$f":"Раздел3!E141","v":0},{"$f":"Раздел3!F141","v":0},{"$f":"Раздел3!G141","v":0},{"$f":"Раздел3!H141","v":0},{"$f":"SUM(Раздел5!D141:I141)","v":0}]
[null,"Спортивная борьба - всего",135,{"$f":"IF(SUM(D143:D147)>=1,1,0)","v":0},{"$f":"IF(SUM(E143:E147)>=1,1,0)","v":0},0,{"$f":"SUM(G143:G147)","v":0},0,0,0,0,0,0,0,0,0,0,0,0,0,null,{"$f":"Раздел3!D142","v":0},{"$f":"Раздел3!E142","v":0},{"$f":"Раздел3!F142","v":0},{"$f":"Раздел3!G142","v":0},{"$f":"Раздел3!H142","v":0},{"$f":"SUM(Раздел5!D142:I142)","v":0}]
[null,"в том числе:\nВольная борьба",136,null,null,0,null,null,null,null,null,null,null,null,null,null,null,null,null,null,null,{"$f":"Раздел3!D143","v":0},{"$f":"Раздел3!E143","v":0},{"$f":"Раздел3!F143","v":0},{"$f":"Раздел3!G143","v":0},{"$f":"Раздел3!H143","v":0},{"$f":"SUM(Раздел5!D143:I143)","v":0}]
[null,"Греко-римская борьба",137,null,null,0,null,null,null,null,null,null,null,null,null,null,null,null,null,null,null,{"$f":"Раздел3!D144","v":0},{"$f":"Раздел3!E144","v":0},{"$f":"Раздел3!F144","v":0},{"$f":"Раздел3!G144","v":0},{"$f":"Раздел3!H144","v":0},{"$f":"SUM(Раздел5!D144:I144)","v":0}]
[null,"Грэпплинг",138,null,null,0,null,null,null,null,null,null,null,null,null,null,null,null,null,null,null,{"$f":"Раздел3!D145","v":0},{"$f":"Раздел3!E145","v":0},{"$f":"Раздел3!F145","v":0},{"$f":"Раздел3!G145","v":0},{"$f":"Раздел3!H145","v":0},{"$f":"SUM(Раздел5!D145:I145)","v":0}]
[null,"Грэпплинг-ги",139,null,null,0,null,null,null,null,null,null,null,null,null,null,null,null,null,null,null,{"$f":"Раздел3!D146","v":0},{"$f":"Раздел3!E146","v":0},{"$f":"Раздел3!F146","v":0},{"$f":"Раздел3!G146","v":0},{"$f":"Раздел3!H146","v":0},{"$f":"SUM(Раздел5!D146:I146)","v":0}]
[null,"Панкратион",140,null,null,0,null,null,null,null,null,null,null,null,null,null,null,null,null,null,null,{"$f":"Раздел3!D147","v":0},{"$f":"Раздел3!E147","v":0},{"$f":"Раздел3!F147","v":0},{"$f":"Раздел3!G147","v":0},{"$f":"Раздел3!H147","v":0},{"$f":"SUM(Раздел5!D147:I147)","v":0}]
[null,"Спортивно-прикладное собаководство",141,null,null,0,null,null,null,null,null,null,null,null,null,null,null,null,null,null,null,{"$f":"Раздел3!D148","v":0},{"$f":"Раздел3!E148","v":0},{"$f":"Раздел3!F148","v":0},{"$f":"Раздел3!G148","v":0},{"$f":"Раздел3!H148","v":0},{"$f":"SUM(Раздел5!D148:I148)","v":0}]
[null,"Спортивная гимнастика",142,null,null,0,null,null,null,null,null,null,null,null,null,null,null,null,null,null,null,{"$f":"Раздел3!D149","v":0},{"$f":"Раздел3!E149","v":0},{"$f":"Раздел3!F149","v":0},{"$f":"Раздел3!G149","v":0},{"$f":"Раздел3!H149","v":0},{"$f":"SUM(Раздел5!D149:I149)","v":0}]
[null,"Спортивное ориентирование",143,null,null,0,null,null,null,null,null,null,null,null,null,null,null,null,null,null,null,{"$f":"Раздел3!D150","v":0},{"$f":"Раздел3!E150","v":0},{"$f":"Раздел3!F150","v":0},{"$f":"Раздел3!G150","v":0},{"$f":"Раздел3!H150","v":0},{"$f":"SUM(Раздел5!D150:I150)","v":0}]
[null,"Спортивный бридж",144,null,null,0,null,null,null,null,null,null,null,null,null,null,null,null,null,null,null,{"$f":"Раздел3!D151","v":0},{"$f":"Раздел3!E151","v":0},{"$f":"Раздел3!F151","v":0},{"$f":"Раздел3!G151","v":0},{"$f":"Раздел3!H151","v":0},{"$f":"SUM(Раздел5!D151:I151)","v":0}]
[null,"Спортивный туризм",145,null,null,0,null,null,null,null,null,null,null,null,null,null,null,null,null,null,null,{"$f":"Раздел3!D152","v":0},{"$f":"Раздел3!E152","v":0},{"$f":"Раздел3!F152","v":0},{"$f":"Раздел3!G152","v":0},{"$f":"Раздел3!H152","v":0},{"$f":"SUM(Раздел5!D152:I152)","v":0}]
[null,"Стендовая стрельба - всего",146,{"$f":"IF(SUM(D154:D157)>=1,1,0)","v":0},{"$f":"IF(SUM(E154:E157)>=1,1,0)","v":0},0,{"$f":"SUM(G154:G157)","v":0},0,0,0,0,0,0,0,0,0,0,0,0,0,null,{"$f":"Раздел3!D153","v":0},{"$f":"Раздел3!E153","v":0},{"$f":"Раздел3!F153","v":0},{"$f":"Раздел3!G153","v":0},{"$f":"Раздел3!H153","v":0},{"$f":"SUM(Раздел5!D153:I153)","v":0}]
[null,"в том числе:\nТрап",147,null,null,0,null,null,null,null,null,null,null,null,null,null,null,null,null,null,null,{"$f":"Раздел3!D154","v":0},{"$f":"Раздел3!E154","v":0},{"$f":"Раздел3!F154","v":0},{"$f":"Раздел3!G154","v":0},{"$f":"Раздел3!H154","v":0},{"$f":"SUM(Раздел5!D154:I154)","v":0}]
[null,"Скит",148,null,null,0,null,null,null,null,null,null,null,null,null,null,null,null,null,null,null,{"$f":"Раздел3!D155","v":0},{"$f":"Раздел3!E155","v":0},{"$f":"Раздел3!F155","v":0},{"$f":"Раздел3!G155","v":0},{"$f":"Раздел3!H155","v":0},{"$f":"SUM(Раздел5!D155:I155)","v":0}]
[null,"Дубль-трап",149,null,null,0,null,null,null,null,null,null,null,null,null,null,null,null,null,null,null,{"$f":"Раздел3!D156","v":0},{"$f":"Раздел3!E156","v":0},{"$f":"Раздел3!F156","v":0},{"$f":"Раздел3!G156","v":0},{"$f":"Раздел3!H156","v":0},{"$f":"SUM(Раздел5!D156:I156)","v":0}]
[null,"Спортинг",150,null,null,0,null,null,null,null,null,null,null,null,null,null,null,null,null,null,null,{"$f":"Раздел3!D157","v":0},{"$f":"Раздел3!E157","v":0},{"$f":"Раздел3!F157","v":0},{"$f":"Раздел3!G157","v":0},{"$f":"Раздел3!H157","v":0},{"$f":"SUM(Раздел5!D157:I157)","v":0}]
[null,"Стрельба из арбалета",151,null,null,0,null,null,null,null,null,null,null,null,null,null,null,null,null,null,null,{"$f":"Раздел3!D158","v":0},{"$f":"Раздел3!E158","v":0},{"$f":"Раздел3!F158","v":0},{"$f":"Раздел3!G158","v":0},{"$f":"Раздел3!H158","v":0},{"$f":"SUM(Раздел5!D158:I158)","v":0}]
[null,"Стрельба из лука - всего",152,{"$f":"IF(SUM(D160:D162)>=1,1,0)","v":0},{"$f":"IF(SUM(E160:E162)>=1,1,0)","v":0},0,{"$f":"SUM(G160:G162)","v":0},0,0,0,0,0,0,0,0,0,0,0,0,0,null,{"$f":"Раздел3!D159","v":0},{"$f":"Раздел3!E159","v":0},{"$f":"Раздел3!F159","v":0},{"$f":"Раздел3!G159","v":0},{"$f":"Раздел3!H159","v":0},{"$f":"SUM(Раздел5!D159:I159)","v":0}]
[null,"в том числе:\nКлассический лук",153,null,null,0,null,null,null,null,null,null,null,null,null,null,null,null,null,null,null,{"$f":"Раздел3!D160","v":0},{"$f":"Раздел3!E160","v":0},{"$f":"Раздел3!F160","v":0},{"$f":"Раздел3!G160","v":0},{"$f":"Раздел3!H160","v":0},{"$f":"SUM(Раздел5!D160:I160)","v":0}]
[null,"   Блочный лук",154,null,null,0,null,null,null,null,null,null,null,null,null,null,null,null,null,null,null,{"$f":"Раздел3!D161","v":0},{"$f":"Раздел3!E161","v":0},{"$f":"Раздел3!F161","v":0},{"$f":"Раздел3!G161","v":0},{"$f":"Раздел3!H161","v":0},{"$f":"SUM(Раздел5!D161:I161)","v":0}]
[null,"   Ачери ",155,null,null,0,null,null,null,null,null,null,null,null,null,null,null,null,null,null,null,{"$f":"Раздел3!D162","v":0},{"$f":"Раздел3!E162","v":0},{"$f":"Раздел3!F162","v":0},{"$f":"Раздел3!G162","v":0},{"$f":"Раздел3!H162","v":0},{"$f":"SUM(Раздел5!D162:I162)","v":0}]
[null,"Судомодельный спорт",156,null,null,0,null,null,null,null,null,null,null,null,null,null,null,null,null,null,null,{"$f":"Раздел3!D163","v":0},{"$f":"Раздел3!E163","v":0},{"$f":"Раздел3!F163","v":0},{"$f":"Раздел3!G163","v":0},{"$f":"Раздел3!H163","v":0},{"$f":"SUM(Раздел5!D163:I163)","v":0}]
[null,"Сумо",157,null,null,0,null,null,null,null,null,null,null,null,null,null,null,null,null,null,null,{"$f":"Раздел3!D164","v":0},{"$f":"Раздел3!E164","v":0},{"$f":"Раздел3!F164","v":0},{"$f":"Раздел3!G164","v":0},{"$f":"Раздел3!H164","v":0},{"$f":"SUM(Раздел5!D164:I164)","v":0}]
[null,"Тайский бокс",158,null,null,0,null,null,null,null,null,null,null,null,null,null,null,null,null,null,null,{"$f":"Раздел3!D165","v":0},{"$f":"Раздел3!E165","v":0},{"$f":"Раздел3!F165","v":0},{"$f":"Раздел3!G165","v":0},{"$f":"Раздел3!H165","v":0},{"$f":"SUM(Раздел5!D165:I165)","v":0}]
[null,"Танцевальный спорт",159,null,null,0,null,null,null,null,null,null,null,null,null,null,null,null,null,null,null,{"$f":"Раздел3!D166","v":0},{"$f":"Раздел3!E166","v":0},{"$f":"Раздел3!F166","v":0},{"$f":"Раздел3!G166","v":0},{"$f":"Раздел3!H166","v":0},{"$f":"SUM(Раздел5!D166:I166)","v":0}]
[null,"Теннис",160,null,null,0,null,null,null,null,null,null,null,null,null,null,null,null,null,null,null,{"$f":"Раздел3!D167","v":0},{"$f":"Раздел3!E167","v":0},{"$f":"Раздел3!F167","v":0},{"$f":"Раздел3!G167","v":0},{"$f":"Раздел3!H167","v":0},{"$f":"SUM(Раздел5!D167:I167)","v":0}]
[null,"Триатлон",161,null,null,0,null,null,null,null,null,null,null,null,null,null,null,null,null,null,null,{"$f":"Раздел3!D168","v":0},{"$f":"Раздел3!E168","v":0},{"$f":"Раздел3!F168","v":0},{"$f":"Раздел3!G168","v":0},{"$f":"Раздел3!H168","v":0},{"$f":"SUM(Раздел5!D168:I168)","v":0}]
[null,"Тхэквондо - всего",162,{"$f":"IF(SUM(D170:D171)>=1,1,0)","v":0},{"$f":"IF(SUM(E170:E171)>=1,1,0)","v":0},0,{"$f":"SUM(G170:G171)","v":0},0,0,0,0,0,0,0,0,0,0,0,0,0,null,{"$f":"Раздел3!D169","v":0},{"$f":"Раздел3!E169","v":0},{"$f":"Раздел3!F169","v":0},{"$f":"Раздел3!G169","v":0},{"$f":"Раздел3!H169","v":0},{"$f":"SUM(Раздел5!D169:I169)","v":0}]
[null,"в том числе:\nТхэквондо (ГТФ, ИТФ, МФТ)",163,null,null,0,null,null,null,null,null,null,null,null,null,null,null,null,null,null,null,{"$f":"Раздел3!D170","v":0},{"$f":"Раздел3!E170","v":0},{"$f":"Раздел3!F170","v":0},{"$f":"Раздел3!G170","v":0},{"$f":"Раздел3!H170","v":0},{"$f":"SUM(Раздел5!D170:I170)","v":0}]
[null,"Тхэквондо (ВТФ)",164,null,null,0,null,null,null,null,null,null,null,null,null,null,null,null,null,null,null,{"$f":"Раздел3!D171","v":0},{"$f":"Раздел3!E171","v":0},{"$f":"Раздел3!F171","v":0},{"$f":"Раздел3!G171","v":0},{"$f":"Раздел3!H171","v":0},{"$f":"SUM(Раздел5!D171:I171)","v":0}]
[null,"Тяжелая атлетика",165,null,null,0,null,null,null,null,null,null,null,null,null,null,null,null,null,null,null,{"$f":"Раздел3!D172","v":0},{"$f":"Раздел3!E172","v":0},{"$f":"Раздел3!F172","v":0},{"$f":"Раздел3!G172","v":0},{"$f":"Раздел3!H172","v":0},{"$f":"SUM(Раздел5!D172:I172)","v":0}]
[null,"Универсальный бой",166,null,null,0,null,null,null,null,null,null,null,null,null,null,null,null,null,null,null,{"$f":"Раздел3!D173","v":0},{"$f":"Раздел3!E173","v":0},{"$f":"Раздел3!F173","v":0},{"$f":"Раздел3!G173","v":0},{"$f":"Раздел3!H173","v":0},{"$f":"SUM(Раздел5!D173:I173)","v":0}]
[null,"Ушу",167,null,null,0,null,null,null,null,null,null,null,null,null,null,null,null,null,null,null,{"$f":"Раздел3!D174","v":0},{"$f":"Раздел3!E174","v":0},{"$f":"Раздел3!F174","v":0},{"$f":"Раздел3!G174","v":0},{"$f":"Раздел3!H174","v":0},{"$f":"SUM(Раздел5!D174:I174)","v":0}]
[null,"Фехтование - всего",168,{"$f":"IF(SUM(D176:D179)>=1,1,0)","v":0},{"$f":"IF(SUM(E176:E179)>=1,1,0)","v":0},0,{"$f":"SUM(G176:G179)","v":0},0,0,0,0,0,0,0,0,0,0,0,0,0,null,{"$f":"Раздел3!D175","v":0},{"$f":"Раздел3!E175","v":0},{"$f":"Раздел3!F175","v":0},{"$f":"Раздел3!G175","v":0},{"$f":"Раздел3!H175","v":0},{"$f":"SUM(Раздел5!D175:I175)","v":0}]
[null,"в том числе:\nРапира",169,null,null,0,null,null,null,null,null,null,null,null,null,null,null,null,null,null,null,{"$f":"Раздел3!D176","v":0},{"$f":"Раздел3!E176","v":0},{"$f":"Раздел3!F176","v":0},{"$f":"Раздел3!G176","v":0},{"$f":"Раздел3!H176","v":0},{"$f":"SUM(Раздел5!D176:I176)","v":0}]
[null,"Сабля",170,null,null,0,null,null,null,null,null,null,null,null,null,null,null,null,null,null,null,{"$f":"Раздел3!D177","v":0},{"$f":"Раздел3!E177","v":0},{"$f":"Раздел3!F177","v":0},{"$f":"Раздел3!G177","v":0},{"$f":"Раздел3!H177","v":0},{"$f":"SUM(Раздел5!D177:I177)","v":0}]
[null,"Шпага",171,null,null,0,null,null,null,null,null,null,null,null,null,null,null,null,null,null,null,{"$f":"Раздел3!D178","v":0},{"$f":"Раздел3!E178","v":0},{"$f":"Раздел3!F178","v":0},{"$f":"Раздел3!G178","v":0},{"$f":"Раздел3!H178","v":0},{"$f":"SUM(Раздел5!D178:I178)","v":0}]
[null,"Арт-фехтование",172,null,null,0,null,null,null,null,null,null,null,null,null,null,null,null,null,null,null,{"$f":"Раздел3!D179","v":0},{"$f":"Раздел3!E179","v":0},{"$f":"Раздел3!F179","v":0},{"$f":"Раздел3!G179","v":0},{"$f":"Раздел3!H179","v":0},{"$f":"SUM(Раздел5!D179:I179)","v":0}]
[null,"Фигурное катание на коньках",173,null,null,0,null,null,null,null,null,null,null,null,null,null,null,null,null,null,null,{"$f":"Раздел3!D180","v":0},{"$f":"Раздел3!E180","v":0},{"$f":"Раздел3!F180","v":0},{"$f":"Раздел3!G180","v":0},{"$f":"Раздел3!H180","v":0},{"$f":"SUM(Раздел5!D180:I180)","v":0}]
[null,"Флорбол",174,null,null,0,null,null,null,null,null,null,null,null,null,null,null,null,null,null,null,{"$f":"Раздел3!D181","v":0},{"$f":"Раздел3!E181","v":0},{"$f":"Раздел3!F181","v":0},{"$f":"Раздел3!G181","v":0},{"$f":"Раздел3!H181","v":0},{"$f":"SUM(Раздел5!D181:I181)","v":0}]
[null,"Фристайл - всего",175,{"$f":"IF(SUM(D183:D187)>=1,1,0)","v":0},{"$f":"IF(SUM(E183:E187)>=1,1,0)","v":0},0,{"$f":"SUM(G183:G187)","v":0},0,0,0,0,0,0,0,0,0,0,0,0,0,null,{"$f":"Раздел3!D182","v":0},{"$f":"Раздел3!E182","v":0},{"$f":"Раздел3!F182","v":0},{"$f":"Раздел3!G182","v":0},{"$f":"Раздел3!H182","v":0},{"$f":"SUM(Раздел5!D182:I182)","v":0}]
[null,"в том числе:\nАкробатика",176,null,null,0,null,null,null,null,null,null,null,null,null,null,null,null,null,null,null,{"$f":"Раздел3!D183","v":0},{"$f":"Раздел3!E183","v":0},{"$f":"Раздел3!F183","v":0},{"$f":"Раздел3!G183","v":0},{"$f":"Раздел3!H183","v":0},{"$f":"SUM(Раздел5!D183:I183)","v":0}]
[null,"Могул",177,null,null,0,null,null,null,null,null,null,null,null,null,null,null,null,null,null,null,{"$f":"Раздел3!D184","v":0},{"$f":"Раздел3!E184","v":0},{"$f":"Раздел3!F184","v":0},{"$f":"Раздел3!G184","v":0},{"$f":"Раздел3!H184","v":0},{"$f":"SUM(Раздел5!D184:I184)","v":0}]
[null,"Ски-кросс",178,null,null,0,null,null,null,null,null,null,null,null,null,null,null,null,null,null,null,{"$f":"Раздел3!D185","v":0},{"$f":"Раздел3!E185","v":0},{"$f":"Раздел3!F185","v":0},{"$f":"Раздел3!G185","v":0},{"$f":"Раздел3!H185","v":0},{"$f":"SUM(Раздел5!D185:I185)","v":0}]
[null,"Хаф-пайп",179,null,null,0,null,null,null,null,null,null,null,null,null,null,null,null,null,null,null,{"$f":"Раздел3!D186","v":0},{"$f":"Раздел3!E186","v":0},{"$f":"Раздел3!F186","v":0},{"$f":"Раздел3!G186","v":0},{"$f":"Раздел3!H186","v":0},{"$f":"SUM(Раздел5!D186:I186)","v":0}]
[null,"Слоуп-стайл",180,null,null,0,null,null,null,null,null,null,null,null,null,null,null,null,null,null,null,{"$f":"Раздел3!D187","v":0},{"$f":"Раздел3!E187","v":0},{"$f":"Раздел3!F187","v":0},{"$f":"Раздел3!G187","v":0},{"$f":"Раздел3!H187","v":0},{"$f":"SUM(Раздел5!D187:I187)","v":0}]
[null,"Футбол - всего",181,{"$f":"IF(SUM(D189:D192)>=1,1,0)","v":0},{"$f":"IF(SUM(E189:E192)>=1,1,0)","v":0},0,{"$f":"SUM(G189:G192)","v":0},0,0,0,0,0,0,0,0,0,0,0,0,0,null,{"$f":"Раздел3!D188","v":0},{"$f":"Раздел3!E188","v":0},{"$f":"Раздел3!F188","v":0},{"$f":"Раздел3!G188","v":0},{"$f":"Раздел3!H188","v":0},{"$f":"SUM(Раздел5!D188:I188)","v":0}]
[null,"в том числе:\nФутбол (муж.)",182,null,null,0,null,null,null,null,null,null,null,null,null,null,null,null,null,null,null,{"$f":"Раздел3!D189","v":0},{"$f":"Раздел3!E189","v":0},{"$f":"Раздел3!F189","v":0},{"$f":"Раздел3!G189","v":0},{"$f":"Раздел3!H189","v":0},{"$f":"SUM(Раздел5!D189:I189)","v":0}]
[null,"Футбол (жен.)",183,null,null,0,null,null,null,null,null,null,null,null,null,null,{"$f":"F190","v":0},null,null,null,null,{"$f":"Раздел3!D190","v":0},{"$f":"Раздел3!E190","v":0},{"$f":"Раздел3!F190","v":0},{"$f":"Раздел3!G190","v":0},{"$f":"Раздел3!H190","v":0},{"$f":"SUM(Раздел5!D190:I190)","v":0}]
[null,"Мини-футбол (футзал)",184,null,null,0,null,null,null,null,null,null,null,null,null,null,null,null,null,null,null,{"$f":"Раздел3!D191","v":0},{"$f":"Раздел3!E191","v":0},{"$f":"Раздел3!F191","v":0},{"$f":"Раздел3!G191","v":0},{"$f":"Раздел3!H191","v":0},{"$f":"SUM(Раздел5!D191:I191)","v":0}]
[null,"Пляжный футбол",185,null,null,0,null,null,null,null,null,null,null,null,null,null,null,null,null,null,null,{"$f":"Раздел3!D192","v":0},{"$f":"Раздел3!E192","v":0},{"$f":"Раздел3!F192","v":0},{"$f":"Раздел3!G192","v":0},{"$f":"Раздел3!H192","v":0},{"$f":"SUM(Раздел5!D192:I192)","v":0}]
[null,"Хапсагай",186,null,null,0,null,null,null,null,null,null,null,null,null,null,null,null,null,null,null,{"$f":"Раздел3!D193","v":0},{"$f":"Раздел3!E193","v":0},{"$f":"Раздел3!F193","v":0},{"$f":"Раздел3!G193","v":0},{"$f":"Раздел3!H193","v":0},{"$f":"SUM(Раздел5!D193:I193)","v":0}]
[null,"Хоккей - всего",187,{"$f":"IF(SUM(D195:D196)>=1,1,0)","v":0},{"$f":"IF(SUM(E195:E196)>=1,1,0)","v":0},0,{"$f":"SUM(G195:G196)","v":0},0,0,0,0,0,0,0,0,0,0,0,0,0,null,{"$f":"Раздел3!D194","v":0},{"$f":"Раздел3!E194","v":0},{"$f":"Раздел3!F194","v":0},{"$f":"Раздел3!G194","v":0},{"$f":"Раздел3!H194","v":0},{"$f":"SUM(Раздел5!D194:I194)","v":0}]
[null,"в том числе:\nХоккей (муж.)",188,null,null,0,null,null,null,null,null,null,null,null,null,null,null,null,null,null,null,{"$f":"Раздел3!D195","v":0},{"$f":"Раздел3!E195","v":0},{"$f":"Раздел3!F195","v":0},{"$f":"Раздел3!G195","v":0},{"$f":"Раздел3!H195","v":0},{"$f":"SUM(Раздел5!D195:I195)","v":0}]
[null,"Хоккей (жен.)",189,null,null,0,null,null,null,null,null,null,null,null,null,null,{"$f":"F196","v":0},null,null,null,null,{"$f":"Раздел3!D196","v":0},{"$f":"Раздел3!E196","v":0},{"$f":"Раздел3!F196","v":0},{"$f":"Раздел3!G196","v":0},{"$f":"Раздел3!H196","v":0},{"$f":"SUM(Раздел5!D196:I196)","v":0}]
[null,"Хоккей на траве",190,{"$f":"IF(SUM(D198:D199)>=1,1,0)","v":0},{"$f":"IF(SUM(E198:E199)>=1,1,0)","v":0},0,{"$f":"SUM(G198:G199)","v":0},0,0,0,0,0,0,0,0,0,0,0,0,0,null,{"$f":"Раздел3!D197","v":0},{"$f":"Раздел3!E197","v":0},{"$f":"Раздел3!F197","v":0},{"$f":"Раздел3!G197","v":0},{"$f":"Раздел3!H197","v":0},{"$f":"SUM(Раздел5!D197:I197)","v":0}]
[null,"Хоккей на траве (муж.)",191,null,null,0,null,null,null,null,null,null,null,null,null,null,null,null,null,null,null,{"$f":"Раздел3!D198","v":0},{"$f":"Раздел3!E198","v":0},{"$f":"Раздел3!F198","v":0},{"$f":"Раздел3!G198","v":0},{"$f":"Раздел3!H198","v":0},{"$f":"SUM(Раздел5!D198:I198)","v":0}]
[null,"Хоккей на траве (жен.)",192,null,null,0,null,null,null,null,null,null,null,null,null,null,{"$f":"F199","v":0},null,null,null,null,{"$f":"Раздел3!D199","v":0},{"$f":"Раздел3!E199","v":0},{"$f":"Раздел3!F199","v":0},{"$f":"Раздел3!G199","v":0},{"$f":"Раздел3!H199","v":0},{"$f":"SUM(Раздел5!D199:I199)","v":0}]
[null,"Хоккей с мячом",193,null,null,0,null,null,null,null,null,null,null,null,null,null,null,null,null,null,null,{"$f":"Раздел3!D200","v":0},{"$f":"Раздел3!E200","v":0},{"$f":"Раздел3!F200","v":0},{"$f":"Раздел3!G200","v":0},{"$f":"Раздел3!H200","v":0},{"$f":"SUM(Раздел5!D200:I200)","v":0}]
[null,"Художественная гимнастика",194,null,null,{"$f":"SUM(G201:K201)","v":0},null,null,null,null,null,null,null,null,null,null,null,null,null,null,null,{"$f":"Раздел3!D201","v":0},{"$f":"Раздел3!E201","v":0},{"$f":"Раздел3!F201","v":0},{"$f":"Раздел3!G201","v":0},{"$f":"Раздел3!H201","v":0},{"$f":"SUM(Раздел5!D201:I201)","v":0}]
[null,"Черлидинг",195,null,null,0,null,null,null,null,null,null,null,null,null,null,null,null,null,null,null,{"$f":"Раздел3!D202","v":0},{"$f":"Раздел3!E202","v":0},{"$f":"Раздел3!F202","v":0},{"$f":"Раздел3!G202","v":0},{"$f":"Раздел3!H202","v":0},{"$f":"SUM(Раздел5!D202:I202)","v":0}]
[null,"Чир спорт",196,null,null,0,null,null,null,null,null,null,null,null,null,null,null,null,null,null,null,{"$f":"Раздел3!D203","v":0},{"$f":"Раздел3!E203","v":0},{"$f":"Раздел3!F203","v":0},{"$f":"Раздел3!G203","v":0},{"$f":"Раздел3!H203","v":0},{"$f":"SUM(Раздел5!D203:I203)","v":0}]
[null,"Шахматы",197,null,null,0,null,null,null,null,null,null,null,null,null,null,null,null,null,null,null,{"$f":"Раздел3!D204","v":0},{"$f":"Раздел3!E204","v":0},{"$f":"Раздел3!F204","v":0},{"$f":"Раздел3!G204","v":0},{"$f":"Раздел3!H204","v":0},{"$f":"SUM(Раздел5!D204:I204)","v":0}]
[null,"Шашки",198,null,null,0,null,null,null,null,null,null,null,null,null,null,null,null,null,null,null,{"$f":"Раздел3!D205","v":0},{"$f":"Раздел3!E205","v":0},{"$f":"Раздел3!F205","v":0},{"$f":"Раздел3!G205","v":0},{"$f":"Раздел3!H205","v":0},{"$f":"SUM(Раздел5!D205:I205)","v":0}]
[null,"Эстетическая гимнастика",199,null,null,0,null,null,null,null,null,null,null,null,null,null,null,null,null,null,null,{"$f":"Раздел3!D206","v":0},{"$f":"Раздел3!E206","v":0},{"$f":"Раздел3!F206","v":0},{"$f":"Раздел3!G206","v":0},{"$f":"Раздел3!H206","v":0},{"$f":"SUM(Раздел5!D206:I206)","v":0}]
[null,"Якутские национальные прыжки",200,null,null,0,null,null,null,null,null,null,null,null,null,null,null,null,null,null,null,{"$f":"Раздел3!D207","v":0},{"$f":"Раздел3!E207","v":0},{"$f":"Раздел3!F207","v":0},{"$f":"Раздел3!G207","v":0},{"$f":"Раздел3!H207","v":0},{"$f":"SUM(Раздел5!D207:I207)","v":0},null,null,null,"Частично перешли",{"$f":"SUM(Раздел3!E208:H208)","v":0}]
[null,"ИТОГО",201,{"$f":"SUM(D8:D16,D19:D22,D25:D35,D38:D40,D45:D47,D50:D57,D62:D69,D72:D76,D79:D81,D89:D99,D102:D106,D109:D111,D117:D120,D125:D142,D148:D153,D158:D159,D163:D169,D172:D175,D180:D182,D188,D193:D194,D197,D200:D207)","v":0},{"$f":"SUM(E8:E16,E19:E22,E25:E35,E38:E40,E45:E47,E50:E57,E62:E69,E72:E76,E79:E81,E89:E99,E102:E106,E109:E111,E117:E120,E125:E142,E148:E153,E158:E159,E163:E169,E172:E175,E180:E182,E188,E193:E194,E197,E200:E207)","v":0},0,{"$f":"SUM(G8:G15,G17:G21,G23:G28,G29:G34,G36:G39,G41:G46,G48:G56,G58:G65,G66:G68,G70:G74,G75,G77:G80,G82:G88,G89:G95,G96:G98,G100:G105,G107:G110,G112:G119,G121:G128,G129:G137,G138:G141,G143:G149,G150:G152,G154:G158,G160:G167,G168,G170:G174,G176:G181,G183:G187,G189:G193,G195:G196,G198:G207)","v":0},0,0,0,0,0,0,0,0,0,0,0,0,{"$f":"SUM(T8:T15,T17:T21,T23:T28,T29:T34,T36:T39,T41:T46,T48:T56,T58:T65,T66:T68,T70:T74,T75,T77:T80,T82:T88,T89:T95,T96:T98,T100:T105,T107:T110,T112:T119,T121:T128,T129:T137,T138:T141,T143:T149,T150:T152,T154:T158,T160:T167,T168,T170:T174,T176:T181,T183:T187,T189:T193,T195:T196,T198:T207)","v":0},null,{"$f":"Раздел3!D208","v":0},{"$f":"Раздел3!E208","v":0},{"$f":"Раздел3!F208","v":0},{"$f":"Раздел3!G208","v":0},{"$f":"Раздел3!H208","v":0},{"$f":"SUM(Раздел5!D208:I208)","v":0},{"$f":"Раздел9!D16","v":0},null,null,{"$f":"Раздел1!F18","v":0}]
[null,null,null,null,null,null,null,null,null,null,null,null,null,null,null,null,null,null,null,null,null,null,null,null,null,null,null,null,null,null,"Перешли"]
[null,null,null,null,null,null,null,null,null,null,null,null,null,null,null,null,null,null,null,null,null,null,null,null,null,null,null,null,null,null,{"$f":"Раздел1!H18","v":0}]

{"sheet":"Раздел3","index":3,"n_rows":210,"n_cols":31,"rows_kept":210,"cut":false,"hidden":false,"merged":[[0,0,118,0],[0,1,0,17],[2,1,5,1],[2,2,5,2],[1,13,1,17],[2,3,2,7],[2,21,5,21],[3,3,5,3],[2,8,2,12],[2,13,2,17],[3,8,5,8],[3,13,5,13],[2,19,5,19],[2,20,5,20],[0,18,118,18],[3,4,4,7],[3,9,4,12],[3,14,4,17]]}
[null,"Раздел III. Численность занимающихся по программам спортивной подготовки"]
[null,null,null,null,null,null,null,null,null,null,null,null,null,"Код по ОКЕИ: человек – 792"]
[null,"Виды спорта","№ строки","Число занимающихся по программам спортивной подготовки на 31 декабря отчетного года (из гр. 5 раздела II)",null,null,null,null,"Число занимающихся, зачисленных на программы \nспортивной подготовки в отчетном году",null,null,null,null,"Число занимающихся, отчисленных с программ \nспортивной подготовки в отчетном году",null,null,null,null,null,null,"Раздел2 графа3\nЧисло отделений","Раздел2 графа5\nЧисло отделений"]
[null,null,null,"всего","в том числе по этапам подготовки",null,null,null,"всего","в том числе по этапам подготовки",null,null,null,"всего","в том числе по этапам подготовки"]
[]
[null,null,null,null,"начальной подготовки","трениро-вочный","совершен-ствования спортивного мастерства","высшего спортивного мастерства",null,"начальной подготовки","трениро-вочный","совершен-ствования спортивного мастерства","высшего спортивного мастерства",null,"начальной подготовки","трениро-вочный","совершен-ствования спортивного мастерства","высшего спортивного мастерства"]
[null,1,2,3,4,5,6,7,8,9,10,11,12,13,14,15,16,17]
[null,"Авиамодельный спорт","01",{"$f":"SUM(E8:H8)","v":0},null,null,null,null,{"$f":"SUM(J8:M8)","v":0},null,null,null,null,{"$f":"SUM(O8:R8)","v":0},null,null,null,null,null,null,{"$f":"Раздел2!F8","v":0},{"$f":"Раздел2!H8","v":0},{"$f":"Раздел2!I8","v":0},{"$f":"Раздел2!J8","v":0},{"$f":"Раздел2!K8","v":0}]
[null,"Автомобильный спорт","02",{"$f":"SUM(E9:H9)","v":0},0,null,0,null,{"$f":"SUM(J9:M9)","v":0},null,null,null,null,{"$f":"SUM(O9:R9)","v":0},null,null,null,null,null,null,{"$f":"Раздел2!F9","v":0},{"$f":"Раздел2!H9","v":0},{"$f":"Раздел2!I9","v":0},{"$f":"Раздел2!J9","v":0},{"$f":"Раздел2!K9","v":0},{"$f":"Раздел2!L9","v":0}]
[null,"Айкидо","03",0,null,null,0,null,0,null,null,null,null,0,null,null,null,null,null,null,{"$f":"Раздел2!F10","v":0},{"$f":"Раздел2!H10","v":0},{"$f":"Раздел2!I10","v":0},{"$f":"Раздел2!J10","v":0},{"$f":"Раздел2!K10","v":0}]
[null,"Акробатический рок-н-ролл","04",0,null,null,null,null,0,null,null,null,null,0,null,null,null,null,null,null,{"$f":"Раздел2!F11","v":0},{"$f":"Раздел2!H11","v":0},{"$f":"Раздел2!I11","v":0},{"$f":"Раздел2!J11","v":0},{"$f":"Раздел2!K11","v":0}]
[null,"Альпинизм","05",0,null,null,null,null,0,null,null,null,null,0,null,null,null,null,null,null,{"$f":"Раздел2!F12","v":0},{"$f":"Раздел2!H12","v":0},{"$f":"Раздел2!I12","v":0},{"$f":"Раздел2!J12","v":0},{"$f":"Раздел2!K12","v":0}]
[null,"Американский футбол","06",0,null,null,null,null,0,null,null,null,null,0,null,null,null,null,null,null,{"$f":"Раздел2!F13","v":0},{"$f":"Раздел2!H13","v":0},{"$f":"Раздел2!I13","v":0},{"$f":"Раздел2!J13","v":0},{"$f":"Раздел2!K13","v":0}]
[null,"Армрестлинг","07",0,null,null,null,null,0,null,null,null,null,0,null,null,null,null,null,null,{"$f":"Раздел2!F14","v":0},{"$f":"Раздел2!H14","v":0},{"$f":"Раздел2!I14","v":0},{"$f":"Раздел2!J14","v":0},{"$f":"Раздел2!K14","v":0}]
[null,"Бадминтон","08",0,null,null,null,null,0,null,null,null,null,0,null,null,null,null,null,null,{"$f":"Раздел2!F15","v":0},{"$f":"Раздел2!H15","v":0},{"$f":"Раздел2!I15","v":0},{"$f":"Раздел2!J15","v":0},{"$f":"Раздел2!K15","v":0}]
[null,"Баскетбол - всего","09",0,{"$f":"SUM(E17:E18)","v":0},{"$f":"SUM(F17:F18)","v":0},{"$f":"SUM(G17:G18)","v":0},{"$f":"SUM(H17:H18)","v":0},0,{"$f":"SUM(J17:J18)","v":0},{"$f":"SUM(K17:K18)","v":0},{"$f":"SUM(L17:L18)","v":0},{"$f":"SUM(M17:M18)","v":0},0,{"$f":"SUM(O17:O18)","v":0},{"$f":"SUM(P17:P18)","v":0},{"$f":"SUM(Q17:Q18)","v":0},{"$f":"SUM(R17:R18)","v":0},null,null,{"$f":"Раздел2!F16","v":0},{"$f":"Раздел2!H16","v":0},{"$f":"Раздел2!I16","v":0},{"$f":"Раздел2!J16","v":0},{"$f":"Раздел2!K16","v":0}]
[null,"в том числе:\nБаскетбол (муж.)",10,0,null,null,0,null,0,null,null,null,null,0,null,null,null,null,null,null,{"$f":"Раздел2!F17","v":0},{"$f":"Раздел2!H17","v":0},{"$f":"Раздел2!I17","v":0},{"$f":"Раздел2!J17","v":0},{"$f":"Раздел2!K17","v":0}]
[null,"Баскетбол (жен.)",11,0,null,null,null,null,0,null,null,null,null,0,null,null,null,null,null,null,{"$f":"Раздел2!F18","v":0},{"$f":"Раздел2!H18","v":0},{"$f":"Раздел2!I18","v":0},{"$f":"Раздел2!J18","v":0},{"$f":"Раздел2!K18","v":0}]
[null,"Бейсбол",12,0,null,null,null,null,0,null,null,null,null,0,null,null,null,null,null,null,{"$f":"Раздел2!F19","v":0},{"$f":"Раздел2!H19","v":0},{"$f":"Раздел2!I19","v":0},{"$f":"Раздел2!J19","v":0},{"$f":"Раздел2!K19","v":0}]
[null,"Биатлон",13,0,null,null,null,null,0,null,null,null,null,0,null,null,null,null,null,null,{"$f":"Раздел2!F20","v":0},{"$f":"Раздел2!H20","v":0},{"$f":"Раздел2!I20","v":0},{"$f":"Раздел2!J20","v":0},{"$f":"Раздел2!K20","v":0}]
[null,"Бильярдный спорт",14,0,null,null,null,null,0,null,null,null,null,0,null,null,null,null,null,null,{"$f":"Раздел2!F21","v":0},{"$f":"Раздел2!H21","v":0},{"$f":"Раздел2!I21","v":0},{"$f":"Раздел2!J21","v":0},{"$f":"Раздел2!K21","v":0}]
[null,"Бобслей - всего",15,0,{"$f":"SUM(E23:E24)","v":0},{"$f":"SUM(F23:F24)","v":0},{"$f":"SUM(G23:G24)","v":0},{"$f":"SUM(H23:H24)","v":0},0,{"$f":"SUM(J23:J24)","v":0},{"$f":"SUM(K23:K24)","v":0},{"$f":"SUM(L23:L24)","v":0},{"$f":"SUM(M23:M24)","v":0},0,{"$f":"SUM(O23:O24)","v":0},{"$f":"SUM(P23:P24)","v":0},{"$f":"SUM(Q23:Q24)","v":0},{"$f":"SUM(R23:R24)","v":0},null,null,{"$f":"Раздел2!F22","v":0},{"$f":"Раздел2!H22","v":0},{"$f":"Раздел2!I22","v":0},{"$f":"Раздел2!J22","v":0},{"$f":"Раздел2!K22","v":0}]
[null,"в том числе:\nБобслей",16,0,null,null,null,null,0,null,null,null,null,0,null,null,null,null,null,null,{"$f":"Раздел2!F23","v":0},{"$f":"Раздел2!H23","v":0},{"$f":"Раздел2!I23","v":0},{"$f":"Раздел2!J23","v":0},{"$f":"Раздел2!K23","v":0}]
[null,"Скелетон",17,0,null,null,null,null,0,null,null,null,null,0,null,null,null,null,null,null,{"$f":"Раздел2!F24","v":0},{"$f":"Раздел2!H24","v":0},{"$f":"Раздел2!I24","v":0},{"$f":"Раздел2!J24","v":0},{"$f":"Раздел2!K24","v":0}]
[null,"Бодибилдинг",18,0,null,null,null,null,0,null,null,null,null,0,null,null,null,null,null,null,{"$f":"Раздел2!F25","v":0},{"$f":"Раздел2!H25","v":0},{"$f":"Раздел2!I25","v":0},{"$f":"Раздел2!J25","v":0},{"$f":"Раздел2!K25","v":0}]
[null,"Бокс",19,0,null,null,null,null,0,null,null,null,null,0,null,null,null,null,null,null,{"$f":"Раздел2!F26","v":0},{"$f":"Раздел2!H26","v":0},{"$f":"Раздел2!I26","v":0},{"$f":"Раздел2!J26","v":0},{"$f":"Раздел2!K26","v":0}]
[null,"Борьба на поясах",20,0,null,null,null,null,0,null,null,null,null,0,null,null,null,null,null,null,{"$f":"Раздел2!F27","v":0},{"$f":"Раздел2!H27","v":0},{"$f":"Раздел2!I27","v":0},{"$f":"Раздел2!J27","v":0},{"$f":"Раздел2!K27","v":0}]
[null,"Боулинг",21,0,null,null,null,null,0,null,null,null,null,0,null,null,null,null,null,null,{"$f":"Раздел2!F28","v":0},{"$f":"Раздел2!H28","v":0},{"$f":"Раздел2!I28","v":0},{"$f":"Раздел2!J28","v":0},{"$f":"Раздел2!K28","v":0}]
[null,"Велоспорт ВМХ",22,0,null,null,null,null,0,null,null,null,null,0,null,null,null,null,null,null,{"$f":"Раздел2!F29","v":0},{"$f":"Раздел2!H29","v":0},{"$f":"Раздел2!I29","v":0},{"$f":"Раздел2!J29","v":0},{"$f":"Раздел2!K29","v":0}]
[null,"Велоспорт – маунтинбайк",23,0,null,null,null,null,0,null,null,null,null,0,null,null,null,null,null,null,{"$f":"Раздел2!F30","v":0},{"$f":"Раздел2!H30","v":0},{"$f":"Раздел2!I30","v":0},{"$f":"Раздел2!J30","v":0},{"$f":"Раздел2!K30","v":0}]
[null,"Велоспорт – трек",24,0,null,null,null,null,0,null,null,null,null,0,null,null,null,null,null,null,{"$f":"Раздел2!F31","v":0},{"$f":"Раздел2!H31","v":0},{"$f":"Раздел2!I31","v":0},{"$f":"Раздел2!J31","v":0},{"$f":"Раздел2!K31","v":0}]
[null,"Велоспорт – шоссе",25,0,null,null,null,null,0,null,null,null,null,0,null,null,null,null,null,null,{"$f":"Раздел2!F32","v":0},{"$f":"Раздел2!H32","v":0},{"$f":"Раздел2!I32","v":0},{"$f":"Раздел2!J32","v":0},{"$f":"Раздел2!K32","v":0}]
[null,"Вертолетный спорт",26,0,null,null,null,null,0,null,null,null,null,0,null,null,null,null,null,null,{"$f":"Раздел2!F33","v":0},{"$f":"Раздел2!H33","v":0},{"$f":"Раздел2!I33","v":0},{"$f":"Раздел2!J33","v":0},{"$f":"Раздел2!K33","v":0}]
[null,"Водно-моторный спорт",27,0,null,null,null,null,0,null,null,null,null,0,null,null,null,null,null,null,{"$f":"Раздел2!F34","v":0},{"$f":"Раздел2!H34","v":0},{"$f":"Раздел2!I34","v":0},{"$f":"Раздел2!J34","v":0},{"$f":"Раздел2!K34","v":0}]
[null,"Водное поло - всего ",28,0,{"$f":"SUM(E36:E37)","v":0},{"$f":"SUM(F36:F37)","v":0},{"$f":"SUM(G36:G37)","v":0},{"$f":"SUM(H36:H37)","v":0},0,{"$f":"SUM(J36:J37)","v":0},{"$f":"SUM(K36:K37)","v":0},{"$f":"SUM(L36:L37)","v":0},{"$f":"SUM(M36:M37)","v":0},0,{"$f":"SUM(O36:O37)","v":0},{"$f":"SUM(P36:P37)","v":0},{"$f":"SUM(Q36:Q37)","v":0},{"$f":"SUM(R36:R37)","v":0},null,null,{"$f":"Раздел2!F35","v":0},{"$f":"Раздел2!H35","v":0},{"$f":"Раздел2!I35","v":0},{"$f":"Раздел2!J35","v":0},{"$f":"Раздел2!K35","v":0}]
[null,"в том числе:\nВодное поло (муж.)",29,0,null,null,null,null,0,null,null,null,null,0,null,null,null,null,null,null,{"$f":"Раздел2!F36","v":0},{"$f":"Раздел2!H36","v":0},{"$f":"Раздел2!I36","v":0},{"$f":"Раздел2!J36","v":0},{"$f":"Раздел2!K36","v":0}]
[null,"Водное поло (жен.)",30,0,null,null,null,null,0,null,null,null,null,0,null,null,null,null,null,null,{"$f":"Раздел2!F37","v":0},{"$f":"Раздел2!H37","v":0},{"$f":"Раздел2!I37","v":0},{"$f":"Раздел2!J37","v":0},{"$f":"Раздел2!K37","v":0}]
[null,"Воднолыжный спорт",31,0,null,null,null,null,0,null,null,null,null,0,null,null,null,null,null,null,{"$f":"Раздел2!F38","v":0},{"$f":"Раздел2!H38","v":0},{"$f":"Раздел2!I38","v":0},{"$f":"Раздел2!J38","v":0},{"$f":"Раздел2!K38","v":0}]
[null,"Воздухоплавательный спорт",32,0,null,null,null,null,0,null,null,null,null,0,null,null,null,null,null,null,{"$f":"Раздел2!F39","v":0},{"$f":"Раздел2!H39","v":0},{"$f":"Раздел2!I39","v":0},{"$f":"Раздел2!J39","v":0},{"$f":"Раздел2!K39","v":0}]
[null,"Волейбол - всего",33,0,{"$f":"SUM(E41:E44)","v":0},{"$f":"SUM(F41:F44)","v":0},{"$f":"SUM(G41:G44)","v":0},{"$f":"SUM(H41:H44)","v":0},0,{"$f":"SUM(J41:J44)","v":0},{"$f":"SUM(K41:K44)","v":0},{"$f":"SUM(L41:L44)","v":0},{"$f":"SUM(M41:M44)","v":0},0,{"$f":"SUM(O41:O44)","v":0},{"$f":"SUM(P41:P44)","v":0},{"$f":"SUM(Q41:Q44)","v":0},{"$f":"SUM(R41:R44)","v":0},null,null,{"$f":"Раздел2!F40","v":0},{"$f":"Раздел2!H40","v":0},{"$f":"Раздел2!I40","v":0},{"$f":"Раздел2!J40","v":0},{"$f":"Раздел2!K40","v":0}]
[null,"в том числе:\nВолейбол (муж.)",34,0,null,null,null,null,0,null,null,null,null,0,null,null,null,null,null,null,{"$f":"Раздел2!F41","v":0},{"$f":"Раздел2!H41","v":0},{"$f":"Раздел2!I41","v":0},{"$f":"Раздел2!J41","v":0},{"$f":"Раздел2!K41","v":0}]
[null,"Волейбол (жен.)",35,0,null,null,null,null,0,null,null,null,null,0,null,null,null,null,null,null,{"$f":"Раздел2!F42","v":0},{"$f":"Раздел2!H42","v":0},{"$f":"Раздел2!I42","v":0},{"$f":"Раздел2!J42","v":0},{"$f":"Раздел2!K42","v":0}]
[null,"Пляжный волейбол (муж.)",36,0,null,null,null,null,0,null,null,null,null,0,null,null,null,null,null,null,{"$f":"Раздел2!F43","v":0},{"$f":"Раздел2!H43","v":0},{"$f":"Раздел2!I43","v":0},{"$f":"Раздел2!J43","v":0},{"$f":"Раздел2!K43","v":0}]
[null,"Пляжный волейбол (жен.)",37,0,null,null,null,null,0,null,null,null,null,0,null,null,null,null,null,null,{"$f":"Раздел2!F44","v":0},{"$f":"Раздел2!H44","v":0},{"$f":"Раздел2!I44","v":0},{"$f":"Раздел2!J44","v":0},{"$f":"Раздел2!K44","v":0}]
[null,"Восточное боевое единоборство",38,0,null,null,null,null,0,null,null,null,null,0,null,null,null,null,null,null,{"$f":"Раздел2!F45","v":0},{"$f":"Раздел2!H45","v":0},{"$f":"Раздел2!I45","v":0},{"$f":"Раздел2!J45","v":0},{"$f":"Раздел2!K45","v":0}]
[null,"Всестилевое карате",39,0,null,null,null,null,0,null,null,null,null,0,null,null,null,null,null,null,{"$f":"Раздел2!F46","v":0},{"$f":"Раздел2!H46","v":0},{"$f":"Раздел2!I46","v":0},{"$f":"Раздел2!J46","v":0},{"$f":"Раздел2!K46","v":0}]
[null,"Гандбол - всего",40,0,{"$f":"SUM(E48:E49)","v":0},{"$f":"SUM(F48:F49)","v":0},{"$f":"SUM(G48:G49)","v":0},{"$f":"SUM(H48:H49)","v":0},0,{"$f":"SUM(J48:J49)","v":0},{"$f":"SUM(K48:K49)","v":0},{"$f":"SUM(L48:L49)","v":0},{"$f":"SUM(M48:M49)","v":0},0,{"$f":"SUM(O48:O49)","v":0},{"$f":"SUM(P48:P49)","v":0},{"$f":"SUM(Q48:Q49)","v":0},{"$f":"SUM(R48:R49)","v":0},null,null,{"$f":"Раздел2!F47","v":0},{"$f":"Раздел2!H47","v":0},{"$f":"Раздел2!I47","v":0},{"$f":"Раздел2!J47","v":0},{"$f":"Раздел2!K47","v":0}]
[null,"в том числе:\nГандбол (муж.)",41,0,null,null,null,null,0,null,null,null,null,0,null,null,null,null,null,null,{"$f":"Раздел2!F48","v":0},{"$f":"Раздел2!H48","v":0},{"$f":"Раздел2!I48","v":0},{"$f":"Раздел2!J48","v":0},{"$f":"Раздел2!K48","v":0}]
[null,"Гандбол (жен.)",42,0,null,null,null,null,0,null,null,null,null,0,null,null,null,null,null,null,{"$f":"Раздел2!F49","v":0},{"$f":"Раздел2!H49","v":0},{"$f":"Раздел2!I49","v":0},{"$f":"Раздел2!J49","v":0},{"$f":"Раздел2!K49","v":0}]
[null,"Гиревой спорт",43,0,null,null,null,null,0,null,null,null,null,0,null,null,null,null,null,null,{"$f":"Раздел2!F50","v":0},{"$f":"Раздел2!H50","v":0},{"$f":"Раздел2!I50","v":0},{"$f":"Раздел2!J50","v":0},{"$f":"Раздел2!K50","v":0}]
[null,"Го",44,0,null,null,null,null,0,null,null,null,null,0,null,null,null,null,null,null,{"$f":"Раздел2!F51","v":0},{"$f":"Раздел2!H51","v":0},{"$f":"Раздел2!I51","v":0},{"$f":"Раздел2!J51","v":0},{"$f":"Раздел2!K51","v":0}]
[null,"Гольф",45,0,null,null,null,null,0,null,null,null,null,0,null,null,null,null,null,null,{"$f":"Раздел2!F52","v":0},{"$f":"Раздел2!H52","v":0},{"$f":"Раздел2!I52","v":0},{"$f":"Раздел2!J52","v":0},{"$f":"Раздел2!K52","v":0}]
[null,"Горнолыжный спорт",46,0,null,null,null,null,0,null,null,null,null,0,null,null,null,null,null,null,{"$f":"Раздел2!F53","v":0},{"$f":"Раздел2!H53","v":0},{"$f":"Раздел2!I53","v":0},{"$f":"Раздел2!J53","v":0},{"$f":"Раздел2!K53","v":0}]
[null,"Городошный спорт",47,0,null,null,null,null,0,null,null,null,null,0,null,null,null,null,null,null,{"$f":"Раздел2!F54","v":0},{"$f":"Раздел2!H54","v":0},{"$f":"Раздел2!I54","v":0},{"$f":"Раздел2!J54","v":0},{"$f":"Раздел2!K54","v":0}]
[null,"Гребля на байдарках и каноэ",48,0,null,null,null,null,0,null,null,null,null,0,null,null,null,null,null,null,{"$f":"Раздел2!F55","v":0},{"$f":"Раздел2!H55","v":0},{"$f":"Раздел2!I55","v":0},{"$f":"Раздел2!J55","v":0},{"$f":"Раздел2!K55","v":0}]
[null,"Гребной слалом",49,0,null,null,null,null,0,null,null,null,null,0,null,null,null,null,null,null,{"$f":"Раздел2!F56","v":0},{"$f":"Раздел2!H56","v":0},{"$f":"Раздел2!I56","v":0},{"$f":"Раздел2!J56","v":0},{"$f":"Раздел2!K56","v":0}]
[null,"Гребной спорт - всего",50,0,{"$f":"SUM(E58:E61)","v":0},{"$f":"SUM(F58:F61)","v":0},{"$f":"SUM(G58:G61)","v":0},{"$f":"SUM(H58:H61)","v":0},0,{"$f":"SUM(J58:J61)","v":0},{"$f":"SUM(K58:K61)","v":0},{"$f":"SUM(L58:L61)","v":0},{"$f":"SUM(M58:M61)","v":0},0,{"$f":"SUM(O58:O61)","v":0},{"$f":"SUM(P58:P61)","v":0},{"$f":"SUM(Q58:Q61)","v":0},{"$f":"SUM(R58:R61)","v":0},null,null,{"$f":"Раздел2!F57","v":0},{"$f":"Раздел2!H57","v":0},{"$f":"Раздел2!I57","v":0},{"$f":"Раздел2!J57","v":0},{"$f":"Раздел2!K57","v":0}]
[null,"в том числе:\nАкадемическая гребля",51,0,null,null,null,null,0,null,null,null,null,0,null,null,null,null,null,null,{"$f":"Раздел2!F58","v":0},{"$f":"Раздел2!H58","v":0},{"$f":"Раздел2!I58","v":0},{"$f":"Раздел2!J58","v":0},{"$f":"Раздел2!K58","v":0}]
[null,"Гребля-индор",52,0,null,null,null,null,0,null,null,null,null,0,null,null,null,null,null,null,{"$f":"Раздел2!F59","v":0},{"$f":"Раздел2!H59","v":0},{"$f":"Раздел2!I59","v":0},{"$f":"Раздел2!J59","v":0},{"$f":"Раздел2!K59","v":0}]
[null,"Народная гребля",53,0,null,null,null,null,0,null,null,null,null,0,null,null,null,null,null,null,{"$f":"Раздел2!F60","v":0},{"$f":"Раздел2!H60","v":0},{"$f":"Раздел2!I60","v":0},{"$f":"Раздел2!J60","v":0},{"$f":"Раздел2!K60","v":0}]
[null,"Прибрежная гребля",54,0,null,null,null,null,0,null,null,null,null,0,null,null,null,null,null,null,{"$f":"Раздел2!F61","v":0},{"$f":"Раздел2!H61","v":0},{"$f":"Раздел2!I61","v":0},{"$f":"Раздел2!J61","v":0},{"$f":"Раздел2!K61","v":0}]
[null,"Дартс",55,0,null,null,null,null,0,null,null,null,null,0,null,null,null,null,null,null,{"$f":"Раздел2!F62","v":0},{"$f":"Раздел2!H62","v":0},{"$f":"Раздел2!I62","v":0},{"$f":"Раздел2!J62","v":0},{"$f":"Раздел2!K62","v":0}]
[null,"Джиу-джитсу",56,0,null,null,null,null,0,null,null,null,null,0,null,null,null,null,null,null,{"$f":"Раздел2!F63","v":0},{"$f":"Раздел2!H63","v":0},{"$f":"Раздел2!I63","v":0},{"$f":"Раздел2!J63","v":0},{"$f":"Раздел2!K63","v":0}]
[null,"Дзюдо",57,0,null,null,null,null,0,null,null,null,null,0,null,null,null,null,null,null,{"$f":"Раздел2!F64","v":0},{"$f":"Раздел2!H64","v":0},{"$f":"Раздел2!I64","v":0},{"$f":"Раздел2!J64","v":0},{"$f":"Раздел2!K64","v":0}]
[null,"Капоэйра",58,0,null,null,null,null,0,null,null,null,null,0,null,null,null,null,null,null,{"$f":"Раздел2!F65","v":0},{"$f":"Раздел2!H65","v":0},{"$f":"Раздел2!I65","v":0},{"$f":"Раздел2!J65","v":0},{"$f":"Раздел2!K65","v":0}]
[null,"Каратэ",59,0,null,null,null,null,0,null,null,null,null,0,null,null,null,null,null,null,{"$f":"Раздел2!F66","v":0},{"$f":"Раздел2!H66","v":0},{"$f":"Раздел2!I66","v":0},{"$f":"Раздел2!J66","v":0},{"$f":"Раздел2!K66","v":0}]
[null,"Кендо",60,0,null,null,null,null,0,null,null,null,null,0,null,null,null,null,null,null,{"$f":"Раздел2!F67","v":0},{"$f":"Раздел2!H67","v":0},{"$f":"Раздел2!I67","v":0},{"$f":"Раздел2!J67","v":0},{"$f":"Раздел2!K67","v":0}]
[null,"Керешу",61,0,null,null,null,null,0,null,null,null,null,0,null,null,null,null,null,null,{"$f":"Раздел2!F68","v":0},{"$f":"Раздел2!H68","v":0},{"$f":"Раздел2!I68","v":0},{"$f":"Раздел2!J68","v":0},{"$f":"Раздел2!K68","v":0}]
[null,"Керлинг - всего",62,0,{"$f":"SUM(E70:E71)","v":0},{"$f":"SUM(F70:F71)","v":0},{"$f":"SUM(G70:G71)","v":0},{"$f":"SUM(H70:H71)","v":0},0,{"$f":"SUM(J70:J71)","v":0},{"$f":"SUM(K70:K71)","v":0},{"$f":"SUM(L70:L71)","v":0},{"$f":"SUM(M70:M71)","v":0},0,{"$f":"SUM(O70:O71)","v":0},{"$f":"SUM(P70:P71)","v":0},{"$f":"SUM(Q70:Q71)","v":0},{"$f":"SUM(R70:R71)","v":0},null,null,{"$f":"Раздел2!F69","v":0},{"$f":"Раздел2!H69","v":0},{"$f":"Раздел2!I69","v":0},{"$f":"Раздел2!J69","v":0},{"$f":"Раздел2!K69","v":0}]
[null,"в том числе:\nКерлинг (муж.)",63,0,null,null,null,null,0,null,null,null,null,0,null,null,null,null,null,null,{"$f":"Раздел2!F70","v":0},{"$f":"Раздел2!H70","v":0},{"$f":"Раздел2!I70","v":0},{"$f":"Раздел2!J70","v":0},{"$f":"Раздел2!K70","v":0}]
[null,"Керлинг (жен.)",64,0,null,null,null,null,0,null,null,null,null,0,null,null,null,null,null,null,{"$f":"Раздел2!F71","v":0},{"$f":"Раздел2!H71","v":0},{"$f":"Раздел2!I71","v":0},{"$f":"Раздел2!J71","v":0},{"$f":"Раздел2!K71","v":0}]
[null,"Кикбоксинг",65,0,null,null,null,null,0,null,null,null,null,0,null,null,null,null,null,null,{"$f":"Раздел2!F72","v":0},{"$f":"Раздел2!H72","v":0},{"$f":"Раздел2!I72","v":0},{"$f":"Раздел2!J72","v":0},{"$f":"Раздел2!K72","v":0}]
[null,"Кинологический спорт",66,{"$f":"SUM(E73:H73)","v":0},null,null,null,null,{"$f":"SUM(J73:M73)","v":0},null,null,null,null,{"$f":"SUM(O73:R73)","v":0},null,null,null,null,null,null,{"$f":"Раздел2!F73","v":0},{"$f":"Раздел2!H73","v":0},{"$f":"Раздел2!I73","v":0},{"$f":"Раздел2!J73","v":0},{"$f":"Раздел2!K73","v":0}]
[null,"Киокусинкай",67,0,null,null,null,null,0,null,null,null,null,0,null,null,null,null,null,null,{"$f":"Раздел2!F74","v":0},{"$f":"Раздел2!H74","v":0},{"$f":"Раздел2!I74","v":0},{"$f":"Раздел2!J74","v":0},{"$f":"Раздел2!K74","v":0}]
[null,"Конный спорт",68,0,null,null,null,null,0,null,null,null,null,0,null,null,null,null,null,null,{"$f":"Раздел2!F75","v":0},{"$f":"Раздел2!H75","v":0},{"$f":"Раздел2!I75","v":0},{"$f":"Раздел2!J75","v":0},{"$f":"Раздел2!K75","v":0}]
[null,"Конькобежный спорт - всего",69,0,{"$f":"SUM(E77:E78)","v":0},{"$f":"SUM(F77:F78)","v":0},{"$f":"SUM(G77:G78)","v":0},{"$f":"SUM(H77:H78)","v":0},0,{"$f":"SUM(J77:J78)","v":0},{"$f":"SUM(K77:K78)","v":0},{"$f":"SUM(L77:L78)","v":0},{"$f":"SUM(M77:M78)","v":0},0,{"$f":"SUM(O77:O78)","v":0},{"$f":"SUM(P77:P78)","v":0},{"$f":"SUM(Q77:Q78)","v":0},{"$f":"SUM(R77:R78)","v":0},null,null,{"$f":"Раздел2!F76","v":0},{"$f":"Раздел2!H76","v":0},{"$f":"Раздел2!I76","v":0},{"$f":"Раздел2!J76","v":0},{"$f":"Раздел2!K76","v":0}]
[null,"в том числе:\nКонькобежный спорт",70,0,null,null,null,null,0,null,null,null,null,0,null,null,null,null,null,null,{"$f":"Раздел2!F77","v":0},{"$f":"Раздел2!H77","v":0},{"$f":"Раздел2!I77","v":0},{"$f":"Раздел2!J77","v":0},{"$f":"Раздел2!K77","v":0}]
[null,"Шорт-трек",71,0,null,null,null,null,0,null,null,null,null,0,null,null,null,null,null,null,{"$f":"Раздел2!F78","v":0},{"$f":"Раздел2!H78","v":0},{"$f":"Раздел2!I78","v":0},{"$f":"Раздел2!J78","v":0},{"$f":"Раздел2!K78","v":0}]
[null,"Корэш",72,0,null,null,null,null,0,null,null,null,null,0,null,null,null,null,null,null,{"$f":"Раздел2!F79","v":0},{"$f":"Раздел2!H79","v":0},{"$f":"Раздел2!I79","v":0},{"$f":"Раздел2!J79","v":0},{"$f":"Раздел2!K79","v":0}]
[null,"Лапта",73,0,null,null,null,null,0,null,null,null,null,0,null,null,null,null,null,null,{"$f":"Раздел2!F80","v":0},{"$f":"Раздел2!H80","v":0},{"$f":"Раздел2!I80","v":0},{"$f":"Раздел2!J80","v":0},{"$f":"Раздел2!K80","v":0}]
[null,"Легкая атлетика - всего",74,0,{"$f":"SUM(E82:E88)","v":0},{"$f":"SUM(F82:F88)","v":0},{"$f":"SUM(G82:G88)","v":0},{"$f":"SUM(H82:H88)","v":0},0,{"$f":"SUM(J82:J88)","v":0},{"$f":"SUM(K82:K88)","v":0},{"$f":"SUM(L82:L88)","v":0},{"$f":"SUM(M82:M88)","v":0},0,{"$f":"SUM(O82:O88)","v":0},{"$f":"SUM(P82:P88)","v":0},{"$f":"SUM(Q82:Q88)","v":0},{"$f":"SUM(R82:R88)","v":0},null,null,{"$f":"Раздел2!F81","v":0},{"$f":"Раздел2!H81","v":0},{"$f":"Раздел2!I81","v":0},{"$f":"Раздел2!J81","v":0},{"$f":"Раздел2!K81","v":0}]
[null,"в том числе:\nСпринтерский и барьерный бег",75,0,null,null,null,null,0,null,null,null,null,0,null,null,null,null,null,null,{"$f":"Раздел2!F82","v":0},{"$f":"Раздел2!H82","v":0},{"$f":"Раздел2!I82","v":0},{"$f":"Раздел2!J82","v":0},{"$f":"Раздел2!K82","v":0}]
[null,"Бег на средние дистанции и бег с препятствиями",76,0,null,null,null,null,0,null,null,null,null,0,null,null,null,null,null,null,{"$f":"Раздел2!F83","v":0},{"$f":"Раздел2!H83","v":0},{"$f":"Раздел2!I83","v":0},{"$f":"Раздел2!J83","v":0},{"$f":"Раздел2!K83","v":0}]
[null,"Бег на длинные и сверхдлинные дистанции",77,0,null,null,null,null,0,null,null,null,null,0,null,null,null,null,null,null,{"$f":"Раздел2!F84","v":0},{"$f":"Раздел2!H84","v":0},{"$f":"Раздел2!I84","v":0},{"$f":"Раздел2!J84","v":0},{"$f":"Раздел2!K84","v":0}]
[null,"Многоборья",78,0,null,null,null,null,0,null,null,null,null,0,null,null,null,null,null,null,{"$f":"Раздел2!F85","v":0},{"$f":"Раздел2!H85","v":0},{"$f":"Раздел2!I85","v":0},{"$f":"Раздел2!J85","v":0},{"$f":"Раздел2!K85","v":0}]
[null,"Прыжки",79,0,null,null,null,null,0,null,null,null,null,0,null,null,null,null,null,null,{"$f":"Раздел2!F86","v":0},{"$f":"Раздел2!H86","v":0},{"$f":"Раздел2!I86","v":0},{"$f":"Раздел2!J86","v":0},{"$f":"Раздел2!K86","v":0}]
[null,"Метания",80,0,null,null,null,null,0,null,null,null,null,0,null,null,null,null,null,null,{"$f":"Раздел2!F87","v":0},{"$f":"Раздел2!H87","v":0},{"$f":"Раздел2!I87","v":0},{"$f":"Раздел2!J87","v":0},{"$f":"Раздел2!K87","v":0}]
[null,"Спортивная ходьба",81,0,null,null,null,null,0,null,null,null,null,0,null,null,null,null,null,null,{"$f":"Раздел2!F88","v":0},{"$f":"Раздел2!H88","v":0},{"$f":"Раздел2!I88","v":0},{"$f":"Раздел2!J88","v":0},{"$f":"Раздел2!K88","v":0}]
[null,"Лыжное двоеборье",82,0,null,null,null,null,0,null,null,null,null,0,null,null,null,null,null,null,{"$f":"Раздел2!F89","v":0},{"$f":"Раздел2!H89","v":0},{"$f":"Раздел2!I89","v":0},{"$f":"Раздел2!J89","v":0},{"$f":"Раздел2!K89","v":0}]
[null,"Лыжные гонки",83,0,null,null,null,null,0,null,null,null,null,0,null,null,null,null,null,null,{"$f":"Раздел2!F90","v":0},{"$f":"Раздел2!H90","v":0},{"$f":"Раздел2!I90","v":0},{"$f":"Раздел2!J90","v":0},{"$f":"Раздел2!K90","v":0}]
[null,"Мас-рестлинг",84,0,null,null,null,null,0,null,null,null,null,0,null,null,null,null,null,null,{"$f":"Раздел2!F91","v":0},{"$f":"Раздел2!H91","v":0},{"$f":"Раздел2!I91","v":0},{"$f":"Раздел2!J91","v":0},{"$f":"Раздел2!K91","v":0}]
[null,"Морское многоборье",85,0,null,null,null,null,0,null,null,null,null,0,null,null,null,null,null,null,{"$f":"Раздел2!F92","v":0},{"$f":"Раздел2!H92","v":0},{"$f":"Раздел2!I92","v":0},{"$f":"Раздел2!J92","v":0},{"$f":"Раздел2!K92","v":0}]
[null,"Мотоциклетный спорт",86,0,null,null,null,null,0,null,null,null,null,0,null,null,null,null,null,null,{"$f":"Раздел2!F93","v":0},{"$f":"Раздел2!H93","v":0},{"$f":"Раздел2!I93","v":0},{"$f":"Раздел2!J93","v":0},{"$f":"Раздел2!K93","v":0}]
[null,"Настольный теннис",87,0,null,null,null,null,0,null,null,null,null,0,null,null,null,null,null,null,{"$f":"Раздел2!F94","v":0},{"$f":"Раздел2!H94","v":0},{"$f":"Раздел2!I94","v":0},{"$f":"Раздел2!J94","v":0},{"$f":"Раздел2!K94","v":0}]
[null,"Парашютный спорт",88,0,null,null,null,null,0,null,null,null,null,0,null,null,null,null,null,null,{"$f":"Раздел2!F95","v":0},{"$f":"Раздел2!H95","v":0},{"$f":"Раздел2!I95","v":0},{"$f":"Раздел2!J95","v":0},{"$f":"Раздел2!K95","v":0}]
[null,"Парусный спорт",89,0,null,null,null,null,0,null,null,null,null,0,null,null,null,null,null,null,{"$f":"Раздел2!F96","v":0},{"$f":"Раздел2!H96","v":0},{"$f":"Раздел2!I96","v":0},{"$f":"Раздел2!J96","v":0},{"$f":"Раздел2!K96","v":0}]
[null,"Пауэрлифтинг",90,0,null,null,null,null,0,null,null,null,null,0,null,null,null,null,null,null,{"$f":"Раздел2!F97","v":0},{"$f":"Раздел2!H97","v":0},{"$f":"Раздел2!I97","v":0},{"$f":"Раздел2!J97","v":0},{"$f":"Раздел2!K97","v":0}]
[null,"Перетягивание каната",91,0,null,null,null,null,0,null,null,null,null,0,null,null,null,null,null,null,{"$f":"Раздел2!F98","v":0},{"$f":"Раздел2!H98","v":0},{"$f":"Раздел2!I98","v":0},{"$f":"Раздел2!J98","v":0},{"$f":"Раздел2!K98","v":0}]
[null,"Плавание - всего",92,0,{"$f":"SUM(E100:E101)","v":0},{"$f":"SUM(F100:F101)","v":0},{"$f":"SUM(G100:G101)","v":0},{"$f":"SUM(H100:H101)","v":0},0,{"$f":"SUM(J100:J101)","v":0},{"$f":"SUM(K100:K101)","v":0},{"$f":"SUM(L100:L101)","v":0},{"$f":"SUM(M100:M101)","v":0},0,{"$f":"SUM(O100:O101)","v":0},{"$f":"SUM(P100:P101)","v":0},{"$f":"SUM(Q100:Q101)","v":0},{"$f":"SUM(R100:R101)","v":0},null,null,{"$f":"Раздел2!F99","v":0},{"$f":"Раздел2!H99","v":0},{"$f":"Раздел2!I99","v":0},{"$f":"Раздел2!J99","v":0},{"$f":"Раздел2!K99","v":0}]
[null,"в том числе:\nПлавание ",93,0,null,null,null,null,0,null,null,null,null,0,null,null,null,null,null,null,{"$f":"Раздел2!F100","v":0},{"$f":"Раздел2!H100","v":0},{"$f":"Раздел2!I100","v":0},{"$f":"Раздел2!J100","v":0},{"$f":"Раздел2!K100","v":0}]
[null,"Открытая вода",94,0,null,null,null,null,0,null,null,null,null,0,null,null,null,null,null,null,{"$f":"Раздел2!F101","v":0},{"$f":"Раздел2!H101","v":0},{"$f":"Раздел2!I101","v":0},{"$f":"Раздел2!J101","v":0},{"$f":"Раздел2!K101","v":0}]
[null,"Планерный спорт",95,0,null,null,null,null,0,null,null,null,null,0,null,null,null,null,null,null,{"$f":"Раздел2!F102","v":0},{"$f":"Раздел2!H102","v":0},{"$f":"Раздел2!I102","v":0},{"$f":"Раздел2!J102","v":0},{"$f":"Раздел2!K102","v":0}]
[null,"Подводный спорт",96,0,null,null,null,null,0,null,null,null,null,0,null,null,null,null,null,null,{"$f":"Раздел2!F103","v":0},{"$f":"Раздел2!H103","v":0},{"$f":"Раздел2!I103","v":0},{"$f":"Раздел2!J103","v":0},{"$f":"Раздел2!K103","v":0}]
[null,"Полиатлон",97,0,null,null,null,null,0,null,null,null,null,0,null,null,null,null,null,null,{"$f":"Раздел2!F104","v":0},{"$f":"Раздел2!H104","v":0},{"$f":"Раздел2!I104","v":0},{"$f":"Раздел2!J104","v":0},{"$f":"Раздел2!K104","v":0}]
[null,"Практическая стрельба",98,0,null,null,null,null,0,null,null,null,null,0,null,null,null,null,null,null,{"$f":"Раздел2!F105","v":0},{"$f":"Раздел2!H105","v":0},{"$f":"Раздел2!I105","v":0},{"$f":"Раздел2!J105","v":0},{"$f":"Раздел2!K105","v":0}]
[null,"Прыжки в воду - всего",99,0,{"$f":"SUM(E107:E108)","v":0},{"$f":"SUM(F107:F108)","v":0},{"$f":"SUM(G107:G108)","v":0},{"$f":"SUM(H107:H108)","v":0},0,{"$f":"SUM(J107:J108)","v":0},{"$f":"SUM(K107:K108)","v":0},{"$f":"SUM(L107:L108)","v":0},{"$f":"SUM(M107:M108)","v":0},0,{"$f":"SUM(O107:O108)","v":0},{"$f":"SUM(P107:P108)","v":0},{"$f":"SUM(Q107:Q108)","v":0},{"$f":"SUM(R107:R108)","v":0},null,null,{"$f":"Раздел2!F106","v":0},{"$f":"Раздел2!H106","v":0},{"$f":"Раздел2!I106","v":0},{"$f":"Раздел2!J106","v":0},{"$f":"Раздел2!K106","v":0}]
[null,"в том числе:\nПрыжки в воду",100,0,null,null,null,null,0,null,null,null,null,0,null,null,null,null,null,null,{"$f":"Раздел2!F107","v":0},{"$f":"Раздел2!H107","v":0},{"$f":"Раздел2!I107","v":0},{"$f":"Раздел2!J107","v":0},{"$f":"Раздел2!K107","v":0}]
[null,"Прыжки в открытый водоем",101,0,null,null,null,null,0,null,null,null,null,0,null,null,null,null,null,null,{"$f":"Раздел2!F108","v":0},{"$f":"Раздел2!H108","v":0},{"$f":"Раздел2!I108","v":0},{"$f":"Раздел2!J108","v":0},{"$f":"Раздел2!K108","v":0}]
[null,"Прыжки на батуте",102,0,null,null,null,null,0,null,null,null,null,0,null,null,null,null,null,null,{"$f":"Раздел2!F109","v":0},{"$f":"Раздел2!H109","v":0},{"$f":"Раздел2!I109","v":0},{"$f":"Раздел2!J109","v":0},{"$f":"Раздел2!K109","v":0}]
[null,"Прыжки на лыжах с трамплина",103,0,null,null,null,null,0,null,null,null,null,0,null,null,null,null,null,null,{"$f":"Раздел2!F110","v":0},{"$f":"Раздел2!H110","v":0},{"$f":"Раздел2!I110","v":0},{"$f":"Раздел2!J110","v":0},{"$f":"Раздел2!K110","v":0}]
[null,"Пулевая стрельба - всего",104,0,{"$f":"SUM(E112:E116)","v":0},{"$f":"SUM(F112:F116)","v":0},{"$f":"SUM(G112:G116)","v":0},{"$f":"SUM(H112:H116)","v":0},0,{"$f":"SUM(J112:J116)","v":0},{"$f":"SUM(K112:K116)","v":0},{"$f":"SUM(L112:L116)","v":0},{"$f":"SUM(M112:M116)","v":0},0,{"$f":"SUM(O112:O116)","v":0},{"$f":"SUM(P112:P116)","v":0},{"$f":"SUM(Q112:Q116)","v":0},{"$f":"SUM(R112:R116)","v":0},null,null,{"$f":"Раздел2!F111","v":0},{"$f":"Раздел2!H111","v":0},{"$f":"Раздел2!I111","v":0},{"$f":"Раздел2!J111","v":0},{"$f":"Раздел2!K111","v":0}]
[null,"в том числе:\nПневматическая винтовка",105,0,null,null,null,null,0,null,null,null,null,0,null,null,null,null,null,null,{"$f":"Раздел2!F112","v":0},{"$f":"Раздел2!H112","v":0},{"$f":"Раздел2!I112","v":0},{"$f":"Раздел2!J112","v":0},{"$f":"Раздел2!K112","v":0}]
[null,"Пневматический пистолет",106,0,null,null,null,null,0,null,null,null,null,0,null,null,null,null,null,null,{"$f":"Раздел2!F113","v":0},{"$f":"Раздел2!H113","v":0},{"$f":"Раздел2!I113","v":0},{"$f":"Раздел2!J113","v":0},{"$f":"Раздел2!K113","v":0}]
[null,"Малокалиберная винтоква",107,0,null,null,null,null,0,null,null,null,null,0,null,null,null,null,null,null,{"$f":"Раздел2!F114","v":0},{"$f":"Раздел2!H114","v":0},{"$f":"Раздел2!I114","v":0},{"$f":"Раздел2!J114","v":0},{"$f":"Раздел2!K114","v":0}]
[null,"Малокалиберный пистолет",108,0,null,null,null,null,0,null,null,null,null,0,null,null,null,null,null,null,{"$f":"Раздел2!F115","v":0},{"$f":"Раздел2!H115","v":0},{"$f":"Раздел2!I115","v":0},{"$f":"Раздел2!J115","v":0},{"$f":"Раздел2!K115","v":0}]
[null,"Движущаяся мишень",109,0,null,null,null,null,0,null,null,null,null,0,null,null,null,null,null,null,{"$f":"Раздел2!F116","v":0},{"$f":"Раздел2!H116","v":0},{"$f":"Раздел2!I116","v":0},{"$f":"Раздел2!J116","v":0},{"$f":"Раздел2!K116","v":0}]
[null,"Пэйнтбол",110,0,null,null,null,null,0,null,null,null,null,0,null,null,null,null,null,null,{"$f":"Раздел2!F117","v":0},{"$f":"Раздел2!H117","v":0},{"$f":"Раздел2!I117","v":0},{"$f":"Раздел2!J117","v":0},{"$f":"Раздел2!K117","v":0}]
[null,"Радиоспорт",111,0,null,null,null,null,0,null,null,null,null,0,null,null,null,null,null,null,{"$f":"Раздел2!F118","v":0},{"$f":"Раздел2!H118","v":0},{"$f":"Раздел2!I118","v":0},{"$f":"Раздел2!J118","v":0},{"$f":"Раздел2!K118","v":0}]
[null,"Рафтинг",112,0,null,null,null,null,0,null,null,null,null,0,null,null,null,null,null,null,{"$f":"Раздел2!F119","v":0},{"$f":"Раздел2!H119","v":0},{"$f":"Раздел2!I119","v":0},{"$f":"Раздел2!J119","v":0},{"$f":"Раздел2!K119","v":0}]
[null,"Регби - всего",113,0,{"$f":"SUM(E121:E124)","v":0},{"$f":"SUM(F121:F124)","v":0},{"$f":"SUM(G121:G124)","v":0},{"$f":"SUM(H121:H124)","v":0},0,{"$f":"SUM(J121:J124)","v":0},{"$f":"SUM(K121:K124)","v":0},{"$f":"SUM(L121:L124)","v":0},{"$f":"SUM(M121:M124)","v":0},0,{"$f":"SUM(O121:O124)","v":0},{"$f":"SUM(P121:P124)","v":0},{"$f":"SUM(Q121:Q124)","v":0},{"$f":"SUM(R121:R124)","v":0},null,null,{"$f":"Раздел2!F120","v":0},{"$f":"Раздел2!H120","v":0},{"$f":"Раздел2!I120","v":0},{"$f":"Раздел2!J120","v":0},{"$f":"Раздел2!K120","v":0}]
[null,"в том числе:\nРегби",114,0,null,null,null,null,0,null,null,null,null,0,null,null,null,null,null,null,{"$f":"Раздел2!F121","v":0},{"$f":"Раздел2!H121","v":0},{"$f":"Раздел2!I121","v":0},{"$f":"Раздел2!J121","v":0},{"$f":"Раздел2!K121","v":0}]
[null,"Регби 7 (муж.)",115,0,null,null,null,null,0,null,null,null,null,0,null,null,null,null,null,null,{"$f":"Раздел2!F122","v":0},{"$f":"Раздел2!H122","v":0},{"$f":"Раздел2!I122","v":0},{"$f":"Раздел2!J122","v":0},{"$f":"Раздел2!K122","v":0}]
[null,"Регби 7 (жен.)",116,0,null,null,null,null,0,null,null,null,null,0,null,null,null,null,null,null,{"$f":"Раздел2!F123","v":0},{"$f":"Раздел2!H123","v":0},{"$f":"Раздел2!I123","v":0},{"$f":"Раздел2!J123","v":0},{"$f":"Раздел2!K123","v":0}]
[null,"Пляжный регби",117,0,null,null,null,null,0,null,null,null,null,0,null,null,null,null,null,null,{"$f":"Раздел2!F124","v":0},{"$f":"Раздел2!H124","v":0},{"$f":"Раздел2!I124","v":0},{"$f":"Раздел2!J124","v":0},{"$f":"Раздел2!K124","v":0}]
[null,"Рукопашный бой",118,0,null,null,null,null,0,null,null,null,null,0,null,null,null,null,null,null,{"$f":"Раздел2!F125","v":0},{"$f":"Раздел2!H125","v":0},{"$f":"Раздел2!I125","v":0},{"$f":"Раздел2!J125","v":0},{"$f":"Раздел2!K125","v":0}]
[null,"Рыболовный спорт",119,0,null,null,null,null,0,null,null,null,null,0,null,null,null,null,null,null,{"$f":"Раздел2!F126","v":0},{"$f":"Раздел2!H126","v":0},{"$f":"Раздел2!I126","v":0},{"$f":"Раздел2!J126","v":0},{"$f":"Раздел2!K126","v":0}]
[null,"Сават",120,0,null,null,null,null,0,null,null,null,null,0,null,null,null,null,null,null,{"$f":"Раздел2!F127","v":0},{"$f":"Раздел2!H127","v":0},{"$f":"Раздел2!I127","v":0},{"$f":"Раздел2!J127","v":0},{"$f":"Раздел2!K127","v":0}]
[null,"Самбо",121,0,null,null,null,null,0,null,null,null,null,0,null,null,null,null,null,null,{"$f":"Раздел2!F128","v":0},{"$f":"Раздел2!H128","v":0},{"$f":"Раздел2!I128","v":0},{"$f":"Раздел2!J128","v":0},{"$f":"Раздел2!K128","v":0}]
[null,"Самолетный спорт",122,0,null,null,null,null,0,null,null,null,null,0,null,null,null,null,null,null,{"$f":"Раздел2!F129","v":0},{"$f":"Раздел2!H129","v":0},{"$f":"Раздел2!I129","v":0},{"$f":"Раздел2!J129","v":0},{"$f":"Раздел2!K129","v":0}]
[null,"Санный спорт",123,0,null,null,null,null,0,null,null,null,null,0,null,null,null,null,null,null,{"$f":"Раздел2!F130","v":0},{"$f":"Раздел2!H130","v":0},{"$f":"Раздел2!I130","v":0},{"$f":"Раздел2!J130","v":0},{"$f":"Раздел2!K130","v":0}]
[null,"Северное многоборье",124,0,null,null,null,null,0,null,null,null,null,0,null,null,null,null,null,null,{"$f":"Раздел2!F131","v":0},{"$f":"Раздел2!H131","v":0},{"$f":"Раздел2!I131","v":0},{"$f":"Раздел2!J131","v":0},{"$f":"Раздел2!K131","v":0}]
[null,"Синхронное плавание",125,0,null,null,null,null,0,null,null,null,null,0,null,null,null,null,null,null,{"$f":"Раздел2!F132","v":0},{"$f":"Раздел2!H132","v":0},{"$f":"Раздел2!I132","v":0},{"$f":"Раздел2!J132","v":0},{"$f":"Раздел2!K132","v":0}]
[null,"Скалолазание",126,0,null,null,null,null,0,null,null,null,null,0,null,null,null,null,null,null,{"$f":"Раздел2!F133","v":0},{"$f":"Раздел2!H133","v":0},{"$f":"Раздел2!I133","v":0},{"$f":"Раздел2!J133","v":0},{"$f":"Раздел2!K133","v":0}]
[null,"Сквош",127,0,null,null,null,null,0,null,null,null,null,0,null,null,null,null,null,null,{"$f":"Раздел2!F134","v":0},{"$f":"Раздел2!H134","v":0},{"$f":"Раздел2!I134","v":0},{"$f":"Раздел2!J134","v":0},{"$f":"Раздел2!K134","v":0}]
[null,"Смешанное боевое единоборство (ММА)",128,0,null,null,null,null,0,null,null,null,null,0,null,null,null,null,null,null,{"$f":"Раздел2!F135","v":0},{"$f":"Раздел2!H135","v":0},{"$f":"Раздел2!I135","v":0},{"$f":"Раздел2!J135","v":0},{"$f":"Раздел2!K135","v":0}]
[null,"Сноуборд",129,0,null,null,null,null,0,null,null,null,null,0,null,null,null,null,null,null,{"$f":"Раздел2!F136","v":0},{"$f":"Раздел2!H136","v":0},{"$f":"Раздел2!I136","v":0},{"$f":"Раздел2!J136","v":0},{"$f":"Раздел2!K136","v":0}]
[null,"Современное пятиборье",130,{"$f":"SUM(E137:H137)","v":0},null,null,null,null,{"$f":"SUM(J137:M137)","v":0},null,null,null,null,{"$f":"SUM(O137:R137)","v":0},null,null,null,null,null,null,{"$f":"Раздел2!F137","v":0},{"$f":"Раздел2!H137","v":0},{"$f":"Раздел2!I137","v":0},{"$f":"Раздел2!J137","v":0},{"$f":"Раздел2!K137","v":0}]
[null,"Софтбол",131,0,null,null,null,null,0,null,null,null,null,0,null,null,null,null,null,null,{"$f":"Раздел2!F138","v":0},{"$f":"Раздел2!H138","v":0},{"$f":"Раздел2!I138","v":0},{"$f":"Раздел2!J138","v":0},{"$f":"Раздел2!K138","v":0}]
[null,"Спорт сверхлегкой авиации",132,0,null,null,null,null,0,null,null,null,null,0,null,null,null,null,null,null,{"$f":"Раздел2!F139","v":0},{"$f":"Раздел2!H139","v":0},{"$f":"Раздел2!I139","v":0},{"$f":"Раздел2!J139","v":0},{"$f":"Раздел2!K139","v":0}]
[null,"Спортивная акробатика",133,0,null,null,null,null,0,null,null,null,null,0,null,null,null,null,null,null,{"$f":"Раздел2!F140","v":0},{"$f":"Раздел2!H140","v":0},{"$f":"Раздел2!I140","v":0},{"$f":"Раздел2!J140","v":0},{"$f":"Раздел2!K140","v":0}]
[null,"Спортивная аэробика",134,0,null,null,null,null,0,null,null,null,null,0,null,null,null,null,null,null,{"$f":"Раздел2!F141","v":0},{"$f":"Раздел2!H141","v":0},{"$f":"Раздел2!I141","v":0},{"$f":"Раздел2!J141","v":0},{"$f":"Раздел2!K141","v":0}]
[null,"Спортивная борьба - всего",135,0,{"$f":"SUM(E143:E147)","v":0},{"$f":"SUM(F143:F147)","v":0},{"$f":"SUM(G143:G147)","v":0},{"$f":"SUM(H143:H147)","v":0},0,{"$f":"SUM(J143:J147)","v":0},{"$f":"SUM(K143:K147)","v":0},{"$f":"SUM(L143:L147)","v":0},{"$f":"SUM(M143:M147)","v":0},0,{"$f":"SUM(O143:O147)","v":0},{"$f":"SUM(P143:P147)","v":0},{"$f":"SUM(Q143:Q147)","v":0},{"$f":"SUM(R143:R147)","v":0},null,null,{"$f":"Раздел2!F142","v":0},{"$f":"Раздел2!H142","v":0},{"$f":"Раздел2!I142","v":0},{"$f":"Раздел2!J142","v":0},{"$f":"Раздел2!K142","v":0}]
[null,"в том числе:\nВольная борьба",136,0,null,null,null,null,0,null,null,null,null,0,null,null,null,null,null,null,{"$f":"Раздел2!F143","v":0},{"$f":"Раздел2!H143","v":0},{"$f":"Раздел2!I143","v":0},{"$f":"Раздел2!J143","v":0},{"$f":"Раздел2!K143","v":0}]
[null,"Греко-римская борьба",137,0,null,null,null,null,0,null,null,null,null,0,null,null,null,null,null,null,{"$f":"Раздел2!F144","v":0},{"$f":"Раздел2!H144","v":0},{"$f":"Раздел2!I144","v":0},{"$f":"Раздел2!J144","v":0},{"$f":"Раздел2!K144","v":0}]
[null,"Грэпплинг",138,0,null,null,null,null,0,null,null,null,null,0,null,null,null,null,null,null,{"$f":"Раздел2!F145","v":0},{"$f":"Раздел2!H145","v":0},{"$f":"Раздел2!I145","v":0},{"$f":"Раздел2!J145","v":0},{"$f":"Раздел2!K145","v":0}]
[null,"Грэпплинг-ги",139,0,null,null,null,null,0,null,null,null,null,0,null,null,null,null,null,null,{"$f":"Раздел2!F146","v":0},{"$f":"Раздел2!H146","v":0},{"$f":"Раздел2!I146","v":0},{"$f":"Раздел2!J146","v":0},{"$f":"Раздел2!K146","v":0}]
[null,"Панкратион",140,0,null,null,null,null,0,null,null,null,null,0,null,null,null,null,null,null,{"$f":"Раздел2!F147","v":0},{"$f":"Раздел2!H147","v":0},{"$f":"Раздел2!I147","v":0},{"$f":"Раздел2!J147","v":0},{"$f":"Раздел2!K147","v":0}]
[null,"Спортивно-прикладное собаководство",141,0,null,null,null,null,0,null,null,null,null,0,null,null,null,null,null,null,{"$f":"Раздел2!F148","v":0},{"$f":"Раздел2!H148","v":0},{"$f":"Раздел2!I148","v":0},{"$f":"Раздел2!J148","v":0},{"$f":"Раздел2!K148","v":0}]
[null,"Спортивная гимнастика",142,0,null,null,null,null,0,null,null,null,null,0,null,null,null,null,null,null,{"$f":"Раздел2!F149","v":0},{"$f":"Раздел2!H149","v":0},{"$f":"Раздел2!I149","v":0},{"$f":"Раздел2!J149","v":0},{"$f":"Раздел2!K149","v":0}]
[null,"Спортивное ориентирование",143,0,null,null,null,null,0,null,null,null,null,0,null,null,null,null,null,null,{"$f":"Раздел2!F150","v":0},{"$f":"Раздел2!H150","v":0},{"$f":"Раздел2!I150","v":0},{"$f":"Раздел2!J150","v":0},{"$f":"Раздел2!K150","v":0}]
[null,"Спортивный бридж",144,0,null,null,null,null,0,null,null,null,null,0,null,null,null,null,null,null,{"$f":"Раздел2!F151","v":0},{"$f":"Раздел2!H151","v":0},{"$f":"Раздел2!I151","v":0},{"$f":"Раздел2!J151","v":0},{"$f":"Раздел2!K151","v":0}]
[null,"Спортивный туризм",145,0,null,null,null,null,0,null,null,null,null,0,null,null,null,null,null,null,{"$f":"Раздел2!F152","v":0},{"$f":"Раздел2!H152","v":0},{"$f":"Раздел2!I152","v":0},{"$f":"Раздел2!J152","v":0},{"$f":"Раздел2!K152","v":0}]
[null,"Стендовая стрельба - всего",146,0,{"$f":"SUM(E154:E157)","v":0},{"$f":"SUM(F154:F157)","v":0},{"$f":"SUM(G154:G157)","v":0},{"$f":"SUM(H154:H157)","v":0},0,{"$f":"SUM(J154:J157)","v":0},{"$f":"SUM(K154:K157)","v":0},{"$f":"SUM(L154:L157)","v":0},{"$f":"SUM(M154:M157)","v":0},0,{"$f":"SUM(O154:O157)","v":0},{"$f":"SUM(P154:P157)","v":0},{"$f":"SUM(Q154:Q157)","v":0},{"$f":"SUM(R154:R157)","v":0},null,null,{"$f":"Раздел2!F153","v":0},{"$f":"Раздел2!H153","v":0},{"$f":"Раздел2!I153","v":0},{"$f":"Раздел2!J153","v":0},{"$f":"Раздел2!K153","v":0}]
[null,"в том числе:\nТрап",147,0,null,null,null,null,0,null,null,null,null,0,null,null,null,null,null,null,{"$f":"Раздел2!F154","v":0},{"$f":"Раздел2!H154","v":0},{"$f":"Раздел2!I154","v":0},{"$f":"Раздел2!J154","v":0},{"$f":"Раздел2!K154","v":0}]
[null,"Скит",148,0,null,null,null,null,0,null,null,null,null,0,null,null,null,null,null,null,{"$f":"Раздел2!F155","v":0},{"$f":"Раздел2!H155","v":0},{"$f":"Раздел2!I155","v":0},{"$f":"Раздел2!J155","v":0},{"$f":"Раздел2!K155","v":0}]
[null,"Дубль-трап",149,0,null,null,null,null,0,null,null,null,null,0,null,null,null,null,null,null,{"$f":"Раздел2!F156","v":0},{"$f":"Раздел2!H156","v":0},{"$f":"Раздел2!I156","v":0},{"$f":"Раздел2!J156","v":0},{"$f":"Раздел2!K156","v":0}]
[null,"Спортинг",150,0,null,null,null,null,0,null,null,null,null,0,null,null,null,null,null,null,{"$f":"Раздел2!F157","v":0},{"$f":"Раздел2!H157","v":0},{"$f":"Раздел2!I157","v":0},{"$f":"Раздел2!J157","v":0},{"$f":"Раздел2!K157","v":0}]
[null,"Стрельба из арбалета",151,0,null,null,null,null,0,null,null,null,null,0,null,null,null,null,null,null,{"$f":"Раздел2!F158","v":0},{"$f":"Раздел2!H158","v":0},{"$f":"Раздел2!I158","v":0},{"$f":"Раздел2!J158","v":0},{"$f":"Раздел2!K158","v":0}]
[null,"Стрельба из лука - всего",152,0,{"$f":"SUM(E160:E162)","v":0},{"$f":"SUM(F160:F162)","v":0},{"$f":"SUM(G160:G162)","v":0},{"$f":"SUM(H160:H162)","v":0},0,{"$f":"SUM(J160:J162)","v":0},{"$f":"SUM(K160:K162)","v":0},{"$f":"SUM(L160:L162)","v":0},{"$f":"SUM(M160:M162)","v":0},0,{"$f":"SUM(O160:O162)","v":0},{"$f":"SUM(P160:P162)","v":0},{"$f":"SUM(Q160:Q162)","v":0},{"$f":"SUM(R160:R162)","v":0},null,null,{"$f":"Раздел2!F159","v":0},{"$f":"Раздел2!H159","v":0},{"$f":"Раздел2!I159","v":0},{"$f":"Раздел2!J159","v":0},{"$f":"Раздел2!K159","v":0}]
[null,"в том числе:\nКлассический лук",153,0,null,null,null,null,0,null,null,null,null,0,null,null,null,null,null,null,{"$f":"Раздел2!F160","v":0},{"$f":"Раздел2!H160","v":0},{"$f":"Раздел2!I160","v":0},{"$f":"Раздел2!J160","v":0},{"$f":"Раздел2!K160","v":0}]
[null,"   Блочный лук",154,0,null,null,null,null,0,null,null,null,null,0,null,null,null,null,null,null,{"$f":"Раздел2!F161","v":0},{"$f":"Раздел2!H161","v":0},{"$f":"Раздел2!I161","v":0},{"$f":"Раздел2!J161","v":0},{"$f":"Раздел2!K161","v":0}]
[null,"   Ачери ",155,0,null,null,null,null,0,null,null,null,null,0,null,null,null,null,null,null,{"$f":"Раздел2!F162","v":0},{"$f":"Раздел2!H162","v":0},{"$f":"Раздел2!I162","v":0},{"$f":"Раздел2!J162","v":0},{"$f":"Раздел2!K162","v":0}]
[null,"Судомодельный спорт",156,0,null,null,null,null,0,null,null,null,null,0,null,null,null,null,null,null,{"$f":"Раздел2!F163","v":0},{"$f":"Раздел2!H163","v":0},{"$f":"Раздел2!I163","v":0},{"$f":"Раздел2!J163","v":0},{"$f":"Раздел2!K163","v":0}]
[null,"Сумо",157,0,null,null,null,null,0,null,null,null,null,0,null,null,null,null,null,null,{"$f":"Раздел2!F164","v":0},{"$f":"Раздел2!H164","v":0},{"$f":"Раздел2!I164","v":0},{"$f":"Раздел2!J164","v":0},{"$f":"Раздел2!K164","v":0}]
[null,"Тайский бокс",158,0,null,null,null,null,0,null,null,null,null,0,null,null,null,null,null,null,{"$f":"Раздел2!F165","v":0},{"$f":"Раздел2!H165","v":0},{"$f":"Раздел2!I165","v":0},{"$f":"Раздел2!J165","v":0},{"$f":"Раздел2!K165","v":0}]
[null,"Танцевальный спорт",159,0,null,null,null,null,0,null,null,null,null,0,null,null,null,null,null,null,{"$f":"Раздел2!F166","v":0},{"$f":"Раздел2!H166","v":0},{"$f":"Раздел2!I166","v":0},{"$f":"Раздел2!J166","v":0},{"$f":"Раздел2!K166","v":0}]
[null,"Теннис",160,0,null,null,null,null,0,null,null,null,null,0,null,null,null,null,null,null,{"$f":"Раздел2!F167","v":0},{"$f":"Раздел2!H167","v":0},{"$f":"Раздел2!I167","v":0},{"$f":"Раздел2!J167","v":0},{"$f":"Раздел2!K167","v":0}]
[null,"Триатлон",161,0,null,null,null,null,0,null,null,null,null,0,null,null,null,null,null,null,{"$f":"Раздел2!F168","v":0},{"$f":"Раздел2!H168","v":0},{"$f":"Раздел2!I168","v":0},{"$f":"Раздел2!J168","v":0},{"$f":"Раздел2!K168","v":0}]
[null,"Тхэквондо - всего",162,0,{"$f":"SUM(E170:E171)","v":0},{"$f":"SUM(F170:F171)","v":0},{"$f":"SUM(G170:G171)","v":0},{"$f":"SUM(H170:H171)","v":0},0,{"$f":"SUM(J170:J171)","v":0},{"$f":"SUM(K170:K171)","v":0},{"$f":"SUM(L170:L171)","v":0},{"$f":"SUM(M170:M171)","v":0},0,{"$f":"SUM(O170:O171)","v":0},{"$f":"SUM(P170:P171)","v":0},{"$f":"SUM(Q170:Q171)","v":0},{"$f":"SUM(R170:R171)","v":0},null,null,{"$f":"Раздел2!F169","v":0},{"$f":"Раздел2!H169","v":0},{"$f":"Раздел2!I169","v":0},{"$f":"Раздел2!J169","v":0},{"$f":"Раздел2!K169","v":0}]
[null,"в том числе:\nТхэквондо (ГТФ, ИТФ, МФТ)",163,0,null,null,null,null,0,null,null,null,null,0,null,null,null,null,null,null,{"$f":"Раздел2!F170","v":0},{"$f":"Раздел2!H170","v":0},{"$f":"Раздел2!I170","v":0},{"$f":"Раздел2!J170","v":0},{"$f":"Раздел2!K170","v":0}]
[null,"Тхэквондо (ВТФ)",164,0,null,null,null,null,0,null,null,null,null,0,null,null,null,null,null,null,{"$f":"Раздел2!F171","v":0},{"$f":"Раздел2!H171","v":0},{"$f":"Раздел2!I171","v":0},{"$f":"Раздел2!J171","v":0},{"$f":"Раздел2!K171","v":0}]
[null,"Тяжелая атлетика",165,0,null,null,null,null,0,null,null,null,null,0,null,null,null,null,null,null,{"$f":"Раздел2!F172","v":0},{"$f":"Раздел2!H172","v":0},{"$f":"Раздел2!I172","v":0},{"$f":"Раздел2!J172","v":0},{"$f":"Раздел2!K172","v":0}]
[null,"Универсальный бой",166,0,null,null,null,null,0,null,null,null,null,0,null,null,null,null,null,null,{"$f":"Раздел2!F173","v":0},{"$f":"Раздел2!H173","v":0},{"$f":"Раздел2!I173","v":0},{"$f":"Раздел2!J173","v":0},{"$f":"Раздел2!K173","v":0}]
[null,"Ушу",167,0,null,null,null,null,0,null,null,null,null,0,null,null,null,null,null,null,{"$f":"Раздел2!F174","v":0},{"$f":"Раздел2!H174","v":0},{"$f":"Раздел2!I174","v":0},{"$f":"Раздел2!J174","v":0},{"$f":"Раздел2!K174","v":0}]
[null,"Фехтование - всего",168,0,{"$f":"SUM(E176:E179)","v":0},{"$f":"SUM(F176:F179)","v":0},{"$f":"SUM(G176:G179)","v":0},{"$f":"SUM(H176:H179)","v":0},0,{"$f":"SUM(J176:J179)","v":0},{"$f":"SUM(K176:K179)","v":0},{"$f":"SUM(L176:L179)","v":0},{"$f":"SUM(M176:M179)","v":0},0,{"$f":"SUM(O176:O179)","v":0},{"$f":"SUM(P176:P179)","v":0},{"$f":"SUM(Q176:Q179)","v":0},{"$f":"SUM(R176:R179)","v":0},null,null,{"$f":"Раздел2!F175","v":0},{"$f":"Раздел2!H175","v":0},{"$f":"Раздел2!I175","v":0},{"$f":"Раздел2!J175","v":0},{"$f":"Раздел2!K175","v":0}]
[null,"в том числе:\nРапира",169,0,null,null,null,null,0,null,null,null,null,0,null,null,null,null,null,null,{"$f":"Раздел2!F176","v":0},{"$f":"Раздел2!H176","v":0},{"$f":"Раздел2!I176","v":0},{"$f":"Раздел2!J176","v":0},{"$f":"Раздел2!K176","v":0}]
[null,"Сабля",170,0,null,null,null,null,0,null,null,null,null,0,null,null,null,null,null,null,{"$f":"Раздел2!F177","v":0},{"$f":"Раздел2!H177","v":0},{"$f":"Раздел2!I177","v":0},{"$f":"Раздел2!J177","v":0},{"$f":"Раздел2!K177","v":0}]
[null,"Шпага",171,0,null,null,null,null,0,null,null,null,null,0,null,null,null,null,null,null,{"$f":"Раздел2!F178","v":0},{"$f":"Раздел2!H178","v":0},{"$f":"Раздел2!I178","v":0},{"$f":"Раздел2!J178","v":0},{"$f":"Раздел2!K178","v":0}]
[null,"Арт-фехтование",172,0,null,null,null,null,0,null,null,null,null,0,null,null,null,null,null,null,{"$f":"Раздел2!F179","v":0},{"$f":"Раздел2!H179","v":0},{"$f":"Раздел2!I179","v":0},{"$f":"Раздел2!J179","v":0},{"$f":"Раздел2!K179","v":0}]
[null,"Фигурное катание на коньках",173,0,null,null,null,null,0,null,null,null,null,0,null,null,null,null,null,null,{"$f":"Раздел2!F180","v":0},{"$f":"Раздел2!H180","v":0},{"$f":"Раздел2!I180","v":0},{"$f":"Раздел2!J180","v":0},{"$f":"Раздел2!K180","v":0}]
[null,"Флорбол",174,0,null,null,null,null,0,null,null,null,null,0,null,null,null,null,null,null,{"$f":"Раздел2!F181","v":0},{"$f":"Раздел2!H181","v":0},{"$f":"Раздел2!I181","v":0},{"$f":"Раздел2!J181","v":0},{"$f":"Раздел2!K181","v":0}]
[null,"Фристайл - всего",175,0,{"$f":"SUM(E183:E187)","v":0},{"$f":"SUM(F183:F187)","v":0},{"$f":"SUM(G183:G187)","v":0},{"$f":"SUM(H183:H187)","v":0},0,{"$f":"SUM(J183:J187)","v":0},{"$f":"SUM(K183:K187)","v":0},{"$f":"SUM(L183:L187)","v":0},{"$f":"SUM(M183:M187)","v":0},0,{"$f":"SUM(O183:O187)","v":0},{"$f":"SUM(P183:P187)","v":0},{"$f":"SUM(Q183:Q187)","v":0},{"$f":"SUM(R183:R187)","v":0},null,null,{"$f":"Раздел2!F182","v":0},{"$f":"Раздел2!H182","v":0},{"$f":"Раздел2!I182","v":0},{"$f":"Раздел2!J182","v":0},{"$f":"Раздел2!K182","v":0}]
[null,"в том числе:\nАкробатика",176,0,null,null,null,null,0,null,null,null,null,0,null,null,null,null,null,null,{"$f":"Раздел2!F183","v":0},{"$f":"Раздел2!H183","v":0},{"$f":"Раздел2!I183","v":0},{"$f":"Раздел2!J183","v":0},{"$f":"Раздел2!K183","v":0}]
[null,"Могул",177,0,null,null,null,null,0,null,null,null,null,0,null,null,null,null,null,null,{"$f":"Раздел2!F184","v":0},{"$f":"Раздел2!H184","v":0},{"$f":"Раздел2!I184","v":0},{"$f":"Раздел2!J184","v":0},{"$f":"Раздел2!K184","v":0}]
[null,"Ски-кросс",178,0,null,null,null,null,0,null,null,null,null,0,null,null,null,null,null,null,{"$f":"Раздел2!F185","v":0},{"$f":"Раздел2!H185","v":0},{"$f":"Раздел2!I185","v":0},{"$f":"Раздел2!J185","v":0},{"$f":"Раздел2!K185","v":0}]
[null,"Хаф-пайп",179,0,null,null,null,null,0,null,null,null,null,0,null,null,null,null,null,null,{"$f":"Раздел2!F186","v":0},{"$f":"Раздел2!H186","v":0},{"$f":"Раздел2!I186","v":0},{"$f":"Раздел2!J186","v":0},{"$f":"Раздел2!K186","v":0}]
[null,"Слоуп-стайл",180,0,null,null,null,null,0,null,null,null,null,0,null,null,null,null,null,null,{"$f":"Раздел2!F187","v":0},{"$f":"Раздел2!H187","v":0},{"$f":"Раздел2!I187","v":0},{"$f":"Раздел2!J187","v":0},{"$f":"Раздел2!K187","v":0}]
[null,"Футбол - всего",181,0,{"$f":"SUM(E189:E192)","v":0},{"$f":"SUM(F189:F192)","v":0},{"$f":"SUM(G189:G192)","v":0},{"$f":"SUM(H189:H192)","v":0},0,{"$f":"SUM(J189:J192)","v":0},{"$f":"SUM(K189:K192)","v":0},{"$f":"SUM(L189:L192)","v":0},{"$f":"SUM(M189:M192)","v":0},0,{"$f":"SUM(O189:O192)","v":0},{"$f":"SUM(P189:P192)","v":0},{"$f":"SUM(Q189:Q192)","v":0},{"$f":"SUM(R189:R192)","v":0},null,null,{"$f":"Раздел2!F188","v":0},{"$f":"Раздел2!H188","v":0},{"$f":"Раздел2!I188","v":0},{"$f":"Раздел2!J188","v":0},{"$f":"Раздел2!K188","v":0}]
[null,"в том числе:\nФутбол (муж.)",182,0,null,null,null,null,0,null,null,null,null,0,null,null,null,null,null,null,{"$f":"Раздел2!F189","v":0},{"$f":"Раздел2!H189","v":0},{"$f":"Раздел2!I189","v":0},{"$f":"Раздел2!J189","v":0},{"$f":"Раздел2!K189","v":0}]
[null,"Футбол (жен.)",183,0,null,null,null,null,0,null,null,null,null,0,null,null,null,null,null,null,{"$f":"Раздел2!F190","v":0},{"$f":"Раздел2!H190","v":0},{"$f":"Раздел2!I190","v":0},{"$f":"Раздел2!J190","v":0},{"$f":"Раздел2!K190","v":0}]
[null,"Мини-футбол (футзал)",184,0,null,null,null,null,0,null,null,null,null,0,null,null,null,null,null,null,{"$f":"Раздел2!F191","v":0},{"$f":"Раздел2!H191","v":0},{"$f":"Раздел2!I191","v":0},{"$f":"Раздел2!J191","v":0},{"$f":"Раздел2!K191","v":0}]
[null,"Пляжный футбол",185,0,null,null,null,null,0,null,null,null,null,0,null,null,null,null,null,null,{"$f":"Раздел2!F192","v":0},{"$f":"Раздел2!H192","v":0},{"$f":"Раздел2!I192","v":0},{"$f":"Раздел2!J192","v":0},{"$f":"Раздел2!K192","v":0}]
[null,"Хапсагай",186,0,null,null,null,null,0,null,null,null,null,0,null,null,null,null,null,null,{"$f":"Раздел2!F193","v":0},{"$f":"Раздел2!H193","v":0},{"$f":"Раздел2!I193","v":0},{"$f":"Раздел2!J193","v":0},{"$f":"Раздел2!K193","v":0}]
[null,"Хоккей - всего",187,0,{"$f":"SUM(E195:E196)","v":0},{"$f":"SUM(F195:F196)","v":0},{"$f":"SUM(G195:G196)","v":0},{"$f":"SUM(H195:H196)","v":0},0,{"$f":"SUM(J195:J196)","v":0},{"$f":"SUM(K195:K196)","v":0},{"$f":"SUM(L195:L196)","v":0},{"$f":"SUM(M195:M196)","v":0},0,{"$f":"SUM(O195:O196)","v":0},{"$f":"SUM(P195:P196)","v":0},{"$f":"SUM(Q195:Q196)","v":0},{"$f":"SUM(R195:R196)","v":0},null,null,{"$f":"Раздел2!F194","v":0},{"$f":"Раздел2!H194","v":0},{"$f":"Раздел2!I194","v":0},{"$f":"Раздел2!J194","v":0},{"$f":"Раздел2!K194","v":0}]
[null,"в том числе:\nХоккей (муж.)",188,0,null,null,null,null,0,null,null,null,null,0,null,null,null,null,null,null,{"$f":"Раздел2!F195","v":0},{"$f":"Раздел2!H195","v":0},{"$f":"Раздел2!I195","v":0},{"$f":"Раздел2!J195","v":0},{"$f":"Раздел2!K195","v":0}]
[null,"Хоккей (жен.)",189,0,null,null,null,null,0,null,null,null,null,0,null,null,null,null,null,null,{"$f":"Раздел2!F196","v":0},{"$f":"Раздел2!H196","v":0},{"$f":"Раздел2!I196","v":0},{"$f":"Раздел2!J196","v":0},{"$f":"Раздел2!K196","v":0}]
[null,"Хоккей на траве",190,0,{"$f":"SUM(E198:E199)","v":0},{"$f":"SUM(F198:F199)","v":0},{"$f":"SUM(G198:G199)","v":0},{"$f":"SUM(H198:H199)","v":0},0,{"$f":"SUM(J198:J199)","v":0},{"$f":"SUM(K198:K199)","v":0},{"$f":"SUM(L198:L199)","v":0},{"$f":"SUM(M198:M199)","v":0},0,{"$f":"SUM(O198:O199)","v":0},{"$f":"SUM(P198:P199)","v":0},{"$f":"SUM(Q198:Q199)","v":0},{"$f":"SUM(R198:R199)","v":0},null,null,{"$f":"Раздел2!F197","v":0},{"$f":"Раздел2!H197","v":0},{"$f":"Раздел2!I197","v":0},{"$f":"Раздел2!J197","v":0},{"$f":"Раздел2!K197","v":0}]
[null,"Хоккей на траве (муж.)",191,0,null,null,null,null,0,null,null,null,null,0,null,null,null,null,null,null,{"$f":"Раздел2!F198","v":0},{"$f":"Раздел2!H198","v":0},{"$f":"Раздел2!I198","v":0},{"$f":"Раздел2!J198","v":0},{"$f":"Раздел2!K198","v":0}]
[null,"Хоккей на траве (жен.)",192,0,null,null,null,null,0,null,null,null,null,0,null,null,null,null,null,null,{"$f":"Раздел2!F199","v":0},{"$f":"Раздел2!H199","v":0},{"$f":"Раздел2!I199","v":0},{"$f":"Раздел2!J199","v":0},{"$f":"Раздел2!K199","v":0}]
[null,"Хоккей с мячом",193,0,null,null,null,null,0,null,null,null,null,0,null,null,null,null,null,null,{"$f":"Раздел2!F200","v":0},{"$f":"Раздел2!H200","v":0},{"$f":"Раздел2!I200","v":0},{"$f":"Раздел2!J200","v":0},{"$f":"Раздел2!K200","v":0}]
[null,"Художественная гимнастика",194,{"$f":"SUM(E201:H201)","v":0},null,null,null,null,{"$f":"SUM(J201:M201)","v":0},null,null,null,null,{"$f":"SUM(O201:R201)","v":0},null,null,null,null,null,null,{"$f":"Раздел2!F201","v":0},{"$f":"Раздел2!H201","v":0},{"$f":"Раздел2!I201","v":0},{"$f":"Раздел2!J201","v":0},{"$f":"Раздел2!K201","v":0}]
[null,"Черлидинг",195,0,null,null,null,null,0,null,null,null,null,0,null,null,null,null,null,null,{"$f":"Раздел2!F202","v":0},{"$f":"Раздел2!H202","v":0},{"$f":"Раздел2!I202","v":0},{"$f":"Раздел2!J202","v":0},{"$f":"Раздел2!K202","v":0}]
[null,"Чир спорт",196,0,null,null,null,null,0,null,null,null,null,0,null,null,null,null,null,null,{"$f":"Раздел2!F203","v":0},{"$f":"Раздел2!H203","v":0},{"$f":"Раздел2!I203","v":0},{"$f":"Раздел2!J203","v":0},{"$f":"Раздел2!K203","v":0}]
[null,"Шахматы",197,0,null,null,null,null,0,null,null,null,null,0,null,null,null,null,null,null,{"$f":"Раздел2!F204","v":0},{"$f":"Раздел2!H204","v":0},{"$f":"Раздел2!I204","v":0},{"$f":"Раздел2!J204","v":0},{"$f":"Раздел2!K204","v":0}]
[null,"Шашки",198,0,null,null,null,null,0,null,null,null,null,0,null,null,null,null,null,null,{"$f":"Раздел2!F205","v":0},{"$f":"Раздел2!H205","v":0},{"$f":"Раздел2!I205","v":0},{"$f":"Раздел2!J205","v":0},{"$f":"Раздел2!K205","v":0}]
[null,"Эстетическая гимнастика",199,0,null,null,null,null,0,null,null,null,null,0,null,null,null,null,null,null,{"$f":"Раздел2!F206","v":0},{"$f":"Раздел2!H206","v":0},{"$f":"Раздел2!I206","v":0},{"$f":"Раздел2!J206","v":0},{"$f":"Раздел2!K206","v":0}]
[null,"Якутские национальные прыжки",200,0,null,null,null,null,0,null,null,null,null,0,null,null,null,null,null,null,{"$f":"Раздел2!F207","v":0},{"$f":"Раздел2!H207","v":0},{"$f":"Раздел2!I207","v":0},{"$f":"Раздел2!J207","v":0},{"$f":"Раздел2!K207","v":0},null,null,null,null,"Частично перешли",{"$f":"SUM(Раздел2!H208:K208)","v":0}]
[null,"ИТОГО",201,0,{"$f":"SUM(E8:E15,E17:E21,E23:E28,E29:E34,E36:E39,E41:E46,E48:E56,E58:E65,E66:E68,E70:E74,E75,E77:E80,E82:E88,E89:E95,E96:E98,E100:E105,E107:E110,E112:E119,E121:E128,E129:E137,E138:E141,E143:E149,E150:E152,E154:E158,E160:E167,E168,E170:E174,E176:E181,E183:E187,E189:E193,E195:E196,E198:E207)","v":0},{"$f":"SUM(F8:F15,F17:F21,F23:F28,F29:F34,F36:F39,F41:F46,F48:F56,F58:F65,F66:F68,F70:F74,F75,F77:F80,F82:F88,F89:F95,F96:F98,F100:F105,F107:F110,F112:F119,F121:F128,F129:F137,F138:F141,F143:F149,F150:F152,F154:F158,F160:F167,F168,F170:F174,F176:F181,F183:F187,F189:F193,F195:F196,F198:F207)","v":0},{"$f":"SUM(G8:G15,G17:G21,G23:G28,G29:G34,G36:G39,G41:G46,G48:G56,G58:G65,G66:G68,G70:G74,G75,G77:G80,G82:G88,G89:G95,G96:G98,G100:G105,G107:G110,G112:G119,G121:G128,G129:G137,G138:G141,G143:G149,G150:G152,G154:G158,G160:G167,G168,G170:G174,G176:G181,G183:G187,G189:G193,G195:G196,G198:G207)","v":0},{"$f":"SUM(H8:H15,H17:H21,H23:H28,H29:H34,H36:H39,H41:H46,H48:H56,H58:H65,H66:H68,H70:H74,H75,H77:H80,H82:H88,H89:H95,H96:H98,H100:H105,H107:H110,H112:H119,H121:H128,H129:H137,H138:H141,H143:H149,H150:H152,H154:H158,H160:H167,H168,H170:H174,H176:H181,H183:H187,H189:H193,H195:H196,H198:H207)","v":0},0,{"$f":"SUM(J8:J15,J17:J21,J23:J28,J29:J34,J36:J39,J41:J46,J48:J56,J58:J65,J66:J68,J70:J74,J75,J77:J80,J82:J88,J89:J95,J96:J98,J100:J105,J107:J110,J112:J119,J121:J128,J129:J137,J138:J141,J143:J149,J150:J152,J154:J158,J160:J167,J168,J170:J174,J176:J181,J183:J187,J189:J193,J195:J196,J198:J207)","v":0},{"$f":"SUM(K8:K15,K17:K21,K23:K28,K29:K34,K36:K39,K41:K46,K48:K56,K58:K65,K66:K68,K70:K74,K75,K77:K80,K82:K88,K89:K95,K96:K98,K100:K105,K107:K110,K112:K119,K121:K128,K129:K137,K138:K141,K143:K149,K150:K152,K154:K158,K160:K167,K168,K170:K174,K176:K181,K183:K187,K189:K193,K195:K196,K198:K207)","v":0},{"$f":"SUM(L8:L15,L17:L21,L23:L28,L29:L34,L36:L39,L41:L46,L48:L56,L58:L65,L66:L68,L70:L74,L75,L77:L80,L82:L88,L89:L95,L96:L98,L100:L105,L107:L110,L112:L119,L121:L128,L129:L137,L138:L141,L143:L149,L150:L152,L154:L158,L160:L167,L168,L170:L174,L176:L181,L183:L187,L189:L193,L195:L196,L198:L207)","v":0},{"$f":"SUM(M8:M15,M17:M21,M23:M28,M29:M34,M36:M39,M41:M46,M48:M56,M58:M65,M66:M68,M70:M74,M75,M77:M80,M82:M88,M89:M95,M96:M98,M100:M105,M107:M110,M112:M119,M121:M128,M129:M137,M138:M141,M143:M149,M150:M152,M154:M158,M160:M167,M168,M170:M174,M176:M181,M183:M187,M189:M193,M195:M196,M198:M207)","v":0},0,{"$f":"SUM(O8:O15,O17:O21,O23:O28,O29:O34,O36:O39,O41:O46,O48:O56,O58:O65,O66:O68,O70:O74,O75,O77:O80,O82:O88,O89:O95,O96:O98,O100:O105,O107:O110,O112:O119,O121:O128,O129:O137,O138:O141,O143:O149,O150:O152,O154:O158,O160:O167,O168,O170:O174,O176:O181,O183:O187,O189:O193,O195:O196,O198:O207)","v":0},{"$f":"SUM(P8:P15,P17:P21,P23:P28,P29:P34,P36:P39,P41:P46,P48:P56,P58:P65,P66:P68,P70:P74,P75,P77:P80,P82:P88,P89:P95,P96:P98,P100:P105,P107:P110,P112:P119,P121:P128,P129:P137,P138:P141,P143:P149,P150:P152,P154:P158,P160:P167,P168,P170:P174,P176:P181,P183:P187,P189:P193,P195:P196,P198:P207)","v":0},{"$f":"SUM(Q8:Q15,Q17:Q21,Q23:Q28,Q29:Q34,Q36:Q39,Q41:Q46,Q48:Q56,Q58:Q65,Q66:Q68,Q70:Q74,Q75,Q77:Q80,Q82:Q88,Q89:Q95,Q96:Q98,Q100:Q105,Q107:Q110,Q112:Q119,Q121:Q128,Q129:Q137,Q138:Q141,Q143:Q149,Q150:Q152,Q154:Q158,Q160:Q167,Q168,Q170:Q174,Q176:Q181,Q183:Q187,Q189:Q193,Q195:Q196,Q198:Q207)","v":0},{"$f":"SUM(R8:R15,R17:R21,R23:R28,R29:R34,R36:R39,R41:R46,R48:R56,R58:R65,R66:R68,R70:R74,R75,R77:R80,R82:R88,R89:R95,R96:R98,R100:R105,R107:R110,R112:R119,R121:R128,R129:R137,R138:R141,R143:R149,R150:R152,R154:R158,R160:R167,R168,R170:R174,R176:R181,R183:R187,R189:R193,R195:R196,R198:R207)","v":0},null,null,{"$f":"Раздел2!F208","v":0},{"$f":"Раздел2!H208","v":0},{"$f":"Раздел2!I208","v":0},{"$f":"Раздел2!J208","v":0},{"$f":"Раздел2!K208","v":0},{"$f":"SUM(Раздел2!H208:K208)","v":0},null,null,null,{"$f":"Раздел1!F18","v":0}]
[null,null,null,null,null,null,null,null,null,null,null,null,null,null,null,null,null,null,null,null,null,null,null,null,null,null,null,null,null,"Полностью перешли"]
[null,null,null,null,null,null,null,null,null,null,null,null,null,null,null,null,null,null,null,null,null,null,null,null,null,null,null,null,null,{"$f":"Раздел1!H18","v":0}]

{"sheet":"Раздел4","index":4,"n_rows":208,"n_cols":29,"rows_kept":208,"cut":false,"hidden":false,"merged":[[0,0,118,0],[2,1,5,1],[2,2,5,2],[4,4,5,4],[4,9,4,11],[2,28,5,28],[2,3,2,11],[3,12,5,12],[4,22,4,24],[4,8,5,8],[3,13,3,16],[3,8,3,11],[4,5,4,7],[3,3,5,3],[2,27,5,27],[0,25,118,25],[0,1,0,24],[4,13,5,13],[2,12,2,24],[3,17,3,20],[4,17,5,17],[3,21,3,24],[4,14,4,16],[1,16,1,24],[4,21,5,21],[3,4,3,7],[4,18,4,20]]}
[null,"Раздел IV. Спортивные разряды, спортивные звания"]
[null,null,null,null,null,null,null,null,null,null,null,null,null,null,null,null,"Код по ОКЕИ: человек – 792"]
[null,"Виды спорта","№ строки","Из числа занимающихся (гр. 5 раздела II)\nспортсменов, имеющих разряды, звания",null,null,null,null,null,null,null,null,"Разряды, звания, присвоенные и подтвержденные в отчетном году",null,null,null,null,null,null,null,null,null,null,null,null,null,null,"Раздел2 графа3\nЧисло отделений","Раздел2 графа5\nЧисло отделений"]
[null,null,null,"Всего","спортивные разряды",null,null,null,"спортивные звания",null,null,null,"Всего","спортивные разряды присвоенные",null,null,null,"спортивные разряды подтвержденные",null,null,null,"спортивные звания"]
[null,null,null,null,"Всего","в том числе:",null,null,"Всего","в том числе:",null,null,null,"Всего","в том числе:",null,null,"Всего","в том числе:",null,null,"Всего","в том числе:"]
[null,null,null,null,null,"КМС","1 разряд","другие разряды",null,"ЗМС","МСМК","МС",null,null,"КМС","1 разряд","другие разряды",null,"КМС","1 разряд","другие разряды",null,"ЗМС","МСМК","МС"]
[null,1,2,3,4,5,6,7,8,9,10,11,12,13,14,15,16,17,18,19,20,21,22,23,24]
[null,"Авиамодельный спорт","01",{"$f":"E8+I8","v":0},{"$f":"SUM(F8:H8)","v":0},null,null,null,{"$f":"SUM(J8:L8)","v":0},null,null,null,{"$f":"N8+V8","v":0},{"$f":"SUM(O8:Q8)","v":0},null,null,null,{"$f":"SUM(S8:U8)","v":0},null,null,null,{"$f":"SUM(W8:Y8)","v":0},null,null,null,null,null,{"$f":"Раздел2!#REF!","v":{"$error":"#REF!"}},{"$f":"Раздел2!F8","v":0}]
[null,"Автомобильный спорт","02",{"$f":"E9+I9","v":0},{"$f":"SUM(F9:H9)","v":0},null,null,0,{"$f":"SUM(J9:L9)","v":0},0,null,0,{"$f":"N9+V9","v":0},{"$f":"SUM(O9:Q9)","v":0},0,null,0,{"$f":"SUM(S9:U9)","v":0},0,null,0,{"$f":"SUM(W9:Y9)","v":0},0,null,0,null,null,{"$f":"Раздел2!#REF!","v":{"$error":"#REF!"}},{"$f":"Раздел2!F9","v":0}]
[null,"Айкидо","03",0,0,null,null,0,0,null,null,0,0,0,null,null,0,0,null,null,0,0,null,null,0,null,null,{"$f":"Раздел2!#REF!","v":{"$error":"#REF!"}},{"$f":"Раздел2!F10","v":0}]
[null,"Акробатический рок-н-ролл","04",0,0,null,null,null,0,null,null,null,0,0,null,null,null,0,null,null,null,0,null,null,null,null,null,{"$f":"Раздел2!#REF!","v":{"$error":"#REF!"}},{"$f":"Раздел2!F11","v":0}]
[null,"Альпинизм","05",0,0,null,null,null,0,null,null,null,0,0,null,null,null,0,null,null,null,0,null,null,null,null,null,{"$f":"Раздел2!#REF!","v":{"$error":"#REF!"}},{"$f":"Раздел2!F12","v":0}]
[null,"Американский футбол","06",0,0,null,null,null,0,null,null,null,0,0,null,null,null,0,null,null,null,0,null,null,null,null,null,{"$f":"Раздел2!#REF!","v":{"$error":"#REF!"}},{"$f":"Раздел2!F13","v":0}]
[null,"Армрестлинг","07",0,0,null,null,null,0,null,null,null,0,0,null,null,null,0,null,null,null,0,null,null,null,null,null,{"$f":"Раздел2!#REF!","v":{"$error":"#REF!"}},{"$f":"Раздел2!F14","v":0}]
[null,"Бадминтон","08",0,0,null,null,null,0,null,null,null,0,0,null,null,null,0,null,null,null,0,null,null,null,null,null,{"$f":"Раздел2!#REF!","v":{"$error":"#REF!"}},{"$f":"Раздел2!F15","v":0}]
[null,"Баскетбол - всего","09",0,0,{"$f":"SUM(F17:F18)","v":0},{"$f":"SUM(G17:G18)","v":0},{"$f":"SUM(H17:H18)","v":0},0,{"$f":"SUM(J17:J18)","v":0},{"$f":"SUM(K17:K18)","v":0},{"$f":"SUM(L17:L18)","v":0},0,0,{"$f":"SUM(O17:O18)","v":0},{"$f":"SUM(P17:P18)","v":0},{"$f":"SUM(Q17:Q18)","v":0},0,{"$f":"SUM(S17:S18)","v":0},{"$f":"SUM(T17:T18)","v":0},{"$f":"SUM(U17:U18)","v":0},0,{"$f":"SUM(W17:W18)","v":0},{"$f":"SUM(X17:X18)","v":0},{"$f":"SUM(Y17:Y18)","v":0},null,null,{"$f":"Раздел2!#REF!","v":{"$error":"#REF!"}},{"$f":"Раздел2!F16","v":0}]
[null,"в том числе:\nБаскетбол (муж.)",10,0,0,null,null,0,0,null,null,0,0,0,null,null,0,0,null,null,0,0,null,null,0,null,null,{"$f":"Раздел2!#REF!","v":{"$error":"#REF!"}},{"$f":"Раздел2!F17","v":0}]
[null,"Баскетбол (жен.)",11,0,0,null,null,null,0,null,null,null,0,0,null,null,null,0,null,null,null,0,null,null,null,null,null,{"$f":"Раздел2!#REF!","v":{"$error":"#REF!"}},{"$f":"Раздел2!F18","v":0}]
[null,"Бейсбол",12,0,0,null,null,null,0,null,null,null,0,0,null,null,null,0,null,null,null,0,null,null,null,null,null,{"$f":"Раздел2!#REF!","v":{"$error":"#REF!"}},{"$f":"Раздел2!F19","v":0}]
[null,"Биатлон",13,0,0,null,null,null,0,null,null,null,0,0,null,null,null,0,null,null,null,0,null,null,null,null,null,{"$f":"Раздел2!#REF!","v":{"$error":"#REF!"}},{"$f":"Раздел2!F20","v":0}]
[null,"Бильярдный спорт",14,0,0,null,null,null,0,null,null,null,0,0,null,null,null,0,null,null,null,0,null,null,null,null,null,{"$f":"Раздел2!#REF!","v":{"$error":"#REF!"}},{"$f":"Раздел2!F21","v":0}]
[null,"Бобслей - всего",15,0,0,{"$f":"SUM(F23:F24)","v":0},{"$f":"SUM(G23:G24)","v":0},{"$f":"SUM(H23:H24)","v":0},0,{"$f":"SUM(J23:J24)","v":0},{"$f":"SUM(K23:K24)","v":0},{"$f":"SUM(L23:L24)","v":0},0,0,{"$f":"SUM(O23:O24)","v":0},{"$f":"SUM(P23:P24)","v":0},{"$f":"SUM(Q23:Q24)","v":0},0,{"$f":"SUM(S23:S24)","v":0},{"$f":"SUM(T23:T24)","v":0},{"$f":"SUM(U23:U24)","v":0},0,{"$f":"SUM(W23:W24)","v":0},{"$f":"SUM(X23:X24)","v":0},{"$f":"SUM(Y23:Y24)","v":0},null,null,{"$f":"Раздел2!#REF!","v":{"$error":"#REF!"}},{"$f":"Раздел2!F22","v":0}]
[null,"в том числе:\nБобслей",16,0,0,null,null,null,0,null,null,null,0,0,null,null,null,0,null,null,null,0,null,null,null,null,null,{"$f":"Раздел2!#REF!","v":{"$error":"#REF!"}},{"$f":"Раздел2!F23","v":0}]
[null,"Скелетон",17,0,0,null,null,null,0,null,null,null,0,0,null,null,null,0,null,null,null,0,null,null,null,null,null,{"$f":"Раздел2!#REF!","v":{"$error":"#REF!"}},{"$f":"Раздел2!F24","v":0}]
[null,"Бодибилдинг",18,0,0,null,null,null,0,null,null,null,0,0,null,null,null,0,null,null,null,0,null,null,null,null,null,{"$f":"Раздел2!#REF!","v":{"$error":"#REF!"}},{"$f":"Раздел2!F25","v":0}]
[null,"Бокс",19,0,0,null,null,null,0,null,null,null,0,0,null,null,null,0,null,null,null,0,null,null,null,null,null,{"$f":"Раздел2!#REF!","v":{"$error":"#REF!"}},{"$f":"Раздел2!F26","v":0}]
[null,"Борьба на поясах",20,0,0,null,null,null,0,null,null,null,0,0,null,null,null,0,null,null,null,0,null,null,null,null,null,{"$f":"Раздел2!#REF!","v":{"$error":"#REF!"}},{"$f":"Раздел2!F27","v":0}]
[null,"Боулинг",21,0,0,null,null,null,0,null,null,null,0,0,null,null,null,0,null,null,null,0,null,null,null,null,null,{"$f":"Раздел2!#REF!","v":{"$error":"#REF!"}},{"$f":"Раздел2!F28","v":0}]
[null,"Велоспорт ВМХ",22,0,0,null,null,null,0,null,null,null,0,0,null,null,null,0,null,null,null,0,null,null,null,null,null,{"$f":"Раздел2!#REF!","v":{"$error":"#REF!"}},{"$f":"Раздел2!F29","v":0}]
[null,"Велоспорт – маунтинбайк",23,0,0,null,null,null,0,null,null,null,0,0,null,null,null,0,null,null,null,0,null,null,null,null,null,{"$f":"Раздел2!#REF!","v":{"$error":"#REF!"}},{"$f":"Раздел2!F30","v":0}]
[null,"Велоспорт – трек",24,0,0,null,null,null,0,null,null,null,0,0,null,null,null,0,null,null,null,0,null,null,null,null,null,{"$f":"Раздел2!#REF!","v":{"$error":"#REF!"}},{"$f":"Раздел2!F31","v":0}]
[null,"Велоспорт – шоссе",25,0,0,null,null,null,0,null,null,null,0,0,null,null,null,0,null,null,null,0,null,null,null,null,null,{"$f":"Раздел2!#REF!","v":{"$error":"#REF!"}},{"$f":"Раздел2!F32","v":0}]
[null,"Вертолетный спорт",26,0,0,null,null,null,0,null,null,null,0,0,null,null,null,0,null,null,null,0,null,null,null,null,null,{"$f":"Раздел2!#REF!","v":{"$error":"#REF!"}},{"$f":"Раздел2!F33","v":0}]
[null,"Водно-моторный спорт",27,0,0,null,null,null,0,null,null,null,0,0,null,null,null,0,null,null,null,0,null,null,null,null,null,{"$f":"Раздел2!#REF!","v":{"$error":"#REF!"}},{"$f":"Раздел2!F34","v":0}]
[null,"Водное поло - всего ",28,0,0,{"$f":"SUM(F36:F37)","v":0},{"$f":"SUM(G36:G37)","v":0},{"$f":"SUM(H36:H37)","v":0},0,{"$f":"SUM(J36:J37)","v":0},{"$f":"SUM(K36:K37)","v":0},{"$f":"SUM(L36:L37)","v":0},0,0,{"$f":"SUM(O36:O37)","v":0},{"$f":"SUM(P36:P37)","v":0},{"$f":"SUM(Q36:Q37)","v":0},0,{"$f":"SUM(S36:S37)","v":0},{"$f":"SUM(T36:T37)","v":0},{"$f":"SUM(U36:U37)","v":0},0,{"$f":"SUM(W36:W37)","v":0},{"$f":"SUM(X36:X37)","v":0},{"$f":"SUM(Y36:Y37)","v":0},null,null,{"$f":"Раздел2!#REF!","v":{"$error":"#REF!"}},{"$f":"Раздел2!F35","v":0}]
[null,"в том числе:\nВодное поло (муж.)",29,0,0,null,null,null,0,null,null,null,0,0,null,null,null,0,null,null,null,0,null,null,null,null,null,{"$f":"Раздел2!#REF!","v":{"$error":"#REF!"}},{"$f":"Раздел2!F36","v":0}]
[null,"Водное поло (жен.)",30,0,0,null,null,null,0,null,null,null,0,0,null,null,null,0,null,null,null,0,null,null,null,null,null,{"$f":"Раздел2!#REF!","v":{"$error":"#REF!"}},{"$f":"Раздел2!F37","v":0}]
[null,"Воднолыжный спорт",31,0,0,null,null,null,0,null,null,null,0,0,null,null,null,0,null,null,null,0,null,null,null,null,null,{"$f":"Раздел2!#REF!","v":{"$error":"#REF!"}},{"$f":"Раздел2!F38","v":0}]
[null,"Воздухоплавательный спорт",32,0,0,null,null,null,0,null,null,null,0,0,null,null,null,0,null,null,null,0,null,null,null,null,null,{"$f":"Раздел2!#REF!","v":{"$error":"#REF!"}},{"$f":"Раздел2!F39","v":0}]
[null,"Волейбол - всего",33,0,0,{"$f":"SUM(F41:F44)","v":0},{"$f":"SUM(G41:G44)","v":0},{"$f":"SUM(H41:H44)","v":0},0,{"$f":"SUM(J41:J44)","v":0},{"$f":"SUM(K41:K44)","v":0},{"$f":"SUM(L41:L44)","v":0},0,0,{"$f":"SUM(O41:O44)","v":0},{"$f":"SUM(P41:P44)","v":0},{"$f":"SUM(Q41:Q44)","v":0},0,{"$f":"SUM(S41:S44)","v":0},{"$f":"SUM(T41:T44)","v":0},{"$f":"SUM(U41:U44)","v":0},0,{"$f":"SUM(W41:W44)","v":0},{"$f":"SUM(X41:X44)","v":0},{"$f":"SUM(Y41:Y44)","v":0},null,null,{"$f":"Раздел2!#REF!","v":{"$error":"#REF!"}},{"$f":"Раздел2!F40","v":0}]
[null,"в том числе:\nВолейбол (муж.)",34,0,0,null,null,null,0,null,null,null,0,0,null,null,null,0,null,null,null,0,null,null,null,null,null,{"$f":"Раздел2!#REF!","v":{"$error":"#REF!"}},{"$f":"Раздел2!F41","v":0}]
[null,"Волейбол (жен.)",35,0,0,null,null,null,0,null,null,null,0,0,null,null,null,0,null,null,null,0,null,null,null,null,null,{"$f":"Раздел2!#REF!","v":{"$error":"#REF!"}},{"$f":"Раздел2!F42","v":0}]
[null,"Пляжный волейбол (муж.)",36,0,0,null,null,null,0,null,null,null,0,0,null,null,null,0,null,null,null,0,null,null,null,null,null,{"$f":"Раздел2!#REF!","v":{"$error":"#REF!"}},{"$f":"Раздел2!F43","v":0}]
[null,"Пляжный волейбол (жен.)",37,0,0,null,null,null,0,null,null,null,0,0,null,null,null,0,null,null,null,0,null,null,null,null,null,{"$f":"Раздел2!#REF!","v":{"$error":"#REF!"}},{"$f":"Раздел2!F44","v":0}]
[null,"Восточное боевое единоборство",38,0,0,null,null,null,0,null,null,null,0,0,null,null,null,0,null,null,null,0,null,null,null,null,null,{"$f":"Раздел2!#REF!","v":{"$error":"#REF!"}},{"$f":"Раздел2!F45","v":0}]
[null,"Всестилевое карате",39,0,0,null,null,null,0,null,null,null,0,0,null,null,null,0,null,null,null,0,null,null,null,null,null,{"$f":"Раздел2!#REF!","v":{"$error":"#REF!"}},{"$f":"Раздел2!F46","v":0}]
[null,"Гандбол - всего",40,0,0,{"$f":"SUM(F48:F49)","v":0},{"$f":"SUM(G48:G49)","v":0},{"$f":"SUM(H48:H49)","v":0},0,{"$f":"SUM(J48:J49)","v":0},{"$f":"SUM(K48:K49)","v":0},{"$f":"SUM(L48:L49)","v":0},0,0,{"$f":"SUM(O48:O49)","v":0},{"$f":"SUM(P48:P49)","v":0},{"$f":"SUM(Q48:Q49)","v":0},0,{"$f":"SUM(S48:S49)","v":0},{"$f":"SUM(T48:T49)","v":0},{"$f":"SUM(U48:U49)","v":0},0,{"$f":"SUM(W48:W49)","v":0},{"$f":"SUM(X48:X49)","v":0},{"$f":"SUM(Y48:Y49)","v":0},null,null,{"$f":"Раздел2!#REF!","v":{"$error":"#REF!"}},{"$f":"Раздел2!F47","v":0}]
[null,"в том числе:\nГандбол (муж.)",41,0,0,null,null,null,0,null,null,null,0,0,null,null,null,0,null,null,null,0,null,null,null,null,null,{"$f":"Раздел2!#REF!","v":{"$error":"#REF!"}},{"$f":"Раздел2!F48","v":0}]
[null,"Гандбол (жен.)",42,0,0,null,null,null,0,null,null,null,0,0,null,null,null,0,null,null,null,0,null,null,null,null,null,{"$f":"Раздел2!#REF!","v":{"$error":"#REF!"}},{"$f":"Раздел2!F49","v":0}]
[null,"Гиревой спорт",43,0,0,null,null,null,0,null,null,null,0,0,null,null,null,0,null,null,null,0,null,null,null,null,null,{"$f":"Раздел2!#REF!","v":{"$error":"#REF!"}},{"$f":"Раздел2!F50","v":0}]
[null,"Го",44,0,0,null,null,null,0,null,null,null,0,0,null,null,null,0,null,null,null,0,null,null,null,null,null,{"$f":"Раздел2!#REF!","v":{"$error":"#REF!"}},{"$f":"Раздел2!F51","v":0}]
[null,"Гольф",45,0,0,null,null,null,0,null,null,null,0,0,null,null,null,0,null,null,null,0,null,null,null,null,null,{"$f":"Раздел2!#REF!","v":{"$error":"#REF!"}},{"$f":"Раздел2!F52","v":0}]
[null,"Горнолыжный спорт",46,0,0,null,null,null,0,null,null,null,0,0,null,null,null,0,null,null,null,0,null,null,null,null,null,{"$f":"Раздел2!#REF!","v":{"$error":"#REF!"}},{"$f":"Раздел2!F53","v":0}]
[null,"Городошный спорт",47,0,0,null,null,null,0,null,null,null,0,0,null,null,null,0,null,null,null,0,null,null,null,null,null,{"$f":"Раздел2!#REF!","v":{"$error":"#REF!"}},{"$f":"Раздел2!F54","v":0}]
[null,"Гребля на байдарках и каноэ",48,0,0,null,null,null,0,null,null,null,0,0,null,null,null,0,null,null,null,0,null,null,null,null,null,{"$f":"Раздел2!#REF!","v":{"$error":"#REF!"}},{"$f":"Раздел2!F55","v":0}]
[null,"Гребной слалом",49,0,0,null,null,null,0,null,null,null,0,0,null,null,null,0,null,null,null,0,null,null,null,null,null,{"$f":"Раздел2!#REF!","v":{"$error":"#REF!"}},{"$f":"Раздел2!F56","v":0}]
[null,"Гребной спорт - всего",50,0,0,{"$f":"SUM(F58:F61)","v":0},{"$f":"SUM(G58:G61)","v":0},{"$f":"SUM(H58:H61)","v":0},0,{"$f":"SUM(J58:J61)","v":0},{"$f":"SUM(K58:K61)","v":0},{"$f":"SUM(L58:L61)","v":0},0,0,{"$f":"SUM(O58:O61)","v":0},{"$f":"SUM(P58:P61)","v":0},{"$f":"SUM(Q58:Q61)","v":0},0,{"$f":"SUM(S58:S61)","v":0},{"$f":"SUM(T58:T61)","v":0},{"$f":"SUM(U58:U61)","v":0},0,{"$f":"SUM(W58:W61)","v":0},{"$f":"SUM(X58:X61)","v":0},{"$f":"SUM(Y58:Y61)","v":0},null,null,{"$f":"Раздел2!#REF!","v":{"$error":"#REF!"}},{"$f":"Раздел2!F57","v":0}]
[null,"в том числе:\nАкадемическая гребля",51,0,0,null,null,null,0,null,null,null,0,0,null,null,null,0,null,null,null,0,null,null,null,null,null,{"$f":"Раздел2!#REF!","v":{"$error":"#REF!"}},{"$f":"Раздел2!F58","v":0}]
[null,"Гребля-индор",52,0,0,null,null,null,0,null,null,null,0,0,null,null,null,0,null,null,null,0,null,null,null,null,null,{"$f":"Раздел2!#REF!","v":{"$error":"#REF!"}},{"$f":"Раздел2!F59","v":0}]
[null,"Народная гребля",53,0,0,null,null,null,0,null,null,null,0,0,null,null,null,0,null,null,null,0,null,null,null,null,null,{"$f":"Раздел2!#REF!","v":{"$error":"#REF!"}},{"$f":"Раздел2!F60","v":0}]
[null,"Прибрежная гребля",54,0,0,null,null,null,0,null,null,null,0,0,null,null,null,0,null,null,null,0,null,null,null,null,null,{"$f":"Раздел2!#REF!","v":{"$error":"#REF!"}},{"$f":"Раздел2!F61","v":0}]
[null,"Дартс",55,0,0,null,null,null,0,null,null,null,0,0,null,null,null,0,null,null,null,0,null,null,null,null,null,{"$f":"Раздел2!#REF!","v":{"$error":"#REF!"}},{"$f":"Раздел2!F62","v":0}]
[null,"Джиу-джитсу",56,0,0,null,null,null,0,null,null,null,0,0,null,null,null,0,null,null,null,0,null,null,null,null,null,{"$f":"Раздел2!#REF!","v":{"$error":"#REF!"}},{"$f":"Раздел2!F63","v":0}]
[null,"Дзюдо",57,0,0,null,null,null,0,null,null,null,0,0,null,null,null,0,null,null,null,0,null,null,null,null,null,{"$f":"Раздел2!#REF!","v":{"$error":"#REF!"}},{"$f":"Раздел2!F64","v":0}]
[null,"Капоэйра",58,0,0,null,null,null,0,null,null,null,0,0,null,null,null,0,null,null,null,0,null,null,null,null,null,{"$f":"Раздел2!#REF!","v":{"$error":"#REF!"}},{"$f":"Раздел2!F65","v":0}]
[null,"Каратэ",59,0,0,null,null,null,0,null,null,null,0,0,null,null,null,0,null,null,null,0,null,null,null,null,null,{"$f":"Раздел2!#REF!","v":{"$error":"#REF!"}},{"$f":"Раздел2!F66","v":0}]
[null,"Кендо",60,0,0,null,null,null,0,null,null,null,0,0,null,null,null,0,null,null,null,0,null,null,null,null,null,{"$f":"Раздел2!#REF!","v":{"$error":"#REF!"}},{"$f":"Раздел2!F67","v":0}]
[null,"Керешу",61,0,0,null,null,null,0,null,null,null,0,0,null,null,null,0,null,null,null,0,null,null,null,null,null,{"$f":"Раздел2!#REF!","v":{"$error":"#REF!"}},{"$f":"Раздел2!F68","v":0}]
[null,"Керлинг - всего",62,0,0,{"$f":"SUM(F70:F71)","v":0},{"$f":"SUM(G70:G71)","v":0},{"$f":"SUM(H70:H71)","v":0},0,{"$f":"SUM(J70:J71)","v":0},{"$f":"SUM(K70:K71)","v":0},{"$f":"SUM(L70:L71)","v":0},0,0,{"$f":"SUM(O70:O71)","v":0},{"$f":"SUM(P70:P71)","v":0},{"$f":"SUM(Q70:Q71)","v":0},0,{"$f":"SUM(S70:S71)","v":0},{"$f":"SUM(T70:T71)","v":0},{"$f":"SUM(U70:U71)","v":0},0,{"$f":"SUM(W70:W71)","v":0},{"$f":"SUM(X70:X71)","v":0},{"$f":"SUM(Y70:Y71)","v":0},null,null,{"$f":"Раздел2!#REF!","v":{"$error":"#REF!"}},{"$f":"Раздел2!F69","v":0}]
[null,"в том числе:\nКерлинг (муж.)",63,0,0,null,null,null,0,null,null,null,0,0,null,null,null,0,null,null,null,0,null,null,null,null,null,{"$f":"Раздел2!#REF!","v":{"$error":"#REF!"}},{"$f":"Раздел2!F70","v":0}]
[null,"Керлинг (жен.)",64,0,0,null,null,null,0,null,null,null,0,0,null,null,null,0,null,null,null,0,null,null,null,null,null,{"$f":"Раздел2!#REF!","v":{"$error":"#REF!"}},{"$f":"Раздел2!F71","v":0}]
[null,"Кикбоксинг",65,0,0,null,null,null,0,null,null,null,0,0,null,null,null,0,null,null,null,0,null,null,null,null,null,{"$f":"Раздел2!#REF!","v":{"$error":"#REF!"}},{"$f":"Раздел2!F72","v":0}]
[null,"Кинологический спорт",66,{"$f":"E73+I73","v":0},{"$f":"SUM(F73:H73)","v":0},null,null,null,{"$f":"SUM(J73:L73)","v":0},null,null,null,{"$f":"N73+V73","v":0},{"$f":"SUM(O73:Q73)","v":0},null,null,null,{"$f":"SUM(S73:U73)","v":0},null,null,null,{"$f":"SUM(W73:Y73)","v":0},null,null,null,null,null,{"$f":"Раздел2!#REF!","v":{"$error":"#REF!"}},{"$f":"Раздел2!F73","v":0}]
[null,"Киокусинкай",67,0,0,null,null,null,0,null,null,null,0,0,null,null,null,0,null,null,null,0,null,null,null,null,null,{"$f":"Раздел2!#REF!","v":{"$error":"#REF!"}},{"$f":"Раздел2!F74","v":0}]
[null,"Конный спорт",68,0,0,null,null,null,0,null,null,null,0,0,null,null,null,0,null,null,null,0,null,null,null,null,null,{"$f":"Раздел2!#REF!","v":{"$error":"#REF!"}},{"$f":"Раздел2!F75","v":0}]
[null,"Конькобежный спорт - всего",69,0,0,{"$f":"SUM(F77:F78)","v":0},{"$f":"SUM(G77:G78)","v":0},{"$f":"SUM(H77:H78)","v":0},0,{"$f":"SUM(J77:J78)","v":0},{"$f":"SUM(K77:K78)","v":0},{"$f":"SUM(L77:L78)","v":0},0,0,{"$f":"SUM(O77:O78)","v":0},{"$f":"SUM(P77:P78)","v":0},{"$f":"SUM(Q77:Q78)","v":0},0,{"$f":"SUM(S77:S78)","v":0},{"$f":"SUM(T77:T78)","v":0},{"$f":"SUM(U77:U78)","v":0},0,{"$f":"SUM(W77:W78)","v":0},{"$f":"SUM(X77:X78)","v":0},{"$f":"SUM(Y77:Y78)","v":0},null,null,{"$f":"Раздел2!#REF!","v":{"$error":"#REF!"}},{"$f":"Раздел2!F76","v":0}]
[null,"в том числе:\nКонькобежный спорт",70,0,0,null,null,null,0,null,null,null,0,0,null,null,null,0,null,null,null,0,null,null,null,null,null,{"$f":"Раздел2!#REF!","v":{"$error":"#REF!"}},{"$f":"Раздел2!F77","v":0}]
[null,"Шорт-трек",71,0,0,null,null,null,0,null,null,null,0,0,null,null,null,0,null,null,null,0,null,null,null,null,null,{"$f":"Раздел2!#REF!","v":{"$error":"#REF!"}},{"$f":"Раздел2!F78","v":0}]
[null,"Корэш",72,0,0,null,null,null,0,null,null,null,0,0,null,null,null,0,null,null,null,0,null,null,null,null,null,{"$f":"Раздел2!#REF!","v":{"$error":"#REF!"}},{"$f":"Раздел2!F79","v":0}]
[null,"Лапта",73,0,0,null,null,null,0,null,null,null,0,0,null,null,null,0,null,null,null,0,null,null,null,null,null,{"$f":"Раздел2!#REF!","v":{"$error":"#REF!"}},{"$f":"Раздел2!F80","v":0}]
[null,"Легкая атлетика - всего",74,0,0,{"$f":"SUM(F82:F88)","v":0},{"$f":"SUM(G82:G88)","v":0},{"$f":"SUM(H82:H88)","v":0},0,{"$f":"SUM(J82:J88)","v":0},{"$f":"SUM(K82:K88)","v":0},{"$f":"SUM(L82:L88)","v":0},0,0,{"$f":"SUM(O82:O88)","v":0},{"$f":"SUM(P82:P88)","v":0},{"$f":"SUM(Q82:Q88)","v":0},0,{"$f":"SUM(S82:S88)","v":0},{"$f":"SUM(T82:T88)","v":0},{"$f":"SUM(U82:U88)","v":0},0,{"$f":"SUM(W82:W88)","v":0},{"$f":"SUM(X82:X88)","v":0},{"$f":"SUM(Y82:Y88)","v":0},null,null,{"$f":"Раздел2!#REF!","v":{"$error":"#REF!"}},{"$f":"Раздел2!F81","v":0}]
[null,"в том числе:\nСпринтерский и барьерный бег",75,0,0,null,null,null,0,null,null,null,0,0,null,null,null,0,null,null,null,0,null,null,null,null,null,{"$f":"Раздел2!#REF!","v":{"$error":"#REF!"}},{"$f":"Раздел2!F82","v":0}]
[null,"Бег на средние дистанции и бег с препятствиями",76,0,0,null,null,null,0,null,null,null,0,0,null,null,null,0,null,null,null,0,null,null,null,null,null,{"$f":"Раздел2!#REF!","v":{"$error":"#REF!"}},{"$f":"Раздел2!F83","v":0}]
[null,"Бег на длинные и сверхдлинные дистанции",77,0,0,null,null,null,0,null,null,null,0,0,null,null,null,0,null,null,null,0,null,null,null,null,null,{"$f":"Раздел2!#REF!","v":{"$error":"#REF!"}},{"$f":"Раздел2!F84","v":0}]
[null,"Многоборья",78,0,0,null,null,null,0,null,null,null,0,0,null,null,null,0,null,null,null,0,null,null,null,null,null,{"$f":"Раздел2!#REF!","v":{"$error":"#REF!"}},{"$f":"Раздел2!F85","v":0}]
[null,"Прыжки",79,0,0,null,null,null,0,null,null,null,0,0,null,null,null,0,null,null,null,0,null,null,null,null,null,{"$f":"Раздел2!#REF!","v":{"$error":"#REF!"}},{"$f":"Раздел2!F86","v":0}]
[null,"Метания",80,0,0,null,null,null,0,null,null,null,0,0,null,null,null,0,null,null,null,0,null,null,null,null,null,{"$f":"Раздел2!#REF!","v":{"$error":"#REF!"}},{"$f":"Раздел2!F87","v":0}]
[null,"Спортивная ходьба",81,0,0,null,null,null,0,null,null,null,0,0,null,null,null,0,null,null,null,0,null,null,null,null,null,{"$f":"Раздел2!#REF!","v":{"$error":"#REF!"}},{"$f":"Раздел2!F88","v":0}]
[null,"Лыжное двоеборье",82,0,0,null,null,null,0,null,null,null,0,0,null,null,null,0,null,null,null,0,null,null,null,null,null,{"$f":"Раздел2!#REF!","v":{"$error":"#REF!"}},{"$f":"Раздел2!F89","v":0}]
[null,"Лыжные гонки",83,0,0,null,null,null,0,null,null,null,0,0,null,null,null,0,null,null,null,0,null,null,null,null,null,{"$f":"Раздел2!#REF!","v":{"$error":"#REF!"}},{"$f":"Раздел2!F90","v":0}]
[null,"Мас-рестлинг",84,0,0,null,null,null,0,null,null,null,0,0,null,null,null,0,null,null,null,0,null,null,null,null,null,{"$f":"Раздел2!#REF!","v":{"$error":"#REF!"}},{"$f":"Раздел2!F91","v":0}]
[null,"Морское многоборье",85,0,0,null,null,null,0,null,null,null,0,0,null,null,null,0,null,null,null,0,null,null,null,null,null,{"$f":"Раздел2!#REF!","v":{"$error":"#REF!"}},{"$f":"Раздел2!F92","v":0}]
[null,"Мотоциклетный спорт",86,0,0,null,null,null,0,null,null,null,0,0,null,null,null,0,null,null,null,0,null,null,null,null,null,{"$f":"Раздел2!#REF!","v":{"$error":"#REF!"}},{"$f":"Раздел2!F93","v":0}]
[null,"Настольный теннис",87,0,0,null,null,null,0,null,null,null,0,0,null,null,null,0,null,null,null,0,null,null,null,null,null,{"$f":"Раздел2!#REF!","v":{"$error":"#REF!"}},{"$f":"Раздел2!F94","v":0}]
[null,"Парашютный спорт",88,0,0,null,null,null,0,null,null,null,0,0,null,null,null,0,null,null,null,0,null,null,null,null,null,{"$f":"Раздел2!#REF!","v":{"$error":"#REF!"}},{"$f":"Раздел2!F95","v":0}]
[null,"Парусный спорт",89,0,0,null,null,null,0,null,null,null,0,0,null,null,null,0,null,null,null,0,null,null,null,null,null,{"$f":"Раздел2!#REF!","v":{"$error":"#REF!"}},{"$f":"Раздел2!F96","v":0}]
[null,"Пауэрлифтинг",90,0,0,null,null,null,0,null,null,null,0,0,null,null,null,0,null,null,null,0,null,null,null,null,null,{"$f":"Раздел2!#REF!","v":{"$error":"#REF!"}},{"$f":"Раздел2!F97","v":0}]
[null,"Перетягивание каната",91,0,0,null,null,null,0,null,null,null,0,0,null,null,null,0,null,null,null,0,null,null,null,null,null,{"$f":"Раздел2!#REF!","v":{"$error":"#REF!"}},{"$f":"Раздел2!F98","v":0}]
[null,"Плавание - всего",92,0,0,{"$f":"SUM(F100:F101)","v":0},{"$f":"SUM(G100:G101)","v":0},{"$f":"SUM(H100:H101)","v":0},0,{"$f":"SUM(J100:J101)","v":0},{"$f":"SUM(K100:K101)","v":0},{"$f":"SUM(L100:L101)","v":0},0,0,{"$f":"SUM(O100:O101)","v":0},{"$f":"SUM(P100:P101)","v":0},{"$f":"SUM(Q100:Q101)","v":0},0,{"$f":"SUM(S100:S101)","v":0},{"$f":"SUM(T100:T101)","v":0},{"$f":"SUM(U100:U101)","v":0},0,{"$f":"SUM(W100:W101)","v":0},{"$f":"SUM(X100:X101)","v":0},{"$f":"SUM(Y100:Y101)","v":0},null,null,{"$f":"Раздел2!#REF!","v":{"$error":"#REF!"}},{"$f":"Раздел2!F99","v":0}]
[null,"в том числе:\nПлавание ",93,0,0,null,null,null,0,null,null,null,0,0,null,null,null,0,null,null,null,0,null,null,null,null,null,{"$f":"Раздел2!#REF!","v":{"$error":"#REF!"}},{"$f":"Раздел2!F100","v":0}]
[null,"Открытая вода",94,0,0,null,null,null,0,null,null,null,0,0,null,null,null,0,null,null,null,0,null,null,null,null,null,{"$f":"Раздел2!#REF!","v":{"$error":"#REF!"}},{"$f":"Раздел2!F101","v":0}]
[null,"Планерный спорт",95,0,0,null,null,null,0,null,null,null,0,0,null,null,null,0,null,null,null,0,null,null,null,null,null,{"$f":"Раздел2!#REF!","v":{"$error":"#REF!"}},{"$f":"Раздел2!F102","v":0}]
[null,"Подводный спорт",96,0,0,null,null,null,0,null,null,null,0,0,null,null,null,0,null,null,null,0,null,null,null,null,null,{"$f":"Раздел2!#REF!","v":{"$error":"#REF!"}},{"$f":"Раздел2!F103","v":0}]
[null,"Полиатлон",97,0,0,null,null,null,0,null,null,null,0,0,null,null,null,0,null,null,null,0,null,null,null,null,null,{"$f":"Раздел2!#REF!","v":{"$error":"#REF!"}},{"$f":"Раздел2!F104","v":0}]
[null,"Практическая стрельба",98,0,0,null,null,null,0,null,null,null,0,0,null,null,null,0,null,null,null,0,null,null,null,null,null,{"$f":"Раздел2!#REF!","v":{"$error":"#REF!"}},{"$f":"Раздел2!F105","v":0}]
[null,"Прыжки в воду - всего",99,0,0,{"$f":"SUM(F107:F108)","v":0},{"$f":"SUM(G107:G108)","v":0},{"$f":"SUM(H107:H108)","v":0},0,{"$f":"SUM(J107:J108)","v":0},{"$f":"SUM(K107:K108)","v":0},{"$f":"SUM(L107:L108)","v":0},0,0,{"$f":"SUM(O107:O108)","v":0},{"$f":"SUM(P107:P108)","v":0},{"$f":"SUM(Q107:Q108)","v":0},0,{"$f":"SUM(S107:S108)","v":0},{"$f":"SUM(T107:T108)","v":0},{"$f":"SUM(U107:U108)","v":0},0,{"$f":"SUM(W107:W108)","v":0},{"$f":"SUM(X107:X108)","v":0},{"$f":"SUM(Y107:Y108)","v":0},null,null,{"$f":"Раздел2!#REF!","v":{"$error":"#REF!"}},{"$f":"Раздел2!F106","v":0}]
[null,"в том числе:\nПрыжки в воду",100,0,0,null,null,null,0,null,null,null,0,0,null,null,null,0,null,null,null,0,null,null,null,null,null,{"$f":"Раздел2!#REF!","v":{"$error":"#REF!"}},{"$f":"Раздел2!F107","v":0}]
[null,"Прыжки в открытый водоем",101,0,0,null,null,null,0,null,null,null,0,0,null,null,null,0,null,null,null,0,null,null,null,null,null,{"$f":"Раздел2!#REF!","v":{"$error":"#REF!"}},{"$f":"Раздел2!F108","v":0}]
[null,"Прыжки на батуте",102,0,0,null,null,null,0,null,null,null,0,0,null,null,null,0,null,null,null,0,null,null,null,null,null,{"$f":"Раздел2!#REF!","v":{"$error":"#REF!"}},{"$f":"Раздел2!F109","v":0}]
[null,"Прыжки на лыжах с трамплина",103,0,0,null,null,null,0,null,null,null,0,0,null,null,null,0,null,null,null,0,null,null,null,null,null,{"$f":"Раздел2!#REF!","v":{"$error":"#REF!"}},{"$f":"Раздел2!F110","v":0}]
[null,"Пулевая стрельба - всего",104,0,0,{"$f":"SUM(F112:F116)","v":0},{"$f":"SUM(G112:G116)","v":0},{"$f":"SUM(H112:H116)","v":0},0,{"$f":"SUM(J112:J116)","v":0},{"$f":"SUM(K112:K116)","v":0},{"$f":"SUM(L112:L116)","v":0},0,0,{"$f":"SUM(O112:O116)","v":0},{"$f":"SUM(P112:P116)","v":0},{"$f":"SUM(Q112:Q116)","v":0},0,{"$f":"SUM(S112:S116)","v":0},{"$f":"SUM(T112:T116)","v":0},{"$f":"SUM(U112:U116)","v":0},0,{"$f":"SUM(W112:W116)","v":0},{"$f":"SUM(X112:X116)","v":0},{"$f":"SUM(Y112:Y116)","v":0},null,null,{"$f":"Раздел2!#REF!","v":{"$error":"#REF!"}},{"$f":"Раздел2!F111","v":0}]
[null,"в том числе:\nПневматическая винтовка",105,0,0,null,null,null,0,null,null,null,0,0,null,null,null,0,null,null,null,0,null,null,null,null,null,{"$f":"Раздел2!#REF!","v":{"$error":"#REF!"}},{"$f":"Раздел2!F112","v":0}]
[null,"Пневматический пистолет",106,0,0,null,null,null,0,null,null,null,0,0,null,null,null,0,null,null,null,0,null,null,null,null,null,{"$f":"Раздел2!#REF!","v":{"$error":"#REF!"}},{"$f":"Раздел2!F113","v":0}]
[null,"Малокалиберная винтоква",107,0,0,null,null,null,0,null,null,null,0,0,null,null,null,0,null,null,null,0,null,null,null,null,null,{"$f":"Раздел2!#REF!","v":{"$error":"#REF!"}},{"$f":"Раздел2!F114","v":0}]
[null,"Малокалиберный пистолет",108,0,0,null,null,null,0,null,null,null,0,0,null,null,null,0,null,null,null,0,null,null,null,null,null,{"$f":"Раздел2!#REF!","v":{"$error":"#REF!"}},{"$f":"Раздел2!F115","v":0}]
[null,"Движущаяся мишень",109,0,0,null,null,null,0,null,null,null,0,0,null,null,null,0,null,null,null,0,null,null,null,null,null,{"$f":"Раздел2!#REF!","v":{"$error":"#REF!"}},{"$f":"Раздел2!F116","v":0}]
[null,"Пэйнтбол",110,0,0,null,null,null,0,null,null,null,0,0,null,null,null,0,null,null,null,0,null,null,null,null,null,{"$f":"Раздел2!#REF!","v":{"$error":"#REF!"}},{"$f":"Раздел2!F117","v":0}]
[null,"Радиоспорт",111,0,0,null,null,null,0,null,null,null,0,0,null,null,null,0,null,null,null,0,null,null,null,null,null,{"$f":"Раздел2!#REF!","v":{"$error":"#REF!"}},{"$f":"Раздел2!F118","v":0}]
[null,"Рафтинг",112,0,0,null,null,null,0,null,null,null,0,0,null,null,null,0,null,null,null,0,null,null,null,null,null,{"$f":"Раздел2!#REF!","v":{"$error":"#REF!"}},{"$f":"Раздел2!F119","v":0}]
[null,"Регби - всего",113,0,0,{"$f":"SUM(F121:F124)","v":0},{"$f":"SUM(G121:G124)","v":0},{"$f":"SUM(H121:H124)","v":0},0,{"$f":"SUM(J121:J124)","v":0},{"$f":"SUM(K121:K124)","v":0},{"$f":"SUM(L121:L124)","v":0},0,0,{"$f":"SUM(O121:O124)","v":0},{"$f":"SUM(P121:P124)","v":0},{"$f":"SUM(Q121:Q124)","v":0},0,{"$f":"SUM(S121:S124)","v":0},{"$f":"SUM(T121:T124)","v":0},{"$f":"SUM(U121:U124)","v":0},0,{"$f":"SUM(W121:W124)","v":0},{"$f":"SUM(X121:X124)","v":0},{"$f":"SUM(Y121:Y124)","v":0},null,null,null,{"$f":"Раздел2!F120","v":0}]
[null,"в том числе:\nРегби",114,0,0,null,null,null,0,null,null,null,0,0,null,null,null,0,null,null,null,0,null,null,null,null,null,null,{"$f":"Раздел2!F121","v":0}]
[null,"Регби 7 (муж.)",115,0,0,null,null,null,0,null,null,null,0,0,null,null,null,0,null,null,null,0,null,null,null,null,null,null,{"$f":"Раздел2!F122","v":0}]
[null,"Регби 7 (жен.)",116,0,0,null,null,null,0,null,null,null,0,0,null,null,null,0,null,null,null,0,null,null,null,null,null,null,{"$f":"Раздел2!F123","v":0}]
[null,"Пляжный регби",117,0,0,null,null,null,0,null,null,null,0,0,null,null,null,0,null,null,null,0,null,null,null,null,null,null,{"$f":"Раздел2!F124","v":0}]
[null,"Рукопашный бой",118,0,0,null,null,null,0,null,null,null,0,0,null,null,null,0,null,null,null,0,null,null,null,null,null,null,{"$f":"Раздел2!F125","v":0}]
[null,"Рыболовный спорт",119,0,0,null,null,null,0,null,null,null,0,0,null,null,null,0,null,null,null,0,null,null,null,null,null,null,{"$f":"Раздел2!F126","v":0}]
[null,"Сават",120,0,0,null,null,null,0,null,null,null,0,0,null,null,null,0,null,null,null,0,null,null,null,null,null,null,{"$f":"Раздел2!F127","v":0}]
[null,"Самбо",121,0,0,null,null,null,0,null,null,null,0,0,null,null,null,0,null,null,null,0,null,null,null,null,null,null,{"$f":"Раздел2!F128","v":0}]
[null,"Самолетный спорт",122,0,0,null,null,null,0,null,null,null,0,0,null,null,null,0,null,null,null,0,null,null,null,null,null,null,{"$f":"Раздел2!F129","v":0}]
[null,"Санный спорт",123,0,0,null,null,null,0,null,null,null,0,0,null,null,null,0,null,null,null,0,null,null,null,null,null,null,{"$f":"Раздел2!F130","v":0}]
[null,"Северное многоборье",124,0,0,null,null,null,0,null,null,null,0,0,null,null,null,0,null,null,null,0,null,null,null,null,null,null,{"$f":"Раздел2!F131","v":0}]
[null,"Синхронное плавание",125,0,0,null,null,null,0,null,null,null,0,0,null,null,null,0,null,null,null,0,null,null,null,null,null,null,{"$f":"Раздел2!F132","v":0}]
[null,"Скалолазание",126,0,0,null,null,null,0,null,null,null,0,0,null,null,null,0,null,null,null,0,null,null,null,null,null,null,{"$f":"Раздел2!F133","v":0}]
[null,"Сквош",127,0,0,null,null,null,0,null,null,null,0,0,null,null,null,0,null,null,null,0,null,null,null,null,null,null,{"$f":"Раздел2!F134","v":0}]
[null,"Смешанное боевое единоборство (ММА)",128,0,0,null,null,null,0,null,null,null,0,0,null,null,null,0,null,null,null,0,null,null,null,null,null,null,{"$f":"Раздел2!F135","v":0}]
[null,"Сноуборд",129,0,0,null,null,null,0,null,null,null,0,0,null,null,null,0,null,null,null,0,null,null,null,null,null,null,{"$f":"Раздел2!F136","v":0}]
[null,"Современное пятиборье",130,{"$f":"E137+I137","v":0},{"$f":"SUM(F137:H137)","v":0},null,null,null,{"$f":"SUM(J137:L137)","v":0},null,null,null,{"$f":"N137+V137","v":0},{"$f":"SUM(O137:Q137)","v":0},null,null,null,{"$f":"SUM(S137:U137)","v":0},null,null,null,{"$f":"SUM(W137:Y137)","v":0},null,null,null,null,null,null,{"$f":"Раздел2!F137","v":0}]
[null,"Софтбол",131,0,0,null,null,null,0,null,null,null,0,0,null,null,null,0,null,null,null,0,null,null,null,null,null,null,{"$f":"Раздел2!F138","v":0}]
[null,"Спорт сверхлегкой авиации",132,0,0,null,null,null,0,null,null,null,0,0,null,null,null,0,null,null,null,0,null,null,null,null,null,null,{"$f":"Раздел2!F139","v":0}]
[null,"Спортивная акробатика",133,0,0,null,null,null,0,null,null,null,0,0,null,null,null,0,null,null,null,0,null,null,null,null,null,null,{"$f":"Раздел2!F140","v":0}]
[null,"Спортивная аэробика",134,0,0,null,null,null,0,null,null,null,0,0,null,null,null,0,null,null,null,0,null,null,null,null,null,null,{"$f":"Раздел2!F141","v":0}]
[null,"Спортивная борьба - всего",135,0,0,{"$f":"SUM(F143:F147)","v":0},{"$f":"SUM(G143:G147)","v":0},{"$f":"SUM(H143:H147)","v":0},0,{"$f":"SUM(J143:J147)","v":0},{"$f":"SUM(K143:K147)","v":0},{"$f":"SUM(L143:L147)","v":0},0,0,{"$f":"SUM(O143:O147)","v":0},{"$f":"SUM(P143:P147)","v":0},{"$f":"SUM(Q143:Q147)","v":0},0,{"$f":"SUM(S143:S147)","v":0},{"$f":"SUM(T143:T147)","v":0},{"$f":"SUM(U143:U147)","v":0},0,{"$f":"SUM(W143:W147)","v":0},{"$f":"SUM(X143:X147)","v":0},{"$f":"SUM(Y143:Y147)","v":0},null,null,null,{"$f":"Раздел2!F142","v":0}]
[null,"в том числе:\nВольная борьба",136,0,0,null,null,null,0,null,null,null,0,0,null,null,null,0,null,null,null,0,null,null,null,null,null,null,{"$f":"Раздел2!F143","v":0}]
[null,"Греко-римская борьба",137,0,0,null,null,null,0,null,null,null,0,0,null,null,null,0,null,null,null,0,null,null,null,null,null,null,{"$f":"Раздел2!F144","v":0}]
[null,"Грэпплинг",138,0,0,null,null,null,0,null,null,null,0,0,null,null,null,0,null,null,null,0,null,null,null,null,null,null,{"$f":"Раздел2!F145","v":0}]
[null,"Грэпплинг-ги",139,0,0,null,null,null,0,null,null,null,0,0,null,null,null,0,null,null,null,0,null,null,null,null,null,null,{"$f":"Раздел2!F146","v":0}]
[null,"Панкратион",140,0,0,null,null,null,0,null,null,null,0,0,null,null,null,0,null,null,null,0,null,null,null,null,null,null,{"$f":"Раздел2!F147","v":0}]
[null,"Спортивно-прикладное собаководство",141,0,0,null,null,null,0,null,null,null,0,0,null,null,null,0,null,null,null,0,null,null,null,null,null,null,{"$f":"Раздел2!F148","v":0}]
[null,"Спортивная гимнастика",142,0,0,null,null,null,0,null,null,null,0,0,null,null,null,0,null,null,null,0,null,null,null,null,null,null,{"$f":"Раздел2!F149","v":0}]
[null,"Спортивное ориентирование",143,0,0,null,null,null,0,null,null,null,0,0,null,null,null,0,null,null,null,0,null,null,null,null,null,null,{"$f":"Раздел2!F150","v":0}]
[null,"Спортивный бридж",144,0,0,null,null,null,0,null,null,null,0,0,null,null,null,0,null,null,null,0,null,null,null,null,null,null,{"$f":"Раздел2!F151","v":0}]
[null,"Спортивный туризм",145,0,0,null,null,null,0,null,null,null,0,0,null,null,null,0,null,null,null,0,null,null,null,null,null,null,{"$f":"Раздел2!F152","v":0}]
[null,"Стендовая стрельба - всего",146,0,0,{"$f":"SUM(F154:F157)","v":0},{"$f":"SUM(G154:G157)","v":0},{"$f":"SUM(H154:H157)","v":0},0,{"$f":"SUM(J154:J157)","v":0},{"$f":"SUM(K154:K157)","v":0},{"$f":"SUM(L154:L157)","v":0},0,0,{"$f":"SUM(O154:O157)","v":0},{"$f":"SUM(P154:P157)","v":0},{"$f":"SUM(Q154:Q157)","v":0},0,{"$f":"SUM(S154:S157)","v":0},{"$f":"SUM(T154:T157)","v":0},{"$f":"SUM(U154:U157)","v":0},0,{"$f":"SUM(W154:W157)","v":0},{"$f":"SUM(X154:X157)","v":0},{"$f":"SUM(Y154:Y157)","v":0},null,null,null,{"$f":"Раздел2!F153","v":0}]
[null,"в том числе:\nТрап",147,0,0,null,null,null,0,null,null,null,0,0,null,null,null,0,null,null,null,0,null,null,null,null,null,null,{"$f":"Раздел2!F154","v":0}]
[null,"Скит",148,0,0,null,null,null,0,null,null,null,0,0,null,null,null,0,null,null,null,0,null,null,null,null,null,null,{"$f":"Раздел2!F155","v":0}]
[null,"Дубль-трап",149,0,0,null,null,null,0,null,null,null,0,0,null,null,null,0,null,null,null,0,null,null,null,null,null,null,{"$f":"Раздел2!F156","v":0}]
[null,"Спортинг",150,0,0,null,null,null,0,null,null,null,0,0,null,null,null,0,null,null,null,0,null,null,null,null,null,null,{"$f":"Раздел2!F157","v":0}]
[null,"Стрельба из арбалета",151,0,0,null,null,null,0,null,null,null,0,0,null,null,null,0,null,null,null,0,null,null,null,null,null,null,{"$f":"Раздел2!F158","v":0}]
[null,"Стрельба из лука - всего",152,0,0,{"$f":"SUM(F160:F162)","v":0},{"$f":"SUM(G160:G162)","v":0},{"$f":"SUM(H160:H162)","v":0},0,{"$f":"SUM(J160:J162)","v":0},{"$f":"SUM(K160:K162)","v":0},{"$f":"SUM(L160:L162)","v":0},0,0,{"$f":"SUM(O160:O162)","v":0},{"$f":"SUM(P160:P162)","v":0},{"$f":"SUM(Q160:Q162)","v":0},0,{"$f":"SUM(S160:S162)","v":0},{"$f":"SUM(T160:T162)","v":0},{"$f":"SUM(U160:U162)","v":0},0,{"$f":"SUM(W160:W162)","v":0},{"$f":"SUM(X160:X162)","v":0},{"$f":"SUM(Y160:Y162)","v":0},null,null,null,{"$f":"Раздел2!F159","v":0}]
[null,"в том числе:\nКлассический лук",153,0,0,null,null,null,0,null,null,null,0,0,null,null,null,0,null,null,null,0,null,null,null,null,null,null,{"$f":"Раздел2!F160","v":0}]
[null,"   Блочный лук",154,0,0,null,null,null,0,null,null,null,0,0,null,null,null,0,null,null,null,0,null,null,null,null,null,null,{"$f":"Раздел2!F161","v":0}]
[null,"   Ачери ",155,0,0,null,null,null,0,null,null,null,0,0,null,null,null,0,null,null,null,0,null,null,null,null,null,null,{"$f":"Раздел2!F162","v":0}]
[null,"Судомодельный спорт",156,0,0,null,null,null,0,null,null,null,0,0,null,null,null,0,null,null,null,0,null,null,null,null,null,null,{"$f":"Раздел2!F163","v":0}]
[null,"Сумо",157,0,0,null,null,null,0,null,null,null,0,0,null,null,null,0,null,null,null,0,null,null,null,null,null,null,{"$f":"Раздел2!F164","v":0}]
[null,"Тайский бокс",158,0,0,null,null,null,0,null,null,null,0,0,null,null,null,0,null,null,null,0,null,null,null,null,null,null,{"$f":"Раздел2!F165","v":0}]
[null,"Танцевальный спорт",159,0,0,null,null,null,0,null,null,null,0,0,null,null,null,0,null,null,null,0,null,null,null,null,null,null,{"$f":"Раздел2!F166","v":0}]
[null,"Теннис",160,0,0,null,null,null,0,null,null,null,0,0,null,null,null,0,null,null,null,0,null,null,null,null,null,null,{"$f":"Раздел2!F167","v":0}]
[null,"Триатлон",161,0,0,null,null,null,0,null,null,null,0,0,null,null,null,0,null,null,null,0,null,null,null,null,null,null,{"$f":"Раздел2!F168","v":0}]
[null,"Тхэквондо - всего",162,0,0,{"$f":"SUM(F170:F171)","v":0},{"$f":"SUM(G170:G171)","v":0},{"$f":"SUM(H170:H171)","v":0},0,{"$f":"SUM(J170:J171)","v":0},{"$f":"SUM(K170:K171)","v":0},{"$f":"SUM(L170:L171)","v":0},0,0,{"$f":"SUM(O170:O171)","v":0},{"$f":"SUM(P170:P171)","v":0},{"$f":"SUM(Q170:Q171)","v":0},0,{"$f":"SUM(S170:S171)","v":0},{"$f":"SUM(T170:T171)","v":0},{"$f":"SUM(U170:U171)","v":0},0,{"$f":"SUM(W170:W171)","v":0},{"$f":"SUM(X170:X171)","v":0},{"$f":"SUM(Y170:Y171)","v":0},null,null,null,{"$f":"Раздел2!F169","v":0}]
[null,"в том числе:\nТхэквондо (ГТФ, ИТФ, МФТ)",163,0,0,null,null,null,0,null,null,null,0,0,null,null,null,0,null,null,null,0,null,null,null,null,null,null,{"$f":"Раздел2!F170","v":0}]
[null,"Тхэквондо (ВТФ)",164,0,0,null,null,null,0,null,null,null,0,0,null,null,null,0,null,null,null,0,null,null,null,null,null,null,{"$f":"Раздел2!F171","v":0}]
[null,"Тяжелая атлетика",165,0,0,null,null,null,0,null,null,null,0,0,null,null,null,0,null,null,null,0,null,null,null,null,null,null,{"$f":"Раздел2!F172","v":0}]
[null,"Универсальный бой",166,0,0,null,null,null,0,null,null,null,0,0,null,null,null,0,null,null,null,0,null,null,null,null,null,null,{"$f":"Раздел2!F173","v":0}]
[null,"Ушу",167,0,0,null,null,null,0,null,null,null,0,0,null,null,null,0,null,null,null,0,null,null,null,null,null,null,{"$f":"Раздел2!F174","v":0}]
[null,"Фехтование - всего",168,0,0,{"$f":"SUM(F176:F179)","v":0},{"$f":"SUM(G176:G179)","v":0},{"$f":"SUM(H176:H179)","v":0},0,{"$f":"SUM(J176:J179)","v":0},{"$f":"SUM(K176:K179)","v":0},{"$f":"SUM(L176:L179)","v":0},0,0,{"$f":"SUM(O176:O179)","v":0},{"$f":"SUM(P176:P179)","v":0},{"$f":"SUM(Q176:Q179)","v":0},0,{"$f":"SUM(S176:S179)","v":0},{"$f":"SUM(T176:T179)","v":0},{"$f":"SUM(U176:U179)","v":0},0,{"$f":"SUM(W176:W179)","v":0},{"$f":"SUM(X176:X179)","v":0},{"$f":"SUM(Y176:Y179)","v":0},null,null,null,{"$f":"Раздел2!F175","v":0}]
[null,"в том числе:\nРапира",169,0,0,null,null,null,0,null,null,null,0,0,null,null,null,0,null,null,null,0,null,null,null,null,null,null,{"$f":"Раздел2!F176","v":0}]
[null,"Сабля",170,0,0,null,null,null,0,null,null,null,0,0,null,null,null,0,null,null,null,0,null,null,null,null,null,null,{"$f":"Раздел2!F177","v":0}]
[null,"Шпага",171,0,0,null,null,null,0,null,null,null,0,0,null,null,null,0,null,null,null,0,null,null,null,null,null,null,{"$f":"Раздел2!F178","v":0}]
[null,"Арт-фехтование",172,0,0,null,null,null,0,null,null,null,0,0,null,null,null,0,null,null,null,0,null,null,null,null,null,null,{"$f":"Раздел2!F179","v":0}]
[null,"Фигурное катание на коньках",173,0,0,null,null,null,0,null,null,null,0,0,null,null,null,0,null,null,null,0,null,null,null,null,null,null,{"$f":"Раздел2!F180","v":0}]
[null,"Флорбол",174,0,0,null,null,null,0,null,null,null,0,0,null,null,null,0,null,null,null,0,null,null,null,null,null,null,{"$f":"Раздел2!F181","v":0}]
[null,"Фристайл - всего",175,0,0,{"$f":"SUM(F183:F187)","v":0},{"$f":"SUM(G183:G187)","v":0},{"$f":"SUM(H183:H187)","v":0},0,{"$f":"SUM(J183:J187)","v":0},{"$f":"SUM(K183:K187)","v":0},{"$f":"SUM(L183:L187)","v":0},0,0,{"$f":"SUM(O183:O187)","v":0},{"$f":"SUM(P183:P187)","v":0},{"$f":"SUM(Q183:Q187)","v":0},0,{"$f":"SUM(S183:S187)","v":0},{"$f":"SUM(T183:T187)","v":0},{"$f":"SUM(U183:U187)","v":0},0,{"$f":"SUM(W183:W187)","v":0},{"$f":"SUM(X183:X187)","v":0},{"$f":"SUM(Y183:Y187)","v":0},null,null,null,{"$f":"Раздел2!F182","v":0}]
[null,"в том числе:\nАкробатика",176,0,0,null,null,null,0,null,null,null,0,0,null,null,null,0,null,null,null,0,null,null,null,null,null,null,{"$f":"Раздел2!F183","v":0}]
[null,"Могул",177,0,0,null,null,null,0,null,null,null,0,0,null,null,null,0,null,null,null,0,null,null,null,null,null,null,{"$f":"Раздел2!F184","v":0}]
[null,"Ски-кросс",178,0,0,null,null,null,0,null,null,null,0,0,null,null,null,0,null,null,null,0,null,null,null,null,null,null,{"$f":"Раздел2!F185","v":0}]
[null,"Хаф-пайп",179,0,0,null,null,null,0,null,null,null,0,0,null,null,null,0,null,null,null,0,null,null,null,null,null,null,{"$f":"Раздел2!F186","v":0}]
[null,"Слоуп-стайл",180,0,0,null,null,null,0,null,null,null,0,0,null,null,null,0,null,null,null,0,null,null,null,null,null,null,{"$f":"Раздел2!F187","v":0}]
[null,"Футбол - всего",181,0,0,{"$f":"SUM(F189:F192)","v":0},{"$f":"SUM(G189:G192)","v":0},{"$f":"SUM(H189:H192)","v":0},0,{"$f":"SUM(J189:J192)","v":0},{"$f":"SUM(K189:K192)","v":0},{"$f":"SUM(L189:L192)","v":0},0,0,{"$f":"SUM(O189:O192)","v":0},{"$f":"SUM(P189:P192)","v":0},{"$f":"SUM(Q189:Q192)","v":0},0,{"$f":"SUM(S189:S192)","v":0},{"$f":"SUM(T189:T192)","v":0},{"$f":"SUM(U189:U192)","v":0},0,{"$f":"SUM(W189:W192)","v":0},{"$f":"SUM(X189:X192)","v":0},{"$f":"SUM(Y189:Y192)","v":0},null,null,null,{"$f":"Раздел2!F188","v":0}]
[null,"в том числе:\nФутбол (муж.)",182,0,0,null,null,null,0,null,null,null,0,0,null,null,null,0,null,null,null,0,null,null,null,null,null,null,{"$f":"Раздел2!F189","v":0}]
[null,"Футбол (жен.)",183,0,0,null,null,null,0,null,null,null,0,0,null,null,null,0,null,null,null,0,null,null,null,null,null,null,{"$f":"Раздел2!F190","v":0}]
[null,"Мини-футбол (футзал)",184,0,0,null,null,null,0,null,null,null,0,0,null,null,null,0,null,null,null,0,null,null,null,null,null,null,{"$f":"Раздел2!F191","v":0}]
[null,"Пляжный футбол",185,0,0,null,null,null,0,null,null,null,0,0,null,null,null,0,null,null,null,0,null,null,null,null,null,null,{"$f":"Раздел2!F192","v":0}]
[null,"Хапсагай",186,0,0,null,null,null,0,null,null,null,0,0,null,null,null,0,null,null,null,0,null,null,null,null,null,null,{"$f":"Раздел2!F193","v":0}]
[null,"Хоккей - всего",187,0,0,{"$f":"SUM(F195:F196)","v":0},{"$f":"SUM(G195:G196)","v":0},{"$f":"SUM(H195:H196)","v":0},0,{"$f":"SUM(J195:J196)","v":0},{"$f":"SUM(K195:K196)","v":0},{"$f":"SUM(L195:L196)","v":0},0,0,{"$f":"SUM(O195:O196)","v":0},{"$f":"SUM(P195:P196)","v":0},{"$f":"SUM(Q195:Q196)","v":0},0,{"$f":"SUM(S195:S196)","v":0},{"$f":"SUM(T195:T196)","v":0},{"$f":"SUM(U195:U196)","v":0},0,{"$f":"SUM(W195:W196)","v":0},{"$f":"SUM(X195:X196)","v":0},{"$f":"SUM(Y195:Y196)","v":0},null,null,null,{"$f":"Раздел2!F194","v":0}]
[null,"в том числе:\nХоккей (муж.)",188,0,0,null,null,null,0,null,null,null,0,0,null,null,null,0,null,null,null,0,null,null,null,null,null,null,{"$f":"Раздел2!F195","v":0}]
[null,"Хоккей (жен.)",189,0,0,null,null,null,0,null,null,null,0,0,null,null,null,0,null,null,null,0,null,null,null,null,null,null,{"$f":"Раздел2!F196","v":0}]
[null,"Хоккей на траве",190,0,0,{"$f":"SUM(F198:F199)","v":0},{"$f":"SUM(G198:G199)","v":0},{"$f":"SUM(H198:H199)","v":0},0,{"$f":"SUM(J198:J199)","v":0},{"$f":"SUM(K198:K199)","v":0},{"$f":"SUM(L198:L199)","v":0},0,0,{"$f":"SUM(O198:O199)","v":0},{"$f":"SUM(P198:P199)","v":0},{"$f":"SUM(Q198:Q199)","v":0},0,{"$f":"SUM(S198:S199)","v":0},{"$f":"SUM(T198:T199)","v":0},{"$f":"SUM(U198:U199)","v":0},0,{"$f":"SUM(W198:W199)","v":0},{"$f":"SUM(X198:X199)","v":0},{"$f":"SUM(Y198:Y199)","v":0},null,null,null,{"$f":"Раздел2!F197","v":0}]
[null,"Хоккей на траве (муж.)",191,0,0,null,null,null,0,null,null,null,0,0,null,null,null,0,null,null,null,0,null,null,null,null,null,null,{"$f":"Раздел2!F198","v":0}]
[null,"Хоккей на траве (жен.)",192,0,0,null,null,null,0,null,null,null,0,0,null,null,null,0,null,null,null,0,null,null,null,null,null,null,{"$f":"Раздел2!F199","v":0}]
[null,"Хоккей с мячом",193,0,0,null,null,null,0,null,null,null,0,0,null,null,null,0,null,null,null,0,null,null,null,null,null,null,{"$f":"Раздел2!F200","v":0}]
[null,"Художественная гимнастика",194,{"$f":"E201+I201","v":0},{"$f":"SUM(F201:H201)","v":0},null,null,null,{"$f":"SUM(J201:L201)","v":0},null,null,null,{"$f":"N201+V201","v":0},{"$f":"SUM(O201:Q201)","v":0},null,null,null,{"$f":"SUM(S201:U201)","v":0},null,null,null,{"$f":"SUM(W201:Y201)","v":0},null,null,null,null,null,null,{"$f":"Раздел2!F201","v":0}]
[null,"Черлидинг",195,0,0,null,null,null,0,null,null,null,0,0,null,null,null,0,null,null,null,0,null,null,null,null,null,null,{"$f":"Раздел2!F202","v":0}]
[null,"Чир спорт",196,0,0,null,null,null,0,null,null,null,0,0,null,null,null,0,null,null,null,0,null,null,null,null,null,null,{"$f":"Раздел2!F203","v":0}]
[null,"Шахматы",197,0,0,null,null,null,0,null,null,null,0,0,null,null,null,0,null,null,null,0,null,null,null,null,null,null,{"$f":"Раздел2!F204","v":0}]
[null,"Шашки",198,0,0,null,null,null,0,null,null,null,0,0,null,null,null,0,null,null,null,0,null,null,null,null,null,null,{"$f":"Раздел2!F205","v":0}]
[null,"Эстетическая гимнастика",199,0,0,null,null,null,0,null,null,null,0,0,null,null,null,0,null,null,null,0,null,null,null,null,null,null,{"$f":"Раздел2!F206","v":0}]
[null,"Якутские национальные прыжки",200,0,0,null,null,null,0,null,null,null,0,0,null,null,null,0,null,null,null,0,null,null,null,null,null,null,{"$f":"Раздел2!F207","v":0}]
[null,"ИТОГО",201,0,0,{"$f":"SUM(F8:F15,F17:F21,F23:F28,F29:F34,F36:F39,F41:F46,F48:F56,F58:F65,F66:F68,F70:F74,F75,F77:F80,F82:F88,F89:F95,F96:F98,F100:F105,F107:F110,F112:F119,F121:F128,F129:F137,F138:F141,F143:F149,F150:F152,F154:F158,F160:F167,F168,F170:F174,F176:F181,F183:F187,F189:F193,F195:F196,F198:F207)","v":0},{"$f":"SUM(G8:G15,G17:G21,G23:G28,G29:G34,G36:G39,G41:G46,G48:G56,G58:G65,G66:G68,G70:G74,G75,G77:G80,G82:G88,G89:G95,G96:G98,G100:G105,G107:G110,G112:G119,G121:G128,G129:G137,G138:G141,G143:G149,G150:G152,G154:G158,G160:G167,G168,G170:G174,G176:G181,G183:G187,G189:G193,G195:G196,G198:G207)","v":0},{"$f":"SUM(H8:H15,H17:H21,H23:H28,H29:H34,H36:H39,H41:H46,H48:H56,H58:H65,H66:H68,H70:H74,H75,H77:H80,H82:H88,H89:H95,H96:H98,H100:H105,H107:H110,H112:H119,H121:H128,H129:H137,H138:H141,H143:H149,H150:H152,H154:H158,H160:H167,H168,H170:H174,H176:H181,H183:H187,H189:H193,H195:H196,H198:H207)","v":0},0,{"$f":"SUM(J8:J15,J17:J21,J23:J28,J29:J34,J36:J39,J41:J46,J48:J56,J58:J65,J66:J68,J70:J74,J75,J77:J80,J82:J88,J89:J95,J96:J98,J100:J105,J107:J110,J112:J119,J121:J128,J129:J137,J138:J141,J143:J149,J150:J152,J154:J158,J160:J167,J168,J170:J174,J176:J181,J183:J187,J189:J193,J195:J196,J198:J207)","v":0},{"$f":"SUM(K8:K15,K17:K21,K23:K28,K29:K34,K36:K39,K41:K46,K48:K56,K58:K65,K66:K68,K70:K74,K75,K77:K80,K82:K88,K89:K95,K96:K98,K100:K105,K107:K110,K112:K119,K121:K128,K129:K137,K138:K141,K143:K149,K150:K152,K154:K158,K160:K167,K168,K170:K174,K176:K181,K183:K187,K189:K193,K195:K196,K198:K207)","v":0},{"$f":"SUM(L8:L15,L17:L21,L23:L28,L29:L34,L36:L39,L41:L46,L48:L56,L58:L65,L66:L68,L70:L74,L75,L77:L80,L82:L88,L89:L95,L96:L98,L100:L105,L107:L110,L112:L119,L121:L128,L129:L137,L138:L141,L143:L149,L150:L152,L154:L158,L160:L167,L168,L170:L174,L176:L181,L183:L187,L189:L193,L195:L196,L198:L207)","v":0},0,0,{"$f":"SUM(O8:O15,O17:O21,O23:O28,O29:O34,O36:O39,O41:O46,O48:O56,O58:O65,O66:O68,O70:O74,O75,O77:O80,O82:O88,O89:O95,O96:O98,O100:O105,O107:O110,O112:O119,O121:O128,O129:O137,O138:O141,O143:O149,O150:O152,O154:O158,O160:O167,O168,O170:O174,O176:O181,O183:O187,O189:O193,O195:O196,O198:O207)","v":0},{"$f":"SUM(P8:P15,P17:P21,P23:P28,P29:P34,P36:P39,P41:P46,P48:P56,P58:P65,P66:P68,P70:P74,P75,P77:P80,P82:P88,P89:P95,P96:P98,P100:P105,P107:P110,P112:P119,P121:P128,P129:P137,P138:P141,P143:P149,P150:P152,P154:P158,P160:P167,P168,P170:P174,P176:P181,P183:P187,P189:P193,P195:P196,P198:P207)","v":0},{"$f":"SUM(Q8:Q15,Q17:Q21,Q23:Q28,Q29:Q34,Q36:Q39,Q41:Q46,Q48:Q56,Q58:Q65,Q66:Q68,Q70:Q74,Q75,Q77:Q80,Q82:Q88,Q89:Q95,Q96:Q98,Q100:Q105,Q107:Q110,Q112:Q119,Q121:Q128,Q129:Q137,Q138:Q141,Q143:Q149,Q150:Q152,Q154:Q158,Q160:Q167,Q168,Q170:Q174,Q176:Q181,Q183:Q187,Q189:Q193,Q195:Q196,Q198:Q207)","v":0},0,{"$f":"SUM(S8:S15,S17:S21,S23:S28,S29:S34,S36:S39,S41:S46,S48:S56,S58:S65,S66:S68,S70:S74,S75,S77:S80,S82:S88,S89:S95,S96:S98,S100:S105,S107:S110,S112:S119,S121:S128,S129:S137,S138:S141,S143:S149,S150:S152,S154:S158,S160:S167,S168,S170:S174,S176:S181,S183:S187,S189:S193,S195:S196,S198:S207)","v":0},{"$f":"SUM(T8:T15,T17:T21,T23:T28,T29:T34,T36:T39,T41:T46,T48:T56,T58:T65,T66:T68,T70:T74,T75,T77:T80,T82:T88,T89:T95,T96:T98,T100:T105,T107:T110,T112:T119,T121:T128,T129:T137,T138:T141,T143:T149,T150:T152,T154:T158,T160:T167,T168,T170:T174,T176:T181,T183:T187,T189:T193,T195:T196,T198:T207)","v":0},{"$f":"SUM(U8:U15,U17:U21,U23:U28,U29:U34,U36:U39,U41:U46,U48:U56,U58:U65,U66:U68,U70:U74,U75,U77:U80,U82:U88,U89:U95,U96:U98,U100:U105,U107:U110,U112:U119,U121:U128,U129:U137,U138:U141,U143:U149,U150:U152,U154:U158,U160:U167,U168,U170:U174,U176:U181,U183:U187,U189:U193,U195:U196,U198:U207)","v":0},0,{"$f":"SUM(W8:W15,W17:W21,W23:W28,W29:W34,W36:W39,W41:W46,W48:W56,W58:W65,W66:W68,W70:W74,W75,W77:W80,W82:W88,W89:W95,W96:W98,W100:W105,W107:W110,W112:W119,W121:W128,W129:W137,W138:W141,W143:W149,W150:W152,W154:W158,W160:W167,W168,W170:W174,W176:W181,W183:W187,W189:W193,W195:W196,W198:W207)","v":0},{"$f":"SUM(X8:X15,X17:X21,X23:X28,X29:X34,X36:X39,X41:X46,X48:X56,X58:X65,X66:X68,X70:X74,X75,X77:X80,X82:X88,X89:X95,X96:X98,X100:X105,X107:X110,X112:X119,X121:X128,X129:X137,X138:X141,X143:X149,X150:X152,X154:X158,X160:X167,X168,X170:X174,X176:X181,X183:X187,X189:X193,X195:X196,X198:X207)","v":0},{"$f":"SUM(Y8:Y15,Y17:Y21,Y23:Y28,Y29:Y34,Y36:Y39,Y41:Y46,Y48:Y56,Y58:Y65,Y66:Y68,Y70:Y74,Y75,Y77:Y80,Y82:Y88,Y89:Y95,Y96:Y98,Y100:Y105,Y107:Y110,Y112:Y119,Y121:Y128,Y129:Y137,Y138:Y141,Y143:Y149,Y150:Y152,Y154:Y158,Y160:Y167,Y168,Y170:Y174,Y176:Y181,Y183:Y187,Y189:Y193,Y195:Y196,Y198:Y207)","v":0},null,null,null,{"$f":"Раздел2!F208","v":0}]

{"sheet":"Раздел5","index":5,"n_rows":208,"n_cols":18,"rows_kept":208,"cut":false,"hidden":false,"merged":[[2,17,5,17],[2,9,2,14],[0,0,118,0],[2,1,5,1],[2,2,5,2],[2,3,2,8],[0,1,0,14],[3,3,4,4],[3,5,4,6],[3,7,4,8],[3,9,4,10],[3,11,4,12],[3,13,4,14],[0,15,118,15],[1,1,1,14]]}
[null,"Раздел V. Занимающиеся – кандидаты в спортивные сборные команды России"]
[null,"Код по ОКЕИ: человек 792"]
[null,"Виды спорта","№ строки","Из числа занимающихся (гр. 5 раздела II) – кандидаты, состоящие в списках спортивных сборных команд",null,null,null,null,null,"Кандидаты, подготовленные в отчетном году",null,null,null,null,null,null,null,"Раздел2 графа5\nЧисло отделений"]
[null,null,null,"Юношеский состав",null,"Юниорский состав",null,"Основной состав",null,"Юношеский состав",null,"Юниорский состав",null,"Основной состав"]
[]
[null,null,null,"основной","резерв","основной","резерв","основной","резерв","основной","резерв","основной","резерв","основной","резерв"]
[null,1,2,3,4,5,6,7,8,9,10,11,12,13,14]
[null,"Авиамодельный спорт","01",null,null,null,null,null,null,null,null,null,null,null,null,null,null,{"$f":"Раздел2!F8","v":0}]
[null,"Автомобильный спорт","02",null,null,null,null,null,null,null,null,null,null,null,null,null,null,{"$f":"Раздел2!F9","v":0}]
[null,"Айкидо","03",null,null,null,null,null,null,null,null,null,null,null,null,null,null,{"$f":"Раздел2!F10","v":0}]
[null,"Акробатический рок-н-ролл","04",null,null,null,null,null,null,null,null,null,null,null,null,null,null,{"$f":"Раздел2!F11","v":0}]
[null,"Альпинизм","05",null,null,null,null,null,null,null,null,null,null,null,null,null,null,{"$f":"Раздел2!F12","v":0}]
[null,"Американский футбол","06",null,null,null,null,null,null,null,null,null,null,null,null,null,null,{"$f":"Раздел2!F13","v":0}]
[null,"Армрестлинг","07",null,null,null,null,null,null,null,null,null,null,null,null,null,null,{"$f":"Раздел2!F14","v":0}]
[null,"Бадминтон","08",null,null,null,null,null,null,null,null,null,null,null,null,null,null,{"$f":"Раздел2!F15","v":0}]
[null,"Баскетбол - всего","09",{"$f":"SUM(D17:D18)","v":0},0,0,0,0,0,0,0,0,0,0,0,null,null,{"$f":"Раздел2!F16","v":0}]
[null,"в том числе:\nБаскетбол (муж.)",10,null,null,null,null,null,null,null,null,null,null,null,null,null,null,{"$f":"Раздел2!F17","v":0}]
[null,"Баскетбол (жен.)",11,null,null,null,null,null,null,null,null,null,null,null,null,null,null,{"$f":"Раздел2!F18","v":0}]
[null,"Бейсбол",12,null,null,null,null,null,null,null,null,null,null,null,null,null,null,{"$f":"Раздел2!F19","v":0}]
[null,"Биатлон",13,null,null,null,null,null,null,null,null,null,null,null,null,null,null,{"$f":"Раздел2!F20","v":0}]
[null,"Бильярдный спорт",14,null,null,null,null,null,null,null,null,null,null,null,null,null,null,{"$f":"Раздел2!F21","v":0}]
[null,"Бобслей - всего",15,{"$f":"SUM(D23:D24)","v":0},0,0,0,0,0,0,0,0,0,0,0,null,null,{"$f":"Раздел2!F22","v":0}]
[null,"в том числе:\nБобслей",16,null,null,null,null,null,null,null,null,null,null,null,null,null,null,{"$f":"Раздел2!F23","v":0}]
[null,"Скелетон",17,null,null,null,null,null,null,null,null,null,null,null,null,null,null,{"$f":"Раздел2!F24","v":0}]
[null,"Бодибилдинг",18,null,null,null,null,null,null,null,null,null,null,null,null,null,null,{"$f":"Раздел2!F25","v":0}]
[null,"Бокс",19,null,null,null,null,null,null,null,null,null,null,null,null,null,null,{"$f":"Раздел2!F26","v":0}]
[null,"Борьба на поясах",20,null,null,null,null,null,null,null,null,null,null,null,null,null,null,{"$f":"Раздел2!F27","v":0}]
[null,"Боулинг",21,null,null,null,null,null,null,null,null,null,null,null,null,null,null,{"$f":"Раздел2!F28","v":0}]
[null,"Велоспорт ВМХ",22,null,null,null,null,null,null,null,null,null,null,null,null,null,null,{"$f":"Раздел2!F29","v":0}]
[null,"Велоспорт – маунтинбайк",23,null,null,null,null,null,null,null,null,null,null,null,null,null,null,{"$f":"Раздел2!F30","v":0}]
[null,"Велоспорт – трек",24,null,null,null,null,null,null,null,null,null,null,null,null,null,null,{"$f":"Раздел2!F31","v":0}]
[null,"Велоспорт – шоссе",25,null,null,null,null,null,null,null,null,null,null,null,null,null,null,{"$f":"Раздел2!F32","v":0}]
[null,"Вертолетный спорт",26,null,null,null,null,null,null,null,null,null,null,null,null,null,null,{"$f":"Раздел2!F33","v":0}]
[null,"Водно-моторный спорт",27,null,null,null,null,null,null,null,null,null,null,null,null,null,null,{"$f":"Раздел2!F34","v":0}]
[null,"Водное поло - всего ",28,{"$f":"SUM(D36:D37)","v":0},0,0,0,0,0,0,0,0,0,0,0,null,null,{"$f":"Раздел2!F35","v":0}]
[null,"в том числе:\nВодное поло (муж.)",29,null,null,null,null,null,null,null,null,null,null,null,null,null,null,{"$f":"Раздел2!F36","v":0}]
[null,"Водное поло (жен.)",30,null,null,null,null,null,null,null,null,null,null,null,null,null,null,{"$f":"Раздел2!F37","v":0}]
[null,"Воднолыжный спорт",31,null,null,null,null,null,null,null,null,null,null,null,null,null,null,{"$f":"Раздел2!F38","v":0}]
[null,"Воздухоплавательный спорт",32,null,null,null,null,null,null,null,null,null,null,null,null,null,null,{"$f":"Раздел2!F39","v":0}]
[null,"Волейбол - всего",33,{"$f":"SUM(D41:D44)","v":0},0,0,0,0,0,0,0,0,0,0,0,null,null,{"$f":"Раздел2!F40","v":0}]
[null,"в том числе:\nВолейбол (муж.)",34,null,null,null,null,null,null,null,null,null,null,null,null,null,null,{"$f":"Раздел2!F41","v":0}]
[null,"Волейбол (жен.)",35,null,null,null,null,null,null,null,null,null,null,null,null,null,null,{"$f":"Раздел2!F42","v":0}]
[null,"Пляжный волейбол (муж.)",36,null,null,null,null,null,null,null,null,null,null,null,null,null,null,{"$f":"Раздел2!F43","v":0}]
[null,"Пляжный волейбол (жен.)",37,null,null,null,null,null,null,null,null,null,null,null,null,null,null,{"$f":"Раздел2!F44","v":0}]
[null,"Восточное боевое единоборство",38,null,null,null,null,null,null,null,null,null,null,null,null,null,null,{"$f":"Раздел2!F45","v":0}]
[null,"Всестилевое карате",39,null,null,null,null,null,null,null,null,null,null,null,null,null,null,{"$f":"Раздел2!F46","v":0}]
[null,"Гандбол - всего",40,{"$f":"SUM(D48:D49)","v":0},0,0,0,0,0,0,0,0,0,0,0,null,null,{"$f":"Раздел2!F47","v":0}]
[null,"в том числе:\nГандбол (муж.)",41,null,null,null,null,null,null,null,null,null,null,null,null,null,null,{"$f":"Раздел2!F48","v":0}]
[null,"Гандбол (жен.)",42,null,null,null,null,null,null,null,null,null,null,null,null,null,null,{"$f":"Раздел2!F49","v":0}]
[null,"Гиревой спорт",43,null,null,null,null,null,null,null,null,null,null,null,null,null,null,{"$f":"Раздел2!F50","v":0}]
[null,"Го",44,null,null,null,null,null,null,null,null,null,null,null,null,null,null,{"$f":"Раздел2!F51","v":0}]
[null,"Гольф",45,null,null,null,null,null,null,null,null,null,null,null,null,null,null,{"$f":"Раздел2!F52","v":0}]
[null,"Горнолыжный спорт",46,null,null,null,null,null,null,null,null,null,null,null,null,null,null,{"$f":"Раздел2!F53","v":0}]
[null,"Городошный спорт",47,null,null,null,null,null,null,null,null,null,null,null,null,null,null,{"$f":"Раздел2!F54","v":0}]
[null,"Гребля на байдарках и каноэ",48,null,null,null,null,null,null,null,null,null,null,null,null,null,null,{"$f":"Раздел2!F55","v":0}]
[null,"Гребной слалом",49,null,null,null,null,null,null,null,null,null,null,null,null,null,null,{"$f":"Раздел2!F56","v":0}]
[null,"Гребной спорт - всего",50,{"$f":"SUM(D58:D61)","v":0},0,0,0,0,0,0,0,0,0,0,0,null,null,{"$f":"Раздел2!F57","v":0}]
[null,"в том числе:\nАкадемическая гребля",51,null,null,null,null,null,null,null,null,null,null,null,null,null,null,{"$f":"Раздел2!F58","v":0}]
[null,"Гребля-индор",52,null,null,null,null,null,null,null,null,null,null,null,null,null,null,{"$f":"Раздел2!F59","v":0}]
[null,"Народная гребля",53,null,null,null,null,null,null,null,null,null,null,null,null,null,null,{"$f":"Раздел2!F60","v":0}]
[null,"Прибрежная гребля",54,null,null,null,null,null,null,null,null,null,null,null,null,null,null,{"$f":"Раздел2!F61","v":0}]
[null,"Дартс",55,null,null,null,null,null,null,null,null,null,null,null,null,null,null,{"$f":"Раздел2!F62","v":0}]
[null,"Джиу-джитсу",56,null,null,null,null,null,null,null,null,null,null,null,null,null,null,{"$f":"Раздел2!F63","v":0}]
[null,"Дзюдо",57,null,null,null,null,null,null,null,null,null,null,null,null,null,null,{"$f":"Раздел2!F64","v":0}]
[null,"Капоэйра",58,null,null,null,null,null,null,null,null,null,null,null,null,null,null,{"$f":"Раздел2!F65","v":0}]
[null,"Каратэ",59,null,null,null,null,null,null,null,null,null,null,null,null,null,null,{"$f":"Раздел2!F66","v":0}]
[null,"Кендо",60,null,null,null,null,null,null,null,null,null,null,null,null,null,null,{"$f":"Раздел2!F67","v":0}]
[null,"Керешу",61,null,null,null,null,null,null,null,null,null,null,null,null,null,null,{"$f":"Раздел2!F68","v":0}]
[null,"Керлинг - всего",62,{"$f":"SUM(D70:D71)","v":0},0,0,0,0,0,0,0,0,0,0,0,null,null,{"$f":"Раздел2!F69","v":0}]
[null,"в том числе:\nКерлинг (муж.)",63,null,null,null,null,null,null,null,null,null,null,null,null,null,null,{"$f":"Раздел2!F70","v":0}]
[null,"Керлинг (жен.)",64,null,null,null,null,null,null,null,null,null,null,null,null,null,null,{"$f":"Раздел2!F71","v":0}]
[null,"Кикбоксинг",65,null,null,null,null,null,null,null,null,null,null,null,null,null,null,{"$f":"Раздел2!F72","v":0}]
[null,"Кинологический спорт",66,null,null,null,null,null,null,null,null,null,null,null,null,null,null,{"$f":"Раздел2!F73","v":0}]
[null,"Киокусинкай",67,null,null,null,null,null,null,null,null,null,null,null,null,null,null,{"$f":"Раздел2!F74","v":0}]
[null,"Конный спорт",68,null,null,null,null,null,null,null,null,null,null,null,null,null,null,{"$f":"Раздел2!F75","v":0}]
[null,"Конькобежный спорт - всего",69,{"$f":"SUM(D77:D78)","v":0},0,0,0,0,0,0,0,0,0,0,0,null,null,{"$f":"Раздел2!F76","v":0}]
[null,"в том числе:\nКонькобежный спорт",70,null,null,null,null,null,null,null,null,null,null,null,null,null,null,{"$f":"Раздел2!F77","v":0}]
[null,"Шорт-трек",71,null,null,null,null,null,null,null,null,null,null,null,null,null,null,{"$f":"Раздел2!F78","v":0}]
[null,"Корэш",72,null,null,null,null,null,null,null,null,null,null,null,null,null,null,{"$f":"Раздел2!F79","v":0}]
[null,"Лапта",73,null,null,null,null,null,null,null,null,null,null,null,null,null,null,{"$f":"Раздел2!F80","v":0}]
[null,"Легкая атлетика - всего",74,{"$f":"SUM(D82:D88)","v":0},0,0,0,0,0,0,0,0,0,0,0,null,null,{"$f":"Раздел2!F81","v":0}]
[null,"в том числе:\nСпринтерский и барьерный бег",75,null,null,null,null,null,null,null,null,null,null,null,null,null,null,{"$f":"Раздел2!F82","v":0}]
[null,"Бег на средние дистанции и бег с препятствиями",76,null,null,null,null,null,null,null,null,null,null,null,null,null,null,{"$f":"Раздел2!F83","v":0}]
[null,"Бег на длинные и сверхдлинные дистанции",77,null,null,null,null,null,null,null,null,null,null,null,null,null,null,{"$f":"Раздел2!F84","v":0}]
[null,"Многоборья",78,null,null,null,null,null,null,null,null,null,null,null,null,null,null,{"$f":"Раздел2!F85","v":0}]
[null,"Прыжки",79,null,null,null,null,null,null,null,null,null,null,null,null,null,null,{"$f":"Раздел2!F86","v":0}]
[null,"Метания",80,null,null,null,null,null,null,null,null,null,null,null,null,null,null,{"$f":"Раздел2!F87","v":0}]
[null,"Спортивная ходьба",81,null,null,null,null,null,null,null,null,null,null,null,null,null,null,{"$f":"Раздел2!F88","v":0}]
[null,"Лыжное двоеборье",82,null,null,null,null,null,null,null,null,null,null,null,null,null,null,{"$f":"Раздел2!F89","v":0}]
[null,"Лыжные гонки",83,null,null,null,null,null,null,null,null,null,null,null,null,null,null,{"$f":"Раздел2!F90","v":0}]
[null,"Мас-рестлинг",84,null,null,null,null,null,null,null,null,null,null,null,null,null,null,{"$f":"Раздел2!F91","v":0}]
[null,"Морское многоборье",85,null,null,null,null,null,null,null,null,null,null,null,null,null,null,{"$f":"Раздел2!F92","v":0}]
[null,"Мотоциклетный спорт",86,null,null,null,null,null,null,null,null,null,null,null,null,null,null,{"$f":"Раздел2!F93","v":0}]
[null,"Настольный теннис",87,null,null,null,null,null,null,null,null,null,null,null,null,null,null,{"$f":"Раздел2!F94","v":0}]
[null,"Парашютный спорт",88,null,null,null,null,null,null,null,null,null,null,null,null,null,null,{"$f":"Раздел2!F95","v":0}]
[null,"Парусный спорт",89,null,null,null,null,null,null,null,null,null,null,null,null,null,null,{"$f":"Раздел2!F96","v":0}]
[null,"Пауэрлифтинг",90,null,null,null,null,null,null,null,null,null,null,null,null,null,null,{"$f":"Раздел2!F97","v":0}]
[null,"Перетягивание каната",91,null,null,null,null,null,null,null,null,null,null,null,null,null,null,{"$f":"Раздел2!F98","v":0}]
[null,"Плавание - всего",92,{"$f":"SUM(D100:D101)","v":0},0,0,0,0,0,0,0,0,0,0,0,null,null,{"$f":"Раздел2!F99","v":0}]
[null,"в том числе:\nПлавание ",93,null,null,null,null,null,null,null,null,null,null,null,null,null,null,{"$f":"Раздел2!F100","v":0}]
[null,"Открытая вода",94,null,null,null,null,null,null,null,null,null,null,null,null,null,null,{"$f":"Раздел2!F101","v":0}]
[null,"Планерный спорт",95,null,null,null,null,null,null,null,null,null,null,null,null,null,null,{"$f":"Раздел2!F102","v":0}]
[null,"Подводный спорт",96,null,null,null,null,null,null,null,null,null,null,null,null,null,null,{"$f":"Раздел2!F103","v":0}]
[null,"Полиатлон",97,null,null,null,null,null,null,null,null,null,null,null,null,null,null,{"$f":"Раздел2!F104","v":0}]
[null,"Практическая стрельба",98,null,null,null,null,null,null,null,null,null,null,null,null,null,null,{"$f":"Раздел2!F105","v":0}]
[null,"Прыжки в воду - всего",99,{"$f":"SUM(D107:D108)","v":0},0,0,0,0,0,0,0,0,0,0,0,null,null,{"$f":"Раздел2!F106","v":0}]
[null,"в том числе:\nПрыжки в воду",100,null,null,null,null,null,null,null,null,null,null,null,null,null,null,{"$f":"Раздел2!F107","v":0}]
[null,"Прыжки в открытый водоем",101,null,null,null,null,null,null,null,null,null,null,null,null,null,null,{"$f":"Раздел2!F108","v":0}]
[null,"Прыжки на батуте",102,null,null,null,null,null,null,null,null,null,null,null,null,null,null,{"$f":"Раздел2!F109","v":0}]
[null,"Прыжки на лыжах с трамплина",103,null,null,null,null,null,null,null,null,null,null,null,null,null,null,{"$f":"Раздел2!F110","v":0}]
[null,"Пулевая стрельба - всего",104,{"$f":"SUM(D112:D116)","v":0},0,0,0,0,0,0,0,0,0,0,0,null,null,{"$f":"Раздел2!F111","v":0}]
[null,"в том числе:\nПневматическая винтовка",105,null,null,null,null,null,null,null,null,null,null,null,null,null,null,{"$f":"Раздел2!F112","v":0}]
[null,"Пневматический пистолет",106,null,null,null,null,null,null,null,null,null,null,null,null,null,null,{"$f":"Раздел2!F113","v":0}]
[null,"Малокалиберная винтоква",107,null,null,null,null,null,null,null,null,null,null,null,null,null,null,{"$f":"Раздел2!F114","v":0}]
[null,"Малокалиберный пистолет",108,null,null,null,null,null,null,null,null,null,null,null,null,null,null,{"$f":"Раздел2!F115","v":0}]
[null,"Движущаяся мишень",109,null,null,null,null,null,null,null,null,null,null,null,null,null,null,{"$f":"Раздел2!F116","v":0}]
[null,"Пэйнтбол",110,null,null,null,null,null,null,null,null,null,null,null,null,null,null,{"$f":"Раздел2!F117","v":0}]
[null,"Радиоспорт",111,null,null,null,null,null,null,null,null,null,null,null,null,null,null,{"$f":"Раздел2!F118","v":0}]
[null,"Рафтинг",112,null,null,null,null,null,null,null,null,null,null,null,null,null,null,{"$f":"Раздел2!F119","v":0}]
[null,"Регби - всего",113,{"$f":"SUM(D121:D124)","v":0},0,0,0,0,0,0,0,0,0,0,0,null,null,{"$f":"Раздел2!F120","v":0}]
[null,"в том числе:\nРегби",114,null,null,null,null,null,null,null,null,null,null,null,null,null,null,{"$f":"Раздел2!F121","v":0}]
[null,"Регби 7 (муж.)",115,null,null,null,null,null,null,null,null,null,null,null,null,null,null,{"$f":"Раздел2!F122","v":0}]
[null,"Регби 7 (жен.)",116,null,null,null,null,null,null,null,null,null,null,null,null,null,null,{"$f":"Раздел2!F123","v":0}]
[null,"Пляжный регби",117,null,null,null,null,null,null,null,null,null,null,null,null,null,null,{"$f":"Раздел2!F124","v":0}]
[null,"Рукопашный бой",118,null,null,null,null,null,null,null,null,null,null,null,null,null,null,{"$f":"Раздел2!F125","v":0}]
[null,"Рыболовный спорт",119,null,null,null,null,null,null,null,null,null,null,null,null,null,null,{"$f":"Раздел2!F126","v":0}]
[null,"Сават",120,null,null,null,null,null,null,null,null,null,null,null,null,null,null,{"$f":"Раздел2!F127","v":0}]
[null,"Самбо",121,null,null,null,null,null,null,null,null,null,null,null,null,null,null,{"$f":"Раздел2!F128","v":0}]
[null,"Самолетный спорт",122,null,null,null,null,null,null,null,null,null,null,null,null,null,null,{"$f":"Раздел2!F129","v":0}]
[null,"Санный спорт",123,null,null,null,null,null,null,null,null,null,null,null,null,null,null,{"$f":"Раздел2!F130","v":0}]
[null,"Северное многоборье",124,null,null,null,null,null,null,null,null,null,null,null,null,null,null,{"$f":"Раздел2!F131","v":0}]
[null,"Синхронное плавание",125,null,null,null,null,null,null,null,null,null,null,null,null,null,null,{"$f":"Раздел2!F132","v":0}]
[null,"Скалолазание",126,null,null,null,null,null,null,null,null,null,null,null,null,null,null,{"$f":"Раздел2!F133","v":0}]
[null,"Сквош",127,null,null,null,null,null,null,null,null,null,null,null,null,null,null,{"$f":"Раздел2!F134","v":0}]
[null,"Смешанное боевое единоборство (ММА)",128,null,null,null,null,null,null,null,null,null,null,null,null,null,null,{"$f":"Раздел2!F135","v":0}]
[null,"Сноуборд",129,null,null,null,null,null,null,null,null,null,null,null,null,null,null,{"$f":"Раздел2!F136","v":0}]
[null,"Современное пятиборье",130,null,null,null,null,null,null,null,null,null,null,null,null,null,null,{"$f":"Раздел2!F137","v":0}]
[null,"Софтбол",131,null,null,null,null,null,null,null,null,null,null,null,null,null,null,{"$f":"Раздел2!F138","v":0}]
[null,"Спорт сверхлегкой авиации",132,null,null,null,null,null,null,null,null,null,null,null,null,null,null,{"$f":"Раздел2!F139","v":0}]
[null,"Спортивная акробатика",133,null,null,null,null,null,null,null,null,null,null,null,null,null,null,{"$f":"Раздел2!F140","v":0}]
[null,"Спортивная аэробика",134,null,null,null,null,null,null,null,null,null,null,null,null,null,null,{"$f":"Раздел2!F141","v":0}]
[null,"Спортивная борьба - всего",135,{"$f":"SUM(D143:D147)","v":0},0,0,0,0,0,0,0,0,0,0,0,null,null,{"$f":"Раздел2!F142","v":0}]
[null,"в том числе:\nВольная борьба",136,null,null,null,null,null,null,null,null,null,null,null,null,null,null,{"$f":"Раздел2!F143","v":0}]
[null,"Греко-римская борьба",137,null,null,null,null,null,null,null,null,null,null,null,null,null,null,{"$f":"Раздел2!F144","v":0}]
[null,"Грэпплинг",138,null,null,null,null,null,null,null,null,null,null,null,null,null,null,{"$f":"Раздел2!F145","v":0}]
[null,"Грэпплинг-ги",139,null,null,null,null,null,null,null,null,null,null,null,null,null,null,{"$f":"Раздел2!F146","v":0}]
[null,"Панкратион",140,null,null,null,null,null,null,null,null,null,null,null,null,null,null,{"$f":"Раздел2!F147","v":0}]
[null,"Спортивно-прикладное собаководство",141,null,null,null,null,null,null,null,null,null,null,null,null,null,null,{"$f":"Раздел2!F148","v":0}]
[null,"Спортивная гимнастика",142,null,null,null,null,null,null,null,null,null,null,null,null,null,null,{"$f":"Раздел2!F149","v":0}]
[null,"Спортивное ориентирование",143,null,null,null,null,null,null,null,null,null,null,null,null,null,null,{"$f":"Раздел2!F150","v":0}]
[null,"Спортивный бридж",144,null,null,null,null,null,null,null,null,null,null,null,null,null,null,{"$f":"Раздел2!F151","v":0}]
[null,"Спортивный туризм",145,null,null,null,null,null,null,null,null,null,null,null,null,null,null,{"$f":"Раздел2!F152","v":0}]
[null,"Стендовая стрельба - всего",146,{"$f":"SUM(D154:D157)","v":0},0,0,0,0,0,0,0,0,0,0,0,null,null,{"$f":"Раздел2!F153","v":0}]
[null,"в том числе:\nТрап",147,null,null,null,null,null,null,null,null,null,null,null,null,null,null,{"$f":"Раздел2!F154","v":0}]
[null,"Скит",148,null,null,null,null,null,null,null,null,null,null,null,null,null,null,{"$f":"Раздел2!F155","v":0}]
[null,"Дубль-трап",149,null,null,null,null,null,null,null,null,null,null,null,null,null,null,{"$f":"Раздел2!F156","v":0}]
[null,"Спортинг",150,null,null,null,null,null,null,null,null,null,null,null,null,null,null,{"$f":"Раздел2!F157","v":0}]
[null,"Стрельба из арбалета",151,null,null,null,null,null,null,null,null,null,null,null,null,null,null,{"$f":"Раздел2!F158","v":0}]
[null,"Стрельба из лука - всего",152,{"$f":"SUM(D160:D162)","v":0},0,0,0,0,0,0,0,0,0,0,0,null,null,{"$f":"Раздел2!F159","v":0}]
[null,"в том числе:\nКлассический лук",153,null,null,null,null,null,null,null,null,null,null,null,null,null,null,{"$f":"Раздел2!F160","v":0}]
[null,"   Блочный лук",154,null,null,null,null,null,null,null,null,null,null,null,null,null,null,{"$f":"Раздел2!F161","v":0}]
[null,"   Ачери ",155,null,null,null,null,null,null,null,null,null,null,null,null,null,null,{"$f":"Раздел2!F162","v":0}]
[null,"Судомодельный спорт",156,null,null,null,null,null,null,null,null,null,null,null,null,null,null,{"$f":"Раздел2!F163","v":0}]
[null,"Сумо",157,null,null,null,null,null,null,null,null,null,null,null,null,null,null,{"$f":"Раздел2!F164","v":0}]
[null,"Тайский бокс",158,null,null,null,null,null,null,null,null,null,null,null,null,null,null,{"$f":"Раздел2!F165","v":0}]
[null,"Танцевальный спорт",159,null,null,null,null,null,null,null,null,null,null,null,null,null,null,{"$f":"Раздел2!F166","v":0}]
[null,"Теннис",160,null,null,null,null,null,null,null,null,null,null,null,null,null,null,{"$f":"Раздел2!F167","v":0}]
[null,"Триатлон",161,null,null,null,null,null,null,null,null,null,null,null,null,null,null,{"$f":"Раздел2!F168","v":0}]
[null,"Тхэквондо - всего",162,{"$f":"SUM(D170:D171)","v":0},0,0,0,0,0,0,0,0,0,0,0,null,null,{"$f":"Раздел2!F169","v":0}]
[null,"в том числе:\nТхэквондо (ГТФ, ИТФ, МФТ)",163,null,null,null,null,null,null,null,null,null,null,null,null,null,null,{"$f":"Раздел2!F170","v":0}]
[null,"Тхэквондо (ВТФ)",164,null,null,null,null,null,null,null,null,null,null,null,null,null,null,{"$f":"Раздел2!F171","v":0}]
[null,"Тяжелая атлетика",165,null,null,null,null,null,null,null,null,null,null,null,null,null,null,{"$f":"Раздел2!F172","v":0}]
[null,"Универсальный бой",166,null,null,null,null,null,null,null,null,null,null,null,null,null,null,{"$f":"Раздел2!F173","v":0}]
[null,"Ушу",167,null,null,null,null,null,null,null,null,null,null,null,null,null,null,{"$f":"Раздел2!F174","v":0}]
[null,"Фехтование - всего",168,{"$f":"SUM(D176:D179)","v":0},0,0,0,0,0,0,0,0,0,0,0,null,null,{"$f":"Раздел2!F175","v":0}]
[null,"в том числе:\nРапира",169,null,null,null,null,null,null,null,null,null,null,null,null,null,null,{"$f":"Раздел2!F176","v":0}]
[null,"Сабля",170,null,null,null,null,null,null,null,null,null,null,null,null,null,null,{"$f":"Раздел2!F177","v":0}]
[null,"Шпага",171,null,null,null,null,null,null,null,null,null,null,null,null,null,null,{"$f":"Раздел2!F178","v":0}]
[null,"Арт-фехтование",172,null,null,null,null,null,null,null,null,null,null,null,null,null,null,{"$f":"Раздел2!F179","v":0}]
[null,"Фигурное катание на коньках",173,null,null,null,null,null,null,null,null,null,null,null,null,null,null,{"$f":"Раздел2!F180","v":0}]
[null,"Флорбол",174,null,null,null,null,null,null,null,null,null,null,null,null,null,null,{"$f":"Раздел2!F181","v":0}]
[null,"Фристайл - всего",175,{"$f":"SUM(D183:D187)","v":0},0,0,0,0,0,0,0,0,0,0,0,null,null,{"$f":"Раздел2!F182","v":0}]
[null,"в том числе:\nАкробатика",176,null,null,null,null,null,null,null,null,null,null,null,null,null,null,{"$f":"Раздел2!F183","v":0}]
[null,"Могул",177,null,null,null,null,null,null,null,null,null,null,null,null,null,null,{"$f":"Раздел2!F184","v":0}]
[null,"Ски-кросс",178,null,null,null,null,null,null,null,null,null,null,null,null,null,null,{"$f":"Раздел2!F185","v":0}]
[null,"Хаф-пайп",179,null,null,null,null,null,null,null,null,null,null,null,null,null,null,{"$f":"Раздел2!F186","v":0}]
[null,"Слоуп-стайл",180,null,null,null,null,null,null,null,null,null,null,null,null,null,null,{"$f":"Раздел2!F187","v":0}]
[null,"Футбол - всего",181,{"$f":"SUM(D189:D192)","v":0},0,0,0,0,0,0,0,0,0,0,0,null,null,{"$f":"Раздел2!F188","v":0}]
[null,"в том числе:\nФутбол (муж.)",182,null,null,null,null,null,null,null,null,null,null,null,null,null,null,{"$f":"Раздел2!F189","v":0}]
[null,"Футбол (жен.)",183,null,null,null,null,null,null,null,null,null,null,null,null,null,null,{"$f":"Раздел2!F190","v":0}]
[null,"Мини-футбол (футзал)",184,null,null,null,null,null,null,null,null,null,null,null,null,null,null,{"$f":"Раздел2!F191","v":0}]
[null,"Пляжный футбол",185,null,null,null,null,null,null,null,null,null,null,null,null,null,null,{"$f":"Раздел2!F192","v":0}]
[null,"Хапсагай",186,null,null,null,null,null,null,null,null,null,null,null,null,null,null,{"$f":"Раздел2!F193","v":0}]
[null,"Хоккей - всего",187,{"$f":"SUM(D195:D196)","v":0},0,0,0,0,0,0,0,0,0,0,0,null,null,{"$f":"Раздел2!F194","v":0}]
[null,"в том числе:\nХоккей (муж.)",188,null,null,null,null,null,null,null,null,null,null,null,null,null,null,{"$f":"Раздел2!F195","v":0}]
[null,"Хоккей (жен.)",189,null,null,null,null,null,null,null,null,null,null,null,null,null,null,{"$f":"Раздел2!F196","v":0}]
[null,"Хоккей на траве",190,{"$f":"SUM(D198:D199)","v":0},0,0,0,0,0,0,0,0,0,0,0,null,null,{"$f":"Раздел2!F197","v":0}]
[null,"Хоккей на траве (муж.)",191,null,null,null,null,null,null,null,null,null,null,null,null,null,null,{"$f":"Раздел2!F198","v":0}]
[null,"Хоккей на траве (жен.)",192,null,null,null,null,null,null,null,null,null,null,null,null,null,null,{"$f":"Раздел2!F199","v":0}]
[null,"Хоккей с мячом",193,null,null,null,null,null,null,null,null,null,null,null,null,null,null,{"$f":"Раздел2!F200","v":0}]
[null,"Художественная гимнастика",194,null,null,null,null,null,null,null,null,null,null,null,null,null,null,{"$f":"Раздел2!F201","v":0}]
[null,"Черлидинг",195,null,null,null,null,null,null,null,null,null,null,null,null,null,null,{"$f":"Раздел2!F202","v":0}]
[null,"Чир спорт",196,null,null,null,null,null,null,null,null,null,null,null,null,null,null,{"$f":"Раздел2!F203","v":0}]
[null,"Шахматы",197,null,null,null,null,null,null,null,null,null,null,null,null,null,null,{"$f":"Раздел2!F204","v":0}]
[null,"Шашки",198,null,null,null,null,null,null,null,null,null,null,null,null,null,null,{"$f":"Раздел2!F205","v":0}]
[null,"Эстетическая гимнастика",199,null,null,null,null,null,null,null,null,null,null,null,null,null,null,{"$f":"Раздел2!F206","v":0}]
[null,"Якутские национальные прыжки",200,null,null,null,null,null,null,null,null,null,null,null,null,null,null,{"$f":"Раздел2!F207","v":0}]
[null,"ИТОГО",201,{"$f":"SUM(D8:D15,D17:D21,D23:D28,D29:D34,D36:D39,D41:D46,D48:D56,D58:D65,D66:D68,D70:D74,D75,D77:D80,D82:D88,D89:D95,D96:D98,D100:D105,D107:D110,D112:D119,D121:D128,D129:D137,D138:D141,D143:D149,D150:D152,D154:D158,D160:D167,D168,D170:D174,D176:D181,D183:D187,D189:D193,D195:D196,D198:D207)","v":0},{"$f":"SUM(E8:E15,E17:E21,E23:E28,E29:E34,E36:E39,E41:E46,E48:E56,E58:E65,E66:E68,E70:E74,E75,E77:E80,E82:E88,E89:E95,E96:E98,E100:E105,E107:E110,E112:E119,E121:E128,E129:E137,E138:E141,E143:E149,E150:E152,E154:E158,E160:E167,E168,E170:E174,E176:E181,E183:E187,E189:E193,E195:E196,E198:E207)","v":0},{"$f":"SUM(F8:F15,F17:F21,F23:F28,F29:F34,F36:F39,F41:F46,F48:F56,F58:F65,F66:F68,F70:F74,F75,F77:F80,F82:F88,F89:F95,F96:F98,F100:F105,F107:F110,F112:F119,F121:F128,F129:F137,F138:F141,F143:F149,F150:F152,F154:F158,F160:F167,F168,F170:F174,F176:F181,F183:F187,F189:F193,F195:F196,F198:F207)","v":0},{"$f":"SUM(G8:G15,G17:G21,G23:G28,G29:G34,G36:G39,G41:G46,G48:G56,G58:G65,G66:G68,G70:G74,G75,G77:G80,G82:G88,G89:G95,G96:G98,G100:G105,G107:G110,G112:G119,G121:G128,G129:G137,G138:G141,G143:G149,G150:G152,G154:G158,G160:G167,G168,G170:G174,G176:G181,G183:G187,G189:G193,G195:G196,G198:G207)","v":0},0,0,0,0,0,0,0,0,null,null,{"$f":"Раздел2!F208","v":0}]

{"sheet":"Раздел6","index":6,"n_rows":208,"n_cols":37,"rows_kept":208,"cut":false,"hidden":false,"merged":[[0,0,118,0],[2,1,5,1],[2,2,5,2],[2,36,5,36],[1,28,1,33],[2,3,5,3],[2,4,2,33],[0,1,0,33],[0,34,118,34],[3,4,4,8],[3,9,4,13],[3,14,4,18],[3,19,4,23],[3,24,4,28],[3,29,4,33]]}
[null,"Раздел VI. Всероссийские спортивные соревнования"]
[null,null,null,null,null,null,null,null,null,null,null,null,null,null,null,null,null,null,null,null,null,null,null,null,null,null,null,null,"Коды по ОКЕИ: человек – 792, единица - 642"]
[null,"Виды спорта","№ строки","Всего зани-маю-щихся","Результаты выступлений на соревнованиях",null,null,null,null,null,null,null,null,null,null,null,null,null,null,null,null,null,null,null,null,null,null,null,null,null,null,null,null,null,null,null,"Раздел2 графа3\nЧисло отделений"]
[null,null,null,null,"Всего",null,null,null,null,"Чемпионат России",null,null,null,null,"Первенство России среди юниоров и юниорок",null,null,null,null,"Первенство России среди юношей и девушек",null,null,null,null,"Кубок России",null,null,null,null,"Прочие официальные всероссийские соревнования"]
[]
[null,null,null,null,1,2,3,"4-6","уча-стие",1,2,3,"4-6","уча-стие",1,2,3,"4-6","уча-стие",1,2,3,"4-6","уча-стие",1,2,3,"4-6","уча-стие",1,2,3,"4-6","уча-стие"]
[null,1,2,3,4,5,6,7,8,9,10,11,12,13,14,15,16,17,18,19,20,21,22,23,24,25,26,27,28,29,30,31,32,33]
[null,"Авиамодельный спорт","01",{"$f":"Раздел2!F8","v":0},{"$f":"J8+O8+T8+Y8+AD8","v":0},{"$f":"K8+P8+U8+Z8+AE8","v":0},{"$f":"L8+Q8+V8+AA8+AF8","v":0},{"$f":"M8+R8+W8+AB8+AG8","v":0},{"$f":"N8+S8+X8+AC8+AH8","v":0},null,null,null,null,null,null,null,null,null,null,null,null,null,null,null,null,null,null,null,null,null,null,null,null,null,null,null,{"$f":"Раздел2!#REF!","v":{"$error":"#REF!"}}]
[null,"Автомобильный спорт","02",{"$f":"Раздел2!F9","v":0},{"$f":"J9+O9+T9+Y9+AD9","v":0},{"$f":"K9+P9+U9+Z9+AE9","v":0},{"$f":"L9+Q9+V9+AA9+AF9","v":0},{"$f":"M9+R9+W9+AB9+AG9","v":0},{"$f":"N9+S9+X9+AC9+AH9","v":0},null,null,null,null,null,null,null,null,null,null,null,null,null,null,null,null,null,null,null,null,null,null,null,null,null,null,null,{"$f":"Раздел2!#REF!","v":{"$error":"#REF!"}}]
[null,"Айкидо","03",{"$f":"Раздел2!F10","v":0},0,0,0,0,0,null,null,null,null,null,null,null,null,null,null,null,null,null,null,null,null,null,null,null,null,null,null,null,null,null,null,null,{"$f":"Раздел2!#REF!","v":{"$error":"#REF!"}}]
[null,"Акробатический рок-н-ролл","04",{"$f":"Раздел2!F11","v":0},0,0,0,0,0,null,null,null,null,null,null,null,null,null,null,null,null,null,null,null,null,null,null,null,null,null,null,null,null,null,null,null,{"$f":"Раздел2!#REF!","v":{"$error":"#REF!"}}]
[null,"Альпинизм","05",{"$f":"Раздел2!F12","v":0},0,0,0,0,0,null,null,null,null,null,null,null,null,null,null,null,null,null,null,null,null,null,null,null,null,null,null,null,null,null,null,null,{"$f":"Раздел2!#REF!","v":{"$error":"#REF!"}}]
[null,"Американский футбол","06",{"$f":"Раздел2!F13","v":0},0,0,0,0,0,null,null,null,null,null,null,null,null,null,null,null,null,null,null,null,null,null,null,null,null,null,null,null,null,null,null,null,{"$f":"Раздел2!#REF!","v":{"$error":"#REF!"}}]
[null,"Армрестлинг","07",{"$f":"Раздел2!F14","v":0},0,0,0,0,0,null,null,null,null,null,null,null,null,null,null,null,null,null,null,null,null,null,null,null,null,null,null,null,null,null,null,null,{"$f":"Раздел2!#REF!","v":{"$error":"#REF!"}}]
[null,"Бадминтон","08",{"$f":"Раздел2!F15","v":0},0,0,0,0,0,null,null,null,null,null,null,null,null,null,null,null,null,null,null,null,null,null,null,null,null,null,null,null,null,null,null,null,{"$f":"Раздел2!#REF!","v":{"$error":"#REF!"}}]
[null,"Баскетбол - всего","09",{"$f":"Раздел2!F16","v":0},0,0,0,0,0,{"$f":"SUM(J17:J18)","v":0},0,0,0,0,0,0,0,0,0,0,0,0,0,0,0,0,0,0,0,0,0,0,0,0,null,null,{"$f":"Раздел2!#REF!","v":{"$error":"#REF!"}}]
[null,"в том числе:\nБаскетбол (муж.)",10,{"$f":"Раздел2!F17","v":0},0,0,0,0,0,null,null,null,null,null,null,null,null,null,null,null,null,null,null,null,null,null,null,null,null,null,null,null,null,null,null,null,{"$f":"Раздел2!#REF!","v":{"$error":"#REF!"}}]
[null,"Баскетбол (жен.)",11,{"$f":"Раздел2!F18","v":0},0,0,0,0,0,null,null,null,null,null,null,null,null,null,null,null,null,null,null,null,null,null,null,null,null,null,null,null,null,null,null,null,{"$f":"Раздел2!#REF!","v":{"$error":"#REF!"}}]
[null,"Бейсбол",12,{"$f":"Раздел2!F19","v":0},0,0,0,0,0,null,null,null,null,null,null,null,null,null,null,null,null,null,null,null,null,null,null,null,null,null,null,null,null,null,null,null,{"$f":"Раздел2!#REF!","v":{"$error":"#REF!"}}]
[null,"Биатлон",13,{"$f":"Раздел2!F20","v":0},0,0,0,0,0,null,null,null,null,null,null,null,null,null,null,null,null,null,null,null,null,null,null,null,null,null,null,null,null,null,null,null,{"$f":"Раздел2!#REF!","v":{"$error":"#REF!"}}]
[null,"Бильярдный спорт",14,{"$f":"Раздел2!F21","v":0},0,0,0,0,0,null,null,null,null,null,null,null,null,null,null,null,null,null,null,null,null,null,null,null,null,null,null,null,null,null,null,null,{"$f":"Раздел2!#REF!","v":{"$error":"#REF!"}}]
[null,"Бобслей - всего",15,{"$f":"Раздел2!F22","v":0},0,0,0,0,0,{"$f":"SUM(J23:J24)","v":0},0,0,0,0,0,0,0,0,0,0,0,0,0,0,0,0,0,0,0,0,0,0,0,0,null,null,{"$f":"Раздел2!#REF!","v":{"$error":"#REF!"}}]
[null,"в том числе:\nБобслей",16,{"$f":"Раздел2!F23","v":0},0,0,0,0,0,null,null,null,null,null,null,null,null,null,null,null,null,null,null,null,null,null,null,null,null,null,null,null,null,null,null,null,{"$f":"Раздел2!#REF!","v":{"$error":"#REF!"}}]
[null,"Скелетон",17,{"$f":"Раздел2!F24","v":0},0,0,0,0,0,null,null,null,null,null,null,null,null,null,null,null,null,null,null,null,null,null,null,null,null,null,null,null,null,null,null,null,{"$f":"Раздел2!#REF!","v":{"$error":"#REF!"}}]
[null,"Бодибилдинг",18,{"$f":"Раздел2!F25","v":0},0,0,0,0,0,null,null,null,null,null,null,null,null,null,null,null,null,null,null,null,null,null,null,null,null,null,null,null,null,null,null,null,{"$f":"Раздел2!#REF!","v":{"$error":"#REF!"}}]
[null,"Бокс",19,{"$f":"Раздел2!F26","v":0},0,0,0,0,0,null,null,null,null,null,null,null,null,null,null,null,null,null,null,null,null,null,null,null,null,null,null,null,null,null,null,null,{"$f":"Раздел2!#REF!","v":{"$error":"#REF!"}}]
[null,"Борьба на поясах",20,{"$f":"Раздел2!F27","v":0},0,0,0,0,0,null,null,null,null,null,null,null,null,null,null,null,null,null,null,null,null,null,null,null,null,null,null,null,null,null,null,null,{"$f":"Раздел2!#REF!","v":{"$error":"#REF!"}}]
[null,"Боулинг",21,{"$f":"Раздел2!F28","v":0},0,0,0,0,0,null,null,null,null,null,null,null,null,null,null,null,null,null,null,null,null,null,null,null,null,null,null,null,null,null,null,null,{"$f":"Раздел2!#REF!","v":{"$error":"#REF!"}}]
[null,"Велоспорт ВМХ",22,{"$f":"Раздел2!F29","v":0},0,0,0,0,0,null,null,null,null,null,null,null,null,null,null,null,null,null,null,null,null,null,null,null,null,null,null,null,null,null,null,null,{"$f":"Раздел2!#REF!","v":{"$error":"#REF!"}}]
[null,"Велоспорт – маунтинбайк",23,{"$f":"Раздел2!F30","v":0},0,0,0,0,0,null,null,null,null,null,null,null,null,null,null,null,null,null,null,null,null,null,null,null,null,null,null,null,null,null,null,null,{"$f":"Раздел2!#REF!","v":{"$error":"#REF!"}}]
[null,"Велоспорт – трек",24,{"$f":"Раздел2!F31","v":0},0,0,0,0,0,null,null,null,null,null,null,null,null,null,null,null,null,null,null,null,null,null,null,null,null,null,null,null,null,null,null,null,{"$f":"Раздел2!#REF!","v":{"$error":"#REF!"}}]
[null,"Велоспорт – шоссе",25,{"$f":"Раздел2!F32","v":0},0,0,0,0,0,null,null,null,null,null,null,null,null,null,null,null,null,null,null,null,null,null,null,null,null,null,null,null,null,null,null,null,{"$f":"Раздел2!#REF!","v":{"$error":"#REF!"}}]
[null,"Вертолетный спорт",26,{"$f":"Раздел2!F33","v":0},0,0,0,0,0,null,null,null,null,null,null,null,null,null,null,null,null,null,null,null,null,null,null,null,null,null,null,null,null,null,null,null,{"$f":"Раздел2!#REF!","v":{"$error":"#REF!"}}]
[null,"Водно-моторный спорт",27,{"$f":"Раздел2!F34","v":0},0,0,0,0,0,null,null,null,null,null,null,null,null,null,null,null,null,null,null,null,null,null,null,null,null,null,null,null,null,null,null,null,{"$f":"Раздел2!#REF!","v":{"$error":"#REF!"}}]
[null,"Водное поло - всего ",28,{"$f":"Раздел2!F35","v":0},0,0,0,0,0,{"$f":"SUM(J36:J37)","v":0},0,0,0,0,0,0,0,0,0,0,0,0,0,0,0,0,0,0,0,0,0,0,0,0,null,null,{"$f":"Раздел2!#REF!","v":{"$error":"#REF!"}}]
[null,"в том числе:\nВодное поло (муж.)",29,{"$f":"Раздел2!F36","v":0},0,0,0,0,0,null,null,null,null,null,null,null,null,null,null,null,null,null,null,null,null,null,null,null,null,null,null,null,null,null,null,null,{"$f":"Раздел2!#REF!","v":{"$error":"#REF!"}}]
[null,"Водное поло (жен.)",30,{"$f":"Раздел2!F37","v":0},0,0,0,0,0,null,null,null,null,null,null,null,null,null,null,null,null,null,null,null,null,null,null,null,null,null,null,null,null,null,null,null,{"$f":"Раздел2!#REF!","v":{"$error":"#REF!"}}]
[null,"Воднолыжный спорт",31,{"$f":"Раздел2!F38","v":0},0,0,0,0,0,null,null,null,null,null,null,null,null,null,null,null,null,null,null,null,null,null,null,null,null,null,null,null,null,null,null,null,{"$f":"Раздел2!#REF!","v":{"$error":"#REF!"}}]
[null,"Воздухоплавательный спорт",32,{"$f":"Раздел2!F39","v":0},0,0,0,0,0,null,null,null,null,null,null,null,null,null,null,null,null,null,null,null,null,null,null,null,null,null,null,null,null,null,null,null,{"$f":"Раздел2!#REF!","v":{"$error":"#REF!"}}]
[null,"Волейбол - всего",33,{"$f":"Раздел2!F40","v":0},0,0,0,0,0,{"$f":"SUM(J41:J44)","v":0},0,0,0,0,0,0,0,0,0,0,0,0,0,0,0,0,0,0,0,0,0,0,0,0,null,null,{"$f":"Раздел2!#REF!","v":{"$error":"#REF!"}}]
[null,"в том числе:\nВолейбол (муж.)",34,{"$f":"Раздел2!F41","v":0},0,0,0,0,0,null,null,null,null,null,null,null,null,null,null,null,null,null,null,null,null,null,null,null,null,null,null,null,null,null,null,null,{"$f":"Раздел2!#REF!","v":{"$error":"#REF!"}}]
[null,"Волейбол (жен.)",35,{"$f":"Раздел2!F42","v":0},0,0,0,0,0,null,null,null,null,null,null,null,null,null,null,null,null,null,null,null,null,null,null,null,null,null,null,null,null,null,null,null,{"$f":"Раздел2!#REF!","v":{"$error":"#REF!"}}]
[null,"Пляжный волейбол (муж.)",36,{"$f":"Раздел2!F43","v":0},0,0,0,0,0,null,null,null,null,null,null,null,null,null,null,null,null,null,null,null,null,null,null,null,null,null,null,null,null,null,null,null,{"$f":"Раздел2!#REF!","v":{"$error":"#REF!"}}]
[null,"Пляжный волейбол (жен.)",37,{"$f":"Раздел2!F44","v":0},0,0,0,0,0,null,null,null,null,null,null,null,null,null,null,null,null,null,null,null,null,null,null,null,null,null,null,null,null,null,null,null,{"$f":"Раздел2!#REF!","v":{"$error":"#REF!"}}]
[null,"Восточное боевое единоборство",38,{"$f":"Раздел2!F45","v":0},0,0,0,0,0,null,null,null,null,null,null,null,null,null,null,null,null,null,null,null,null,null,null,null,null,null,null,null,null,null,null,null,{"$f":"Раздел2!#REF!","v":{"$error":"#REF!"}}]
[null,"Всестилевое карате",39,{"$f":"Раздел2!F46","v":0},0,0,0,0,0,null,null,null,null,null,null,null,null,null,null,null,null,null,null,null,null,null,null,null,null,null,null,null,null,null,null,null,{"$f":"Раздел2!#REF!","v":{"$error":"#REF!"}}]
[null,"Гандбол - всего",40,{"$f":"Раздел2!F47","v":0},0,0,0,0,0,{"$f":"SUM(J48:J49)","v":0},0,0,0,0,0,0,0,0,0,0,0,0,0,0,0,0,0,0,0,0,0,0,0,0,null,null,{"$f":"Раздел2!#REF!","v":{"$error":"#REF!"}}]
[null,"в том числе:\nГандбол (муж.)",41,{"$f":"Раздел2!F48","v":0},0,0,0,0,0,null,null,null,null,null,null,null,null,null,null,null,null,null,null,null,null,null,null,null,null,null,null,null,null,null,null,null,{"$f":"Раздел2!#REF!","v":{"$error":"#REF!"}}]
[null,"Гандбол (жен.)",42,{"$f":"Раздел2!F49","v":0},0,0,0,0,0,null,null,null,null,null,null,null,null,null,null,null,null,null,null,null,null,null,null,null,null,null,null,null,null,null,null,null,{"$f":"Раздел2!#REF!","v":{"$error":"#REF!"}}]
[null,"Гиревой спорт",43,{"$f":"Раздел2!F50","v":0},0,0,0,0,0,null,null,null,null,null,null,null,null,null,null,null,null,null,null,null,null,null,null,null,null,null,null,null,null,null,null,null,{"$f":"Раздел2!#REF!","v":{"$error":"#REF!"}}]
[null,"Го",44,{"$f":"Раздел2!F51","v":0},0,0,0,0,0,null,null,null,null,null,null,null,null,null,null,null,null,null,null,null,null,null,null,null,null,null,null,null,null,null,null,null,{"$f":"Раздел2!#REF!","v":{"$error":"#REF!"}}]
[null,"Гольф",45,{"$f":"Раздел2!F52","v":0},0,0,0,0,0,null,null,null,null,null,null,null,null,null,null,null,null,null,null,null,null,null,null,null,null,null,null,null,null,null,null,null,{"$f":"Раздел2!#REF!","v":{"$error":"#REF!"}}]
[null,"Горнолыжный спорт",46,{"$f":"Раздел2!F53","v":0},0,0,0,0,0,null,null,null,null,null,null,null,null,null,null,null,null,null,null,null,null,null,null,null,null,null,null,null,null,null,null,null,{"$f":"Раздел2!#REF!","v":{"$error":"#REF!"}}]
[null,"Городошный спорт",47,{"$f":"Раздел2!F54","v":0},0,0,0,0,0,null,null,null,null,null,null,null,null,null,null,null,null,null,null,null,null,null,null,null,null,null,null,null,null,null,null,null,{"$f":"Раздел2!#REF!","v":{"$error":"#REF!"}}]
[null,"Гребля на байдарках и каноэ",48,{"$f":"Раздел2!F55","v":0},0,0,0,0,0,null,null,null,null,null,null,null,null,null,null,null,null,null,null,null,null,null,null,null,null,null,null,null,null,null,null,null,{"$f":"Раздел2!#REF!","v":{"$error":"#REF!"}}]
[null,"Гребной слалом",49,{"$f":"Раздел2!F56","v":0},0,0,0,0,0,null,null,null,null,null,null,null,null,null,null,null,null,null,null,null,null,null,null,null,null,null,null,null,null,null,null,null,{"$f":"Раздел2!#REF!","v":{"$error":"#REF!"}}]
[null,"Гребной спорт - всего",50,{"$f":"Раздел2!F57","v":0},0,0,0,0,0,{"$f":"SUM(J58:J61)","v":0},0,0,0,0,0,0,0,0,0,0,0,0,0,0,0,0,0,0,0,0,0,0,0,0,null,null,{"$f":"Раздел2!#REF!","v":{"$error":"#REF!"}}]
[null,"в том числе:\nАкадемическая гребля",51,{"$f":"Раздел2!F58","v":0},0,0,0,0,0,null,null,null,null,null,null,null,null,null,null,null,null,null,null,null,null,null,null,null,null,null,null,null,null,null,null,null,{"$f":"Раздел2!#REF!","v":{"$error":"#REF!"}}]
[null,"Гребля-индор",52,{"$f":"Раздел2!F59","v":0},0,0,0,0,0,null,null,null,null,null,null,null,null,null,null,null,null,null,null,null,null,null,null,null,null,null,null,null,null,null,null,null,{"$f":"Раздел2!#REF!","v":{"$error":"#REF!"}}]
[null,"Народная гребля",53,{"$f":"Раздел2!F60","v":0},0,0,0,0,0,null,null,null,null,null,null,null,null,null,null,null,null,null,null,null,null,null,null,null,null,null,null,null,null,null,null,null,{"$f":"Раздел2!#REF!","v":{"$error":"#REF!"}}]
[null,"Прибрежная гребля",54,{"$f":"Раздел2!F61","v":0},0,0,0,0,0,null,null,null,null,null,null,null,null,null,null,null,null,null,null,null,null,null,null,null,null,null,null,null,null,null,null,null,{"$f":"Раздел2!#REF!","v":{"$error":"#REF!"}}]
[null,"Дартс",55,{"$f":"Раздел2!F62","v":0},0,0,0,0,0,null,null,null,null,null,null,null,null,null,null,null,null,null,null,null,null,null,null,null,null,null,null,null,null,null,null,null,{"$f":"Раздел2!#REF!","v":{"$error":"#REF!"}}]
[null,"Джиу-джитсу",56,{"$f":"Раздел2!F63","v":0},0,0,0,0,0,null,null,null,null,null,null,null,null,null,null,null,null,null,null,null,null,null,null,null,null,null,null,null,null,null,null,null,{"$f":"Раздел2!#REF!","v":{"$error":"#REF!"}}]
[null,"Дзюдо",57,{"$f":"Раздел2!F64","v":0},0,0,0,0,0,null,null,null,null,null,null,null,null,null,null,null,null,null,null,null,null,null,null,null,null,null,null,null,null,null,null,null,{"$f":"Раздел2!#REF!","v":{"$error":"#REF!"}}]
[null,"Капоэйра",58,{"$f":"Раздел2!F65","v":0},0,0,0,0,0,null,null,null,null,null,null,null,null,null,null,null,null,null,null,null,null,null,null,null,null,null,null,null,null,null,null,null,{"$f":"Раздел2!#REF!","v":{"$error":"#REF!"}}]
[null,"Каратэ",59,{"$f":"Раздел2!F66","v":0},0,0,0,0,0,null,null,null,null,null,null,null,null,null,null,null,null,null,null,null,null,null,null,null,null,null,null,null,null,null,null,null,{"$f":"Раздел2!#REF!","v":{"$error":"#REF!"}}]
[null,"Кендо",60,{"$f":"Раздел2!F67","v":0},0,0,0,0,0,null,null,null,null,null,null,null,null,null,null,null,null,null,null,null,null,null,null,null,null,null,null,null,null,null,null,null,{"$f":"Раздел2!#REF!","v":{"$error":"#REF!"}}]
[null,"Керешу",61,{"$f":"Раздел2!F68","v":0},0,0,0,0,0,null,null,null,null,null,null,null,null,null,null,null,null,null,null,null,null,null,null,null,null,null,null,null,null,null,null,null,{"$f":"Раздел2!#REF!","v":{"$error":"#REF!"}}]
[null,"Керлинг - всего",62,{"$f":"Раздел2!F69","v":0},0,0,0,0,0,{"$f":"SUM(J70:J71)","v":0},0,0,0,0,0,0,0,0,0,0,0,0,0,0,0,0,0,0,0,0,0,0,0,0,null,null,{"$f":"Раздел2!#REF!","v":{"$error":"#REF!"}}]
[null,"в том числе:\nКерлинг (муж.)",63,{"$f":"Раздел2!F70","v":0},0,0,0,0,0,null,null,null,null,null,null,null,null,null,null,null,null,null,null,null,null,null,null,null,null,null,null,null,null,null,null,null,{"$f":"Раздел2!#REF!","v":{"$error":"#REF!"}}]
[null,"Керлинг (жен.)",64,{"$f":"Раздел2!F71","v":0},0,0,0,0,0,null,null,null,null,null,null,null,null,null,null,null,null,null,null,null,null,null,null,null,null,null,null,null,null,null,null,null,{"$f":"Раздел2!#REF!","v":{"$error":"#REF!"}}]
[null,"Кикбоксинг",65,{"$f":"Раздел2!F72","v":0},0,0,0,0,0,null,null,null,null,null,null,null,null,null,null,null,null,null,null,null,null,null,null,null,null,null,null,null,null,null,null,null,{"$f":"Раздел2!#REF!","v":{"$error":"#REF!"}}]
[null,"Кинологический спорт",66,{"$f":"Раздел2!F73","v":0},{"$f":"J73+O73+T73+Y73+AD73","v":0},{"$f":"K73+P73+U73+Z73+AE73","v":0},{"$f":"L73+Q73+V73+AA73+AF73","v":0},{"$f":"M73+R73+W73+AB73+AG73","v":0},{"$f":"N73+S73+X73+AC73+AH73","v":0},null,null,null,null,null,null,null,null,null,null,null,null,null,null,null,null,null,null,null,null,null,null,null,null,null,null,null,{"$f":"Раздел2!#REF!","v":{"$error":"#REF!"}}]
[null,"Киокусинкай",67,{"$f":"Раздел2!F74","v":0},0,0,0,0,0,null,null,null,null,null,null,null,null,null,null,null,null,null,null,null,null,null,null,null,null,null,null,null,null,null,null,null,{"$f":"Раздел2!#REF!","v":{"$error":"#REF!"}}]
[null,"Конный спорт",68,{"$f":"Раздел2!F75","v":0},0,0,0,0,0,null,null,null,null,null,null,null,null,null,null,null,null,null,null,null,null,null,null,null,null,null,null,null,null,null,null,null,{"$f":"Раздел2!#REF!","v":{"$error":"#REF!"}}]
[null,"Конькобежный спорт - всего",69,{"$f":"Раздел2!F76","v":0},0,0,0,0,0,{"$f":"SUM(J77:J78)","v":0},0,0,0,0,0,0,0,0,0,0,0,0,0,0,0,0,0,0,0,0,0,0,0,0,null,null,{"$f":"Раздел2!#REF!","v":{"$error":"#REF!"}}]
[null,"в том числе:\nКонькобежный спорт",70,{"$f":"Раздел2!F77","v":0},0,0,0,0,0,null,null,null,null,null,null,null,null,null,null,null,null,null,null,null,null,null,null,null,null,null,null,null,null,null,null,null,{"$f":"Раздел2!#REF!","v":{"$error":"#REF!"}}]
[null,"Шорт-трек",71,{"$f":"Раздел2!F78","v":0},0,0,0,0,0,null,null,null,null,null,null,null,null,null,null,null,null,null,null,null,null,null,null,null,null,null,null,null,null,null,null,null,{"$f":"Раздел2!#REF!","v":{"$error":"#REF!"}}]
[null,"Корэш",72,{"$f":"Раздел2!F79","v":0},0,0,0,0,0,null,null,null,null,null,null,null,null,null,null,null,null,null,null,null,null,null,null,null,null,null,null,null,null,null,null,null,{"$f":"Раздел2!#REF!","v":{"$error":"#REF!"}}]
[null,"Лапта",73,{"$f":"Раздел2!F80","v":0},0,0,0,0,0,null,null,null,null,null,null,null,null,null,null,null,null,null,null,null,null,null,null,null,null,null,null,null,null,null,null,null,{"$f":"Раздел2!#REF!","v":{"$error":"#REF!"}}]
[null,"Легкая атлетика - всего",74,{"$f":"Раздел2!F81","v":0},0,0,0,0,0,{"$f":"SUM(J82:J88)","v":0},0,0,0,0,0,0,0,0,0,0,0,0,0,0,0,0,0,0,0,0,0,0,0,0,null,null,{"$f":"Раздел2!#REF!","v":{"$error":"#REF!"}}]
[null,"в том числе:\nСпринтерский и барьерный бег",75,{"$f":"Раздел2!F82","v":0},0,0,0,0,0,null,null,null,null,null,null,null,null,null,null,null,null,null,null,null,null,null,null,null,null,null,null,null,null,null,null,null,{"$f":"Раздел2!#REF!","v":{"$error":"#REF!"}}]
[null,"Бег на средние дистанции и бег с препятствиями",76,{"$f":"Раздел2!F83","v":0},0,0,0,0,0,null,null,null,null,null,null,null,null,null,null,null,null,null,null,null,null,null,null,null,null,null,null,null,null,null,null,null,{"$f":"Раздел2!#REF!","v":{"$error":"#REF!"}}]
[null,"Бег на длинные и сверхдлинные дистанции",77,{"$f":"Раздел2!F84","v":0},0,0,0,0,0,null,null,null,null,null,null,null,null,null,null,null,null,null,null,null,null,null,null,null,null,null,null,null,null,null,null,null,{"$f":"Раздел2!#REF!","v":{"$error":"#REF!"}}]
[null,"Многоборья",78,{"$f":"Раздел2!F85","v":0},0,0,0,0,0,null,null,null,null,null,null,null,null,null,null,null,null,null,null,null,null,null,null,null,null,null,null,null,null,null,null,null,{"$f":"Раздел2!#REF!","v":{"$error":"#REF!"}}]
[null,"Прыжки",79,{"$f":"Раздел2!F86","v":0},0,0,0,0,0,null,null,null,null,null,null,null,null,null,null,null,null,null,null,null,null,null,null,null,null,null,null,null,null,null,null,null,{"$f":"Раздел2!#REF!","v":{"$error":"#REF!"}}]
[null,"Метания",80,{"$f":"Раздел2!F87","v":0},0,0,0,0,0,null,null,null,null,null,null,null,null,null,null,null,null,null,null,null,null,null,null,null,null,null,null,null,null,null,null,null,{"$f":"Раздел2!#REF!","v":{"$error":"#REF!"}}]
[null,"Спортивная ходьба",81,{"$f":"Раздел2!F88","v":0},0,0,0,0,0,null,null,null,null,null,null,null,null,null,null,null,null,null,null,null,null,null,null,null,null,null,null,null,null,null,null,null,{"$f":"Раздел2!#REF!","v":{"$error":"#REF!"}}]
[null,"Лыжное двоеборье",82,{"$f":"Раздел2!F89","v":0},0,0,0,0,0,null,null,null,null,null,null,null,null,null,null,null,null,null,null,null,null,null,null,null,null,null,null,null,null,null,null,null,{"$f":"Раздел2!#REF!","v":{"$error":"#REF!"}}]
[null,"Лыжные гонки",83,{"$f":"Раздел2!F90","v":0},0,0,0,0,0,null,null,null,null,null,null,null,null,null,null,null,null,null,null,null,null,null,null,null,null,null,null,null,null,null,null,null,{"$f":"Раздел2!#REF!","v":{"$error":"#REF!"}}]
[null,"Мас-рестлинг",84,{"$f":"Раздел2!F91","v":0},0,0,0,0,0,null,null,null,null,null,null,null,null,null,null,null,null,null,null,null,null,null,null,null,null,null,null,null,null,null,null,null,{"$f":"Раздел2!#REF!","v":{"$error":"#REF!"}}]
[null,"Морское многоборье",85,{"$f":"Раздел2!F92","v":0},0,0,0,0,0,null,null,null,null,null,null,null,null,null,null,null,null,null,null,null,null,null,null,null,null,null,null,null,null,null,null,null,{"$f":"Раздел2!#REF!","v":{"$error":"#REF!"}}]
[null,"Мотоциклетный спорт",86,{"$f":"Раздел2!F93","v":0},0,0,0,0,0,null,null,null,null,null,null,null,null,null,null,null,null,null,null,null,null,null,null,null,null,null,null,null,null,null,null,null,{"$f":"Раздел2!#REF!","v":{"$error":"#REF!"}}]
[null,"Настольный теннис",87,{"$f":"Раздел2!F94","v":0},0,0,0,0,0,null,null,null,null,null,null,null,null,null,null,null,null,null,null,null,null,null,null,null,null,null,null,null,null,null,null,null,{"$f":"Раздел2!#REF!","v":{"$error":"#REF!"}}]
[null,"Парашютный спорт",88,{"$f":"Раздел2!F95","v":0},0,0,0,0,0,null,null,null,null,null,null,null,null,null,null,null,null,null,null,null,null,null,null,null,null,null,null,null,null,null,null,null,{"$f":"Раздел2!#REF!","v":{"$error":"#REF!"}}]
[null,"Парусный спорт",89,{"$f":"Раздел2!F96","v":0},0,0,0,0,0,null,null,null,null,null,null,null,null,null,null,null,null,null,null,null,null,null,null,null,null,null,null,null,null,null,null,null,{"$f":"Раздел2!#REF!","v":{"$error":"#REF!"}}]
[null,"Пауэрлифтинг",90,{"$f":"Раздел2!F97","v":0},0,0,0,0,0,null,null,null,null,null,null,null,null,null,null,null,null,null,null,null,null,null,null,null,null,null,null,null,null,null,null,null,{"$f":"Раздел2!#REF!","v":{"$error":"#REF!"}}]
[null,"Перетягивание каната",91,{"$f":"Раздел2!F98","v":0},0,0,0,0,0,null,null,null,null,null,null,null,null,null,null,null,null,null,null,null,null,null,null,null,null,null,null,null,null,null,null,null,{"$f":"Раздел2!#REF!","v":{"$error":"#REF!"}}]
[null,"Плавание - всего",92,{"$f":"Раздел2!F99","v":0},0,0,0,0,0,{"$f":"SUM(J100:J101)","v":0},0,0,0,0,0,0,0,0,0,0,0,0,0,0,0,0,0,0,0,0,0,0,0,0,null,null,{"$f":"Раздел2!#REF!","v":{"$error":"#REF!"}}]
[null,"в том числе:\nПлавание ",93,{"$f":"Раздел2!F100","v":0},0,0,0,0,0,null,null,null,null,null,null,null,null,null,null,null,null,null,null,null,null,null,null,null,null,null,null,null,null,null,null,null,{"$f":"Раздел2!#REF!","v":{"$error":"#REF!"}}]
[null,"Открытая вода",94,{"$f":"Раздел2!F101","v":0},0,0,0,0,0,null,null,null,null,null,null,null,null,null,null,null,null,null,null,null,null,null,null,null,null,null,null,null,null,null,null,null,{"$f":"Раздел2!#REF!","v":{"$error":"#REF!"}}]
[null,"Планерный спорт",95,{"$f":"Раздел2!F102","v":0},0,0,0,0,0,null,null,null,null,null,null,null,null,null,null,null,null,null,null,null,null,null,null,null,null,null,null,null,null,null,null,null,{"$f":"Раздел2!#REF!","v":{"$error":"#REF!"}}]
[null,"Подводный спорт",96,{"$f":"Раздел2!F103","v":0},0,0,0,0,0,null,null,null,null,null,null,null,null,null,null,null,null,null,null,null,null,null,null,null,null,null,null,null,null,null,null,null,{"$f":"Раздел2!#REF!","v":{"$error":"#REF!"}}]
[null,"Полиатлон",97,{"$f":"Раздел2!F104","v":0},0,0,0,0,0,null,null,null,null,null,null,null,null,null,null,null,null,null,null,null,null,null,null,null,null,null,null,null,null,null,null,null,{"$f":"Раздел2!#REF!","v":{"$error":"#REF!"}}]
[null,"Практическая стрельба",98,{"$f":"Раздел2!F105","v":0},0,0,0,0,0,null,null,null,null,null,null,null,null,null,null,null,null,null,null,null,null,null,null,null,null,null,null,null,null,null,null,null,{"$f":"Раздел2!#REF!","v":{"$error":"#REF!"}}]
[null,"Прыжки в воду - всего",99,{"$f":"Раздел2!F106","v":0},0,0,0,0,0,{"$f":"SUM(J107:J108)","v":0},0,0,0,0,0,0,0,0,0,0,0,0,0,0,0,0,0,0,0,0,0,0,0,0,null,null,{"$f":"Раздел2!#REF!","v":{"$error":"#REF!"}}]
[null,"в том числе:\nПрыжки в воду",100,{"$f":"Раздел2!F107","v":0},0,0,0,0,0,null,null,null,null,null,null,null,null,null,null,null,null,null,null,null,null,null,null,null,null,null,null,null,null,null,null,null,{"$f":"Раздел2!#REF!","v":{"$error":"#REF!"}}]
[null,"Прыжки в открытый водоем",101,{"$f":"Раздел2!F108","v":0},0,0,0,0,0,null,null,null,null,null,null,null,null,null,null,null,null,null,null,null,null,null,null,null,null,null,null,null,null,null,null,null,{"$f":"Раздел2!#REF!","v":{"$error":"#REF!"}}]
[null,"Прыжки на батуте",102,{"$f":"Раздел2!F109","v":0},0,0,0,0,0,null,null,null,null,null,null,null,null,null,null,null,null,null,null,null,null,null,null,null,null,null,null,null,null,null,null,null,{"$f":"Раздел2!#REF!","v":{"$error":"#REF!"}}]
[null,"Прыжки на лыжах с трамплина",103,{"$f":"Раздел2!F110","v":0},0,0,0,0,0,null,null,null,null,null,null,null,null,null,null,null,null,null,null,null,null,null,null,null,null,null,null,null,null,null,null,null,{"$f":"Раздел2!#REF!","v":{"$error":"#REF!"}}]
[null,"Пулевая стрельба - всего",104,{"$f":"Раздел2!F111","v":0},0,0,0,0,0,{"$f":"SUM(J112:J116)","v":0},0,0,0,0,0,0,0,0,0,0,0,0,0,0,0,0,0,0,0,0,0,0,0,0,null,null,{"$f":"Раздел2!#REF!","v":{"$error":"#REF!"}}]
[null,"в том числе:\nПневматическая винтовка",105,{"$f":"Раздел2!F112","v":0},0,0,0,0,0,null,null,null,null,null,null,null,null,null,null,null,null,null,null,null,null,null,null,null,null,null,null,null,null,null,null,null,{"$f":"Раздел2!#REF!","v":{"$error":"#REF!"}}]
[null,"Пневматический пистолет",106,{"$f":"Раздел2!F113","v":0},0,0,0,0,0,null,null,null,null,null,null,null,null,null,null,null,null,null,null,null,null,null,null,null,null,null,null,null,null,null,null,null,{"$f":"Раздел2!#REF!","v":{"$error":"#REF!"}}]
[null,"Малокалиберная винтоква",107,{"$f":"Раздел2!F114","v":0},0,0,0,0,0,null,null,null,null,null,null,null,null,null,null,null,null,null,null,null,null,null,null,null,null,null,null,null,null,null,null,null,{"$f":"Раздел2!#REF!","v":{"$error":"#REF!"}}]
[null,"Малокалиберный пистолет",108,{"$f":"Раздел2!F115","v":0},0,0,0,0,0,null,null,null,null,null,null,null,null,null,null,null,null,null,null,null,null,null,null,null,null,null,null,null,null,null,null,null,{"$f":"Раздел2!#REF!","v":{"$error":"#REF!"}}]
[null,"Движущаяся мишень",109,{"$f":"Раздел2!F116","v":0},0,0,0,0,0,null,null,null,null,null,null,null,null,null,null,null,null,null,null,null,null,null,null,null,null,null,null,null,null,null,null,null,{"$f":"Раздел2!#REF!","v":{"$error":"#REF!"}}]
[null,"Пэйнтбол",110,{"$f":"Раздел2!F117","v":0},0,0,0,0,0,null,null,null,null,null,null,null,null,null,null,null,null,null,null,null,null,null,null,null,null,null,null,null,null,null,null,null,{"$f":"Раздел2!#REF!","v":{"$error":"#REF!"}}]
[null,"Радиоспорт",111,{"$f":"Раздел2!F118","v":0},0,0,0,0,0,null,null,null,null,null,null,null,null,null,null,null,null,null,null,null,null,null,null,null,null,null,null,null,null,null,null,null,{"$f":"Раздел2!#REF!","v":{"$error":"#REF!"}}]
[null,"Рафтинг",112,{"$f":"Раздел2!F119","v":0},0,0,0,0,0]
[null,"Регби - всего",113,{"$f":"Раздел2!F120","v":0},0,0,0,0,0,{"$f":"SUM(J121:J124)","v":0},0,0,0,0,0,0,0,0,0,0,0,0,0,0,0,0,0,0,0,0,0,0,0,0]
[null,"в том числе:\nРегби",114,{"$f":"Раздел2!F121","v":0},0,0,0,0,0]
[null,"Регби 7 (муж.)",115,{"$f":"Раздел2!F122","v":0},0,0,0,0,0]
[null,"Регби 7 (жен.)",116,{"$f":"Раздел2!F123","v":0},0,0,0,0,0]
[null,"Пляжный регби",117,{"$f":"Раздел2!F124","v":0},0,0,0,0,0]
[null,"Рукопашный бой",118,{"$f":"Раздел2!F125","v":0},0,0,0,0,0]
[null,"Рыболовный спорт",119,{"$f":"Раздел2!F126","v":0},0,0,0,0,0]
[null,"Сават",120,{"$f":"Раздел2!F127","v":0},0,0,0,0,0]
[null,"Самбо",121,{"$f":"Раздел2!F128","v":0},0,0,0,0,0]
[null,"Самолетный спорт",122,{"$f":"Раздел2!F129","v":0},0,0,0,0,0]
[null,"Санный спорт",123,{"$f":"Раздел2!F130","v":0},0,0,0,0,0]
[null,"Северное многоборье",124,{"$f":"Раздел2!F131","v":0},0,0,0,0,0]
[null,"Синхронное плавание",125,{"$f":"Раздел2!F132","v":0},0,0,0,0,0]
[null,"Скалолазание",126,{"$f":"Раздел2!F133","v":0},0,0,0,0,0]
[null,"Сквош",127,{"$f":"Раздел2!F134","v":0},0,0,0,0,0]
[null,"Смешанное боевое единоборство (ММА)",128,{"$f":"Раздел2!F135","v":0},0,0,0,0,0]
[null,"Сноуборд",129,{"$f":"Раздел2!F136","v":0},0,0,0,0,0]
[null,"Современное пятиборье",130,{"$f":"Раздел2!F137","v":0},{"$f":"J137+O137+T137+Y137+AD137","v":0},{"$f":"K137+P137+U137+Z137+AE137","v":0},{"$f":"L137+Q137+V137+AA137+AF137","v":0},{"$f":"M137+R137+W137+AB137+AG137","v":0},{"$f":"N137+S137+X137+AC137+AH137","v":0}]
[null,"Софтбол",131,{"$f":"Раздел2!F138","v":0},0,0,0,0,0]
[null,"Спорт сверхлегкой авиации",132,{"$f":"Раздел2!F139","v":0},0,0,0,0,0]
[null,"Спортивная акробатика",133,{"$f":"Раздел2!F140","v":0},0,0,0,0,0]
[null,"Спортивная аэробика",134,{"$f":"Раздел2!F141","v":0},0,0,0,0,0]
[null,"Спортивная борьба - всего",135,{"$f":"Раздел2!F142","v":0},0,0,0,0,0,{"$f":"SUM(J143:J147)","v":0},0,0,0,0,0,0,0,0,0,0,0,0,0,0,0,0,0,0,0,0,0,0,0,0]
[null,"в том числе:\nВольная борьба",136,{"$f":"Раздел2!F143","v":0},0,0,0,0,0]
[null,"Греко-римская борьба",137,{"$f":"Раздел2!F144","v":0},0,0,0,0,0]
[null,"Грэпплинг",138,{"$f":"Раздел2!F145","v":0},0,0,0,0,0]
[null,"Грэпплинг-ги",139,{"$f":"Раздел2!F146","v":0},0,0,0,0,0]
[null,"Панкратион",140,{"$f":"Раздел2!F147","v":0},0,0,0,0,0]
[null,"Спортивно-прикладное собаководство",141,{"$f":"Раздел2!F148","v":0},0,0,0,0,0]
[null,"Спортивная гимнастика",142,{"$f":"Раздел2!F149","v":0},0,0,0,0,0]
[null,"Спортивное ориентирование",143,{"$f":"Раздел2!F150","v":0},0,0,0,0,0]
[null,"Спортивный бридж",144,{"$f":"Раздел2!F151","v":0},0,0,0,0,0]
[null,"Спортивный туризм",145,{"$f":"Раздел2!F152","v":0},0,0,0,0,0]
[null,"Стендовая стрельба - всего",146,{"$f":"Раздел2!F153","v":0},0,0,0,0,0,{"$f":"SUM(J154:J157)","v":0},0,0,0,0,0,0,0,0,0,0,0,0,0,0,0,0,0,0,0,0,0,0,0,0]
[null,"в том числе:\nТрап",147,{"$f":"Раздел2!F154","v":0},0,0,0,0,0]
[null,"Скит",148,{"$f":"Раздел2!F155","v":0},0,0,0,0,0]
[null,"Дубль-трап",149,{"$f":"Раздел2!F156","v":0},0,0,0,0,0]
[null,"Спортинг",150,{"$f":"Раздел2!F157","v":0},0,0,0,0,0]
[null,"Стрельба из арбалета",151,{"$f":"Раздел2!F158","v":0},0,0,0,0,0]
[null,"Стрельба из лука - всего",152,{"$f":"Раздел2!F159","v":0},0,0,0,0,0,{"$f":"SUM(J160:J162)","v":0},0,0,0,0,0,0,0,0,0,0,0,0,0,0,0,0,0,0,0,0,0,0,0,0]
[null,"в том числе:\nКлассический лук",153,{"$f":"Раздел2!F160","v":0},0,0,0,0,0]
[null,"   Блочный лук",154,{"$f":"Раздел2!F161","v":0},0,0,0,0,0]
[null,"   Ачери ",155,{"$f":"Раздел2!F162","v":0},0,0,0,0,0]
[null,"Судомодельный спорт",156,{"$f":"Раздел2!F163","v":0},0,0,0,0,0]
[null,"Сумо",157,{"$f":"Раздел2!F164","v":0},0,0,0,0,0]
[null,"Тайский бокс",158,{"$f":"Раздел2!F165","v":0},0,0,0,0,0]
[null,"Танцевальный спорт",159,{"$f":"Раздел2!F166","v":0},0,0,0,0,0]
[null,"Теннис",160,{"$f":"Раздел2!F167","v":0},0,0,0,0,0]
[null,"Триатлон",161,{"$f":"Раздел2!F168","v":0},0,0,0,0,0]
[null,"Тхэквондо - всего",162,{"$f":"Раздел2!F169","v":0},0,0,0,0,0,{"$f":"SUM(J170:J171)","v":0},0,0,0,0,0,0,0,0,0,0,0,0,0,0,0,0,0,0,0,0,0,0,0,0]
[null,"в том числе:\nТхэквондо (ГТФ, ИТФ, МФТ)",163,{"$f":"Раздел2!F170","v":0},0,0,0,0,0]
[null,"Тхэквондо (ВТФ)",164,{"$f":"Раздел2!F171","v":0},0,0,0,0,0]
[null,"Тяжелая атлетика",165,{"$f":"Раздел2!F172","v":0},0,0,0,0,0]
[null,"Универсальный бой",166,{"$f":"Раздел2!F173","v":0},0,0,0,0,0]
[null,"Ушу",167,{"$f":"Раздел2!F174","v":0},0,0,0,0,0]
[null,"Фехтование - всего",168,{"$f":"Раздел2!F175","v":0},0,0,0,0,0,{"$f":"SUM(J176:J179)","v":0},0,0,0,0,0,0,0,0,0,0,0,0,0,0,0,0,0,0,0,0,0,0,0,0]
[null,"в том числе:\nРапира",169,{"$f":"Раздел2!F176","v":0},0,0,0,0,0]
[null,"Сабля",170,{"$f":"Раздел2!F177","v":0},0,0,0,0,0]
[null,"Шпага",171,{"$f":"Раздел2!F178","v":0},0,0,0,0,0]
[null,"Арт-фехтование",172,{"$f":"Раздел2!F179","v":0},0,0,0,0,0]
[null,"Фигурное катание на коньках",173,{"$f":"Раздел2!F180","v":0},0,0,0,0,0]
[null,"Флорбол",174,{"$f":"Раздел2!F181","v":0},0,0,0,0,0]
[null,"Фристайл - всего",175,{"$f":"Раздел2!F182","v":0},0,0,0,0,0,{"$f":"SUM(J183:J187)","v":0},0,0,0,0,0,0,0,0,0,0,0,0,0,0,0,0,0,0,0,0,0,0,0,0]
[null,"в том числе:\nАкробатика",176,{"$f":"Раздел2!F183","v":0},0,0,0,0,0]
[null,"Могул",177,{"$f":"Раздел2!F184","v":0},0,0,0,0,0]
[null,"Ски-кросс",178,{"$f":"Раздел2!F185","v":0},0,0,0,0,0]
[null,"Хаф-пайп",179,{"$f":"Раздел2!F186","v":0},0,0,0,0,0]
[null,"Слоуп-стайл",180,{"$f":"Раздел2!F187","v":0},0,0,0,0,0]
[null,"Футбол - всего",181,{"$f":"Раздел2!F188","v":0},0,0,0,0,0,{"$f":"SUM(J189:J192)","v":0},0,0,0,0,0,0,0,0,0,0,0,0,0,0,0,0,0,0,0,0,0,0,0,0]
[null,"в том числе:\nФутбол (муж.)",182,{"$f":"Раздел2!F189","v":0},0,0,0,0,0]
[null,"Футбол (жен.)",183,{"$f":"Раздел2!F190","v":0},0,0,0,0,0]
[null,"Мини-футбол (футзал)",184,{"$f":"Раздел2!F191","v":0},0,0,0,0,0]
[null,"Пляжный футбол",185,{"$f":"Раздел2!F192","v":0},0,0,0,0,0]
[null,"Хапсагай",186,{"$f":"Раздел2!F193","v":0},0,0,0,0,0]
[null,"Хоккей - всего",187,{"$f":"Раздел2!F194","v":0},0,0,0,0,0,{"$f":"SUM(J195:J196)","v":0},0,0,0,0,0,0,0,0,0,0,0,0,0,0,0,0,0,0,0,0,0,0,0,0]
[null,"в том числе:\nХоккей (муж.)",188,{"$f":"Раздел2!F195","v":0},0,0,0,0,0]
[null,"Хоккей (жен.)",189,{"$f":"Раздел2!F196","v":0},0,0,0,0,0]
[null,"Хоккей на траве",190,{"$f":"Раздел2!F197","v":0},0,0,0,0,0,{"$f":"SUM(J198:J199)","v":0},0,0,0,0,0,0,0,0,0,0,0,0,0,0,0,0,0,0,0,0,0,0,0,0]
[null,"Хоккей на траве (муж.)",191,{"$f":"Раздел2!F198","v":0},0,0,0,0,0]
[null,"Хоккей на траве (жен.)",192,{"$f":"Раздел2!F199","v":0},0,0,0,0,0]
[null,"Хоккей с мячом",193,{"$f":"Раздел2!F200","v":0},0,0,0,0,0]
[null,"Художественная гимнастика",194,{"$f":"Раздел2!F201","v":0},{"$f":"J201+O201+T201+Y201+AD201","v":0},{"$f":"K201+P201+U201+Z201+AE201","v":0},{"$f":"L201+Q201+V201+AA201+AF201","v":0},{"$f":"M201+R201+W201+AB201+AG201","v":0},{"$f":"N201+S201+X201+AC201+AH201","v":0}]
[null,"Черлидинг",195,{"$f":"Раздел2!F202","v":0},0,0,0,0,0]
[null,"Чир спорт",196,{"$f":"Раздел2!F203","v":0},0,0,0,0,0]
[null,"Шахматы",197,{"$f":"Раздел2!F204","v":0},0,0,0,0,0]
[null,"Шашки",198,{"$f":"Раздел2!F205","v":0},0,0,0,0,0]
[null,"Эстетическая гимнастика",199,{"$f":"Раздел2!F206","v":0},0,0,0,0,0]
[null,"Якутские национальные прыжки",200,{"$f":"Раздел2!F207","v":0},0,0,0,0,0]
[null,"ИТОГО",201,{"$f":"Раздел2!F208","v":0},0,0,0,0,0,{"$f":"SUM(J8:J15,J17:J21,J23:J28,J29:J34,J36:J39,J41:J46,J48:J56,J58:J65,J66:J68,J70:J74,J75,J77:J80,J82:J88,J89:J95,J96:J98,J100:J105,J107:J110,J112:J119,J121:J128,J129:J137,J138:J141,J143:J149,J150:J152,J154:J158,J160:J167,J168,J170:J174,J176:J181,J183:J187,J189:J193,J195:J196,J198:J207)","v":0},{"$f":"SUM(K8:K15,K17:K21,K23:K28,K29:K34,K36:K39,K41:K46,K48:K56,K58:K65,K66:K68,K70:K74,K75,K77:K80,K82:K88,K89:K95,K96:K98,K100:K105,K107:K110,K112:K119,K121:K128,K129:K137,K138:K141,K143:K149,K150:K152,K154:K158,K160:K167,K168,K170:K174,K176:K181,K183:K187,K189:K193,K195:K196,K198:K207)","v":0},0,0,0,0,0,0,0,0,0,0,0,0,0,0,0,0,0,0,0,0,0,0,0]

{"sheet":"Раздел7","index":7,"n_rows":208,"n_cols":57,"rows_kept":208,"cut":false,"hidden":false,"merged":[[0,0,118,0],[2,1,5,1],[2,2,5,2],[0,1,0,28],[2,3,5,3],[2,4,2,28],[1,19,1,28],[0,54,118,54],[2,56,5,56],[3,4,4,8],[3,9,4,13],[3,14,4,18],[3,19,4,23],[3,24,4,28],[3,29,4,33],[3,34,4,38],[3,39,4,43],[3,44,4,48],[3,49,4,53],[1,46,1,53],[2,29,2,53]]}
[null,"Раздел VII. Международные спортивные соревнования"]
[null,null,null,null,null,null,null,null,null,null,null,null,null,null,null,null,null,null,null,"Коды по ОКЕИ: человек - 792, единица - 642"]
[null,"Виды спорта","№ строки","Всего зани-маю-щихся","Результаты выступлений на соревнованиях",null,null,null,null,null,null,null,null,null,null,null,null,null,null,null,null,null,null,null,null,null,null,null,null,"Результаты выступлений на соревнованиях",null,null,null,null,null,null,null,null,null,null,null,null,null,null,null,null,null,null,null,null,null,null,null,null,null,null,"Раздел2 графа3\nЧисло отделений"]
[null,null,null,null,"Всего",null,null,null,null,"Олимпийские игры",null,null,null,null,"Чемпионат мира",null,null,null,null,"Первенство мира",null,null,null,null,"Кубок мира",null,null,null,null,"Этапы Кубка мира",null,null,null,null,"Чемпионат Европы",null,null,null,null,"Первенство Европы",null,null,null,null,"Кубок Европы",null,null,null,null,"Прочие официальные между-народные соревнования"]
[]
[null,null,null,null,1,2,3,"4-6","учас-тие",1,2,3,"4-6","учас-тие",1,2,3,"4-6","учас-тие",1,2,3,"4-6","учас-тие",1,2,3,"4-6","учас-тие",1,2,3,"4-6","учас-тие",1,2,3,"4-6","учас-тие",1,2,3,"4-6","учас-тие",1,2,3,"4-6","учас-тие",1,2,3,"4-6","учас-тие"]
[null,1,2,3,4,5,6,7,8,9,10,11,12,13,14,15,16,17,18,19,20,21,22,23,24,25,26,27,28,29,30,31,32,33,34,35,36,37,38,39,40,41,42,43,44,45,46,47,48,49,50,51,52,53]
[null,"Авиамодельный спорт","01",{"$f":"Раздел2!F8","v":0},{"$f":"J8+O8+T8+Y8+AD8+AI8+AN8+AS8+AX8","v":0},{"$f":"K8+P8+U8+Z8+AE8+AJ8+AO8+AT8+AY8","v":0},{"$f":"L8+Q8+V8+AA8+AF8+AK8+AP8+AU8+AZ8","v":0},{"$f":"M8+R8+W8+AB8+AG8+AL8+AQ8+AV8+BA8","v":0},{"$f":"N8+S8+X8+AC8+AH8+AM8+AR8+AW8+BB8","v":0},null,null,null,null,null,null,null,null,null,null,null,null,null,null,null,null,null,null,null,null,null,null,null,null,null,null,null,null,null,null,null,null,null,null,null,null,null,null,null,null,null,null,null,null,null,null,null,{"$f":"Раздел2!#REF!","v":{"$error":"#REF!"}}]
[null,"Автомобильный спорт","02",{"$f":"Раздел2!F9","v":0},{"$f":"J9+O9+T9+Y9+AD9+AI9+AN9+AS9+AX9","v":0},{"$f":"K9+P9+U9+Z9+AE9+AJ9+AO9+AT9+AY9","v":0},{"$f":"L9+Q9+V9+AA9+AF9+AK9+AP9+AU9+AZ9","v":0},{"$f":"M9+R9+W9+AB9+AG9+AL9+AQ9+AV9+BA9","v":0},{"$f":"N9+S9+X9+AC9+AH9+AM9+AR9+AW9+BB9","v":0},null,null,null,null,null,null,null,null,null,null,null,null,null,null,null,null,null,null,null,null,null,null,null,null,null,null,null,null,null,null,null,null,null,null,null,null,null,null,null,null,null,null,null,null,null,null,null,{"$f":"Раздел2!#REF!","v":{"$error":"#REF!"}}]
[null,"Айкидо","03",{"$f":"Раздел2!F10","v":0},0,0,0,0,0,null,null,null,null,null,null,null,null,null,null,null,null,null,null,null,null,null,null,null,null,null,null,null,null,null,null,null,null,null,null,null,null,null,null,null,null,null,null,null,null,null,null,null,null,null,null,null,{"$f":"Раздел2!#REF!","v":{"$error":"#REF!"}}]
[null,"Акробатический рок-н-ролл","04",{"$f":"Раздел2!F11","v":0},0,0,0,0,0,null,null,null,null,null,null,null,null,null,null,null,null,null,null,null,null,null,null,null,null,null,null,null,null,null,null,null,null,null,null,null,null,null,null,null,null,null,null,null,null,null,null,null,null,null,null,null,{"$f":"Раздел2!#REF!","v":{"$error":"#REF!"}}]
[null,"Альпинизм","05",{"$f":"Раздел2!F12","v":0},0,0,0,0,0,null,null,null,null,null,null,null,null,null,null,null,null,null,null,null,null,null,null,null,null,null,null,null,null,null,null,null,null,null,null,null,null,null,null,null,null,null,null,null,null,null,null,null,null,null,null,null,{"$f":"Раздел2!#REF!","v":{"$error":"#REF!"}}]
[null,"Американский футбол","06",{"$f":"Раздел2!F13","v":0},0,0,0,0,0,null,null,null,null,null,null,null,null,null,null,null,null,null,null,null,null,null,null,null,null,null,null,null,null,null,null,null,null,null,null,null,null,null,null,null,null,null,null,null,null,null,null,null,null,null,null,null,{"$f":"Раздел2!#REF!","v":{"$error":"#REF!"}}]
[null,"Армрестлинг","07",{"$f":"Раздел2!F14","v":0},0,0,0,0,0,null,null,null,null,null,null,null,null,null,null,null,null,null,null,null,null,null,null,null,null,null,null,null,null,null,null,null,null,null,null,null,null,null,null,null,null,null,null,null,null,null,null,null,null,null,null,null,{"$f":"Раздел2!#REF!","v":{"$error":"#REF!"}}]
[null,"Бадминтон","08",{"$f":"Раздел2!F15","v":0},0,0,0,0,0,null,null,null,null,null,null,null,null,null,null,null,null,null,null,null,null,null,null,null,null,null,null,null,null,null,null,null,null,null,null,null,null,null,null,null,null,null,null,null,null,null,null,null,null,null,null,null,{"$f":"Раздел2!#REF!","v":{"$error":"#REF!"}}]
[null,"Баскетбол - всего","09",{"$f":"Раздел2!F16","v":0},0,0,0,0,0,{"$f":"SUM(J17:J18)","v":0},0,0,0,0,0,0,0,0,0,0,0,0,0,0,0,0,0,0,0,0,0,0,0,0,0,0,0,0,0,0,0,0,0,0,0,0,0,0,0,0,0,0,0,0,null,null,{"$f":"Раздел2!#REF!","v":{"$error":"#REF!"}}]
[null,"в том числе:\nБаскетбол (муж.)",10,{"$f":"Раздел2!F17","v":0},0,0,0,0,0,null,null,null,null,null,null,null,null,null,null,null,null,null,null,null,null,null,null,null,null,null,null,null,null,null,null,null,null,null,null,null,null,null,null,null,null,null,null,null,null,null,null,null,null,null,null,null,{"$f":"Раздел2!#REF!","v":{"$error":"#REF!"}}]
[null,"Баскетбол (жен.)",11,{"$f":"Раздел2!F18","v":0},0,0,0,0,0,null,null,null,null,null,null,null,null,null,null,null,null,null,null,null,null,null,null,null,null,null,null,null,null,null,null,null,null,null,null,null,null,null,null,null,null,null,null,null,null,null,null,null,null,null,null,null,{"$f":"Раздел2!#REF!","v":{"$error":"#REF!"}}]
[null,"Бейсбол",12,{"$f":"Раздел2!F19","v":0},0,0,0,0,0,null,null,null,null,null,null,null,null,null,null,null,null,null,null,null,null,null,null,null,null,null,null,null,null,null,null,null,null,null,null,null,null,null,null,null,null,null,null,null,null,null,null,null,null,null,null,null,{"$f":"Раздел2!#REF!","v":{"$error":"#REF!"}}]
[null,"Биатлон",13,{"$f":"Раздел2!F20","v":0},0,0,0,0,0,null,null,null,null,null,null,null,null,null,null,null,null,null,null,null,null,null,null,null,null,null,null,null,null,null,null,null,null,null,null,null,null,null,null,null,null,null,null,null,null,null,null,null,null,null,null,null,{"$f":"Раздел2!#REF!","v":{"$error":"#REF!"}}]
[null,"Бильярдный спорт",14,{"$f":"Раздел2!F21","v":0},0,0,0,0,0,null,null,null,null,null,null,null,null,null,null,null,null,null,null,null,null,null,null,null,null,null,null,null,null,null,null,null,null,null,null,null,null,null,null,null,null,null,null,null,null,null,null,null,null,null,null,null,{"$f":"Раздел2!#REF!","v":{"$error":"#REF!"}}]
[null,"Бобслей - всего",15,{"$f":"Раздел2!F22","v":0},0,0,0,0,0,{"$f":"SUM(J23:J24)","v":0},0,0,0,0,0,0,0,0,0,0,0,0,0,0,0,0,0,0,0,0,0,0,0,0,0,0,0,0,0,0,0,0,0,0,0,0,0,0,0,0,0,0,0,0,null,null,{"$f":"Раздел2!#REF!","v":{"$error":"#REF!"}}]
[null,"в том числе:\nБобслей",16,{"$f":"Раздел2!F23","v":0},0,0,0,0,0,null,null,null,null,null,null,null,null,null,null,null,null,null,null,null,null,null,null,null,null,null,null,null,null,null,null,null,null,null,null,null,null,null,null,null,null,null,null,null,null,null,null,null,null,null,null,null,{"$f":"Раздел2!#REF!","v":{"$error":"#REF!"}}]
[null,"Скелетон",17,{"$f":"Раздел2!F24","v":0},0,0,0,0,0,null,null,null,null,null,null,null,null,null,null,null,null,null,null,null,null,null,null,null,null,null,null,null,null,null,null,null,null,null,null,null,null,null,null,null,null,null,null,null,null,null,null,null,null,null,null,null,{"$f":"Раздел2!#REF!","v":{"$error":"#REF!"}}]
[null,"Бодибилдинг",18,{"$f":"Раздел2!F25","v":0},0,0,0,0,0,null,null,null,null,null,null,null,null,null,null,null,null,null,null,null,null,null,null,null,null,null,null,null,null,null,null,null,null,null,null,null,null,null,null,null,null,null,null,null,null,null,null,null,null,null,null,null,{"$f":"Раздел2!#REF!","v":{"$error":"#REF!"}}]
[null,"Бокс",19,{"$f":"Раздел2!F26","v":0},0,0,0,0,0,null,null,null,null,null,null,null,null,null,null,null,null,null,null,null,null,null,null,null,null,null,null,null,null,null,null,null,null,null,null,null,null,null,null,null,null,null,null,null,null,null,null,null,null,null,null,null,{"$f":"Раздел2!#REF!","v":{"$error":"#REF!"}}]
[null,"Борьба на поясах",20,{"$f":"Раздел2!F27","v":0},0,0,0,0,0,null,null,null,null,null,null,null,null,null,null,null,null,null,null,null,null,null,null,null,null,null,null,null,null,null,null,null,null,null,null,null,null,null,null,null,null,null,null,null,null,null,null,null,null,null,null,null,{"$f":"Раздел2!#REF!","v":{"$error":"#REF!"}}]
[null,"Боулинг",21,{"$f":"Раздел2!F28","v":0},0,0,0,0,0,null,null,null,null,null,null,null,null,null,null,null,null,null,null,null,null,null,null,null,null,null,null,null,null,null,null,null,null,null,null,null,null,null,null,null,null,null,null,null,null,null,null,null,null,null,null,null,{"$f":"Раздел2!#REF!","v":{"$error":"#REF!"}}]
[null,"Велоспорт ВМХ",22,{"$f":"Раздел2!F29","v":0},0,0,0,0,0,null,null,null,null,null,null,null,null,null,null,null,null,null,null,null,null,null,null,null,null,null,null,null,null,null,null,null,null,null,null,null,null,null,null,null,null,null,null,null,null,null,null,null,null,null,null,null,{"$f":"Раздел2!#REF!","v":{"$error":"#REF!"}}]
[null,"Велоспорт – маунтинбайк",23,{"$f":"Раздел2!F30","v":0},0,0,0,0,0,null,null,null,null,null,null,null,null,null,null,null,null,null,null,null,null,null,null,null,null,null,null,null,null,null,null,null,null,null,null,null,null,null,null,null,null,null,null,null,null,null,null,null,null,null,null,null,{"$f":"Раздел2!#REF!","v":{"$error":"#REF!"}}]
[null,"Велоспорт – трек",24,{"$f":"Раздел2!F31","v":0},0,0,0,0,0,null,null,null,null,null,null,null,null,null,null,null,null,null,null,null,null,null,null,null,null,null,null,null,null,null,null,null,null,null,null,null,null,null,null,null,null,null,null,null,null,null,null,null,null,null,null,null,{"$f":"Раздел2!#REF!","v":{"$error":"#REF!"}}]
[null,"Велоспорт – шоссе",25,{"$f":"Раздел2!F32","v":0},0,0,0,0,0,null,null,null,null,null,null,null,null,null,null,null,null,null,null,null,null,null,null,null,null,null,null,null,null,null,null,null,null,null,null,null,null,null,null,null,null,null,null,null,null,null,null,null,null,null,null,null,{"$f":"Раздел2!#REF!","v":{"$error":"#REF!"}}]
[null,"Вертолетный спорт",26,{"$f":"Раздел2!F33","v":0},0,0,0,0,0,null,null,null,null,null,null,null,null,null,null,null,null,null,null,null,null,null,null,null,null,null,null,null,null,null,null,null,null,null,null,null,null,null,null,null,null,null,null,null,null,null,null,null,null,null,null,null,{"$f":"Раздел2!#REF!","v":{"$error":"#REF!"}}]
[null,"Водно-моторный спорт",27,{"$f":"Раздел2!F34","v":0},0,0,0,0,0,null,null,null,null,null,null,null,null,null,null,null,null,null,null,null,null,null,null,null,null,null,null,null,null,null,null,null,null,null,null,null,null,null,null,null,null,null,null,null,null,null,null,null,null,null,null,null,{"$f":"Раздел2!#REF!","v":{"$error":"#REF!"}}]
[null,"Водное поло - всего ",28,{"$f":"Раздел2!F35","v":0},0,0,0,0,0,{"$f":"SUM(J36:J37)","v":0},0,0,0,0,0,0,0,0,0,0,0,0,0,0,0,0,0,0,0,0,0,0,0,0,0,0,0,0,0,0,0,0,0,0,0,0,0,0,0,0,0,0,0,0,null,null,{"$f":"Раздел2!#REF!","v":{"$error":"#REF!"}}]
[null,"в том числе:\nВодное поло (муж.)",29,{"$f":"Раздел2!F36","v":0},0,0,0,0,0,null,null,null,null,null,null,null,null,null,null,null,null,null,null,null,null,null,null,null,null,null,null,null,null,null,null,null,null,null,null,null,null,null,null,null,null,null,null,null,null,null,null,null,null,null,null,null,{"$f":"Раздел2!#REF!","v":{"$error":"#REF!"}}]
[null,"Водное поло (жен.)",30,{"$f":"Раздел2!F37","v":0},0,0,0,0,0,null,null,null,null,null,null,null,null,null,null,null,null,null,null,null,null,null,null,null,null,null,null,null,null,null,null,null,null,null,null,null,null,null,null,null,null,null,null,null,null,null,null,null,null,null,null,null,{"$f":"Раздел2!#REF!","v":{"$error":"#REF!"}}]
[null,"Воднолыжный спорт",31,{"$f":"Раздел2!F38","v":0},0,0,0,0,0,null,null,null,null,null,null,null,null,null,null,null,null,null,null,null,null,null,null,null,null,null,null,null,null,null,null,null,null,null,null,null,null,null,null,null,null,null,null,null,null,null,null,null,null,null,null,null,{"$f":"Раздел2!#REF!","v":{"$error":"#REF!"}}]
[null,"Воздухоплавательный спорт",32,{"$f":"Раздел2!F39","v":0},0,0,0,0,0,null,null,null,null,null,null,null,null,null,null,null,null,null,null,null,null,null,null,null,null,null,null,null,null,null,null,null,null,null,null,null,null,null,null,null,null,null,null,null,null,null,null,null,null,null,null,null,{"$f":"Раздел2!#REF!","v":{"$error":"#REF!"}}]
[null,"Волейбол - всего",33,{"$f":"Раздел2!F40","v":0},0,0,0,0,0,{"$f":"SUM(J41:J44)","v":0},0,0,0,0,0,0,0,0,0,0,0,0,0,0,0,0,0,0,0,0,0,0,0,0,0,0,0,0,0,0,0,0,0,0,0,0,0,0,0,0,0,0,0,0,null,null,{"$f":"Раздел2!#REF!","v":{"$error":"#REF!"}}]
[null,"в том числе:\nВолейбол (муж.)",34,{"$f":"Раздел2!F41","v":0},0,0,0,0,0,null,null,null,null,null,null,null,null,null,null,null,null,null,null,null,null,null,null,null,null,null,null,null,null,null,null,null,null,null,null,null,null,null,null,null,null,null,null,null,null,null,null,null,null,null,null,null,{"$f":"Раздел2!#REF!","v":{"$error":"#REF!"}}]
[null,"Волейбол (жен.)",35,{"$f":"Раздел2!F42","v":0},0,0,0,0,0,null,null,null,null,null,null,null,null,null,null,null,null,null,null,null,null,null,null,null,null,null,null,null,null,null,null,null,null,null,null,null,null,null,null,null,null,null,null,null,null,null,null,null,null,null,null,null,{"$f":"Раздел2!#REF!","v":{"$error":"#REF!"}}]
[null,"Пляжный волейбол (муж.)",36,{"$f":"Раздел2!F43","v":0},0,0,0,0,0,null,null,null,null,null,null,null,null,null,null,null,null,null,null,null,null,null,null,null,null,null,null,null,null,null,null,null,null,null,null,null,null,null,null,null,null,null,null,null,null,null,null,null,null,null,null,null,{"$f":"Раздел2!#REF!","v":{"$error":"#REF!"}}]
[null,"Пляжный волейбол (жен.)",37,{"$f":"Раздел2!F44","v":0},0,0,0,0,0,null,null,null,null,null,null,null,null,null,null,null,null,null,null,null,null,null,null,null,null,null,null,null,null,null,null,null,null,null,null,null,null,null,null,null,null,null,null,null,null,null,null,null,null,null,null,null,{"$f":"Раздел2!#REF!","v":{"$error":"#REF!"}}]
[null,"Восточное боевое единоборство",38,{"$f":"Раздел2!F45","v":0},0,0,0,0,0,null,null,null,null,null,null,null,null,null,null,null,null,null,null,null,null,null,null,null,null,null,null,null,null,null,null,null,null,null,null,null,null,null,null,null,null,null,null,null,null,null,null,null,null,null,null,null,{"$f":"Раздел2!#REF!","v":{"$error":"#REF!"}}]
[null,"Всестилевое карате",39,{"$f":"Раздел2!F46","v":0},0,0,0,0,0,null,null,null,null,null,null,null,null,null,null,null,null,null,null,null,null,null,null,null,null,null,null,null,null,null,null,null,null,null,null,null,null,null,null,null,null,null,null,null,null,null,null,null,null,null,null,null,{"$f":"Раздел2!#REF!","v":{"$error":"#REF!"}}]
[null,"Гандбол - всего",40,{"$f":"Раздел2!F47","v":0},0,0,0,0,0,{"$f":"SUM(J48:J49)","v":0},0,0,0,0,0,0,0,0,0,0,0,0,0,0,0,0,0,0,0,0,0,0,0,0,0,0,0,0,0,0,0,0,0,0,0,0,0,0,0,0,0,0,0,0,null,null,{"$f":"Раздел2!#REF!","v":{"$error":"#REF!"}}]
[null,"в том числе:\nГандбол (муж.)",41,{"$f":"Раздел2!F48","v":0},0,0,0,0,0,null,null,null,null,null,null,null,null,null,null,null,null,null,null,null,null,null,null,null,null,null,null,null,null,null,null,null,null,null,null,null,null,null,null,null,null,null,null,null,null,null,null,null,null,null,null,null,{"$f":"Раздел2!#REF!","v":{"$error":"#REF!"}}]
[null,"Гандбол (жен.)",42,{"$f":"Раздел2!F49","v":0},0,0,0,0,0,null,null,null,null,null,null,null,null,null,null,null,null,null,null,null,null,null,null,null,null,null,null,null,null,null,null,null,null,null,null,null,null,null,null,null,null,null,null,null,null,null,null,null,null,null,null,null,{"$f":"Раздел2!#REF!","v":{"$error":"#REF!"}}]
[null,"Гиревой спорт",43,{"$f":"Раздел2!F50","v":0},0,0,0,0,0,null,null,null,null,null,null,null,null,null,null,null,null,null,null,null,null,null,null,null,null,null,null,null,null,null,null,null,null,null,null,null,null,null,null,null,null,null,null,null,null,null,null,null,null,null,null,null,{"$f":"Раздел2!#REF!","v":{"$error":"#REF!"}}]
[null,"Го",44,{"$f":"Раздел2!F51","v":0},0,0,0,0,0,null,null,null,null,null,null,null,null,null,null,null,null,null,null,null,null,null,null,null,null,null,null,null,null,null,null,null,null,null,null,null,null,null,null,null,null,null,null,null,null,null,null,null,null,null,null,null,{"$f":"Раздел2!#REF!","v":{"$error":"#REF!"}}]
[null,"Гольф",45,{"$f":"Раздел2!F52","v":0},0,0,0,0,0,null,null,null,null,null,null,null,null,null,null,null,null,null,null,null,null,null,null,null,null,null,null,null,null,null,null,null,null,null,null,null,null,null,null,null,null,null,null,null,null,null,null,null,null,null,null,null,{"$f":"Раздел2!#REF!","v":{"$error":"#REF!"}}]
[null,"Горнолыжный спорт",46,{"$f":"Раздел2!F53","v":0},0,0,0,0,0,null,null,null,null,null,null,null,null,null,null,null,null,null,null,null,null,null,null,null,null,null,null,null,null,null,null,null,null,null,null,null,null,null,null,null,null,null,null,null,null,null,null,null,null,null,null,null,{"$f":"Раздел2!#REF!","v":{"$error":"#REF!"}}]
[null,"Городошный спорт",47,{"$f":"Раздел2!F54","v":0},0,0,0,0,0,null,null,null,null,null,null,null,null,null,null,null,null,null,null,null,null,null,null,null,null,null,null,null,null,null,null,null,null,null,null,null,null,null,null,null,null,null,null,null,null,null,null,null,null,null,null,null,{"$f":"Раздел2!#REF!","v":{"$error":"#REF!"}}]
[null,"Гребля на байдарках и каноэ",48,{"$f":"Раздел2!F55","v":0},0,0,0,0,0,null,null,null,null,null,null,null,null,null,null,null,null,null,null,null,null,null,null,null,null,null,null,null,null,null,null,null,null,null,null,null,null,null,null,null,null,null,null,null,null,null,null,null,null,null,null,null,{"$f":"Раздел2!#REF!","v":{"$error":"#REF!"}}]
[null,"Гребной слалом",49,{"$f":"Раздел2!F56","v":0},0,0,0,0,0,null,null,null,null,null,null,null,null,null,null,null,null,null,null,null,null,null,null,null,null,null,null,null,null,null,null,null,null,null,null,null,null,null,null,null,null,null,null,null,null,null,null,null,null,null,null,null,{"$f":"Раздел2!#REF!","v":{"$error":"#REF!"}}]
[null,"Гребной спорт - всего",50,{"$f":"Раздел2!F57","v":0},0,0,0,0,0,{"$f":"SUM(J58:J61)","v":0},0,0,0,0,0,0,0,0,0,0,0,0,0,0,0,0,0,0,0,0,0,0,0,0,0,0,0,0,0,0,0,0,0,0,0,0,0,0,0,0,0,0,0,0,null,null,{"$f":"Раздел2!#REF!","v":{"$error":"#REF!"}}]
[null,"в том числе:\nАкадемическая гребля",51,{"$f":"Раздел2!F58","v":0},0,0,0,0,0,null,null,null,null,null,null,null,null,null,null,null,null,null,null,null,null,null,null,null,null,null,null,null,null,null,null,null,null,null,null,null,null,null,null,null,null,null,null,null,null,null,null,null,null,null,null,null,{"$f":"Раздел2!#REF!","v":{"$error":"#REF!"}}]
[null,"Гребля-индор",52,{"$f":"Раздел2!F59","v":0},0,0,0,0,0,null,null,null,null,null,null,null,null,null,null,null,null,null,null,null,null,null,null,null,null,null,null,null,null,null,null,null,null,null,null,null,null,null,null,null,null,null,null,null,null,null,null,null,null,null,null,null,{"$f":"Раздел2!#REF!","v":{"$error":"#REF!"}}]
[null,"Народная гребля",53,{"$f":"Раздел2!F60","v":0},0,0,0,0,0,null,null,null,null,null,null,null,null,null,null,null,null,null,null,null,null,null,null,null,null,null,null,null,null,null,null,null,null,null,null,null,null,null,null,null,null,null,null,null,null,null,null,null,null,null,null,null,{"$f":"Раздел2!#REF!","v":{"$error":"#REF!"}}]
[null,"Прибрежная гребля",54,{"$f":"Раздел2!F61","v":0},0,0,0,0,0,null,null,null,null,null,null,null,null,null,null,null,null,null,null,null,null,null,null,null,null,null,null,null,null,null,null,null,null,null,null,null,null,null,null,null,null,null,null,null,null,null,null,null,null,null,null,null,{"$f":"Раздел2!#REF!","v":{"$error":"#REF!"}}]
[null,"Дартс",55,{"$f":"Раздел2!F62","v":0},0,0,0,0,0,null,null,null,null,null,null,null,null,null,null,null,null,null,null,null,null,null,null,null,null,null,null,null,null,null,null,null,null,null,null,null,null,null,null,null,null,null,null,null,null,null,null,null,null,null,null,null,{"$f":"Раздел2!#REF!","v":{"$error":"#REF!"}}]
[null,"Джиу-джитсу",56,{"$f":"Раздел2!F63","v":0},0,0,0,0,0,null,null,null,null,null,null,null,null,null,null,null,null,null,null,null,null,null,null,null,null,null,null,null,null,null,null,null,null,null,null,null,null,null,null,null,null,null,null,null,null,null,null,null,null,null,null,null,{"$f":"Раздел2!#REF!","v":{"$error":"#REF!"}}]
[null,"Дзюдо",57,{"$f":"Раздел2!F64","v":0},0,0,0,0,0,null,null,null,null,null,null,null,null,null,null,null,null,null,null,null,null,null,null,null,null,null,null,null,null,null,null,null,null,null,null,null,null,null,null,null,null,null,null,null,null,null,null,null,null,null,null,null,{"$f":"Раздел2!#REF!","v":{"$error":"#REF!"}}]
[null,"Капоэйра",58,{"$f":"Раздел2!F65","v":0},0,0,0,0,0,null,null,null,null,null,null,null,null,null,null,null,null,null,null,null,null,null,null,null,null,null,null,null,null,null,null,null,null,null,null,null,null,null,null,null,null,null,null,null,null,null,null,null,null,null,null,null,{"$f":"Раздел2!#REF!","v":{"$error":"#REF!"}}]
[null,"Каратэ",59,{"$f":"Раздел2!F66","v":0},0,0,0,0,0,null,null,null,null,null,null,null,null,null,null,null,null,null,null,null,null,null,null,null,null,null,null,null,null,null,null,null,null,null,null,null,null,null,null,null,null,null,null,null,null,null,null,null,null,null,null,null,{"$f":"Раздел2!#REF!","v":{"$error":"#REF!"}}]
[null,"Кендо",60,{"$f":"Раздел2!F67","v":0},0,0,0,0,0,null,null,null,null,null,null,null,null,null,null,null,null,null,null,null,null,null,null,null,null,null,null,null,null,null,null,null,null,null,null,null,null,null,null,null,null,null,null,null,null,null,null,null,null,null,null,null,{"$f":"Раздел2!#REF!","v":{"$error":"#REF!"}}]
[null,"Керешу",61,{"$f":"Раздел2!F68","v":0},0,0,0,0,0,null,null,null,null,null,null,null,null,null,null,null,null,null,null,null,null,null,null,null,null,null,null,null,null,null,null,null,null,null,null,null,null,null,null,null,null,null,null,null,null,null,null,null,null,null,null,null,{"$f":"Раздел2!#REF!","v":{"$error":"#REF!"}}]
[null,"Керлинг - всего",62,{"$f":"Раздел2!F69","v":0},0,0,0,0,0,{"$f":"SUM(J70:J71)","v":0},0,0,0,0,0,0,0,0,0,0,0,0,0,0,0,0,0,0,0,0,0,0,0,0,0,0,0,0,0,0,0,0,0,0,0,0,0,0,0,0,0,0,0,0,null,null,{"$f":"Раздел2!#REF!","v":{"$error":"#REF!"}}]
[null,"в том числе:\nКерлинг (муж.)",63,{"$f":"Раздел2!F70","v":0},0,0,0,0,0,null,null,null,null,null,null,null,null,null,null,null,null,null,null,null,null,null,null,null,null,null,null,null,null,null,null,null,null,null,null,null,null,null,null,null,null,null,null,null,null,null,null,null,null,null,null,null,{"$f":"Раздел2!#REF!","v":{"$error":"#REF!"}}]
[null,"Керлинг (жен.)",64,{"$f":"Раздел2!F71","v":0},0,0,0,0,0,null,null,null,null,null,null,null,null,null,null,null,null,null,null,null,null,null,null,null,null,null,null,null,null,null,null,null,null,null,null,null,null,null,null,null,null,null,null,null,null,null,null,null,null,null,null,null,{"$f":"Раздел2!#REF!","v":{"$error":"#REF!"}}]
[null,"Кикбоксинг",65,{"$f":"Раздел2!F72","v":0},0,0,0,0,0,null,null,null,null,null,null,null,null,null,null,null,null,null,null,null,null,null,null,null,null,null,null,null,null,null,null,null,null,null,null,null,null,null,null,null,null,null,null,null,null,null,null,null,null,null,null,null,{"$f":"Раздел2!#REF!","v":{"$error":"#REF!"}}]
[null,"Кинологический спорт",66,{"$f":"Раздел2!F73","v":0},{"$f":"J73+O73+T73+Y73+AD73+AI73+AN73+AS73+AX73","v":0},{"$f":"K73+P73+U73+Z73+AE73+AJ73+AO73+AT73+AY73","v":0},{"$f":"L73+Q73+V73+AA73+AF73+AK73+AP73+AU73+AZ73","v":0},{"$f":"M73+R73+W73+AB73+AG73+AL73+AQ73+AV73+BA73","v":0},{"$f":"N73+S73+X73+AC73+AH73+AM73+AR73+AW73+BB73","v":0},null,null,null,null,null,null,null,null,null,null,null,null,null,null,null,null,null,null,null,null,null,null,null,null,null,null,null,null,null,null,null,null,null,null,null,null,null,null,null,null,null,null,null,null,null,null,null,{"$f":"Раздел2!#REF!","v":{"$error":"#REF!"}}]
[null,"Киокусинкай",67,{"$f":"Раздел2!F74","v":0},0,0,0,0,0,null,null,null,null,null,null,null,null,null,null,null,null,null,null,null,null,null,null,null,null,null,null,null,null,null,null,null,null,null,null,null,null,null,null,null,null,null,null,null,null,null,null,null,null,null,null,null,{"$f":"Раздел2!#REF!","v":{"$error":"#REF!"}}]
[null,"Конный спорт",68,{"$f":"Раздел2!F75","v":0},0,0,0,0,0,null,null,null,null,null,null,null,null,null,null,null,null,null,null,null,null,null,null,null,null,null,null,null,null,null,null,null,null,null,null,null,null,null,null,null,null,null,null,null,null,null,null,null,null,null,null,null,{"$f":"Раздел2!#REF!","v":{"$error":"#REF!"}}]
[null,"Конькобежный спорт - всего",69,{"$f":"Раздел2!F76","v":0},0,0,0,0,0,{"$f":"SUM(J77:J78)","v":0},0,0,0,0,0,0,0,0,0,0,0,0,0,0,0,0,0,0,0,0,0,0,0,0,0,0,0,0,0,0,0,0,0,0,0,0,0,0,0,0,0,0,0,0,null,null,{"$f":"Раздел2!#REF!","v":{"$error":"#REF!"}}]
[null,"в том числе:\nКонькобежный спорт",70,{"$f":"Раздел2!F77","v":0},0,0,0,0,0,null,null,null,null,null,null,null,null,null,null,null,null,null,null,null,null,null,null,null,null,null,null,null,null,null,null,null,null,null,null,null,null,null,null,null,null,null,null,null,null,null,null,null,null,null,null,null,{"$f":"Раздел2!#REF!","v":{"$error":"#REF!"}}]
[null,"Шорт-трек",71,{"$f":"Раздел2!F78","v":0},0,0,0,0,0,null,null,null,null,null,null,null,null,null,null,null,null,null,null,null,null,null,null,null,null,null,null,null,null,null,null,null,null,null,null,null,null,null,null,null,null,null,null,null,null,null,null,null,null,null,null,null,{"$f":"Раздел2!#REF!","v":{"$error":"#REF!"}}]
[null,"Корэш",72,{"$f":"Раздел2!F79","v":0},0,0,0,0,0,null,null,null,null,null,null,null,null,null,null,null,null,null,null,null,null,null,null,null,null,null,null,null,null,null,null,null,null,null,null,null,null,null,null,null,null,null,null,null,null,null,null,null,null,null,null,null,{"$f":"Раздел2!#REF!","v":{"$error":"#REF!"}}]
[null,"Лапта",73,{"$f":"Раздел2!F80","v":0},0,0,0,0,0,null,null,null,null,null,null,null,null,null,null,null,null,null,null,null,null,null,null,null,null,null,null,null,null,null,null,null,null,null,null,null,null,null,null,null,null,null,null,null,null,null,null,null,null,null,null,null,{"$f":"Раздел2!#REF!","v":{"$error":"#REF!"}}]
[null,"Легкая атлетика - всего",74,{"$f":"Раздел2!F81","v":0},0,0,0,0,0,{"$f":"SUM(J82:J88)","v":0},0,0,0,0,0,0,0,0,0,0,0,0,0,0,0,0,0,0,0,0,0,0,0,0,0,0,0,0,0,0,0,0,0,0,0,0,0,0,0,0,0,0,0,0,null,null,{"$f":"Раздел2!#REF!","v":{"$error":"#REF!"}}]
[null,"в том числе:\nСпринтерский и барьерный бег",75,{"$f":"Раздел2!F82","v":0},0,0,0,0,0,null,null,null,null,null,null,null,null,null,null,null,null,null,null,null,null,null,null,null,null,null,null,null,null,null,null,null,null,null,null,null,null,null,null,null,null,null,null,null,null,null,null,null,null,null,null,null,{"$f":"Раздел2!#REF!","v":{"$error":"#REF!"}}]
[null,"Бег на средние дистанции и бег с препятствиями",76,{"$f":"Раздел2!F83","v":0},0,0,0,0,0,null,null,null,null,null,null,null,null,null,null,null,null,null,null,null,null,null,null,null,null,null,null,null,null,null,null,null,null,null,null,null,null,null,null,null,null,null,null,null,null,null,null,null,null,null,null,null,{"$f":"Раздел2!#REF!","v":{"$error":"#REF!"}}]
[null,"Бег на длинные и сверхдлинные дистанции",77,{"$f":"Раздел2!F84","v":0},0,0,0,0,0,null,null,null,null,null,null,null,null,null,null,null,null,null,null,null,null,null,null,null,null,null,null,null,null,null,null,null,null,null,null,null,null,null,null,null,null,null,null,null,null,null,null,null,null,null,null,null,{"$f":"Раздел2!#REF!","v":{"$error":"#REF!"}}]
[null,"Многоборья",78,{"$f":"Раздел2!F85","v":0},0,0,0,0,0,null,null,null,null,null,null,null,null,null,null,null,null,null,null,null,null,null,null,null,null,null,null,null,null,null,null,null,null,null,null,null,null,null,null,null,null,null,null,null,null,null,null,null,null,null,null,null,{"$f":"Раздел2!#REF!","v":{"$error":"#REF!"}}]
[null,"Прыжки",79,{"$f":"Раздел2!F86","v":0},0,0,0,0,0,null,null,null,null,null,null,null,null,null,null,null,null,null,null,null,null,null,null,null,null,null,null,null,null,null,null,null,null,null,null,null,null,null,null,null,null,null,null,null,null,null,null,null,null,null,null,null,{"$f":"Раздел2!#REF!","v":{"$error":"#REF!"}}]
[null,"Метания",80,{"$f":"Раздел2!F87","v":0},0,0,0,0,0,null,null,null,null,null,null,null,null,null,null,null,null,null,null,null,null,null,null,null,null,null,null,null,null,null,null,null,null,null,null,null,null,null,null,null,null,null,null,null,null,null,null,null,null,null,null,null,{"$f":"Раздел2!#REF!","v":{"$error":"#REF!"}}]
[null,"Спортивная ходьба",81,{"$f":"Раздел2!F88","v":0},0,0,0,0,0,null,null,null,null,null,null,null,null,null,null,null,null,null,null,null,null,null,null,null,null,null,null,null,null,null,null,null,null,null,null,null,null,null,null,null,null,null,null,null,null,null,null,null,null,null,null,null,{"$f":"Раздел2!#REF!","v":{"$error":"#REF!"}}]
[null,"Лыжное двоеборье",82,{"$f":"Раздел2!F89","v":0},0,0,0,0,0,null,null,null,null,null,null,null,null,null,null,null,null,null,null,null,null,null,null,null,null,null,null,null,null,null,null,null,null,null,null,null,null,null,null,null,null,null,null,null,null,null,null,null,null,null,null,null,{"$f":"Раздел2!#REF!","v":{"$error":"#REF!"}}]
[null,"Лыжные гонки",83,{"$f":"Раздел2!F90","v":0},0,0,0,0,0,null,null,null,null,null,null,null,null,null,null,null,null,null,null,null,null,null,null,null,null,null,null,null,null,null,null,null,null,null,null,null,null,null,null,null,null,null,null,null,null,null,null,null,null,null,null,null,{"$f":"Раздел2!#REF!","v":{"$error":"#REF!"}}]
[null,"Мас-рестлинг",84,{"$f":"Раздел2!F91","v":0},0,0,0,0,0,null,null,null,null,null,null,null,null,null,null,null,null,null,null,null,null,null,null,null,null,null,null,null,null,null,null,null,null,null,null,null,null,null,null,null,null,null,null,null,null,null,null,null,null,null,null,null,{"$f":"Раздел2!#REF!","v":{"$error":"#REF!"}}]
[null,"Морское многоборье",85,{"$f":"Раздел2!F92","v":0},0,0,0,0,0,null,null,null,null,null,null,null,null,null,null,null,null,null,null,null,null,null,null,null,null,null,null,null,null,null,null,null,null,null,null,null,null,null,null,null,null,null,null,null,null,null,null,null,null,null,null,null,{"$f":"Раздел2!#REF!","v":{"$error":"#REF!"}}]
[null,"Мотоциклетный спорт",86,{"$f":"Раздел2!F93","v":0},0,0,0,0,0,null,null,null,null,null,null,null,null,null,null,null,null,null,null,null,null,null,null,null,null,null,null,null,null,null,null,null,null,null,null,null,null,null,null,null,null,null,null,null,null,null,null,null,null,null,null,null,{"$f":"Раздел2!#REF!","v":{"$error":"#REF!"}}]
[null,"Настольный теннис",87,{"$f":"Раздел2!F94","v":0},0,0,0,0,0,null,null,null,null,null,null,null,null,null,null,null,null,null,null,null,null,null,null,null,null,null,null,null,null,null,null,null,null,null,null,null,null,null,null,null,null,null,null,null,null,null,null,null,null,null,null,null,{"$f":"Раздел2!#REF!","v":{"$error":"#REF!"}}]
[null,"Парашютный спорт",88,{"$f":"Раздел2!F95","v":0},0,0,0,0,0,null,null,null,null,null,null,null,null,null,null,null,null,null,null,null,null,null,null,null,null,null,null,null,null,null,null,null,null,null,null,null,null,null,null,null,null,null,null,null,null,null,null,null,null,null,null,null,{"$f":"Раздел2!#REF!","v":{"$error":"#REF!"}}]
[null,"Парусный спорт",89,{"$f":"Раздел2!F96","v":0},0,0,0,0,0,null,null,null,null,null,null,null,null,null,null,null,null,null,null,null,null,null,null,null,null,null,null,null,null,null,null,null,null,null,null,null,null,null,null,null,null,null,null,null,null,null,null,null,null,null,null,null,{"$f":"Раздел2!#REF!","v":{"$error":"#REF!"}}]
[null,"Пауэрлифтинг",90,{"$f":"Раздел2!F97","v":0},0,0,0,0,0,null,null,null,null,null,null,null,null,null,null,null,null,null,null,null,null,null,null,null,null,null,null,null,null,null,null,null,null,null,null,null,null,null,null,null,null,null,null,null,null,null,null,null,null,null,null,null,{"$f":"Раздел2!#REF!","v":{"$error":"#REF!"}}]
[null,"Перетягивание каната",91,{"$f":"Раздел2!F98","v":0},0,0,0,0,0,null,null,null,null,null,null,null,null,null,null,null,null,null,null,null,null,null,null,null,null,null,null,null,null,null,null,null,null,null,null,null,null,null,null,null,null,null,null,null,null,null,null,null,null,null,null,null,{"$f":"Раздел2!#REF!","v":{"$error":"#REF!"}}]
[null,"Плавание - всего",92,{"$f":"Раздел2!F99","v":0},0,0,0,0,0,{"$f":"SUM(J100:J101)","v":0},0,0,0,0,0,0,0,0,0,0,0,0,0,0,0,0,0,0,0,0,0,0,0,0,0,0,0,0,0,0,0,0,0,0,0,0,0,0,0,0,0,0,0,0,null,null,{"$f":"Раздел2!#REF!","v":{"$error":"#REF!"}}]
[null,"в том числе:\nПлавание ",93,{"$f":"Раздел2!F100","v":0},0,0,0,0,0,null,null,null,null,null,null,null,null,null,null,null,null,null,null,null,null,null,null,null,null,null,null,null,null,null,null,null,null,null,null,null,null,null,null,null,null,null,null,null,null,null,null,null,null,null,null,null,{"$f":"Раздел2!#REF!","v":{"$error":"#REF!"}}]
[null,"Открытая вода",94,{"$f":"Раздел2!F101","v":0},0,0,0,0,0,null,null,null,null,null,null,null,null,null,null,null,null,null,null,null,null,null,null,null,null,null,null,null,null,null,null,null,null,null,null,null,null,null,null,null,null,null,null,null,null,null,null,null,null,null,null,null,{"$f":"Раздел2!#REF!","v":{"$error":"#REF!"}}]
[null,"Планерный спорт",95,{"$f":"Раздел2!F102","v":0},0,0,0,0,0,null,null,null,null,null,null,null,null,null,null,null,null,null,null,null,null,null,null,null,null,null,null,null,null,null,null,null,null,null,null,null,null,null,null,null,null,null,null,null,null,null,null,null,null,null,null,null,{"$f":"Раздел2!#REF!","v":{"$error":"#REF!"}}]
[null,"Подводный спорт",96,{"$f":"Раздел2!F103","v":0},0,0,0,0,0,null,null,null,null,null,null,null,null,null,null,null,null,null,null,null,null,null,null,null,null,null,null,null,null,null,null,null,null,null,null,null,null,null,null,null,null,null,null,null,null,null,null,null,null,null,null,null,{"$f":"Раздел2!#REF!","v":{"$error":"#REF!"}}]
[null,"Полиатлон",97,{"$f":"Раздел2!F104","v":0},0,0,0,0,0,null,null,null,null,null,null,null,null,null,null,null,null,null,null,null,null,null,null,null,null,null,null,null,null,null,null,null,null,null,null,null,null,null,null,null,null,null,null,null,null,null,null,null,null,null,null,null,{"$f":"Раздел2!#REF!","v":{"$error":"#REF!"}}]
[null,"Практическая стрельба",98,{"$f":"Раздел2!F105","v":0},0,0,0,0,0,null,null,null,null,null,null,null,null,null,null,null,null,null,null,null,null,null,null,null,null,null,null,null,null,null,null,null,null,null,null,null,null,null,null,null,null,null,null,null,null,null,null,null,null,null,null,null,{"$f":"Раздел2!#REF!","v":{"$error":"#REF!"}}]
[null,"Прыжки в воду - всего",99,{"$f":"Раздел2!F106","v":0},0,0,0,0,0,{"$f":"SUM(J107:J108)","v":0},0,0,0,0,0,0,0,0,0,0,0,0,0,0,0,0,0,0,0,0,0,0,0,0,0,0,0,0,0,0,0,0,0,0,0,0,0,0,0,0,0,0,0,0,null,null,{"$f":"Раздел2!#REF!","v":{"$error":"#REF!"}}]
[null,"в том числе:\nПрыжки в воду",100,{"$f":"Раздел2!F107","v":0},0,0,0,0,0,null,null,null,null,null,null,null,null,null,null,null,null,null,null,null,null,null,null,null,null,null,null,null,null,null,null,null,null,null,null,null,null,null,null,null,null,null,null,null,null,null,null,null,null,null,null,null,{"$f":"Раздел2!#REF!","v":{"$error":"#REF!"}}]
[null,"Прыжки в открытый водоем",101,{"$f":"Раздел2!F108","v":0},0,0,0,0,0,null,null,null,null,null,null,null,null,null,null,null,null,null,null,null,null,null,null,null,null,null,null,null,null,null,null,null,null,null,null,null,null,null,null,null,null,null,null,null,null,null,null,null,null,null,null,null,{"$f":"Раздел2!#REF!","v":{"$error":"#REF!"}}]
[null,"Прыжки на батуте",102,{"$f":"Раздел2!F109","v":0},0,0,0,0,0,null,null,null,null,null,null,null,null,null,null,null,null,null,null,null,null,null,null,null,null,null,null,null,null,null,null,null,null,null,null,null,null,null,null,null,null,null,null,null,null,null,null,null,null,null,null,null,{"$f":"Раздел2!#REF!","v":{"$error":"#REF!"}}]
[null,"Прыжки на лыжах с трамплина",103,{"$f":"Раздел2!F110","v":0},0,0,0,0,0,null,null,null,null,null,null,null,null,null,null,null,null,null,null,null,null,null,null,null,null,null,null,null,null,null,null,null,null,null,null,null,null,null,null,null,null,null,null,null,null,null,null,null,null,null,null,null,{"$f":"Раздел2!#REF!","v":{"$error":"#REF!"}}]
[null,"Пулевая стрельба - всего",104,{"$f":"Раздел2!F111","v":0},0,0,0,0,0,{"$f":"SUM(J112:J116)","v":0},0,0,0,0,0,0,0,0,0,0,0,0,0,0,0,0,0,0,0,0,0,0,0,0,0,0,0,0,0,0,0,0,0,0,0,0,0,0,0,0,0,0,0,0,null,null,{"$f":"Раздел2!#REF!","v":{"$error":"#REF!"}}]
[null,"в том числе:\nПневматическая винтовка",105,{"$f":"Раздел2!F112","v":0},0,0,0,0,0,null,null,null,null,null,null,null,null,null,null,null,null,null,null,null,null,null,null,null,null,null,null,null,null,null,null,null,null,null,null,null,null,null,null,null,null,null,null,null,null,null,null,null,null,null,null,null,{"$f":"Раздел2!#REF!","v":{"$error":"#REF!"}}]
[null,"Пневматический пистолет",106,{"$f":"Раздел2!F113","v":0},0,0,0,0,0,null,null,null,null,null,null,null,null,null,null,null,null,null,null,null,null,null,null,null,null,null,null,null,null,null,null,null,null,null,null,null,null,null,null,null,null,null,null,null,null,null,null,null,null,null,null,null,{"$f":"Раздел2!#REF!","v":{"$error":"#REF!"}}]
[null,"Малокалиберная винтоква",107,{"$f":"Раздел2!F114","v":0},0,0,0,0,0,null,null,null,null,null,null,null,null,null,null,null,null,null,null,null,null,null,null,null,null,null,null,null,null,null,null,null,null,null,null,null,null,null,null,null,null,null,null,null,null,null,null,null,null,null,null,null,{"$f":"Раздел2!#REF!","v":{"$error":"#REF!"}}]
[null,"Малокалиберный пистолет",108,{"$f":"Раздел2!F115","v":0},0,0,0,0,0,null,null,null,null,null,null,null,null,null,null,null,null,null,null,null,null,null,null,null,null,null,null,null,null,null,null,null,null,null,null,null,null,null,null,null,null,null,null,null,null,null,null,null,null,null,null,null,{"$f":"Раздел2!#REF!","v":{"$error":"#REF!"}}]
[null,"Движущаяся мишень",109,{"$f":"Раздел2!F116","v":0},0,0,0,0,0,null,null,null,null,null,null,null,null,null,null,null,null,null,null,null,null,null,null,null,null,null,null,null,null,null,null,null,null,null,null,null,null,null,null,null,null,null,null,null,null,null,null,null,null,null,null,null,{"$f":"Раздел2!#REF!","v":{"$error":"#REF!"}}]
[null,"Пэйнтбол",110,{"$f":"Раздел2!F117","v":0},0,0,0,0,0,null,null,null,null,null,null,null,null,null,null,null,null,null,null,null,null,null,null,null,null,null,null,null,null,null,null,null,null,null,null,null,null,null,null,null,null,null,null,null,null,null,null,null,null,null,null,null,{"$f":"Раздел2!#REF!","v":{"$error":"#REF!"}}]
[null,"Радиоспорт",111,{"$f":"Раздел2!F118","v":0},0,0,0,0,0,null,null,null,null,null,null,null,null,null,null,null,null,null,null,null,null,null,null,null,null,null,null,null,null,null,null,null,null,null,null,null,null,null,null,null,null,null,null,null,null,null,null,null,null,null,null,null,{"$f":"Раздел2!#REF!","v":{"$error":"#REF!"}}]
[null,"Рафтинг",112,{"$f":"Раздел2!F119","v":0},0,0,0,0,0]
[null,"Регби - всего",113,{"$f":"Раздел2!F120","v":0},0,0,0,0,0,{"$f":"SUM(J121:J124)","v":0},0,0,0,0,0,0,0,0,0,0,0,0,0,0,0,0,0,0,0,0,0,0,0,0,0,0,0,0,0,0,0,0,0,0,0,0,0,0,0,0,0,0,0,0]
[null,"в том числе:\nРегби",114,{"$f":"Раздел2!F121","v":0},0,0,0,0,0]
[null,"Регби 7 (муж.)",115,{"$f":"Раздел2!F122","v":0},0,0,0,0,0]
[null,"Регби 7 (жен.)",116,{"$f":"Раздел2!F123","v":0},0,0,0,0,0]
[null,"Пляжный регби",117,{"$f":"Раздел2!F124","v":0},0,0,0,0,0]
[null,"Рукопашный бой",118,{"$f":"Раздел2!F125","v":0},0,0,0,0,0]
[null,"Рыболовный спорт",119,{"$f":"Раздел2!F126","v":0},0,0,0,0,0]
[null,"Сават",120,{"$f":"Раздел2!F127","v":0},0,0,0,0,0]
[null,"Самбо",121,{"$f":"Раздел2!F128","v":0},0,0,0,0,0]
[null,"Самолетный спорт",122,{"$f":"Раздел2!F129","v":0},0,0,0,0,0]
[null,"Санный спорт",123,{"$f":"Раздел2!F130","v":0},0,0,0,0,0]
[null,"Северное многоборье",124,{"$f":"Раздел2!F131","v":0},0,0,0,0,0]
[null,"Синхронное плавание",125,{"$f":"Раздел2!F132","v":0},0,0,0,0,0]
[null,"Скалолазание",126,{"$f":"Раздел2!F133","v":0},0,0,0,0,0]
[null,"Сквош",127,{"$f":"Раздел2!F134","v":0},0,0,0,0,0]
[null,"Смешанное боевое единоборство (ММА)",128,{"$f":"Раздел2!F135","v":0},0,0,0,0,0]
[null,"Сноуборд",129,{"$f":"Раздел2!F136","v":0},0,0,0,0,0]
[null,"Современное пятиборье",130,{"$f":"Раздел2!F137","v":0},{"$f":"J137+O137+T137+Y137+AD137+AI137+AN137+AS137+AX137","v":0},{"$f":"K137+P137+U137+Z137+AE137+AJ137+AO137+AT137+AY137","v":0},{"$f":"L137+Q137+V137+AA137+AF137+AK137+AP137+AU137+AZ137","v":0},{"$f":"M137+R137+W137+AB137+AG137+AL137+AQ137+AV137+BA137","v":0},{"$f":"N137+S137+X137+AC137+AH137+AM137+AR137+AW137+BB137","v":0}]
[null,"Софтбол",131,{"$f":"Раздел2!F138","v":0},0,0,0,0,0]
[null,"Спорт сверхлегкой авиации",132,{"$f":"Раздел2!F139","v":0},0,0,0,0,0]
[null,"Спортивная акробатика",133,{"$f":"Раздел2!F140","v":0},0,0,0,0,0]
[null,"Спортивная аэробика",134,{"$f":"Раздел2!F141","v":0},0,0,0,0,0]
[null,"Спортивная борьба - всего",135,{"$f":"Раздел2!F142","v":0},0,0,0,0,0,{"$f":"SUM(J143:J147)","v":0},0,0,0,0,0,0,0,0,0,0,0,0,0,0,0,0,0,0,0,0,0,0,0,0,0,0,0,0,0,0,0,0,0,0,0,0,0,0,0,0,0,0,0,0]
[null,"в том числе:\nВольная борьба",136,{"$f":"Раздел2!F143","v":0},0,0,0,0,0]
[null,"Греко-римская борьба",137,{"$f":"Раздел2!F144","v":0},0,0,0,0,0]
[null,"Грэпплинг",138,{"$f":"Раздел2!F145","v":0},0,0,0,0,0]
[null,"Грэпплинг-ги",139,{"$f":"Раздел2!F146","v":0},0,0,0,0,0]
[null,"Панкратион",140,{"$f":"Раздел2!F147","v":0},0,0,0,0,0]
[null,"Спортивно-прикладное собаководство",141,{"$f":"Раздел2!F148","v":0},0,0,0,0,0]
[null,"Спортивная гимнастика",142,{"$f":"Раздел2!F149","v":0},0,0,0,0,0]
[null,"Спортивное ориентирование",143,{"$f":"Раздел2!F150","v":0},0,0,0,0,0]
[null,"Спортивный бридж",144,{"$f":"Раздел2!F151","v":0},0,0,0,0,0]
[null,"Спортивный туризм",145,{"$f":"Раздел2!F152","v":0},0,0,0,0,0]
[null,"Стендовая стрельба - всего",146,{"$f":"Раздел2!F153","v":0},0,0,0,0,0,{"$f":"SUM(J154:J157)","v":0},0,0,0,0,0,0,0,0,0,0,0,0,0,0,0,0,0,0,0,0,0,0,0,0,0,0,0,0,0,0,0,0,0,0,0,0,0,0,0,0,0,0,0,0]
[null,"в том числе:\nТрап",147,{"$f":"Раздел2!F154","v":0},0,0,0,0,0]
[null,"Скит",148,{"$f":"Раздел2!F155","v":0},0,0,0,0,0]
[null,"Дубль-трап",149,{"$f":"Раздел2!F156","v":0},0,0,0,0,0]
[null,"Спортинг",150,{"$f":"Раздел2!F157","v":0},0,0,0,0,0]
[null,"Стрельба из арбалета",151,{"$f":"Раздел2!F158","v":0},0,0,0,0,0]
[null,"Стрельба из лука - всего",152,{"$f":"Раздел2!F159","v":0},0,0,0,0,0,{"$f":"SUM(J160:J162)","v":0},0,0,0,0,0,0,0,0,0,0,0,0,0,0,0,0,0,0,0,0,0,0,0,0,0,0,0,0,0,0,0,0,0,0,0,0,0,0,0,0,0,0,0,0]
[null,"в том числе:\nКлассический лук",153,{"$f":"Раздел2!F160","v":0},0,0,0,0,0]
[null,"   Блочный лук",154,{"$f":"Раздел2!F161","v":0},0,0,0,0,0]
[null,"   Ачери ",155,{"$f":"Раздел2!F162","v":0},0,0,0,0,0]
[null,"Судомодельный спорт",156,{"$f":"Раздел2!F163","v":0},0,0,0,0,0]
[null,"Сумо",157,{"$f":"Раздел2!F164","v":0},0,0,0,0,0]
[null,"Тайский бокс",158,{"$f":"Раздел2!F165","v":0},0,0,0,0,0]
[null,"Танцевальный спорт",159,{"$f":"Раздел2!F166","v":0},0,0,0,0,0]
[null,"Теннис",160,{"$f":"Раздел2!F167","v":0},0,0,0,0,0]
[null,"Триатлон",161,{"$f":"Раздел2!F168","v":0},0,0,0,0,0]
[null,"Тхэквондо - всего",162,{"$f":"Раздел2!F169","v":0},0,0,0,0,0,{"$f":"SUM(J170:J171)","v":0},0,0,0,0,0,0,0,0,0,0,0,0,0,0,0,0,0,0,0,0,0,0,0,0,0,0,0,0,0,0,0,0,0,0,0,0,0,0,0,0,0,0,0,0]
[null,"в том числе:\nТхэквондо (ГТФ, ИТФ, МФТ)",163,{"$f":"Раздел2!F170","v":0},0,0,0,0,0]
[null,"Тхэквондо (ВТФ)",164,{"$f":"Раздел2!F171","v":0},0,0,0,0,0]
[null,"Тяжелая атлетика",165,{"$f":"Раздел2!F172","v":0},0,0,0,0,0]
[null,"Универсальный бой",166,{"$f":"Раздел2!F173","v":0},0,0,0,0,0]
[null,"Ушу",167,{"$f":"Раздел2!F174","v":0},0,0,0,0,0]
[null,"Фехтование - всего",168,{"$f":"Раздел2!F175","v":0},0,0,0,0,0,{"$f":"SUM(J176:J179)","v":0},0,0,0,0,0,0,0,0,0,0,0,0,0,0,0,0,0,0,0,0,0,0,0,0,0,0,0,0,0,0,0,0,0,0,0,0,0,0,0,0,0,0,0,0]
[null,"в том числе:\nРапира",169,{"$f":"Раздел2!F176","v":0},0,0,0,0,0]
[null,"Сабля",170,{"$f":"Раздел2!F177","v":0},0,0,0,0,0]
[null,"Шпага",171,{"$f":"Раздел2!F178","v":0},0,0,0,0,0]
[null,"Арт-фехтование",172,{"$f":"Раздел2!F179","v":0},0,0,0,0,0]
[null,"Фигурное катание на коньках",173,{"$f":"Раздел2!F180","v":0},0,0,0,0,0]
[null,"Флорбол",174,{"$f":"Раздел2!F181","v":0},0,0,0,0,0]
[null,"Фристайл - всего",175,{"$f":"Раздел2!F182","v":0},0,0,0,0,0,{"$f":"SUM(J183:J187)","v":0},0,0,0,0,0,0,0,0,0,0,0,0,0,0,0,0,0,0,0,0,0,0,0,0,0,0,0,0,0,0,0,0,0,0,0,0,0,0,0,0,0,0,0,0]
[null,"в том числе:\nАкробатика",176,{"$f":"Раздел2!F183","v":0},0,0,0,0,0]
[null,"Могул",177,{"$f":"Раздел2!F184","v":0},0,0,0,0,0]
[null,"Ски-кросс",178,{"$f":"Раздел2!F185","v":0},0,0,0,0,0]
[null,"Хаф-пайп",179,{"$f":"Раздел2!F186","v":0},0,0,0,0,0]
[null,"Слоуп-стайл",180,{"$f":"Раздел2!F187","v":0},0,0,0,0,0]
[null,"Футбол - всего",181,{"$f":"Раздел2!F188","v":0},0,0,0,0,0,{"$f":"SUM(J189:J192)","v":0},0,0,0,0,0,0,0,0,0,0,0,0,0,0,0,0,0,0,0,0,0,0,0,0,0,0,0,0,0,0,0,0,0,0,0,0,0,0,0,0,0,0,0,0]
[null,"в том числе:\nФутбол (муж.)",182,{"$f":"Раздел2!F189","v":0},0,0,0,0,0]
[null,"Футбол (жен.)",183,{"$f":"Раздел2!F190","v":0},0,0,0,0,0]
[null,"Мини-футбол (футзал)",184,{"$f":"Раздел2!F191","v":0},0,0,0,0,0]
[null,"Пляжный футбол",185,{"$f":"Раздел2!F192","v":0},0,0,0,0,0]
[null,"Хапсагай",186,{"$f":"Раздел2!F193","v":0},0,0,0,0,0]
[null,"Хоккей - всего",187,{"$f":"Раздел2!F194","v":0},0,0,0,0,0,{"$f":"SUM(J195:J196)","v":0},0,0,0,0,0,0,0,0,0,0,0,0,0,0,0,0,0,0,0,0,0,0,0,0,0,0,0,0,0,0,0,0,0,0,0,0,0,0,0,0,0,0,0,0]
[null,"в том числе:\nХоккей (муж.)",188,{"$f":"Раздел2!F195","v":0},0,0,0,0,0]
[null,"Хоккей (жен.)",189,{"$f":"Раздел2!F196","v":0},0,0,0,0,0]
[null,"Хоккей на траве",190,{"$f":"Раздел2!F197","v":0},0,0,0,0,0,{"$f":"SUM(J198:J199)","v":0},0,0,0,0,0,0,0,0,0,0,0,0,0,0,0,0,0,0,0,0,0,0,0,0,0,0,0,0,0,0,0,0,0,0,0,0,0,0,0,0,0,0,0,0]
[null,"Хоккей на траве (муж.)",191,{"$f":"Раздел2!F198","v":0},0,0,0,0,0]
[null,"Хоккей на траве (жен.)",192,{"$f":"Раздел2!F199","v":0},0,0,0,0,0]
[null,"Хоккей с мячом",193,{"$f":"Раздел2!F200","v":0},0,0,0,0,0]
[null,"Художественная гимнастика",194,{"$f":"Раздел2!F201","v":0},{"$f":"J201+O201+T201+Y201+AD201+AI201+AN201+AS201+AX201","v":0},{"$f":"K201+P201+U201+Z201+AE201+AJ201+AO201+AT201+AY201","v":0},{"$f":"L201+Q201+V201+AA201+AF201+AK201+AP201+AU201+AZ201","v":0},{"$f":"M201+R201+W201+AB201+AG201+AL201+AQ201+AV201+BA201","v":0},{"$f":"N201+S201+X201+AC201+AH201+AM201+AR201+AW201+BB201","v":0}]
[null,"Черлидинг",195,{"$f":"Раздел2!F202","v":0},0,0,0,0,0]
[null,"Чир спорт",196,{"$f":"Раздел2!F203","v":0},0,0,0,0,0]
[null,"Шахматы",197,{"$f":"Раздел2!F204","v":0},0,0,0,0,0]
[null,"Шашки",198,{"$f":"Раздел2!F205","v":0},0,0,0,0,0]
[null,"Эстетическая гимнастика",199,{"$f":"Раздел2!F206","v":0},0,0,0,0,0]
[null,"Якутские национальные прыжки",200,{"$f":"Раздел2!F207","v":0},0,0,0,0,0]
[null,"ИТОГО",201,{"$f":"Раздел2!F208","v":0},0,0,0,0,0,{"$f":"SUM(J8:J15,J17:J21,J23:J28,J29:J34,J36:J39,J41:J46,J48:J56,J58:J65,J66:J68,J70:J74,J75,J77:J80,J82:J88,J89:J95,J96:J98,J100:J105,J107:J110,J112:J119,J121:J128,J129:J137,J138:J141,J143:J149,J150:J152,J154:J158,J160:J167,J168,J170:J174,J176:J181,J183:J187,J189:J193,J195:J196,J198:J207)","v":0},{"$f":"SUM(K8:K15,K17:K21,K23:K28,K29:K34,K36:K39,K41:K46,K48:K56,K58:K65,K66:K68,K70:K74,K75,K77:K80,K82:K88,K89:K95,K96:K98,K100:K105,K107:K110,K112:K119,K121:K128,K129:K137,K138:K141,K143:K149,K150:K152,K154:K158,K160:K167,K168,K170:K174,K176:K181,K183:K187,K189:K193,K195:K196,K198:K207)","v":0},0,0,0,0,0,0,0,0,0,0,0,0,0,0,0,0,0,0,0,0,0,0,0,0,0,0,0,0,0,0,0,0,0,0,0,0,0,0,0,0,0,0,0]

{"sheet":"Раздел8","index":8,"n_rows":208,"n_cols":20,"rows_kept":208,"cut":false,"hidden":false,"merged":[[2,19,5,19],[0,17,118,17],[1,12,1,16],[3,9,3,11],[2,5,2,16],[3,12,3,15],[3,5,3,8],[4,6,5,6],[4,10,5,10],[4,11,5,11],[4,15,5,15],[4,13,5,13],[4,5,5,5],[4,12,5,12],[4,7,4,8],[4,9,5,9],[0,0,118,0],[0,1,0,16],[2,1,5,1],[2,2,5,2],[2,3,3,4],[3,16,5,16],[4,3,5,3],[4,4,5,4],[4,14,5,14]]}
[null,"Раздел VIII. Тренерский состав"]
[null,null,null,null,null,null,null,null,null,null,null,null,"Код по ОКЕИ: человек – 792"]
[null,"Виды спорта","№ строки","Число тренеров",null,"из них (гр. 4) имеют:",null,null,null,null,null,null,null,null,null,null,null,null,null,"Раздел2 графа3\nЧисло отделений"]
[null,null,null,null,null,"профессиональное образование",null,null,null,"квалификационную категорию",null,null,"в возрасте:",null,null,null,"Звание «Заслуженный тренер России»"]
[null,null,null,"Всего","в том числе штатных","высшее","среднее","в том числе\nфизкультурное",null,"высшую","первую","вторую","до 30 лет","31-45 лет","46-60 лет","старше 60 лет"]
[null,null,null,null,null,null,null,"высшее","среднее"]
[null,1,2,3,4,5,6,7,8,9,10,11,12,13,14,15,16]
[null,"Авиамодельный спорт","01",null,null,null,null,null,null,null,null,null,null,null,null,null,null,null,null,{"$f":"Раздел2!F8","v":0}]
[null,"Автомобильный спорт","02",null,null,null,null,null,null,null,null,null,null,null,null,null,null,null,null,{"$f":"Раздел2!F9","v":0}]
[null,"Айкидо","03",null,null,null,null,null,null,null,null,null,null,null,null,null,null,null,null,{"$f":"Раздел2!F10","v":0}]
[null,"Акробатический рок-н-ролл","04",null,null,null,null,null,null,null,null,null,null,null,null,null,null,null,null,{"$f":"Раздел2!F11","v":0}]
[null,"Альпинизм","05",null,null,null,null,null,null,null,null,null,null,null,null,null,null,null,null,{"$f":"Раздел2!F12","v":0}]
[null,"Американский футбол","06",null,null,null,null,null,null,null,null,null,null,null,null,null,null,null,null,{"$f":"Раздел2!F13","v":0}]
[null,"Армрестлинг","07",null,null,null,null,null,null,null,null,null,null,null,null,null,null,null,null,{"$f":"Раздел2!F14","v":0}]
[null,"Бадминтон","08",null,null,null,null,null,null,null,null,null,null,null,null,null,null,null,null,{"$f":"Раздел2!F15","v":0}]
[null,"Баскетбол - всего","09",{"$f":"SUM(D17:D18)","v":0},0,0,0,0,0,0,0,0,0,0,0,0,0,null,null,{"$f":"Раздел2!F16","v":0}]
[null,"в том числе:\nБаскетбол (муж.)",10,null,null,null,null,null,null,null,null,null,null,null,null,null,null,null,null,{"$f":"Раздел2!F17","v":0}]
[null,"Баскетбол (жен.)",11,null,null,null,null,null,null,null,null,null,null,null,null,null,null,null,null,{"$f":"Раздел2!F18","v":0}]
[null,"Бейсбол",12,null,null,null,null,null,null,null,null,null,null,null,null,null,null,null,null,{"$f":"Раздел2!F19","v":0}]
[null,"Биатлон",13,null,null,null,null,null,null,null,null,null,null,null,null,null,null,null,null,{"$f":"Раздел2!F20","v":0}]
[null,"Бильярдный спорт",14,null,null,null,null,null,null,null,null,null,null,null,null,null,null,null,null,{"$f":"Раздел2!F21","v":0}]
[null,"Бобслей - всего",15,{"$f":"SUM(D23:D24)","v":0},0,0,0,0,0,0,0,0,0,0,0,0,0,null,null,{"$f":"Раздел2!F22","v":0}]
[null,"в том числе:\nБобслей",16,null,null,null,null,null,null,null,null,null,null,null,null,null,null,null,null,{"$f":"Раздел2!F23","v":0}]
[null,"Скелетон",17,null,null,null,null,null,null,null,null,null,null,null,null,null,null,null,null,{"$f":"Раздел2!F24","v":0}]
[null,"Бодибилдинг",18,null,null,null,null,null,null,null,null,null,null,null,null,null,null,null,null,{"$f":"Раздел2!F25","v":0}]
[null,"Бокс",19,null,null,null,null,null,null,null,null,null,null,null,null,null,null,null,null,{"$f":"Раздел2!F26","v":0}]
[null,"Борьба на поясах",20,null,null,null,null,null,null,null,null,null,null,null,null,null,null,null,null,{"$f":"Раздел2!F27","v":0}]
[null,"Боулинг",21,null,null,null,null,null,null,null,null,null,null,null,null,null,null,null,null,{"$f":"Раздел2!F28","v":0}]
[null,"Велоспорт ВМХ",22,null,null,null,null,null,null,null,null,null,null,null,null,null,null,null,null,{"$f":"Раздел2!F29","v":0}]
[null,"Велоспорт – маунтинбайк",23,null,null,null,null,null,null,null,null,null,null,null,null,null,null,null,null,{"$f":"Раздел2!F30","v":0}]
[null,"Велоспорт – трек",24,null,null,null,null,null,null,null,null,null,null,null,null,null,null,null,null,{"$f":"Раздел2!F31","v":0}]
[null,"Велоспорт – шоссе",25,null,null,null,null,null,null,null,null,null,null,null,null,null,null,null,null,{"$f":"Раздел2!F32","v":0}]
[null,"Вертолетный спорт",26,null,null,null,null,null,null,null,null,null,null,null,null,null,null,null,null,{"$f":"Раздел2!F33","v":0}]
[null,"Водно-моторный спорт",27,null,null,null,null,null,null,null,null,null,null,null,null,null,null,null,null,{"$f":"Раздел2!F34","v":0}]
[null,"Водное поло - всего ",28,{"$f":"SUM(D36:D37)","v":0},0,0,0,0,0,0,0,0,0,0,0,0,0,null,null,{"$f":"Раздел2!F35","v":0}]
[null,"в том числе:\nВодное поло (муж.)",29,null,null,null,null,null,null,null,null,null,null,null,null,null,null,null,null,{"$f":"Раздел2!F36","v":0}]
[null,"Водное поло (жен.)",30,null,null,null,null,null,null,null,null,null,null,null,null,null,null,null,null,{"$f":"Раздел2!F37","v":0}]
[null,"Воднолыжный спорт",31,null,null,null,null,null,null,null,null,null,null,null,null,null,null,null,null,{"$f":"Раздел2!F38","v":0}]
[null,"Воздухоплавательный спорт",32,null,null,null,null,null,null,null,null,null,null,null,null,null,null,null,null,{"$f":"Раздел2!F39","v":0}]
[null,"Волейбол - всего",33,{"$f":"SUM(D41:D44)","v":0},0,0,0,0,0,0,0,0,0,0,0,0,0,null,null,{"$f":"Раздел2!F40","v":0}]
[null,"в том числе:\nВолейбол (муж.)",34,null,null,null,null,null,null,null,null,null,null,null,null,null,null,null,null,{"$f":"Раздел2!F41","v":0}]
[null,"Волейбол (жен.)",35,null,null,null,null,null,null,null,null,null,null,null,null,null,null,null,null,{"$f":"Раздел2!F42","v":0}]
[null,"Пляжный волейбол (муж.)",36,null,null,null,null,null,null,null,null,null,null,null,null,null,null,null,null,{"$f":"Раздел2!F43","v":0}]
[null,"Пляжный волейбол (жен.)",37,null,null,null,null,null,null,null,null,null,null,null,null,null,null,null,null,{"$f":"Раздел2!F44","v":0}]
[null,"Восточное боевое единоборство",38,null,null,null,null,null,null,null,null,null,null,null,null,null,null,null,null,{"$f":"Раздел2!F45","v":0}]
[null,"Всестилевое карате",39,null,null,null,null,null,null,null,null,null,null,null,null,null,null,null,null,{"$f":"Раздел2!F46","v":0}]
[null,"Гандбол - всего",40,{"$f":"SUM(D48:D49)","v":0},0,0,0,0,0,0,0,0,0,0,0,0,0,null,null,{"$f":"Раздел2!F47","v":0}]
[null,"в том числе:\nГандбол (муж.)",41,null,null,null,null,null,null,null,null,null,null,null,null,null,null,null,null,{"$f":"Раздел2!F48","v":0}]
[null,"Гандбол (жен.)",42,null,null,null,null,null,null,null,null,null,null,null,null,null,null,null,null,{"$f":"Раздел2!F49","v":0}]
[null,"Гиревой спорт",43,null,null,null,null,null,null,null,null,null,null,null,null,null,null,null,null,{"$f":"Раздел2!F50","v":0}]
[null,"Го",44,null,null,null,null,null,null,null,null,null,null,null,null,null,null,null,null,{"$f":"Раздел2!F51","v":0}]
[null,"Гольф",45,null,null,null,null,null,null,null,null,null,null,null,null,null,null,null,null,{"$f":"Раздел2!F52","v":0}]
[null,"Горнолыжный спорт",46,null,null,null,null,null,null,null,null,null,null,null,null,null,null,null,null,{"$f":"Раздел2!F53","v":0}]
[null,"Городошный спорт",47,null,null,null,null,null,null,null,null,null,null,null,null,null,null,null,null,{"$f":"Раздел2!F54","v":0}]
[null,"Гребля на байдарках и каноэ",48,null,null,null,null,null,null,null,null,null,null,null,null,null,null,null,null,{"$f":"Раздел2!F55","v":0}]
[null,"Гребной слалом",49,null,null,null,null,null,null,null,null,null,null,null,null,null,null,null,null,{"$f":"Раздел2!F56","v":0}]
[null,"Гребной спорт - всего",50,{"$f":"SUM(D58:D61)","v":0},0,0,0,0,0,0,0,0,0,0,0,0,0,null,null,{"$f":"Раздел2!F57","v":0}]
[null,"в том числе:\nАкадемическая гребля",51,null,null,null,null,null,null,null,null,null,null,null,null,null,null,null,null,{"$f":"Раздел2!F58","v":0}]
[null,"Гребля-индор",52,null,null,null,null,null,null,null,null,null,null,null,null,null,null,null,null,{"$f":"Раздел2!F59","v":0}]
[null,"Народная гребля",53,null,null,null,null,null,null,null,null,null,null,null,null,null,null,null,null,{"$f":"Раздел2!F60","v":0}]
[null,"Прибрежная гребля",54,null,null,null,null,null,null,null,null,null,null,null,null,null,null,null,null,{"$f":"Раздел2!F61","v":0}]
[null,"Дартс",55,null,null,null,null,null,null,null,null,null,null,null,null,null,null,null,null,{"$f":"Раздел2!F62","v":0}]
[null,"Джиу-джитсу",56,null,null,null,null,null,null,null,null,null,null,null,null,null,null,null,null,{"$f":"Раздел2!F63","v":0}]
[null,"Дзюдо",57,null,null,null,null,null,null,null,null,null,null,null,null,null,null,null,null,{"$f":"Раздел2!F64","v":0}]
[null,"Капоэйра",58,null,null,null,null,null,null,null,null,null,null,null,null,null,null,null,null,{"$f":"Раздел2!F65","v":0}]
[null,"Каратэ",59,null,null,null,null,null,null,null,null,null,null,null,null,null,null,null,null,{"$f":"Раздел2!F66","v":0}]
[null,"Кендо",60,null,null,null,null,null,null,null,null,null,null,null,null,null,null,null,null,{"$f":"Раздел2!F67","v":0}]
[null,"Керешу",61,null,null,null,null,null,null,null,null,null,null,null,null,null,null,null,null,{"$f":"Раздел2!F68","v":0}]
[null,"Керлинг - всего",62,{"$f":"SUM(D70:D71)","v":0},0,0,0,0,0,0,0,0,0,0,0,0,0,null,null,{"$f":"Раздел2!F69","v":0}]
[null,"в том числе:\nКерлинг (муж.)",63,null,null,null,null,null,null,null,null,null,null,null,null,null,null,null,null,{"$f":"Раздел2!F70","v":0}]
[null,"Керлинг (жен.)",64,null,null,null,null,null,null,null,null,null,null,null,null,null,null,null,null,{"$f":"Раздел2!F71","v":0}]
[null,"Кикбоксинг",65,null,null,null,null,null,null,null,null,null,null,null,null,null,null,null,null,{"$f":"Раздел2!F72","v":0}]
[null,"Кинологический спорт",66,null,null,null,null,null,null,null,null,null,null,null,null,null,null,null,null,{"$f":"Раздел2!F73","v":0}]
[null,"Киокусинкай",67,null,null,null,null,null,null,null,null,null,null,null,null,null,null,null,null,{"$f":"Раздел2!F74","v":0}]
[null,"Конный спорт",68,null,null,null,null,null,null,null,null,null,null,null,null,null,null,null,null,{"$f":"Раздел2!F75","v":0}]
[null,"Конькобежный спорт - всего",69,{"$f":"SUM(D77:D78)","v":0},0,0,0,0,0,0,0,0,0,0,0,0,0,null,null,{"$f":"Раздел2!F76","v":0}]
[null,"в том числе:\nКонькобежный спорт",70,null,null,null,null,null,null,null,null,null,null,null,null,null,null,null,null,{"$f":"Раздел2!F77","v":0}]
[null,"Шорт-трек",71,null,null,null,null,null,null,null,null,null,null,null,null,null,null,null,null,{"$f":"Раздел2!F78","v":0}]
[null,"Корэш",72,null,null,null,null,null,null,null,null,null,null,null,null,null,null,null,null,{"$f":"Раздел2!F79","v":0}]
[null,"Лапта",73,null,null,null,null,null,null,null,null,null,null,null,null,null,null,null,null,{"$f":"Раздел2!F80","v":0}]
[null,"Легкая атлетика - всего",74,{"$f":"SUM(D82:D88)","v":0},0,0,0,0,0,0,0,0,0,0,0,0,0,null,null,{"$f":"Раздел2!F81","v":0}]
[null,"в том числе:\nСпринтерский и барьерный бег",75,null,null,null,null,null,null,null,null,null,null,null,null,null,null,null,null,{"$f":"Раздел2!F82","v":0}]
[null,"Бег на средние дистанции и бег с препятствиями",76,null,null,null,null,null,null,null,null,null,null,null,null,null,null,null,null,{"$f":"Раздел2!F83","v":0}]
[null,"Бег на длинные и сверхдлинные дистанции",77,null,null,null,null,null,null,null,null,null,null,null,null,null,null,null,null,{"$f":"Раздел2!F84","v":0}]
[null,"Многоборья",78,null,null,null,null,null,null,null,null,null,null,null,null,null,null,null,null,{"$f":"Раздел2!F85","v":0}]
[null,"Прыжки",79,null,null,null,null,null,null,null,null,null,null,null,null,null,null,null,null,{"$f":"Раздел2!F86","v":0}]
[null,"Метания",80,null,null,null,null,null,null,null,null,null,null,null,null,null,null,null,null,{"$f":"Раздел2!F87","v":0}]
[null,"Спортивная ходьба",81,null,null,null,null,null,null,null,null,null,null,null,null,null,null,null,null,{"$f":"Раздел2!F88","v":0}]
[null,"Лыжное двоеборье",82,null,null,null,null,null,null,null,null,null,null,null,null,null,null,null,null,{"$f":"Раздел2!F89","v":0}]
[null,"Лыжные гонки",83,null,null,null,null,null,null,null,null,null,null,null,null,null,null,null,null,{"$f":"Раздел2!F90","v":0}]
[null,"Мас-рестлинг",84,null,null,null,null,null,null,null,null,null,null,null,null,null,null,null,null,{"$f":"Раздел2!F91","v":0}]
[null,"Морское многоборье",85,null,null,null,null,null,null,null,null,null,null,null,null,null,null,null,null,{"$f":"Раздел2!F92","v":0}]
[null,"Мотоциклетный спорт",86,null,null,null,null,null,null,null,null,null,null,null,null,null,null,null,null,{"$f":"Раздел2!F93","v":0}]
[null,"Настольный теннис",87,null,null,null,null,null,null,null,null,null,null,null,null,null,null,null,null,{"$f":"Раздел2!F94","v":0}]
[null,"Парашютный спорт",88,null,null,null,null,null,null,null,null,null,null,null,null,null,null,null,null,{"$f":"Раздел2!F95","v":0}]
[null,"Парусный спорт",89,null,null,null,null,null,null,null,null,null,null,null,null,null,null,null,null,{"$f":"Раздел2!F96","v":0}]
[null,"Пауэрлифтинг",90,null,null,null,null,null,null,null,null,null,null,null,null,null,null,null,null,{"$f":"Раздел2!F97","v":0}]
[null,"Перетягивание каната",91,null,null,null,null,null,null,null,null,null,null,null,null,null,null,null,null,{"$f":"Раздел2!F98","v":0}]
[null,"Плавание - всего",92,{"$f":"SUM(D100:D101)","v":0},0,0,0,0,0,0,0,0,0,0,0,0,0,null,null,{"$f":"Раздел2!F99","v":0}]
[null,"в том числе:\nПлавание ",93,null,null,null,null,null,null,null,null,null,null,null,null,null,null,null,null,{"$f":"Раздел2!F100","v":0}]
[null,"Открытая вода",94,null,null,null,null,null,null,null,null,null,null,null,null,null,null,null,null,{"$f":"Раздел2!F101","v":0}]
[null,"Планерный спорт",95,null,null,null,null,null,null,null,null,null,null,null,null,null,null,null,null,{"$f":"Раздел2!F102","v":0}]
[null,"Подводный спорт",96,null,null,null,null,null,null,null,null,null,null,null,null,null,null,null,null,{"$f":"Раздел2!F103","v":0}]
[null,"Полиатлон",97,null,null,null,null,null,null,null,null,null,null,null,null,null,null,null,null,{"$f":"Раздел2!F104","v":0}]
[null,"Практическая стрельба",98,null,null,null,null,null,null,null,null,null,null,null,null,null,null,null,null,{"$f":"Раздел2!F105","v":0}]
[null,"Прыжки в воду - всего",99,{"$f":"SUM(D107:D108)","v":0},0,0,0,0,0,0,0,0,0,0,0,0,0,null,null,{"$f":"Раздел2!F106","v":0}]
[null,"в том числе:\nПрыжки в воду",100,null,null,null,null,null,null,null,null,null,null,null,null,null,null,null,null,{"$f":"Раздел2!F107","v":0}]
[null,"Прыжки в открытый водоем",101,null,null,null,null,null,null,null,null,null,null,null,null,null,null,null,null,{"$f":"Раздел2!F108","v":0}]
[null,"Прыжки на батуте",102,null,null,null,null,null,null,null,null,null,null,null,null,null,null,null,null,{"$f":"Раздел2!F109","v":0}]
[null,"Прыжки на лыжах с трамплина",103,null,null,null,null,null,null,null,null,null,null,null,null,null,null,null,null,{"$f":"Раздел2!F110","v":0}]
[null,"Пулевая стрельба - всего",104,{"$f":"SUM(D112:D116)","v":0},0,0,0,0,0,0,0,0,0,0,0,0,0,null,null,{"$f":"Раздел2!F111","v":0}]
[null,"в том числе:\nПневматическая винтовка",105,null,null,null,null,null,null,null,null,null,null,null,null,null,null,null,null,{"$f":"Раздел2!F112","v":0}]
[null,"Пневматический пистолет",106,null,null,null,null,null,null,null,null,null,null,null,null,null,null,null,null,{"$f":"Раздел2!F113","v":0}]
[null,"Малокалиберная винтоква",107,null,null,null,null,null,null,null,null,null,null,null,null,null,null,null,null,{"$f":"Раздел2!F114","v":0}]
[null,"Малокалиберный пистолет",108,null,null,null,null,null,null,null,null,null,null,null,null,null,null,null,null,{"$f":"Раздел2!F115","v":0}]
[null,"Движущаяся мишень",109,null,null,null,null,null,null,null,null,null,null,null,null,null,null,null,null,{"$f":"Раздел2!F116","v":0}]
[null,"Пэйнтбол",110,null,null,null,null,null,null,null,null,null,null,null,null,null,null,null,null,{"$f":"Раздел2!F117","v":0}]
[null,"Радиоспорт",111,null,null,null,null,null,null,null,null,null,null,null,null,null,null,null,null,{"$f":"Раздел2!F118","v":0}]
[null,"Рафтинг",112,null,null,null,null,null,null,null,null,null,null,null,null,null,null,null,null,{"$f":"Раздел2!F119","v":0}]
[null,"Регби - всего",113,{"$f":"SUM(D121:D124)","v":0},0,0,0,0,0,0,0,0,0,0,0,0,0,null,null,{"$f":"Раздел2!F120","v":0}]
[null,"в том числе:\nРегби",114,null,null,null,null,null,null,null,null,null,null,null,null,null,null,null,null,{"$f":"Раздел2!F121","v":0}]
[null,"Регби 7 (муж.)",115,null,null,null,null,null,null,null,null,null,null,null,null,null,null,null,null,{"$f":"Раздел2!F122","v":0}]
[null,"Регби 7 (жен.)",116,null,null,null,null,null,null,null,null,null,null,null,null,null,null,null,null,{"$f":"Раздел2!F123","v":0}]
[null,"Пляжный регби",117,null,null,null,null,null,null,null,null,null,null,null,null,null,null,null,null,{"$f":"Раздел2!F124","v":0}]
[null,"Рукопашный бой",118,null,null,null,null,null,null,null,null,null,null,null,null,null,null,null,null,{"$f":"Раздел2!F125","v":0}]
[null,"Рыболовный спорт",119,null,null,null,null,null,null,null,null,null,null,null,null,null,null,null,null,{"$f":"Раздел2!F126","v":0}]
[null,"Сават",120,null,null,null,null,null,null,null,null,null,null,null,null,null,null,null,null,{"$f":"Раздел2!F127","v":0}]
[null,"Самбо",121,null,null,null,null,null,null,null,null,null,null,null,null,null,null,null,null,{"$f":"Раздел2!F128","v":0}]
[null,"Самолетный спорт",122,null,null,null,null,null,null,null,null,null,null,null,null,null,null,null,null,{"$f":"Раздел2!F129","v":0}]
[null,"Санный спорт",123,null,null,null,null,null,null,null,null,null,null,null,null,null,null,null,null,{"$f":"Раздел2!F130","v":0}]
[null,"Северное многоборье",124,null,null,null,null,null,null,null,null,null,null,null,null,null,null,null,null,{"$f":"Раздел2!F131","v":0}]
[null,"Синхронное плавание",125,null,null,null,null,null,null,null,null,null,null,null,null,null,null,null,null,{"$f":"Раздел2!F132","v":0}]
[null,"Скалолазание",126,null,null,null,null,null,null,null,null,null,null,null,null,null,null,null,null,{"$f":"Раздел2!F133","v":0}]
[null,"Сквош",127,null,null,null,null,null,null,null,null,null,null,null,null,null,null,null,null,{"$f":"Раздел2!F134","v":0}]
[null,"Смешанное боевое единоборство (ММА)",128,null,null,null,null,null,null,null,null,null,null,null,null,null,null,null,null,{"$f":"Раздел2!F135","v":0}]
[null,"Сноуборд",129,null,null,null,null,null,null,null,null,null,null,null,null,null,null,null,null,{"$f":"Раздел2!F136","v":0}]
[null,"Современное пятиборье",130,null,null,null,null,null,null,null,null,null,null,null,null,null,null,null,null,{"$f":"Раздел2!F137","v":0}]
[null,"Софтбол",131,null,null,null,null,null,null,null,null,null,null,null,null,null,null,null,null,{"$f":"Раздел2!F138","v":0}]
[null,"Спорт сверхлегкой авиации",132,null,null,null,null,null,null,null,null,null,null,null,null,null,null,null,null,{"$f":"Раздел2!F139","v":0}]
[null,"Спортивная акробатика",133,null,null,null,null,null,null,null,null,null,null,null,null,null,null,null,null,{"$f":"Раздел2!F140","v":0}]
[null,"Спортивная аэробика",134,null,null,null,null,null,null,null,null,null,null,null,null,null,null,null,null,{"$f":"Раздел2!F141","v":0}]
[null,"Спортивная борьба - всего",135,{"$f":"SUM(D143:D147)","v":0},0,0,0,0,0,0,0,0,0,0,0,0,0,null,null,{"$f":"Раздел2!F142","v":0}]
[null,"в том числе:\nВольная борьба",136,null,null,null,null,null,null,null,null,null,null,null,null,null,null,null,null,{"$f":"Раздел2!F143","v":0}]
[null,"Греко-римская борьба",137,null,null,null,null,null,null,null,null,null,null,null,null,null,null,null,null,{"$f":"Раздел2!F144","v":0}]
[null,"Грэпплинг",138,null,null,null,null,null,null,null,null,null,null,null,null,null,null,null,null,{"$f":"Раздел2!F145","v":0}]
[null,"Грэпплинг-ги",139,null,null,null,null,null,null,null,null,null,null,null,null,null,null,null,null,{"$f":"Раздел2!F146","v":0}]
[null,"Панкратион",140,null,null,null,null,null,null,null,null,null,null,null,null,null,null,null,null,{"$f":"Раздел2!F147","v":0}]
[null,"Спортивно-прикладное собаководство",141,null,null,null,null,null,null,null,null,null,null,null,null,null,null,null,null,{"$f":"Раздел2!F148","v":0}]
[null,"Спортивная гимнастика",142,null,null,null,null,null,null,null,null,null,null,null,null,null,null,null,null,{"$f":"Раздел2!F149","v":0}]
[null,"Спортивное ориентирование",143,null,null,null,null,null,null,null,null,null,null,null,null,null,null,null,null,{"$f":"Раздел2!F150","v":0}]
[null,"Спортивный бридж",144,null,null,null,null,null,null,null,null,null,null,null,null,null,null,null,null,{"$f":"Раздел2!F151","v":0}]
[null,"Спортивный туризм",145,null,null,null,null,null,null,null,null,null,null,null,null,null,null,null,null,{"$f":"Раздел2!F152","v":0}]
[null,"Стендовая стрельба - всего",146,{"$f":"SUM(D154:D157)","v":0},0,0,0,0,0,0,0,0,0,0,0,0,0,null,null,{"$f":"Раздел2!F153","v":0}]
[null,"в том числе:\nТрап",147,null,null,null,null,null,null,null,null,null,null,null,null,null,null,null,null,{"$f":"Раздел2!F154","v":0}]
[null,"Скит",148,null,null,null,null,null,null,null,null,null,null,null,null,null,null,null,null,{"$f":"Раздел2!F155","v":0}]
[null,"Дубль-трап",149,null,null,null,null,null,null,null,null,null,null,null,null,null,null,null,null,{"$f":"Раздел2!F156","v":0}]
[null,"Спортинг",150,null,null,null,null,null,null,null,null,null,null,null,null,null,null,null,null,{"$f":"Раздел2!F157","v":0}]
[null,"Стрельба из арбалета",151,null,null,null,null,null,null,null,null,null,null,null,null,null,null,null,null,{"$f":"Раздел2!F158","v":0}]
[null,"Стрельба из лука - всего",152,{"$f":"SUM(D160:D162)","v":0},0,0,0,0,0,0,0,0,0,0,0,0,0,null,null,{"$f":"Раздел2!F159","v":0}]
[null,"в том числе:\nКлассический лук",153,null,null,null,null,null,null,null,null,null,null,null,null,null,null,null,null,{"$f":"Раздел2!F160","v":0}]
[null,"   Блочный лук",154,null,null,null,null,null,null,null,null,null,null,null,null,null,null,null,null,{"$f":"Раздел2!F161","v":0}]
[null,"   Ачери ",155,null,null,null,null,null,null,null,null,null,null,null,null,null,null,null,null,{"$f":"Раздел2!F162","v":0}]
[null,"Судомодельный спорт",156,null,null,null,null,null,null,null,null,null,null,null,null,null,null,null,null,{"$f":"Раздел2!F163","v":0}]
[null,"Сумо",157,null,null,null,null,null,null,null,null,null,null,null,null,null,null,null,null,{"$f":"Раздел2!F164","v":0}]
[null,"Тайский бокс",158,null,null,null,null,null,null,null,null,null,null,null,null,null,null,null,null,{"$f":"Раздел2!F165","v":0}]
[null,"Танцевальный спорт",159,null,null,null,null,null,null,null,null,null,null,null,null,null,null,null,null,{"$f":"Раздел2!F166","v":0}]
[null,"Теннис",160,null,null,null,null,null,null,null,null,null,null,null,null,null,null,null,null,{"$f":"Раздел2!F167","v":0}]
[null,"Триатлон",161,null,null,null,null,null,null,null,null,null,null,null,null,null,null,null,null,{"$f":"Раздел2!F168","v":0}]
[null,"Тхэквондо - всего",162,{"$f":"SUM(D170:D171)","v":0},0,0,0,0,0,0,0,0,0,0,0,0,0,null,null,{"$f":"Раздел2!F169","v":0}]
[null,"в том числе:\nТхэквондо (ГТФ, ИТФ, МФТ)",163,null,null,null,null,null,null,null,null,null,null,null,null,null,null,null,null,{"$f":"Раздел2!F170","v":0}]
[null,"Тхэквондо (ВТФ)",164,null,null,null,null,null,null,null,null,null,null,null,null,null,null,null,null,{"$f":"Раздел2!F171","v":0}]
[null,"Тяжелая атлетика",165,null,null,null,null,null,null,null,null,null,null,null,null,null,null,null,null,{"$f":"Раздел2!F172","v":0}]
[null,"Универсальный бой",166,null,null,null,null,null,null,null,null,null,null,null,null,null,null,null,null,{"$f":"Раздел2!F173","v":0}]
[null,"Ушу",167,null,null,null,null,null,null,null,null,null,null,null,null,null,null,null,null,{"$f":"Раздел2!F174","v":0}]
[null,"Фехтование - всего",168,{"$f":"SUM(D176:D179)","v":0},0,0,0,0,0,0,0,0,0,0,0,0,0,null,null,{"$f":"Раздел2!F175","v":0}]
[null,"в том числе:\nРапира",169,null,null,null,null,null,null,null,null,null,null,null,null,null,null,null,null,{"$f":"Раздел2!F176","v":0}]
[null,"Сабля",170,null,null,null,null,null,null,null,null,null,null,null,null,null,null,null,null,{"$f":"Раздел2!F177","v":0}]
[null,"Шпага",171,null,null,null,null,null,null,null,null,null,null,null,null,null,null,null,null,{"$f":"Раздел2!F178","v":0}]
[null,"Арт-фехтование",172,null,null,null,null,null,null,null,null,null,null,null,null,null,null,null,null,{"$f":"Раздел2!F179","v":0}]
[null,"Фигурное катание на коньках",173,null,null,null,null,null,null,null,null,null,null,null,null,null,null,null,null,{"$f":"Раздел2!F180","v":0}]
[null,"Флорбол",174,null,null,null,null,null,null,null,null,null,null,null,null,null,null,null,null,{"$f":"Раздел2!F181","v":0}]
[null,"Фристайл - всего",175,{"$f":"SUM(D183:D187)","v":0},0,0,0,0,0,0,0,0,0,0,0,0,0,null,null,{"$f":"Раздел2!F182","v":0}]
[null,"в том числе:\nАкробатика",176,null,null,null,null,null,null,null,null,null,null,null,null,null,null,null,null,{"$f":"Раздел2!F183","v":0}]
[null,"Могул",177,null,null,null,null,null,null,null,null,null,null,null,null,null,null,null,null,{"$f":"Раздел2!F184","v":0}]
[null,"Ски-кросс",178,null,null,null,null,null,null,null,null,null,null,null,null,null,null,null,null,{"$f":"Раздел2!F185","v":0}]
[null,"Хаф-пайп",179,null,null,null,null,null,null,null,null,null,null,null,null,null,null,null,null,{"$f":"Раздел2!F186","v":0}]
[null,"Слоуп-стайл",180,null,null,null,null,null,null,null,null,null,null,null,null,null,null,null,null,{"$f":"Раздел2!F187","v":0}]
[null,"Футбол - всего",181,{"$f":"SUM(D189:D192)","v":0},0,0,0,0,0,0,0,0,0,0,0,0,0,null,null,{"$f":"Раздел2!F188","v":0}]
[null,"в том числе:\nФутбол (муж.)",182,null,null,null,null,null,null,null,null,null,null,null,null,null,null,null,null,{"$f":"Раздел2!F189","v":0}]
[null,"Футбол (жен.)",183,null,null,null,null,null,null,null,null,null,null,null,null,null,null,null,null,{"$f":"Раздел2!F190","v":0}]
[null,"Мини-футбол (футзал)",184,null,null,null,null,null,null,null,null,null,null,null,null,null,null,null,null,{"$f":"Раздел2!F191","v":0}]
[null,"Пляжный футбол",185,null,null,null,null,null,null,null,null,null,null,null,null,null,null,null,null,{"$f":"Раздел2!F192","v":0}]
[null,"Хапсагай",186,null,null,null,null,null,null,null,null,null,null,null,null,null,null,null,null,{"$f":"Раздел2!F193","v":0}]
[null,"Хоккей - всего",187,{"$f":"SUM(D195:D196)","v":0},0,0,0,0,0,0,0,0,0,0,0,0,0,null,null,{"$f":"Раздел2!F194","v":0}]
[null,"в том числе:\nХоккей (муж.)",188,null,null,null,null,null,null,null,null,null,null,null,null,null,null,null,null,{"$f":"Раздел2!F195","v":0}]
[null,"Хоккей (жен.)",189,null,null,null,null,null,null,null,null,null,null,null,null,null,null,null,null,{"$f":"Раздел2!F196","v":0}]
[null,"Хоккей на траве",190,{"$f":"SUM(D198:D199)","v":0},0,0,0,0,0,0,0,0,0,0,0,0,0,null,null,{"$f":"Раздел2!F197","v":0}]
[null,"Хоккей на траве (муж.)",191,null,null,null,null,null,null,null,null,null,null,null,null,null,null,null,null,{"$f":"Раздел2!F198","v":0}]
[null,"Хоккей на траве (жен.)",192,null,null,null,null,null,null,null,null,null,null,null,null,null,null,null,null,{"$f":"Раздел2!F199","v":0}]
[null,"Хоккей с мячом",193,null,null,null,null,null,null,null,null,null,null,null,null,null,null,null,null,{"$f":"Раздел2!F200","v":0}]
[null,"Художественная гимнастика",194,null,null,null,null,null,null,null,null,null,null,null,null,null,null,null,null,{"$f":"Раздел2!F201","v":0}]
[null,"Черлидинг",195,null,null,null,null,null,null,null,null,null,null,null,null,null,null,null,null,{"$f":"Раздел2!F202","v":0}]
[null,"Чир спорт",196,null,null,null,null,null,null,null,null,null,null,null,null,null,null,null,null,{"$f":"Раздел2!F203","v":0}]
[null,"Шахматы",197,null,null,null,null,null,null,null,null,null,null,null,null,null,null,null,null,{"$f":"Раздел2!F204","v":0}]
[null,"Шашки",198,null,null,null,null,null,null,null,null,null,null,null,null,null,null,null,null,{"$f":"Раздел2!F205","v":0}]
[null,"Эстетическая гимнастика",199,null,null,null,null,null,null,null,null,null,null,null,null,null,null,null,null,{"$f":"Раздел2!F206","v":0}]
[null,"Якутские национальные прыжки",200,null,null,null,null,null,null,null,null,null,null,null,null,null,null,null,null,{"$f":"Раздел2!F207","v":0}]
[null,"ИТОГО",201,{"$f":"SUM(D8:D15,D17:D21,D23:D28,D29:D34,D36:D39,D41:D46,D48:D56,D58:D65,D66:D68,D70:D74,D75,D77:D80,D82:D88,D89:D95,D96:D98,D100:D105,D107:D110,D112:D119,D121:D128,D129:D137,D138:D141,D143:D149,D150:D152,D154:D158,D160:D167,D168,D170:D174,D176:D181,D183:D187,D189:D193,D195:D196,D198:D207)","v":0},0,0,0,0,0,0,0,0,0,0,0,0,0,null,null,{"$f":"Раздел2!F208","v":0}]

{"sheet":"Раздел9","index":9,"n_rows":29,"n_cols":17,"rows_kept":29,"cut":false,"hidden":false,"merged":[[0,0,0,8],[3,1,6,1],[3,2,6,2],[1,1,1,13],[3,3,4,4],[5,12,6,12],[1,0,28,0],[5,11,6,11],[5,10,6,10],[5,6,6,6],[5,3,6,3],[5,13,6,13],[5,4,6,4],[5,9,6,9],[5,5,6,5],[5,7,5,8],[1,14,28,14],[4,9,4,11],[4,12,4,13],[3,5,3,13],[4,5,4,8],[2,11,2,13]]}
[]
[null,"Раздел IX. Административные работники и специалисты"]
[null,null,null,null,null,null,null,null,null,null,null,"Код по ОКЕИ: человек – 792"]
[null,"Наименование должности","№ строки","Число работников",null,"из них имеют (из гр. 4):"]
[null,null,null,null,null,"профессиональное образование",null,null,null,"квалификационную категорию",null,null,"почетные звания"]
[null,null,null,"Всего","в том числе штатные","высшее","среднее","в том числе\nфизкультурное",null,"высшую","первую","вторую","Заслужен-ный тренер России","Заслуженный работ-ник физической культуры Российской Федерации"]
[null,null,null,null,null,null,null,"высшее","среднее"]
[null,1,2,3,4,5,6,7,8,9,10,11,12,13]
[null,"Директор (руководитель)","01",null,null,null,null,null,null,null,null,null,null,null,null,null,{"$f":"Раздел11!D9","v":0}]
[null,"Заместители директора (руководителя)","02",{"$f":"SUM(D11:D14)","v":0},{"$f":"SUM(E11:E14)","v":0},0,0,0,0,0,0,0,0,0]
[null,"      в том числе:\n   по учебно-спортивной работе","03"]
[null,"   по учебно-воспитательной работе","04"]
[null,"   по научно-методической работе","05"]
[null,"   другие","06"]
[null,"Инструктор по спорту","07"]
[null,"Спортсмен, спортсмен-инструктор","08",null,null,null,null,null,null,null,null,null,null,null,null,{"$f":"Раздел2!R208","v":0}]
[null,"Инструктор – методист (включая старшего)","09"]
[null,"Техник (специалист) по эксплуатации и ремонту спортивной техники, инвентаря и снаряжения",10,null,null,null,null,0]
[null,"Преподаватель",11]
[null,"Воспитатель (включая старшего)",12]
[null,"Методист (включая старшего)",13]
[null,"Педагог – психолог",14]
[null,"Медицинские работники:",15,{"$f":"SUM(D24:D26)","v":0},{"$f":"SUM(E24:E26)","v":0},0,0,0,0,0,0,0,0,0]
[null,"   в том числе:\n   врачи",16]
[null,"   средний медицинский персонал",17]
[null,"   младший медицинский персонал",18]
[null,"Специалисты спортсооружений",19]
[null,"Прочий персонал",20]
[null,"ИТОГО",21,{"$f":"SUM(D9,D10,D15:D23,D27,D28)","v":0},{"$f":"SUM(E9,E10,E15:E23,E27,E28)","v":0},0,0,0,0,0,0,0,0,0]

{"sheet":"Раздел10","index":10,"n_rows":42,"n_cols":16,"rows_kept":42,"cut":false,"hidden":false,"merged":[[3,15,5,15],[0,0,0,8],[3,1,5,1],[3,2,5,2],[3,4,3,8],[3,14,5,14],[1,1,1,14],[3,3,5,3],[4,4,5,4],[4,5,4,8],[3,9,3,13],[4,9,5,9],[4,10,4,13],[1,0,41,0],[2,11,2,15]]}
[]
[null,"Раздел X. Спортивные сооружения"]
[null,null,null,null,null,null,null,null,null,null,null,"Код по ОКЕИ: единица – 642"]
[null,"Наименование спортивного сооружения","№ стро-ки","Число спортивных сооружений – всего","находящихся на балансе (из гр. 3)",null,null,null,null,"арендуемых (из гр. 3)",null,null,null,null,"используемых на безвозмездной основе\n(из гр. 3)","Количество спортсооружений, входящих во Всероссийский реестр объектов спорта (из гр. 3)"]
[null,null,null,null,"всего","в том числе по формам собственности:",null,null,null,"всего","в том числе по формам собственности:"]
[null,null,null,null,null,"федеральной","субъектов Российской Федерации","муниципальной","другой",null,"федеральной","субъектов Российской Федерации","муниципальной","другой"]
[null,1,2,3,4,5,6,7,8,9,10,11,12,13,14,15]
[null,"Стадионы с трибунами – всего","01",{"$f":"SUM(E8,J8,O8)","v":0},{"$f":"SUM(F8:I8)","v":0},null,null,null,null,{"$f":"SUM(K8:N8)","v":0}]
[null,"в том числе на 1500 мест и более","02",{"$f":"SUM(E9,J9,O9)","v":0},{"$f":"SUM(F9:I9)","v":0},null,null,null,null,{"$f":"SUM(K9:N9)","v":0}]
[null,"Плоскостные спортивные сооружения - всего","03",0,0,{"$f":"SUM(F11:F12)","v":0},{"$f":"SUM(G11:G12)","v":0},{"$f":"SUM(H11:H12)","v":0},{"$f":"SUM(I11:I12)","v":0},0,{"$f":"SUM(K11:K12)","v":0},0,0,0,0,0]
[null,"в том числе:\nПлоскостные спортивные сооружения","04",0,0,null,null,null,null,0]
[null,"Футбольные поля","05",0,0,null,null,null,null,0]
[null,"Спортивные залы – всего","06",0,0,{"$f":"SUM(F14:F17)","v":0},{"$f":"SUM(G14:G17)","v":0},{"$f":"SUM(H14:H17)","v":0},{"$f":"SUM(I14:I17)","v":0},0,{"$f":"SUM(K14:K17)","v":0},0,0,0,0,0]
[null,"      в том числе размером:\n     (42 х 24 м)","07",0,0,null,null,null,null,0]
[null,"     (36 х 18 м); (30 х 18 м) и (30 х 15 м)","08",0,0,null,null,null,null,0]
[null,"     (24 х 12 м) и (18 х 9 м)","09",0,0,null,null,null,null,0]
[null,"     иных размеров",10,0,0,null,null,null,null,0]
[null,"Манежи легкоатлетические",11,0,0,null,null,null,null,0]
[null,"Манежи футбольные",12,0,0,null,null,null,null,0]
[null,"Велотреки",13,0,0,null,null,null,null,0]
[null,"Велодромы",14,0,0,null,null,null,null,0]
[null,"Бассейны – всего",15,0,0,{"$f":"SUM(F23:F26)","v":0},{"$f":"SUM(G23:G26)","v":0},{"$f":"SUM(H23:H26)","v":0},{"$f":"SUM(I23:I26)","v":0},0,{"$f":"SUM(K23:K26)","v":0},0,0,0,0,0]
[null,"     в том числе: \n     плавательные 50-метровые",16,0,0,null,null,null,null,0]
[null,"     плавательные 25-метровые",17,0,0,null,null,null,null,0]
[null,"     нестандартных размеров",18,0,0,null,null,null,null,0]
[null,"     для прыжков в воду",19,0,0,null,null,null,null,0]
[null,"         из строки 15 - крытые",20,0,0,null,null,null,null,0]
[null,"Гребные базы",21,0,0,null,null,null,null,0]
[null,"Гребные каналы",22,0,0,null,null,null,null,0]
[null,"Крытые спортивные объекты с искусственным льдом – всего",23,0,0,{"$f":"SUM(F31:F32)","v":0},{"$f":"SUM(G31:G32)","v":0},{"$f":"SUM(H31:H32)","v":0},{"$f":"SUM(I31:I32)","v":0},0,{"$f":"SUM(K31:K32)","v":0},0,0,0,0,0]
[null,"  в том числе:\n  крытые спортивные объекты с искусственным     льдом ",24,0,0,null,null,null,null,0]
[null,"     конькобежные",25,0,0,null,null,null,null,0]
[null,"Лыжные базы",26,0,0,null,null,null,null,0]
[null,"Лыжные стадионы",27,0,0,null,null,null,null,0]
[null,"Биатлонные комплексы",28,0,0,null,null,null,null,0]
[null,"Сооружения для стрелковых видов спорта – всего",29,0,0,{"$f":"SUM(F37:F40)","v":0},{"$f":"SUM(G37:G40)","v":0},{"$f":"SUM(H37:H40)","v":0},{"$f":"SUM(I37:I40)","v":0},0,{"$f":"SUM(K37:K40)","v":0},0,0,0,0,0]
[null,"     в том числе: \n     тиры",30,0,0,null,null,null,null,0]
[null,"     стрельбища",31,0,0,null,null,null,null,0]
[null,"     стенды",32,0,0,null,null,null,null,0]
[null,"     лукодромы",33,0,0,null,null,null,null,0]
[null,"Другие спортивные сооружения",34,0,0,null,null,0,null,0]
[null,"ИТОГО",35,0,0,{"$f":"SUM(F8,F10,F13,F18:F22,F28:F30,F33:F36,F41)","v":0},{"$f":"SUM(G8,G10,G13,G18:G22,G28:G30,G33:G36,G41)","v":0},0,0,0,0,0,0,0,0,0]

{"sheet":"Раздел11","index":11,"n_rows":28,"n_cols":18,"rows_kept":28,"cut":false,"hidden":false,"merged":[[1,14,27,14],[5,8,5,10],[5,11,5,13],[2,11,2,13],[4,5,4,7],[5,5,5,6],[5,7,6,7],[0,0,0,8],[1,1,1,13],[3,1,6,1],[3,2,6,2],[3,3,4,4],[3,5,3,13],[4,8,4,13],[1,0,27,0],[5,3,6,3],[5,4,6,4]]}
[]
[null,"Раздел XI. Сведения о численности и оплате труда работников"]
[null,null,null,null,null,null,null,null,null,null,null,"Коды по ОКЕИ: человек – 792; тысяча рублей – 384"]
[null,"Наименование должности","№ строки","Средняя численность работников, человек",null,"Фонд начисленной заработной платы работников, тыс. руб."]
[null,null,null,null,null,"всего",null,null,"по источникам финансирования"]
[null,null,null,"списочного состава\n(без внеш-них совме-стителей)\n","внешних совме-стителей","списочного состава (без внешних совместителей)",null,"внешних совме-стителей","списочного состава\n(без внешних совместителей)",null,null,"внешних совместителей"]
[null,null,null,null,null,"всего","в том числе по внутреннему совместитель-ству",null,"средства бюджетов всех уровней\n(субсидий)","ОМС","средства от приносящей доход деятельности","средства бюджетов всех уровней\n(субсидий)","ОМС","средства от приносящей доход деятельности"]
[null,1,2,3,4,5,6,7,8,9,10,11,12,13]
[null,"Директор","01",null,null,null,null,null,null,null,null,null,null,null,null,{"$f":"Раздел12!D7","v":0},{"$f":"Раздел12!E7+Раздел12!F7+Раздел12!G7","v":0},{"$f":"Раздел12!H7","v":0}]
[null,"Заместители директора, руководители структурных подразделений и их заместители","02",null,null,null,null,null,null,null,null,null,null,null,null,{"$f":"Раздел12!D8","v":0},{"$f":"Раздел12!E8+Раздел12!F8+Раздел12!G8","v":0},{"$f":"Раздел12!H8","v":0}]
[null,"Работники учреждений, осуществляющие спортивную подготовку:","03",{"$f":"D12+D18","v":0},{"$f":"E12+E18","v":0},{"$f":"F12+F18","v":0},0,{"$f":"H12+H18","v":0},0,0,0,0,0,0]
[null,"     тренерский персонал - всего:","04",{"$f":"SUM(D13:D15)","v":0},{"$f":"SUM(E13:E15)","v":0},0,0,{"$f":"SUM(H13:H15)","v":0},0,0,0,0,0,0,null,{"$f":"Раздел12!D9","v":0},{"$f":"Раздел12!E9+Раздел12!F9+Раздел12!G9","v":0},{"$f":"Раздел12!H9","v":0}]
[null,"   в том числе:\n   главные тренеры по видам спорта","05"]
[null,"      старшие тренеры по видам спорта ","06"]
[null,"тренеры по видам спорта - всего:","07",{"$f":"SUM(D16:D17)","v":0},{"$f":"SUM(E16:E17)","v":0},{"$f":"SUM(F16:F17)","v":0},0,0,0,0,0,0,0,0]
[null,"       в том числе:\n       тренеры","08"]
[null,"          тренеры-преподаватели","09"]
[null,"      методический персонал:",10,{"$f":"SUM(D19:D21)","v":0},{"$f":"SUM(E19:E21)","v":0},{"$f":"SUM(F19:F21)","v":0},0,0,0,0,0,0,0,0,null,{"$f":"Раздел12!D10","v":0},{"$f":"Раздел12!E10+Раздел12!F10+Раздел12!G10","v":0},{"$f":"Раздел12!H10","v":0}]
[null,"      в том числе:\n      инструкторы-методисты;",11]
[null,"      старшие инструкторы-методисты",12]
[null,"      спортсмены, спортсмены- инструкторы",13]
[null,"Медицинские работники - всего:",14,{"$f":"SUM(D23:D25)","v":0},{"$f":"SUM(E23:E25)","v":0},{"$f":"SUM(F23:F25)","v":0},0,0,0,0,0,0,0,0,null,{"$f":"Раздел12!D11","v":0},{"$f":"Раздел12!E11+Раздел12!F11+Раздел12!G11","v":0},{"$f":"Раздел12!H11","v":0}]
[null,"   в том числе:\n   врачи",15]
[null,"     средний медицинский персонал",16]
[null,"     младший медицинский персонал",17]
[null,"Прочий персонал",18,null,null,null,null,null,null,null,null,null,null,null,null,{"$f":"Раздел12!D12","v":0},{"$f":"Раздел12!E12+Раздел12!F12+Раздел12!G12","v":0},{"$f":"Раздел12!H12","v":0}]
[null,"Страховые взносы с заработной платы",19,null,null,null,null,null,null,null,null,null,null,null,null,{"$f":"Раздел12!D13","v":0},{"$f":"Раздел12!E13+Раздел12!F13+Раздел12!G13","v":0},{"$f":"Раздел12!H13","v":0}]
[null,"ИТОГО",20,{"$f":"D9+D10+D11+D22+D26+D27","v":0},{"$f":"E9+E10+E11+E22+E26+E27","v":0},0,0,0,0,0,0,0,0,0,null,{"$f":"Раздел12!D6","v":0},{"$f":"Раздел12!H6","v":0},{"$f":"Раздел12!E6+Раздел12!F6+Раздел12!G6","v":0}]

{"sheet":"Раздел12","index":12,"n_rows":40,"n_cols":20,"rows_kept":40,"cut":false,"hidden":false,"merged":[[36,1,36,5],[36,14,36,15],[38,2,38,4],[0,0,42,0],[32,5,32,7],[32,2,32,4],[30,5,30,7],[0,1,0,7],[35,1,35,5],[39,2,40,4],[39,9,39,10],[39,14,42,15],[35,8,35,12],[36,8,36,11],[38,8,38,12],[35,14,35,15]]}
[null,"Раздел XII. Финансовая деятельность организаций"]
[null,null,null,null,null,null,null,"Код по ОКЕИ: тысяча рублей – 384"]
[null,"Расходы на содержание организации","№ строки","ВСЕГО","федеральный бюджет","бюджет\nсубъекта Российской Федерации","муниципальный бюджет","внебюджетные источники"]
[null,1,2,3,4,5,6,7]
[null,"Всего расходов","01",{"$f":"SUM(E5:H5)","v":0},{"$f":"SUM(E6,E14,E15,E21,E24,E28)","v":0},{"$f":"SUM(F6,F14,F15,F21,F24,F28)","v":0},0,0]
[null,"в том числе: \nЗаработная плата - всего","02",0,{"$f":"SUM(E7:E13)","v":0},{"$f":"SUM(F7:F13)","v":0},0,0,null,null,null,null,null,null,null,null,null,{"$f":"Раздел11!F28+Раздел11!H28","v":0},{"$f":"Раздел11!K28+Раздел11!N28","v":0},{"$f":"Раздел11!I28+Раздел11!L28","v":0}]
[null,"в том числе:\nдиректор","03",0,null,null,null,null,null,null,null,null,null,null,null,null,null,{"$f":"Раздел11!H9+Раздел11!F9","v":0},{"$f":"Раздел11!I9+Раздел11!L9","v":0},{"$f":"Раздел11!K9+Раздел11!N9","v":0}]
[null,"   заместители директора","04",0,null,null,null,null,null,null,null,null,null,null,null,null,null,{"$f":"Раздел11!F10+Раздел11!H10","v":0},{"$f":"Раздел11!I10+Раздел11!L10","v":0},{"$f":"Раздел11!K10+Раздел11!N10","v":0}]
[null,"   тренерский персонал","05",0,null,null,null,null,null,null,null,null,null,null,null,null,null,{"$f":"Раздел11!F12+Раздел11!H12","v":0},{"$f":"Раздел11!I12+Раздел11!L12","v":0},{"$f":"Раздел11!K12+Раздел11!N12","v":0}]
[null,"   методический персонал","06",0,null,null,null,null,null,null,null,null,null,null,null,null,null,{"$f":"Раздел11!F18+Раздел11!H18","v":0},{"$f":"Раздел11!I18+Раздел11!L18","v":0},{"$f":"Раздел11!K18+Раздел11!N18","v":0}]
[null,"   медицинские работники","07",0,null,null,null,null,null,null,null,null,null,null,null,null,null,{"$f":"Раздел11!F22+Раздел11!H22","v":0},{"$f":"Раздел11!I22+Раздел11!L22","v":0},{"$f":"Раздел11!K22+Раздел11!N22","v":0}]
[null,"   прочий персонал","08",0,null,null,null,null,null,null,null,null,null,null,null,null,null,{"$f":"Раздел11!F26+Раздел11!H26","v":0},{"$f":"Раздел11!I26+Раздел11!L26","v":0},{"$f":"Раздел11!K26+Раздел11!N26","v":0}]
[null,"   страховые взносы с заработной платы","09",0,null,null,null,null,null,null,null,null,null,null,null,null,null,{"$f":"Раздел11!F27+Раздел11!H27","v":0},{"$f":"Раздел11!I27+Раздел11!L27","v":0},{"$f":"Раздел11!K27+Раздел11!N27","v":0}]
[null,"Оздоровительная кампания",10,0]
[null,"Участие в соревнованиях и\nтренировочных сборах - всего",11,0,{"$f":"SUM(E16:E20)","v":0},{"$f":"SUM(F16:F20)","v":0},0,0]
[null,"   в том числе: \n   тренерский состав",12,0]
[null,"   спортсмены, спортсмены-инструкторы",13,0]
[null,"   медицинский персонал",14,0]
[null,"   прочий персонал",15,0]
[null,"   другие расходы",16,0]
[null,"Материально-техническое обеспечение",17,0,{"$f":"SUM(E22:E23)","v":0},{"$f":"SUM(F22:F23)","v":0},0,0]
[null,"   в том числе: \n   экипировка, спортивное оборудование, \n   инвентарь",18,0]
[null,"   прочее",19,0]
[null,"Содержание спортивных сооружений",20,0,{"$f":"SUM(E25:E27)","v":0},{"$f":"SUM(F25:F27)","v":0},0,0]
[null,"   в том числе: \n   аренда (услуги спортсооружений)",21,0]
[null,"   собственные спортсооружения",22,0]
[null,"   другие расходы на содержание",23,0]
[null,"Прочие расходы",24,0]
[null,null,null,{"$f":"Раздел1!F9","v":0}]
[]
[null,"Поступило средств от предоставления платных услуг, тысяча рублей:"]
[]
[null,"Всего (25)"]
[]
[null,"Должностное лицо, ответственное за предоставление статистической информации (лицо, уполномоченное предоставлять статистическую информацию от имени юридического лица)"]
[]
[null,"(должность)",null,null,null,null,null,null,"(Ф.И.О.)",null,null,null,null,null,"(подпись)"]
[]
[null,null,null,null,null,null,null,"e-mail"]
[null,null,"(номер контактного телефона)",null,null,null,null,null,null,null,null,null,null,null,"(дата составления\nдокумента)"]